Workbook

Sheet Hauptmenü
B1: LANDESBETRIEB LANDWIRTSCHAFT
B2: HESSEN
B3: Fachinformation Betriebswirtschaft | I3: Stand: Juni 2025 [Version 7.1]
B4: Rechenansätze (Deckungsbeiträge Ökologisch - Landwirtschaft) - 2024/ 25
B5: Hauptmenü - Auswahl der Produktionsverfahren
I6: Regelbesteuerung
B7: Allgemeine Daten | I7: Futterbau
I8: Silomais
B9: Wirtschaftsdünger | I9: Grünland
B10: Strohbergung | I10: Kleegras
B11: Marktfrüchte | I11: Grünfutter
B12: Qualitätsweizen | I12: Zwischenfrucht
B13: Futterweizen
B14: Sommerweizen | I14: Rinder-, Schaf- und Pferdehaltung
B15: Roggen | I15: Milchkuh (Boxenlaufstall)
B16: Triticale | I16: Milchkuh (AMS)
B17: Dinkel | I17: Aufzuchtfärse, Kalb
B18: Wintergerste | I18: Mutterkuh, Mastfärse
B19: Braugerste | I19: Mastbulle, Ochse
B20: Hafer | I20: Schafhaltung
B21: Raps | I21: Pensionspferde
B22: Erbsen | I22: Schweine- und Geflügelhaltung
B23: Ackerbohnen | I23: Zuchtsau
B24: Zuckerrüben | I24: Mastschweine
B25: Kartoffeln | I25: Legehennen
B26: Körnermais | I26: Legehennen (Direktverm.)
I27: Masthähnchen
A31: Benutzerhinweise
A32: 1. | B32: Klicken Sie die Grauen Schaltflächen "DB" an und Sie gelangen zu dem Produktionsverfahren Ihrer Wahl!
A33: 2. | B33: Die Grauen Schaltfächen in den Produktionsverfahren "Arbeitsgänge" führen Sie zu den dazugehörigen Arbeitsgängen.
A34: 3. | B34: Jedes Produktionsverfahren hat eine Graue Schaltfläche "Hauptmenü", um wieder zum Inhaltsverzeichnis zurückzugelangen.
A35: 4. | B35: Jedes Produktionsverfahren hat eine Spalte "Eigene Werte" hier können Sie die betriebsindividuuelle Gegebenheiten abbilden.
B41: Herausgeber: | C41: Landesbetrieb Landwirtschaft Hessen (LLH)
B43: Redaktion: | C43: Klaus Wagner/ Christoph Rohde/ Ulrich Stahl, FG 31 Kölnische Straße 48-50 , 34117 Kassel; Tel.: 0561 7299-286/-258 oder 06621 9228-13
C44: e-Mail: klaus.wagner@llh.hessen.de / christoph.rohde@llh.hessen.de
B45: Fachliche Inhalte: | C45: Abteilungen Fachinformation und Bildung Fachgebiet Ökonomie und Markt
C46: Abteilung Beratung Fachgebiete Ökonomie und Verfahrenstechnik, Öko-Team
B48: Veröffentlichung: | C48: Erscheint in der Reihe Fachinfo Ökonomie
B50: Bezugspreis:

Sheet Stammdatenblatt (hidden)
B1: bearbeitet von Sebastian Ludwig und Christoph Rohde
B3: Landesbetrieb Landwirtschaft Hessen
A5: durchschnittliche Verkaufspreise aus dem Kalenderjahr 2024/ 25 ohne Umsatzsteuer | J5: Preis incl. USt.
H6: Umsatzsteuer für pauschalierende Betriebe bei Verkaufsprodukten beträgt seit dem 01.01.2022: | I6: =IF(Hauptmenü!$I$6="Regelbesteuerung","0%",J6) -> 0% | J6: 0.078 | Q6: Pauschalierend
Q7: Regelbesteuerung
A8: Pflanzenproduktion | E8: WJ 24/ 25 | J8: Preis incl. USt.
G9: Anteil | H9: Durchschnitts- preise
A10: Weizen | B10: Backweizen | C10: A-Qualität | E10: 48.04 | F10: €/dt | J10: =+((E10+E11)*0.5)*(1+$I$6) -> 44.99 | K10: LFL 2025
A11: Sommerweizen | C11: B-Qualität | E11: 41.94 | F11: €/dt | I11: ^^^^^^^^^^^^^^^^^^ | J11: =+((E11+E12)*0.5)*(1+$I$6) -> 38.375 | K11: LFL 2025
B12: Futterweizen | E12: 34.81 | F12: €/dt | J12: =+E12*(1+$I$6) -> 34.81 | K12: LFL 2025
A13: Hafer | B13: Speisehafer | E13: 29.05 | F13: €/dt | J13: =+E13*(1+$I$6) -> 29.05 | K13: LFL 2025
A14: Roggen | B14: Brotroggen | E14: 33.4 | F14: €/dt | J14: =+((E14))*(1+I6) -> 33.4 | K14: LFL 2025
A15: Triticale | E15: 32.18 | F15: €/dt | J15: =+E15*(1+$I$6) -> 32.18 | K15: LFL 2025
A16: Dinkel | B16: bespelzte Ware | E16: 48.36 | F16: €/dt | J16: 48.36 | K16: LFL 2025
B17: entspelzte Ware | E17: 75 | F17: €/dt | J17: 75 | K17: Raiffeisen Wabern 2025
A18: Futtergerste | E18: 33.62 | F18: €/dt | J18: 33.62 | K18: LFL 2025
A19: Braugerste | E19: 46.88 | F19: €/dt | J19: 46.88 | K19: LFL 2025
A20: Hybridroggen | D20: nicht abgebildet | F20: €/dt | J20: 0 | K20: keine Angaben
A21: Futterhafer | D21: nicht abgebildet | E21: 0 | F21: €/dt | J21: 0 | K21: keine Angaben
A22: Körnermais | E22: 35.16 | F22: €/dt | J22: 35.16 | K22: LFL 2025
A23: Silomais | E23: 9.5 | F23: €/dt | J23: 9.5 | K23: Jürgen Sprenger 03.2024
A24: Raps | E24: 78 | F24: €/dt | J24: 78 | K24: Raiffeisen Wabern 2025
A25: Erbsen | B25: Futter | E25: 52.26 | F25: €/dt | J25: 52.26 | K25: LFL 2025
A26: Ackerbohnen | B26: Futter | E26: 56.04 | F26: €/dt | J26: 56.04 | K26: LFL 2025
A27: Zuckerrüben | B27: mit Boni-Programm | E27: 9.8 | F27: €/dt | J27: 9.8 | K27: LFL 2025
E28: 0 | F28: €/dt | J28: 0 | K28: keine Angaben
B29: Rübenmarkvergütung | E29: 0 | F29: €/dt | J29: 0 | K29: keine Angaben
A30: Kartoffeln | B30: Speisekartoffeln | C30: festkochend | E30: 76.73 | F30: €/dt | J30: 76.73 | K30: LFL 2025
B31: Speisekartoffeln | C31: vorwieg. festkochend | E31: 76.73 | F31: €/dt | J31: 76.73 | K31: LFL 2025
B32: Speisekartoffeln | C32: Direktvermarktung | E32: 170 | F32: €/dt | J32: 170 | K32: Reinhard Schmidt 2023
B33: Frühkartoffeln | C33: (1.7. bis 10.8. lose) | E33: 120 | F33: €/dt | J33: 120 | K33: LWK Niedersachsen
B34: Stärkekartoffeln | E34: 0 | F34: €/dt | J34: 0 | K34: Reinhard Schmidt
A36: Tierproduktion
A37: Milch | B37: 4 % Fett-; 3,4 % Eiweißgehalt | E37: 0.6011 | F37: €/kg | J37: 0.6011 | K37: LFL 2025
B38: Zuschlag je 0,1 % höheren Fettgehalt | E38: 0.0036 | F38: €/kg | J38: =+E38*(1+$I$6) -> 0.0036 | K38: keine Angaben
A39: Schlachtkühe | B39: Ø aller Klassen | E39: 4.43 | F39: €/kg SG | J39: 4.43 | K39: LFL 2025
A40: Schlachtfärsen | B40: Ø aller Klassen | E40: 5.27 | F40: €/kg SG | J40: 5.27 | K40: LFL 2025
A41: Jungbullen | B41: Ø aller Klassen | E41: 6 | F41: €/kg SG | J41: 6 | K41: https://www.landwirtschaft.sachsen.de/oko-rinder-und-schweine-39259.asp | R41: 2025
A42: Mastochsen | B42: Ø aller Klassen | E42: 5.4 | F42: €/kg SG | J42: 5.4 | K42: LFL 2025
A43: Schlachtkälber | B43: Ø aller Klassen | E43: 6.55 | F43: €/kg SG | J43: 6.55 | K43: LFL 2025
A44: Färse | B44: schwarzbunt | E44: 2695.2 | F44: €/Stück | J44: 2695.2 | K44: LFL 2025
A45: Kälber | B45: schwarzbunt | C45: männlich mast | E45: 266.8 | F45: €/Stück | J45: 266.8 | K45: LFL 2025
B46: schwarzbunt | C46: weiblich mast | E46: 142 | F46: €/Stück | J46: 142 | K46: Testbetriebe 2023/ 2024 und LFL 2025
A47: Färse | B47: Kreuzungstier | E47: 1748.13 | F47: €/Stück | J47: 1748.13 | K47: LFL
A48: Absetzer | B48: Fleischrind/Kreuzung | C48: männlich | E48: 4.35 | F48: €/kg LG | J48: 4.35 | K48: https://www.landwirtschaft.sachsen.de/bpsplanweb/rechengroessen/planung/oekologisch/unterkategorie/69
B49: Fleischrind/Kreunzung | C49: weiblich | E49: 2.9 | F49: €/kg LG | J49: 2.9 | K49: https://www.landwirtschaft.sachsen.de/bpsplanweb/rechengroessen/planung/oekologisch/unterkategorie/69
A50: Ferkel | B50: 28 kg LG Qualitätsferkel | E50: 183.2 | F50: €/Stück | H50: =E50/28 -> 6.542857143 | I50: €/kg | J50: 183.2 | K50: LFL 2025
B51: Zuschlag je kg, 28-30 kg LG | E51: 0 | F51: €/kg | J51: 0 | K51: gibt es im ÖL nicht
A52: Systemferkel | B52: 7 - 8 kg LG | E52: 0 | F52: €/Stück | J52: 0 | K52: gibt es im ÖL nicht
A53: Jungsauen | B53: nicht tragend | E53: 875 | F53: €/Stück | J53: 875 | K53: LFL 2025
A54: Altsauen | B54: M1 | E54: 2.94 | F54: €/kg SG | J54: 2.94 | K54: LFL 2025
A55: Mastschweine | B55: MFA 55 -59,9% | E55: 4.33 | F55: €/kg SG | J55: 4.33 | K55: LFL 2025
A56: Eier | B56: Kl. L Kleingruppenhaltung ab Erzeugerp. | E56: 0 | F56: €/Stück | J56: 0 | K56: gibt es im ÖL nicht
B57: Kl. M Kleingruppenhaltung ab Erzeugerp. | E57: 0 | F57: €/Stück | J57: 0 | K57: gibt es im ÖL nicht
B58: Kl. L Bodenhaltung ab Erzeugerpackstelle | E58: 0 | F58: €/Stück | J58: 0 | K58: gibt es im ÖL nicht
B59: Kl. M Bodenhaltung ab Erzeugerpackstelle | E59: 0 | F59: €/Stück | J59: 0 | K59: gibt es im ÖL nicht
B60: Kl. L Bodenhaltung Direktvermarktung | E60: 0 | F60: €/Stück | J60: =+E60*(1+$I$6) -> 0 | K60: gibt es im ÖL nicht
B61: Kl. M Bodenhaltung Direktvermarktung | E61: 0 | F61: €/Stück | J61: 0 | K61: gibt es im ÖL nicht
B62: Kl. L Freilandhaltung ab Erzeugerpackstelle | E62: 0.3174 | F62: €/Stück | J62: 0.3174 | K62: LFL 2025
B63: Kl. M Freilandhaltung ab Erzeugerpackstelle | E63: 0.3141 | F63: €/Stück | J63: 0.3141 | K63: LFL 2025
B64: Kl. L Freilandhaltung Direktvermarktung | E64: 0.385 | F64: €/Stück | J64: 0.385 | K64: https://www.landwirtschaft.sachsen.de/bpsplanweb/rechengroessen/planung/oekologisch/unterkategorie/69
B65: Kl. M Freilandhaltung Direktvermarktung | E65: 0.385 | F65: €/Stück | J65: 0.385 | K65: https://www.landwirtschaft.sachsen.de/bpsplanweb/rechengroessen/planung/oekologisch/unterkategorie/69
A66: Eintagsküken Mast | E66: 0.8 | F66: €/Stück | J66: 0.8 | K66: KTBL 22/ 23 S. 723
A67: Junghenne | E67: 8.39 | F67: €/Stück | J67: 8.39 | K67: LFL 2025
A68: Masthähnchen | E68: 2.95 | F68: €/kg | J68: 2.95 | K68: Philipp Heimel 09.2025
A69: Schlachthuhn | B69: Direktvermarktung | E69: 7.9 | F69: €/kg SG | J69: 7.9 | K69: Mustergeflügelhof Sonnenei, telefonisch 09.04.2024
B70: Abgabe an den Großhandel | E70: 1.38 | F70: €/kg SG | J70: 1.38 | K70: LFL 2025
A71: Lämmer | E71: 7.7 | F71: €/kg SG | J71: 7.7 | K71: https://www.landwirtschaft.sachsen.de/oko-rinder-und-schweine-39259.asp
A72: Altschaf | E72: 47.76 | F72: €/Stück | J72: 47.76 | K72: Recherche Internet 2025
A73: Wolle | E73: 1 | F73: €/kg | J73: 1 | K73: Recherche Internet 2025
A75: Einkaufspreise für Saat-und Pflanzgut
C76: Umsatzsteuer für Saat- und Pflanzgut beträgt: | D76: =IF(Hauptmenü!$I$6="Regelbesteuerung","0%",E76) -> 0% | E76: 0.07
A77: Winterweizen | E77: 100 | F77: €/dt | J77: =+E77*(1+$D$76) -> 100 | K77: Raiffeisen Wabern 2025
A78: Sommerweizen | E78: 100 | F78: €/dt | J78: 100 | K78: Raiffeisen Wabern 2025
A79: Winterroggen | E79: 85 | F79: €/dt | J79: 85 | K79: Raiffeisen Wabern 2025
A80: Hybridroggen | E80: 90 | F80: €/dt | J80: 90 | K80: Raiffeisen Wabern 2025
A81: Triticale | E81: 88 | F81: €/dt | J81: 88 | K81: Raiffeisen Wabern 2025
A82: Dinkel | E82: 130 | F82: €/dt | J82: =I76+E82*(1+$D$76) -> 130 | K82: Raiffeisen Wabern 2025
A83: Wintergerste | E83: 85 | F83: €/dt | J83: 85 | K83: Raiffeisen Wabern 2025
A84: Sommergerste (Brau) | E84: 95 | F84: €/dt | J84: 95 | K84: Raiffeisen Wabern 2025
A85: Hafer | E85: 100 | F85: €/dt | J85: 100 | K85: Raiffeisen Wabern 2025
A86: Winterraps | B86: 00 - Sorten | E86: 330 | F86: €/E. | J86: 330 | K86: Raiffeisen Wabern 2025
A87: Erbsen | E87: 125 | F87: €/dt | J87: 125 | K87: Raiffeisen Wabern 2025
A88: Ackerbohnen | E88: 120 | F88: €/dt | J88: 120 | K88: Raiffeisen Wabern 2025
A89: Mais | E89: 160 | F89: €/E. | J89: 160 | K89: Raiffeisen Wabern 2025
A90: Zuckerrüben | B90: genetisch monogerm | E90: 232 | F90: €/E. | J90: 232 | K90: KTBL-22 23 S.429
B91: Standartsorte ohne Beizung | J91: 0
B92: +im Ökolandbau zugelassene Beize | E92: 320 | F92: €/E. | J92: 320 | K92: Naturland-Betrieb bei Warburg, 10/2017
A93: Kartoffeln | B93: zertifiziertes Pflanzgut
B94: Speisesorten | E94: 130 | F94: €/dt | J94: 130 | K94: Raiffeisen Wabern 2025
B95: Frühe Speisesorten | E95: 130 | F95: €/dt | J95: 130 | K95: Raiffeisen Wabern 2025
B96: Stärkesorten | E96: 0 | F96: €/dt | J96: 0 | K96: keine Angaben
A97: Dauergrünlandansaatmischung | E97: 5.52 | F97: €/kg | J97: 5.52 | K97: CAMENA SAATEN Frühjahr 2022; Camena Saaten Frühjahr 2024
A98: Einjähriges Weidelgras | E98: 3.1 | F98: €/kg | J98: 3.1 | K98: CAMENA SAATEN Frühjahr 2022; Camena Saaten Frühjahr 2024
A99: Welsches Weidelgras | E99: 3.38 | F99: €/kg | J99: 3.38 | K99: CAMENA SAATEN Frühjahr 2022; Camena Saaten Frühjahr 2024
A100: Sommerraps | E100: 2.74 | F100: €/kg | J100: 2.74 | K100: CAMENA SAATEN Frühjahr 2022; Camena Saaten Frühjahr 2024
A101: Kleegrasmischung | C101: kleebetont | E101: 6.86 | F101: €/kg | J101: 6.86 | K101: CAMENA SAATEN Frühjahr 2022; Camena Saaten Frühjahr 2024
C102: grasbetont | E102: 6.02 | F102: €/kg | J102: 6.02 | K102: CAMENA SAATEN Frühjahr 2022; Camena Saaten Frühjahr 2024
A103: Phacelia | E103: 5.6 | F103: €/kg | J103: 5.6 | K103: CAMENA SAATEN Frühjahr 2022; Camena Saaten Frühjahr 2024
A104: Senf | E104: 3.34 | F104: €/kg | J104: 3.34 | K104: CAMENA SAATEN Frühjahr 2022; Camena Saaten Frühjahr 2024
A105: Ölrettich | E105: 3.96 | F105: €/kg | J105: 3.96 | K105: CAMENA SAATEN Frühjahr 2022; Camena Saaten Frühjahr 2024
A106: Ackerbohne | E106: 1.44 | F106: €/kg | J106: 1.44 | K106: CAMENA SAATEN Frühjahr 2022; Camena Saaten Frühjahr 2024
A107: Alexandrinerklee | E107: 5.44 | F107: €/kg | J107: 5.44 | K107: CAMENA SAATEN Frühjahr 2022; Camena Saaten Frühjahr 2024
A108: Futtererbse | E108: 1.44 | F108: €/kg | J108: 1.44 | K108: CAMENA SAATEN Frühjahr 2022; Camena Saaten Frühjahr 2024
A109: Grünroggen | E109: 1.38 | F109: €/kg | J109: 1.38 | K109: CAMENA SAATEN Frühjahr 2022; Camena Saaten Frühjahr 2024
A110: Inkarnatklee | E110: 4.6 | F110: €/kg | J110: 4.6 | K110: CAMENA SAATEN Frühjahr 2022; Camena Saaten Frühjahr 2024
A111: Lupine (Süßlupine) | E111: 1.58 | F111: €/kg | J111: 1.58 | K111: CAMENA SAATEN Frühjahr 2022; Camena Saaten Frühjahr 2024
A112: Perserklee | E112: 4.21 | F112: €/kg | J112: 4.21 | K112: CAMENA SAATEN Frühjahr 2022; Camena Saaten Frühjahr 2024
A113: Winterraps | E113: 2.48 | F113: €/kg | J113: 2.48 | K113: CAMENA SAATEN Frühjahr 2022; Camena Saaten Frühjahr 2024
A114: Winterrübsen | E114: 3.06 | F114: €/kg | J114: 3.06 | K114: CAMENA SAATEN Frühjahr 2022; Camena Saaten Frühjahr 2024
A115: Sommerwicke | E115: 2.56 | F115: €/kg | J115: 2.56 | K115: CAMENA SAATEN Frühjahr 2022; Camena Saaten Frühjahr 2024
A116: Wickroggen | E116: 2.29 | F116: €/kg | J116: 2.29 | K116: CAMENA SAATEN Frühjahr 2022; Camena Saaten Frühjahr 2024
A117: Landsb. Gemenge | E117: 3.66 | F117: €/kg | J117: 3.66 | K117: CAMENA SAATEN Frühjahr 2022; Camena Saaten Frühjahr 2024
A119: Einkaufspreise für Düngemittel
C120: Umsatzsteuer für Düngemittel beträgt: | D120: =IF(Hauptmenü!$I$6="Regelbesteuerung","0%",E120) -> 0% | E120: 0.19
A122: Haarmehlpellets | B122: (HMP) | C122: 0.14 | D122: N | E122: 98.5 | F122: €/dt | J122: =+E122*(1+$D$120) -> 98.5 | K122: BayWa 2024
A123: weicherdiges Rohphosphat | C123: 0.26 | D123: P2PO4 | E123: 38.48 | F123: €/dt | J123: 38.48 | K123: Berechnet nach LFL Deckungsbeiträge März 2024
A124: Patent-Kali | C124: 0.3 | D124: K2O | E124: 74.6 | F124: €/dt | J124: 74.6 | K124: K + S 03.2024
A125: Kohlensaurer Kalk | C125: 0.9 | D125: CaCO | E125: 4.1 | F125: €/dt | J125: 4.1 | K125: agrarheute.com Preis 07.2023
A126: Kieserit | C126: 0.25 | D126: MgO | E126: 30.7 | F126: €/dt | J126: 30.7 | K126: Landwirtschaftskammer SH. 03.2024
A127: Schwefellinsen | C127: 0.87 | D127: S | E127: 100 | F127: €/dt | J127: 100 | K127: Raiffeisen Wabern
F129: €/dt | J129: 0
A133: Preise je kg Reinnährstoff
A134: Bruttopreise bei: | B134: =IF(Hauptmenü!$I$6="Regelbesteuerung","0%",C134) -> 0% | C134: 0.19
A135: Stickstoff | B135: ausgehend von HMP 14% N-Gehalt | E135: 4.61 | F135: €/kg | J135: =E135*(1+B134) -> 4.61 | K135: LFL 2025
A136: Phosphor | B136: ausgehend von Rohphosphat 26% P2O4 | E136: 1.06 | F136: €/kg | J136: =E136*1+B134 -> 1.06 | K136: LFL 2025
A137: Kali | B137: ausgehend von Patent-Kali 30% K2O | E137: 1.76 | F137: €/kg | J137: =E137*(1+B134) -> 1.76 | K137: LFL 2025
A138: Kalk | B138: ausgehend von kohlensaurer Kalk 80% CaCo3 | E138: =E125/90 -> 0.04555555556 | F138: €/kg | J138: =E138*(1+B134) -> 0.04555555556 | K138: agrarheute.com Preis 07.2023
A139: Magnesium | B139: ausgehend von Kieserit 25% MgO | E139: 0.552 | F139: €/kg | J139: =E139*(1+B134) -> 0.552 | K139: Landwirtschaftskammer SH. 03.2024
A140: Schwefel | B140: ausgehend von Schwefellinsen 87% S | E140: =E127/87 -> 1.149425287 | F140: €/kg | J140: =E140*(1+B134) -> 1.149425287 | K140: Raiffeisen Wabern
A144: Einkaufspreise für Futtermittel
C145: Umsatzsteuer für Futtermittel beträgt: | D145: =IF(Hauptmenü!$I$6="Regelbesteuerung","0%",E145) -> 0% | E145: 0.07
A147: Weizen | E147: =E12 -> 34.81 | F147: €/dt | J147: =+E147*(1+$D$145) -> 34.81 | K147: LFL 2025
A148: Gerste | E148: =E18 -> 33.62 | F148: €/dt | J148: 33.62 | K148: LFL 2025
A149: Roggen | E149: 22.6 | F149: €/dt | J149: 22.6 | K149: LFL 2025
A150: Triticale | E150: =E15 -> 32.18 | F150: €/dt | J150: 32.18 | K150: LFL 2025
A151: Mais (Körner) | E151: =E22 -> 35.16 | F151: €/dt | J151: 35.16 | K151: LFL 2025
A152: Hafer | E152: =E21 -> 0 | F152: €/dt | J152: 0 | K152: LFL 2025
E153: Mischverhältnis: | G153: Getreide | H153: Soja | J153: Ink. Lohnmischer
A154: Kraftfutter für Aufzuchtfärse/Kälber | E154: =(G154/2)*$E$147+(G154/2)*$E$148+H154*$E$175 -> 34.215 | F154: €/dt | G154: 1 | H154: 0 | J154: =E154*(1+$D$145)+$J$158 -> 36.715 | L154: "Kälberkorn", 18 % RP
A155: Kraftfutter für Mutterkühe | E155: 0 | F155: €/dt | G155: 1 | H155: 0 | J155: =E155*(1+$D$145)+$J$158 -> 2.5 | L155: einfaches Getreide
A156: Kraftfutter für Mastbullen/Ochsen | E156: =(G156/2)*$E$147+(G156/2)*$E$148+H156*$E$175 -> 34.215 | F156: €/dt | G156: 1 | H156: 0 | J156: =E156*(1+$D$145)+$J$158 -> 36.715
A157: Mahl- und Mischkosten (eigen) | E157: 2 | F157: €/dt | J157: =E157*(1+$B$134) -> 2 | K157: Nach Richtpreise für wirtschaftseigenes Kraftfutter - Hollmichel
A158: Lohnmischer | E158: 2.5 | F158: €/dt | J158: =E158*(1+$B$134) -> 2.5 | K158: Nach Richtpreise für wirtschaftseigenes Kraftfutter - Hollmichel
A159: Milchleistungsfutter | C159: 18 % Protein, III | E159: 59 | F159: €/dt | J159: 59 | K159: https://www.landwirtschaft.sachsen.de/oeko-futtermittel-50197.asp | P159: 2025
A160: Milchaustauscher | C160: 50 % Magermilch- pulver, gesackt | E160: 330 | F160: €/dt | J160: 330 | K160: https://www.baywa.de/de/tierhaltung/futtermittel/rind/kaelber-und-jungvieh/milchaustauscher/c-sh_bp_8805664/ | R160: 2025
A161: Ergänzungsfutter für Aufzuchtkälber | E161: 590 | F161: €/dt | J161: 590 | K161: https://www.agrar.shop/tierwelt/futtermittel/zusatzfuttermittel-gesundheitsprodukte/ | R161: 2025
A162: Mineralstoffmischung für Rinder | E162: 76.32 | F162: €/dt | J162: 76.32 | K162: https://jbs-shop.eu/futtermittel/rinder.html | R162: 2025
J163: 0
A164: Ferkelaufzuchtfutter II | C164: 13-14 MJ/kg | E164: 121.5 | F164: €/dt | J164: 121.5 | K164: LFL 2025
A165: Sauenfutter | B165: säugende Sauen | C165: 13 MJ/kg | E165: 57.46 | F165: €/dt | J165: 57.46 | K165: LFL 2025
B166: tragende Sauen | C166: 11 MJ/kg | E166: 39.69 | F166: €/dt | J166: 39.69 | K166: LFL 2025
A167: Schweinemastfutter
A168: Vormast | B168: 1,0-1,15 % Lysin | C168: > 13,2 MJ/kg | E168: 54.69 | F168: €/dt | J168: =+E168*(1+$D$145) -> 54.69 | K168: LFL 2025
A169: Endmast | B169: 0,9-1,0 % Lysin | C169: > 12,6 MJ/kg | E169: 46.89 | F169: €/dt | J169: 46.89 | K169: LFL 2025
A170: Legehennen- alleinfutter | B170: 0,38 % Methionin | C170: > 11,4 MJ/kg | E170: 44.58 | F170: €/dt | J170: 44.58 | K170: LFL 2025
A171: Broilerkükenalleinfutter | E171: 110 | F171: €/dt | J171: 110 | K171: baywa.de 2025/ Berechnung Trieschmann Naturland
A172: Broileralleinfutter | E172: 80 | F172: €/dt | J172: 80 | K172: baywa.de 2025/ Berechnung Trieschmann Naturland
A173: Trockenschnitzelpellets | E173: 59.8 | F173: €/dt | J173: 59.8 | K173: AGRO Service Langenwolmsdorf Anruf vom 19.03.2024
A174: Kleie Mischung: Weizen, Dinkel, Roggen | C174: Normtyp gesackt | E174: 37 | F174: €/dt | J174: 37 | K174: https://www.partnerbio.eu/GETREIDE-MISCH-KLEIE | O174: 2025
A175: Sojakuchen | E175: 114.83 | F175: €/dt | J175: 114.83 | K175: LFL 2025
A176: Stroh (Rundballen) | E176: 13.78 | F176: €/dt | J176: 13.78 | K176: LFL 2025
A177: Heu (Rundballen) | E177: 12.95 | F177: €/dt | J177: 12.95 | K177: LFL 2025
A178: Silage (Mais) | E178: 9.5 | F178: €/dt | J178: 9.5 | K178: Jürgen Sprenger 03.2024
A179: … | E179: 0 | F179: €/dt | J179: 0
A181: Flächenzahlungen für das Wirtschaftsjahr 2023/2024
B184: Landwirtschaftliche Nutzfläche (Acker), HALM (B) | E184: 350 | F184: €/ha | K184: Nicht enthalten in den berechneten DB-Verfahren! | P184: Fränzke LLH
B185: Grünland, HALM (B) | E185: 220 | F185: €/ha | K185: Enthalten in den extensiven Grünland-DB-Verfahren! | P185: Fränzke LLH
F186: €/ha
A187: Einstreu: | C187: Bitte Auswahl treffen! | D187: Abgabe an Landw. 7,0%
A188: Stroh | B188: MwSt: | C188: =IF(Hauptmenü!$I$6="Regelbesteuerung","0%",D188) -> 0% | D188: 0.07 | E188: 13.57 | F188: €/dt | J188: =E188*(1+C188) -> 13.57 | K188: LFL | Q188: Abgabe an Landw. 7,0%
Q189: Abgabe an Handel 7,8%
A191: Saatgutpreis Eigen: | C191: Getreidepreis | D191: plus | E191: 9 | F191: €/dt | G191: Reinigungs- und Aufbereitungskosten inkl. Lizenzgebühr | L191: aktualisiert nach LWK Niedersachsen, 2018
A194: Versicherungsbeitrag:
C195: Wintergetreide | E195: 6.08 | F195: €/1000€ Versicherungssumme ohne VersSt. | K195: KTBL 24/ 25 S.327 | M195: =E195*(1+C226) -> 6.08
C196: Sommergetreide | E196: 6.08 | F196: €/1000€ Versicherungssumme ohne VersSt. | K196: KTBL 24/ 25 S.327 | M196: =E196*(1+C226) -> 6.08
C197: Winterraps | E197: 18.24 | F197: €/1000€ Versicherungssumme ohne VersSt. | K197: KTBL 24/ 25 S.327 | M197: =E197*(1+C226) -> 18.24
C198: Erbsen | E198: 13.68 | F198: €/1000€ Versicherungssumme ohne VersSt. | K198: KTBL 24/ 25 S.327 | M198: =E198*(1+C226) -> 13.68
C199: Ackerbohnen | E199: 13.68 | F199: €/1000€ Versicherungssumme ohne VersSt. | K199: KTBL 24/ 25 S.327 | M199: =E199*(1+C226) -> 13.68
C200: Zuckerrüben | E200: 6.08 | F200: €/1000€ Versicherungssumme ohne VersSt. | K200: KTBL 24/ 25 S.327 | M200: =E200*(1+C226) -> 6.08
C201: Kartoffeln | E201: 6.08 | F201: €/1000€ Versicherungssumme ohne VersSt. | K201: KTBL 24/ 25 S.327 | M201: =E201*(1+C226) -> 6.08
C202: Körnermais | E202: 5.47 | F202: €/1000€ Versicherungssumme ohne VersSt. | K202: KTBL 24/ 25 S.327 | M202: =E202*(1+C226) -> 5.47
C203: Silomais | E203: 5.47 | F203: €/1000€ Versicherungssumme ohne VersSt. | K203: KTBL 24/ 25 S.327 | M203: =E203*(1+C226) -> 5.47
A206: Trocknungskosten: | B206: Getreide: | C206: Grundbetrag | E206: 1.28 | F206: €/dt | G206: Trockengut | K206: LLH Kassel, FG11, Ruch, 11.2015 Abgleich KTBL 22/ 23
B207: für jedes weitere % Wasserentzug | E207: 0.7 | F207: €/dt | G207: Trockengut | K207: LLH Kassel, FG11, Ruch, 11.2015 Abgleich KTBL 22/ 23
B208: Wasserentzug von 18% auf 14% Kornfeuchte | E208: 4 | F208: % Wasserentzug | K208: LLH Kassel, FG11, Ruch, 11.2015 Abgleich KTBL 22/ 23
B209: Häufigkeit der Trocknung | E209: 3 | F209: Jahre | K209: LLH Kassel, FG11, Ruch, 11.2015 Abgleich KTBL 22/ 23
B211: Raps: | C211: Grundbetrag | E211: 1.43 | F211: €/dt | G211: Trockengut | K211: LLH Kassel, FG11, Ruch, 11.2015 Abgleich KTBL 22/ 23
B212: für jedes weitere % Wasserentzug | E212: 0.72 | F212: €/dt | G212: Trockengut | K212: LLH Kassel, FG11, Ruch, 11.2015 Abgleich KTBL 22/ 23
B213: Wasserentzug von 12% auf 9% Kornfeuchte | E213: 3 | F213: % Wasserentzug | K213: LLH Kassel, FG11, Ruch, 11.2015 Abgleich KTBL 22/ 23
B214: Häufigkeit der Trocknung | E214: 3 | F214: Jahre | K214: LLH Kassel, FG11, Ruch, 11.2015 Abgleich KTBL 22/ 23
B216: Erbsen/Ackerbohnen: | E216: 0.8 | F216: €/dt | G216: Trockengut | K216: LWK Niedersachsen 2014, DB öko Abgleich KTBL 22/ 23
B217: Je dt Trockengut für die Trocknung von | E217: 16 | F217: % | G217: auf 14 % | H217: % Kornfeuchte | K217: LWK Niedersachsen 2014, DB öko Abgleich KTBL 22/ 23
B218: Verbrauch | E218: 0.5 | F218: €/ dt Trockengut | K218: LWK Niedersachsen 2014, DB öko Abgleich KTBL 22/ 23
B219: Häufigkeit der Trocknung | E219: 2.5 | F219: Jahre | K219: LWK Niedersachsen 2018, DB öko Abgleich KTBL 22/ 23
B221: Körnermais: | E221: 4.98 | F221: €/dt | G221: feuchte Ware | J221: =E221*(1+C$226) -> 4.98 | K221: In Anlehnung KTBL 2023, Seite 227
B222: Umrechnungsfaktor auf feuchte Ware | E222: =((29-14)*1.3-100)*(-1)/100 -> 0.805
A224: Entspelzen / Reinigen: | E224: 15 | F224: €/dt | J224: =E224*(1+C$226) -> 15 | K224: Eigene Ermittlung Praxis 2023
B226: Umsatzsteuer: | C226: =IF(Hauptmenü!$I$6="Regelbesteuerung","0%",D226) -> 0% | D226: 0.19
A228: Betriebsstoffe: | C228: Heizöl | E228: 0.9 | F228: €/Liter | J228: =E228*(1+$C$226) -> 0.9 | K228: KTBL
... 11 more rows

Sheet Tabelle1 (hidden)

Sheet Vorwort (hidden)
A1: Vorwort:

Sheet Wirtschaftsdünger
B3: Landesbetrieb Landwirtschaft Hessen
A5: Wert des organischen Düngers
A7: Gülleanfall | B7: TS % | C7: Gülleanfall | D7: Gülle/E. | E7: Nährstoffgehalt kg / m³ | I7: Nährstoffgehalt in kg / E. | M7: Wert des organischen Düngers
C8: m³/Monat | D8: m³ u. TP | E8: N | F8: P2O5 | G8: K2O | H8: CaO | I8: N* | J8: P2O5 | K8: K2O | L8: CaO | M8: N* | N8: P2O5 | O8: K2O | P8: CaO | Q8: Summe
A9: Rinder
A10: Milchkuh | B10: 7.5 | C10: 1.67 | D10: =+C10*12 -> 20.04 | E10: 5 | F10: 2 | G10: 6 | H10: 2 | I10: =+D10*E10*$E$29 -> 50.1 | J10: =+D10*F10 -> 40.08 | K10: =+G10*D10 -> 120.24 | L10: =+H10*D10 -> 40.08 | M10: =+I10*Stammdatenblatt!$J$135 -> 230.961 | N10: =+J10*Stammdatenblatt!$J$136 -> 42.4848 | O10: =+K10*Stammdatenblatt!$J$137 -> 211.6224 | P10: =+L10*Stammdatenblatt!$J$138 -> 1.825866667 | Q10: =SUM(M10:P10) -> 486.8940667
A11: Mutterkuh | B11: 7.5 | C11: 1.5 | D11: =C11*12 -> 18 | E11: 5 | F11: 2 | G11: 6 | H11: 2 | I11: 45 | J11: 36 | K11: 108 | L11: 36 | M11: =+I11*Stammdatenblatt!$J$135 -> 207.45 | N11: =+J11*Stammdatenblatt!$J$136 -> 38.16 | O11: =+K11*Stammdatenblatt!$J$137 -> 190.08 | P11: =+L11*Stammdatenblatt!$J$138 -> 1.64 | Q11: =SUM(M11:P11) -> 437.33
A12: Aufzuchtkalb (4 Monate) | B12: 7.5 | C12: 0.25 | D12: =+C12*'Aufzuchtfärse, Kalb'!$D$7 -> 1 | E12: 5 | F12: 2 | G12: 6 | H12: 2 | I12: 2.5 | J12: 2 | K12: 6 | L12: 2 | M12: =+I12*Stammdatenblatt!$J$135 -> 11.525 | N12: =+J12*Stammdatenblatt!$J$136 -> 2.12 | O12: =+K12*Stammdatenblatt!$J$137 -> 10.56 | P12: =+L12*Stammdatenblatt!$J$138 -> 0.09111111111 | Q12: =SUM(M12:P12) -> 24.29611111
A13: Zuchtfärsen 27 Mo | B13: 7.5 | C13: 0.78 | D13: =+C13*'Aufzuchtfärse, Kalb'!$J$6 -> 21.06 | E13: 5 | F13: 2 | G13: 6 | H13: 2 | I13: 52.65 | J13: 42.12 | K13: 126.36 | L13: 42.12 | M13: =+I13*Stammdatenblatt!$J$135 -> 242.7165 | N13: =+J13*Stammdatenblatt!$J$136 -> 44.6472 | O13: =+K13*Stammdatenblatt!$J$137 -> 222.3936 | P13: =+L13*Stammdatenblatt!$J$138 -> 1.9188 | Q13: =SUM(M13:P13) -> 511.6761
A14: Zuchtfärsen 30 Mo | B14: 7.5 | C14: 0.78 | D14: =+C14*'Aufzuchtfärse, Kalb'!$H$6 -> 23.4 | E14: 5 | F14: 2 | G14: 6 | H14: 2 | I14: 58.5 | J14: 46.8 | K14: =+G14*D14 -> 140.4 | L14: 46.8 | M14: =+I14*Stammdatenblatt!$J$135 -> 269.685 | N14: =+J14*Stammdatenblatt!$J$136 -> 49.608 | O14: =+K14*Stammdatenblatt!$J$137 -> 247.104 | P14: =+L14*Stammdatenblatt!$J$138 -> 2.132 | Q14: =SUM(M14:P14) -> 568.529
A15: Mastfärse | B15: 7.5 | C15: 0.78 | D15: =+C15*'Mutterkühe, Mastfärse'!$F$8 -> 16.38 | E15: 5 | F15: 2 | G15: 6 | H15: 2 | I15: 40.95 | J15: 32.76 | K15: 98.28 | L15: 32.76 | M15: =+I15*Stammdatenblatt!$J$135 -> 188.7795 | N15: =+J15*Stammdatenblatt!$J$136 -> 34.7256 | O15: =+K15*Stammdatenblatt!$J$137 -> 172.9728 | P15: =+L15*Stammdatenblatt!$J$138 -> 1.4924 | Q15: 397.9703
A16: Mastbullen (1300 g tägl. Zun.) | B16: 7.5 | C16: 0.56 | D16: =+C16*'Bullen- und Ochsenmast'!$E$9 -> 10.30060606 | E16: 5 | F16: 2 | G16: 6 | H16: 2 | I16: 25.75151515 | J16: 20.60121212 | K16: 61.80363636 | L16: 20.60121212 | M16: =+I16*Stammdatenblatt!$J$135 -> 118.7144848 | N16: =+J16*Stammdatenblatt!$J$136 -> 21.83728485 | O16: =+K16*Stammdatenblatt!$J$137 -> 108.7744 | P16: =+L16*Stammdatenblatt!$J$138 -> 0.9384996633 | Q16: 250.2646694
A17: Mastbullen (1000 g tägl. Zun.) | B17: 7.5 | C17: 0.56 | D17: =+C17*'Bullen- und Ochsenmast'!$D$9 -> 11.10666667 | E17: 5 | F17: 2 | G17: 6 | H17: 2 | I17: 27.76666667 | J17: 22.21333333 | K17: 66.64 | L17: 22.21333333 | M17: =+I17*Stammdatenblatt!$J$135 -> 128.0043333 | N17: =+J17*Stammdatenblatt!$J$136 -> 23.54613333 | O17: =+K17*Stammdatenblatt!$J$137 -> 117.2864 | P17: =+L17*Stammdatenblatt!$J$138 -> 1.011940741 | Q17: 269.8488074
A18: Ochsen (23 Monate) | B18: 7.5 | C18: 0.78 | D18: =+C18*'Bullen- und Ochsenmast'!$G$9 -> 19.5325 | E18: 5 | F18: 2 | G18: 6 | H18: 2 | I18: 48.83125 | J18: 39.065 | K18: 117.195 | L18: 39.065 | M18: =+I18*Stammdatenblatt!$J$135 -> 225.1120625 | N18: =+J18*Stammdatenblatt!$J$136 -> 41.4089 | O18: =+K18*Stammdatenblatt!$J$137 -> 206.2632 | P18: =+L18*Stammdatenblatt!$J$138 -> 1.779627778 | Q18: 474.5637903
A19: Schweine
A20: Zuchtsau mit Ferkeln | B20: 7.5 | C20: 0.5 | D20: =+C20*12 -> 6 | E20: 6 | F20: 3.5 | G20: 3.5 | H20: 3 | I20: =+D20*E20*$E$29 -> 18 | J20: =+D20*F20 -> 21 | K20: =+G20*D20 -> 21 | L20: =+H20*D20 -> 18 | M20: =+I20*Stammdatenblatt!$J$135 -> 82.98 | N20: =+J20*Stammdatenblatt!$J$136 -> 22.26 | O20: =+K20*Stammdatenblatt!$J$137 -> 36.96 | P20: =+L20*Stammdatenblatt!$J$138 -> 0.82 | Q20: =SUM(M20:P20) -> 143.02
A21: Zuchtsau ohne Ferkel | B21: 7.5 | C21: =D21/12 -> 0.4166666667 | D21: 5 | E21: 6 | F21: 3.5 | G21: 3.5 | H21: 3 | I21: =+D21*E21*$E$29 -> 15 | J21: =+D21*F21 -> 17.5 | K21: =+G21*D21 -> 17.5 | L21: =+H21*D21 -> 15 | M21: =+I21*Stammdatenblatt!$J$135 -> 69.15 | N21: =+J21*Stammdatenblatt!$J$136 -> 18.55 | O21: =+K21*Stammdatenblatt!$J$137 -> 30.8 | P21: =+L21*Stammdatenblatt!$J$138 -> 0.6833333333 | Q21: =SUM(M21:P21) -> 119.1833333
A22: sep. Ferkelaufzucht | B22: 7.5 | C22: 0.05 | D22: =C22*2 -> 0.1 | E22: 6 | F22: 3.5 | G22: 3.5 | H22: 3 | I22: =+D22*E22*$E$29 -> 0.3 | J22: =+D22*F22 -> 0.35 | K22: =+G22*D22 -> 0.35 | L22: =+H22*D22 -> 0.3 | M22: =+I22*Stammdatenblatt!$J$135 -> 1.383 | N22: =+J22*Stammdatenblatt!$J$136 -> 0.371 | O22: =+K22*Stammdatenblatt!$J$137 -> 0.616 | P22: =+L22*Stammdatenblatt!$J$138 -> 0.01366666667 | Q22: =SUM(M22:P22) -> 2.383666667
A23: Mastschwein | B23: 7.5 | C23: 0.125 | D23: =+C23*3.8 -> 0.475 | E23: 6 | F23: 3.5 | G23: 3.5 | H23: 3 | I23: =+D23*E23*$E$29 -> 1.425 | J23: =+D23*F23 -> 1.6625 | K23: =+G23*D23 -> 1.6625 | L23: =+H23*D23 -> 1.425 | M23: =+I23*Stammdatenblatt!$J$135 -> 6.56925 | N23: =+J23*Stammdatenblatt!$J$136 -> 1.76225 | O23: =+K23*Stammdatenblatt!$J$137 -> 2.926 | P23: =+L23*Stammdatenblatt!$J$138 -> 0.06491666667 | Q23: 11.32241667
A24: Mutterschafe | I24: 6.3 | J24: 2.9 | K24: 8.4 | L24: =+H24*D24 -> 0 | M24: =+I24*Stammdatenblatt!$J$135 -> 29.043 | N24: =+J24*Stammdatenblatt!$J$136 -> 3.074 | O24: =+K24*Stammdatenblatt!$J$137 -> 14.784 | P24: =+L24*Stammdatenblatt!$J$138 -> 0 | Q24: 46.901
A25: Pferde | I25: 68 | J25: 32 | K25: 61 | L25: 0 | M25: =+I25*Stammdatenblatt!$J$135 -> 313.48 | N25: =+J25*Stammdatenblatt!$J$136 -> 33.92 | O25: =+K25*Stammdatenblatt!$J$137 -> 107.36 | P25: =+L25*Stammdatenblatt!$J$138 -> 0 | Q25: 454.76
A26: Legehennnen
A27: 1GV = 250 Hennen | B27: 10 | C27: =D27/12 -> 2.083333333 | D27: 25 | E27: 9.2 | F27: 7 | G27: 5 | H27: 13 | I27: =+D27*E27*$E$29/250 -> 0.46 | J27: =+D27*F27/250 -> 0.7 | K27: =+G27*D27/250 -> 0.5 | L27: =+H27*D27/250 -> 1.3 | M27: =+I27*Stammdatenblatt!$J$135 -> 2.1206 | N27: =+J27*Stammdatenblatt!$J$136 -> 0.742 | O27: =+K27*Stammdatenblatt!$J$137 -> 0.88 | P27: =+L27*Stammdatenblatt!$J$138 -> 0.05922222222 | Q27: 3.801822222
D29: * Beim Stickstoff wird eine Ausnutzung von: | E29: 0.5 | F29: berücksichtigt.

Sheet Lagerung (hidden)
A5: Ernteertrag | B5: =[1]Strohbergeverfahren!D9 -> 30 | C5: dt/ha
A6: Pressgewicht | B6: 0.168
A7: Rohstoffkosten | B7: =[1]Strohbergeverfahren!D22/[1]Strohbergeverfahren!D9 -> 2.293034433 | I7: 0.04
A9: Lagerungskosten | F9: Nutzung | G9: Festkosten | I9: v. Kosten | K9: Gesamtk. | L9: €/dt | M9: Verlust | P9: Gesamtk | Q9: Ernteertrag pro dt/ha
B10: € | C10: €/m² | D10: Nutzvolumen m³ | E10: Nutzv. in dt | F10: Jahre | G10: €/Jahr | H10: €/m³ | I10: €/J | N10: Jahr | O10: dt | Q10: =[1]Strohbergeverfahren!D9 -> 30 | R10: =[1]Strohbergeverfahren!E9 -> 42 | S10: =[1]Strohbergeverfahren!F9 -> 49.5
A11: Feldmiete | B11: 0 | M11: 0.15 | N11: =SUM($B$5*M11)*$B$7 -> 10.31865495 | O11: =SUM(N11)/($B$5-($B$5*M11*M11)) -> 0.3518722915 | P11: =SUM(L11+O11) -> 0.3518722915 | Q11: =SUM(P11*$B$5) -> 10.55616875 | R11: =Q23 -> 14.86518356 | S11: =Q35 -> 17.55831782
A12: Altgeb. 200m² | B12: 30000 | C12: =SUM(B12/200) -> 150 | D12: =20*10*5 -> 1000 | E12: =SUM(D12*$B$6)*10 -> 1680 | F12: 22 | G12: =SUM(B12/F12) -> 1363.636364 | H12: =SUM(G12/D12) -> 1.363636364 | I12: =SUM(B12*$I$7) -> 1200 | J12: =SUM(I12/F12) -> 54.54545455 | K12: =SUM(G12+I12) -> 2563.636364 | L12: =SUM(K12/E12) -> 1.525974026 | M12: 0.03 | N12: =SUM($B$5*M12)*$B$7 -> 2.06373099 | O12: =SUM(N12)/($B$5-($B$5*M12*M12)) -> 0.06885300069 | P12: =SUM(L12+O12) -> 1.594827027 | Q12: =SUM(P12*$B$5) -> 47.8448108 | R12: =Q24 -> 66.99967036 | S12: =Q36 -> 78.94393782
A13: Halle 450m² | B13: 110000 | C13: =SUM(B13/450) -> 244.4444444 | D13: =30*15*5 -> 2250 | E13: =SUM(D13*$B$6)*10 -> 3780 | F13: 35 | G13: =SUM(B13/F13) -> 3142.857143 | H13: =SUM(G13/D13) -> 1.396825397 | I13: =SUM(B13*$I$7) -> 4400 | J13: =SUM(I13/F13) -> 125.7142857 | K13: =SUM(G13+I13) -> 7542.857143 | L13: =SUM(K13/E13) -> 1.995464853 | M13: 0.03 | N13: =SUM($B$5*M13)*$B$7 -> 2.06373099 | O13: =SUM(N13)/($B$5-($B$5*M13*M13)) -> 0.06885300069 | P13: =SUM(L13+O13) -> 2.064317853 | Q13: =SUM(P13*$B$5) -> 61.9295356 | R13: =Q25 -> 86.71828508 | S13: =Q37 -> 102.1837337
A14: Halle 840m² | B14: 230000 | C14: =SUM(B14/840) -> 273.8095238 | D14: =42*20*5 -> 4200 | E14: =SUM(D14*$B$6)*10 -> 7056 | F14: 35 | G14: =SUM(B14/F14) -> 6571.428571 | H14: =SUM(G14/D14) -> 1.56462585 | I14: =SUM(B14*$I$7) -> 9200 | J14: =SUM(I14/F14) -> 262.8571429 | K14: =SUM(G14+I14) -> 15771.42857 | L14: =SUM(K14/E14) -> 2.235179786 | M14: 0.03 | N14: =SUM($B$5*M14)*$B$7 -> 2.06373099 | O14: =SUM(N14)/($B$5-($B$5*M14*M14)) -> 0.06885300069 | P14: =SUM(L14+O14) -> 2.304032787 | Q14: =SUM(P14*$B$5) -> 69.12098361 | R14: =Q26 -> 96.78631229 | S14: =Q38 -> 114.049623
A17: Ernteertrag | B17: =[1]Strohbergeverfahren!E9 -> 42 | C17: dt/ha
A18: Pressgewicht | B18: 0.168
A19: Rohstoffkosten | B19: =SUM([1]Strohbergeverfahren!E22/[1]Strohbergeverfahren!E9) -> 2.306463004 | I19: 0.04
A21: Lagerungskosten | F21: Nutzung | G21: Festkosten | I21: v. Kosten | K21: Gesamtk. | L21: €/dt | M21: Verlust | P21: Gesamtk | Q21: pro ha
B22: € | C22: €/m² | D22: Nutzvolumen m³ | E22: Nutzv. in dt | F22: Jahre | G22: €/Jahr | H22: €/m³ | I22: €/J | N22: Jahr | O22: dt
A23: Feldmiete | B23: 0 | M23: 0.15 | N23: =SUM($B$17*M23)*$B$19 -> 14.53071693 | O23: =SUM(N23)/($B$17-($B$17*M23*M23)) -> 0.3539329419 | P23: =SUM(L23+O23) -> 0.3539329419 | Q23: =SUM(P23*$B$17) -> 14.86518356
A24: Altgeb. 200m² | B24: 30000 | C24: =SUM(B24/200) -> 150 | D24: =20*10*5 -> 1000 | E24: =SUM(D24*$B$6)*10 -> 1680 | F24: 22 | G24: =SUM(B24/F24) -> 1363.636364 | H24: =SUM(G24/D24) -> 1.363636364 | I24: =SUM(B24*$I$7) -> 1200 | J24: =SUM(I24/F24) -> 54.54545455 | K24: =SUM(G24+I24) -> 2563.636364 | L24: =SUM(K24/E24) -> 1.525974026 | M24: 0.03 | N24: =SUM($B$17*M24)*$B$19 -> 2.906143386 | O24: =SUM(N24)/($B$17-($B$17*M24*M24)) -> 0.06925622073 | P24: =SUM(L24+O24) -> 1.595230247 | Q24: =SUM(P24*$B$17) -> 66.99967036
A25: Halle 450m² | B25: 110000 | C25: =SUM(B25/450) -> 244.4444444 | D25: =30*15*5 -> 2250 | E25: =SUM(D25*$B$6)*10 -> 3780 | F25: 35 | G25: =SUM(B25/F25) -> 3142.857143 | H25: =SUM(G25/D25) -> 1.396825397 | I25: =SUM(B25*$I$7) -> 4400 | J25: =SUM(I25/F25) -> 125.7142857 | K25: =SUM(G25+I25) -> 7542.857143 | L25: =SUM(K25/E25) -> 1.995464853 | M25: 0.03 | N25: =SUM($B$17*M25)*$B$19 -> 2.906143386 | O25: =SUM(N25)/($B$17-($B$17*M25*M25)) -> 0.06925622073 | P25: =SUM(L25+O25) -> 2.064721073 | Q25: =SUM(P25*$B$17) -> 86.71828508
A26: Halle 840m² | B26: 230000 | C26: =SUM(B26/840) -> 273.8095238 | D26: =42*20*5 -> 4200 | E26: =SUM(D26*$B$6)*10 -> 7056 | F26: 35 | G26: =SUM(B26/F26) -> 6571.428571 | H26: =SUM(G26/D26) -> 1.56462585 | I26: =SUM(B26*$I$7) -> 9200 | J26: =SUM(I26/F26) -> 262.8571429 | K26: =SUM(G26+I26) -> 15771.42857 | L26: =SUM(K26/E26) -> 2.235179786 | M26: 0.03 | N26: =SUM($B$17*M26)*$B$19 -> 2.906143386 | O26: =SUM(N26)/($B$17-($B$17*M26*M26)) -> 0.06925622073 | P26: =SUM(L26+O26) -> 2.304436007 | Q26: =SUM(P26*$B$17) -> 96.78631229
A29: Ernteertrag | B29: =[1]Strohbergeverfahren!F9 -> 49.5 | C29: dt/ha
A30: Pressgewicht | B30: 0.168
A31: Rohstoffkosten | B31: =[1]Strohbergeverfahren!F22/[1]Strohbergeverfahren!F9 -> 2.311549584 | I31: 0.04
A33: Lagerungskosten | F33: Nutzung | G33: Festkosten | I33: v. Kosten | K33: Gesamtk. | L33: €/dt | M33: Verlust | P33: Gesamtk | Q33: pro ha
B34: € | C34: €/m² | D34: Nutzvolumen m³ | E34: Nutzv. in dt | F34: Jahre | G34: €/Jahr | H34: €/m³ | I34: €/J | N34: Jahr | O34: dt
A35: Feldmiete | B35: 0 | M35: 0.15 | N35: =SUM($B$29*M35)*$B$31 -> 17.16325566 | O35: =SUM(N35)/($B$29-($B$29*M35*M35)) -> 0.3547134912 | P35: =SUM(L35+O35) -> 0.3547134912 | Q35: =SUM(P35*$B$29) -> 17.55831782
A36: Altgebäude 200m² | B36: 30000 | C36: =SUM(B36/200) -> 150 | D36: =20*10*5 -> 1000 | E36: =SUM(D36*$B$6)*10 -> 1680 | F36: 22 | G36: =SUM(B36/F36) -> 1363.636364 | H36: =SUM(G36/D36) -> 1.363636364 | I36: =SUM(B36*$I$7) -> 1200 | J36: =SUM(I36/F36) -> 54.54545455 | K36: =SUM(G36+I36) -> 2563.636364 | L36: =SUM(K36/E36) -> 1.525974026 | M36: 0.03 | N36: =SUM($B$29*M36)*$B$7 -> 3.405156133 | O36: =SUM(N36)/($B$29-($B$29*M36*M36)) -> 0.06885300069 | P36: =SUM(L36+O36) -> 1.594827027 | Q36: =SUM(P36*$B$29) -> 78.94393782
A37: Halle 450m² | B37: 110000 | C37: =SUM(B37/450) -> 244.4444444 | D37: =30*15*5 -> 2250 | E37: =SUM(D37*$B$6)*10 -> 3780 | F37: 35 | G37: =SUM(B37/F37) -> 3142.857143 | H37: =SUM(G37/D37) -> 1.396825397 | I37: =SUM(B37*$I$7) -> 4400 | J37: =SUM(I37/F37) -> 125.7142857 | K37: =SUM(G37+I37) -> 7542.857143 | L37: =SUM(K37/E37) -> 1.995464853 | M37: 0.03 | N37: =SUM($B$5*M37)*$B$7 -> 2.06373099 | O37: =SUM(N37)/($B$5-($B$5*M37*M37)) -> 0.06885300069 | P37: =SUM(L37+O37) -> 2.064317853 | Q37: =SUM(P37*$B$29) -> 102.1837337
A38: Halle 840m² | B38: 230000 | C38: =SUM(B38/840) -> 273.8095238 | D38: =42*20*5 -> 4200 | E38: =SUM(D38*$B$6)*10 -> 7056 | F38: 35 | G38: =SUM(B38/F38) -> 6571.428571 | H38: =SUM(G38/D38) -> 1.56462585 | I38: =SUM(B38*$I$7) -> 9200 | J38: =SUM(I38/F38) -> 262.8571429 | K38: =SUM(G38+I38) -> 15771.42857 | L38: =SUM(K38/E38) -> 2.235179786 | M38: 0.03 | N38: =SUM($B$5*M38)*$B$7 -> 2.06373099 | O38: =SUM(N38)/($B$5-($B$5*M38*M38)) -> 0.06885300069 | P38: =SUM(L38+O38) -> 2.304032787 | Q38: =SUM(P38*$B$29) -> 114.049623

Sheet Daten (hidden)
B8: Ø | C8: Volumen | D8: Gewicht | E8: Raumgew.
A9: RB Ø 1,2m | B9: 1.2 | C9: =SUM(B9*B9*0.785)*1.2 -> 1.35648 | D9: 180 | E9: =SUM(D9/C9/1000) -> 0.1326963907
A10: RB Ø 1,2m mit Schneideinr. | B10: 1.2 | C10: 1.35648 | D10: 190 | E10: 0.1400684124
A11: RB Ø 1,5m | B11: 1.5 | C11: 2.1195 | D11: 240 | E11: 0.1132342534
A12: RB Ø 1,5m mit Schneideinr. | B12: 1.5 | C12: 2.1195 | D12: 255 | E12: 0.1203113942
A13: RB Ø 1,8m | B13: 1.8 | C13: 3.05208 | D13: 300 | E13: 0.09829362271
A14: RB Ø 1,8m mit Schneideinr. | B14: 1.8 | C14: 3.05208 | D14: 320 | E14: 0.1048465309
A16: GP 0,8 x 0,8 m | B16: 1 | C16: =SUM(0.8*0.8*B16) -> 0.64 | D16: 100 | E16: =SUM(D16/C16)/1000 -> 0.15625
A17: - mit Schneideinr. | B17: 1 | C17: =SUM(0.8*0.8*B17) -> 0.64 | D17: 105 | E17: =SUM(D17/C17)/1000 -> 0.1640625
A18: GP 1,2 x 0,7 m | B18: 1 | C18: =SUM(1.2*0.7*B18) -> 0.84 | D18: 140 | E18: 0.1666666667
A19: - mit Schneideinr. | B19: 1 | C19: =SUM(1.2*0.7*B19) -> 0.84 | D19: 150 | E19: 0.1785714286
A20: GP 1,2 x 0,9 m | B20: 1 | C20: =SUM(1.2*0.9*B20) -> 1.08 | D20: 180 | E20: 0.1666666667
A21: - mit Schneideinr. | B21: 1 | C21: =SUM(1.2*0.9*B21) -> 1.08 | D21: 190 | E21: 0.1759259259
D22: Ø | E22: =SUM(E16:E21)/6 -> 0.1680238646
A23: GP 1,2 x 0,7 m - Fine Cut - | B23: 1 | C23: =SUM(1.2*0.7*B23) -> 0.84 | D23: 200 | E23: 0.2380952381
E25: RB - KTBL: | F25: 0,10 - 0,12 t/m³
A26: Rundballenpresse | B26: Ø | C26: Breite | E26: Volumen | F26: Raumgewicht | H26: Ballengewicht | J26: Info Raumgewicht
A27: RB Ø 1,2m | B27: 1.2 | C27: 1.2 | E27: =SUM(B27*B27*0.785*C27) -> 1.35648 | F27: 0.115 | H27: =SUM(E27*F27)*1000 -> 155.9952 | J27: 0,129 - 0,154 möglich | S27: 4.5
A28: RB Ø 1,2m mit Schneideinr. | B28: 1.2 | C28: 1.2 | E28: 1.35648 | F28: 0.125 | H28: 169.56 | S28: 5.3
A29: RB Ø 1,5m | B29: 1.5 | C29: 1.2 | E29: 2.1195 | F29: 0.115 | H29: 243.7425 | S29: 5.6
A30: RB Ø 1,5m mit Schneideinr. | B30: 1.5 | C30: 1.2 | E30: 2.1195 | F30: 0.125 | H30: 264.9375 | S30: 6.5
A31: RB Ø 1,8m | B31: 1.8 | C31: 1.2 | E31: 3.05208 | F31: 0.115 | H31: 350.9892 | S31: 7
A32: RB Ø 1,8m mit Schneideinr. | B32: 1.8 | C32: 1.2 | E32: 3.05208 | F32: 0.125 | H32: 381.51 | S32: 8.3
A33: Großpackenpresse | B33: Breite | C33: Höhe | D33: Länge | E33: Volumen | F33: Raumgewicht | H33: Ballengewicht | J33: Info:
A34: GP 0,8 x 0,8 m | B34: 0.8 | C34: 0.8 | D34: =[1]Strohbergeverfahren!$B$12 -> 2.44 | E34: =SUM(B34*C34*D34) -> 1.5616 | F34: 0.163 | H34: =SUM(E34*F34)*1000 -> 254.5408 | J34: Länge bis 3,2 m | R34: 2.4 | S34: =SUM(R34*D34) -> 5.856
A35: GP 0,8 x 0,8 m - mit Schneideinr. | B35: 0.8 | C35: 0.8 | D35: =[1]Strohbergeverfahren!$B$12 -> 2.44 | E35: =SUM(B35*C35*D35) -> 1.5616 | F35: 0.173 | H35: 270.1568 | R35: 2.6 | S35: 6.344
A36: GP 1,2 x 0,7 m | B36: 1.2 | C36: 0.7 | D36: =[1]Strohbergeverfahren!$B$12 -> 2.44 | E36: 2.0496 | F36: 0.163 | H36: 334.0848 | R36: 3.5 | S36: 8.54
A37: GP 1,2 x 0,7 m - mit Schneideinr. | B37: 1.2 | C37: 0.7 | D37: =[1]Strohbergeverfahren!$B$12 -> 2.44 | E37: 2.0496 | F37: 0.173 | H37: 354.5808 | R37: 3.7 | S37: 9.028
A38: GP 1,2 x 0,9 m | B38: 1.2 | C38: 0.9 | D38: =[1]Strohbergeverfahren!$B$12 -> 2.44 | E38: 2.6352 | F38: 0.163 | H38: 429.5376 | R38: 4.3 | S38: 10.492
A39: GP 1,2 x 0,9 m - mit Schneideinr. | B39: 1.2 | C39: 0.9 | D39: =[1]Strohbergeverfahren!$B$12 -> 2.44 | E39: 2.6352 | F39: 0.173 | H39: 455.8896 | R39: 4.7 | S39: 11.468
A40: GP 1,2 x 0,7 m - Fine Cut / 49 Messer- | B40: 1.2 | C40: 0.7 | D40: =[1]Strohbergeverfahren!$B$12 -> 2.44 | E40: 2.0496 | F40: 0.238 | H40: 487.8048 | R40: 5.7 | S40: 13.908
E41: GP - KTBL: | F41: 0,12 - 0,14 t/m³
D44: Transportkosten über Ballengewicht und Transportentfernung
D45: Schlepper | E45: Diesel | F45: Fahrer
A46: Ballen laden mit Schlepper u. Zange | B46: 0.5 | C46: h/ha | D46: 19 | E46: =12*1.2 -> 14.4 | F46: 20 | G46: =SUM(D46:F46) -> 53.4 | H46: =SUM(G46*B46) -> 26.7 | I46: €/ha
A47: Ballen abladen mit Schlepper u. Zange | B47: 0.5 | C47: h/ha | D47: 19 | E47: =12*1.2 -> 14.4 | F47: 20 | G47: =SUM(D47:F47) -> 53.4 | H47: =SUM(G47*B47) -> 26.7 | I47: €/ha
A48: Laden und Abladen | H48: =SUM(H46:H47) -> 53.4 | I48: €/ha | J48: =SUM(H48/40) -> 1.335 | K48: €/dt
C49: B.wagen | D49: Schlepper | E49: Diesel | F49: Fahrer
A50: Transport | C50: 19 | D50: 26 | E50: =1.4*18 -> 25.2 | F50: 20 | G50: =SUM(C50:F50) -> 90.2
A51: Nutzlast | B51: 10 | C51: t | G51: =SUM(G50/B51) -> 9.02 | H51: €/h u. t
A52: Entfernung | B52: =[1]Strohbergeverfahren!B27 -> 5 | C52: km | G52: =SUM(G51/B53) -> 0.6013333333 | H52: €/km u t
A53: Ø Geschwindigkeit | B53: =[1]Strohbergeverfahren!B28 -> 15 | C53: km/h | G53: =SUM(G52*B52) -> 3.006666667 | H53: €/t
G54: =G53/10 -> 0.3006666667 | H54: €/dt | J54: =SUM(G54+J48) -> 1.635666667 | K54: €/dt

Sheet Strohbergung
B3: Landesbetrieb Landwirtschaft Hessen
A4: =IF(Stammdatenblatt!I6+Stammdatenblatt!D76+Stammdatenblatt!D120+Stammdatenblatt!B134+Stammdatenblatt!D145+Stammdatenblatt!C188+Stammdatenblatt!C226+Stammdatenblatt!C241=0,"Produktionsverfahren wurden netto gerechnet", "Produktionsverfahren wurden brutto gerechnet") -> Produktionsverfahren wurden netto gerechnet
G5: eigene
A6: Strohbergung | G6: Werte
A7: Menge Korn (Ernteprodukt) | C7: dt/ha | D7: 40 | E7: 50 | F7: 60 | G7: 0
A8: Korn-Stroh-Verhältnis 1: | D8: 0.8 | E8: 0.8 | F8: =IF(B9>0,0.75,0.7) -> 0.75 | G8: 0
A9: Menge Stroh abzüglich | B9: 0.2 | C9: dt/ha | D9: =+D7*(D8-$B$9) -> 24 | E9: =+E7*(E8-$B$9) -> 30 | F9: =+F7*(F8-$B$9) -> 33 | G9: =+G7*(G8-$B$9) -> 0
A10: Auswahl - Strohernteverfahren | B10: Ballengewicht
A11: GP 0,8 x 0,8 m | B11: =IF($A11="","",VLOOKUP($A11,Daten!A$27:R$42,8,FALSE)) -> 254.5408 | C11: Ballen/ha | D11: =SUM(D9/$B$11)*100 -> 9.42874384 | E11: =SUM(E9/$B$11)*100 -> 11.7859298 | F11: =SUM(F9/$B$11)*100 -> 12.96452278 | G11: 0
A12: -Ballenlänge nur GP - | B12: 2.44
A13: Preis Stroh | C13: €/dt | D13: =Stammdatenblatt!$J$188 -> 13.57 | E13: =D13 -> 13.57 | F13: =E13 -> 13.57 | G13: 0
A14: Erlös Stroh | C14: €/ha | D14: =SUM(D9*D13) -> 325.68 | E14: =E7*E13 -> 678.5 | F14: =F7*F13 -> 814.2 | G14: =G7*G13 -> 0
A15: Marktleistung | C15: €/ha | D15: =SUM(D14:D14) -> 325.68 | E15: =SUM(E14:E14) -> 678.5 | F15: =SUM(F14:F14) -> 814.2 | G15: =SUM(G14:G14) -> 0
A17: Nährstoffkosten
A18: Nährstoffwert | C18: €/ha | D18: =D9*(D37*0*$B$37+D38*$B$38+D39*$B$39+D40*$B$40+D41*$B$41+D42*$B$42) -> 72.11649655 | E18: =E9*(E37*0*$B$37+E38*$B$38+E39*$B$39+E40*$B$40+E41*$B$41+E42*$B$42) -> 90.14562069 | F18: =F9*(F37*0*$B$37+F38*$B$38+F39*$B$39+F40*$B$40+F41*$B$41+F42*$B$42) -> 99.16018276 | G18: =G9*(G37*0*$B$37+G38*$B$38+G39*$B$39+G40*$B$40+G41*$B$41+G42*$B$42) -> 0
A19: Humuswert | B19: 10 | C19: €/ha | D19: =+$B$19*D9/10 -> 24 | E19: =+$B$19*E9/10 -> 30 | F19: =+$B$19*F9/10 -> 33 | G19: =+$B$19*G9/10 -> 0
A20: Mineraldüngerausbringungskosten | C20: €/ha | D20: =3.59*(1+[2]Stammdatenblatt!$B$119) -> 3.59 | E20: =3.59*(1+[2]Stammdatenblatt!$B$119) -> 3.59 | F20: =3.59*(1+[2]Stammdatenblatt!$B$119) -> 3.59 | G20: 0
A21: Strohhäcksler | C21: €/ha | D21: -5 | E21: =D21 -> -5 | F21: =E21 -> -5 | G21: 0
A22: Wert ab Feld | C22: €/ha | D22: =SUM(D18:D21) -> 94.70649655 | E22: =SUM(E18:E21) -> 118.7356207 | F22: =SUM(F18:F21) -> 130.7501828 | G22: =SUM(G18:G21) -> 0
C23: €/Ballen | D23: =+D22/D11 -> 10.04444475 | E23: =+E22/E11 -> 10.07435329 | F23: =+F22/F11 -> 10.08522913 | G23: =+G22/G11 -> 
C24: €/dt | D24: =+D22/D9 -> 3.946104023 | E24: =+E22/E9 -> 3.957854023 | F24: =+F22/F9 -> 3.96212675 | G24: =+G22/G9 -> 
A26: Presskosten (Lohnunternehmer) | B26: =IF($A11="","",VLOOKUP($A11,Daten!A27:S44,19,FALSE)) -> 5.856 | C26: €/ha | D26: =+$B$26*D11 -> 55.21472393 | E26: =+$B$26*E11 -> 69.01840491 | F26: =+$B$26*F11 -> 75.9202454 | G26: =+$B$26*G11 -> 0
A27: Entfernung Transport: | B27: 5 | C27: €/Ballen | D27: =SUM(D9*Daten!$J$54)/D11 -> 4.163439019 | E27: =SUM(E9*Daten!J54)/Strohbergung!E11 -> 4.163439019 | F27: =SUM(F9*Daten!J54)/Strohbergung!F11 -> 4.163439019 | G27: =SUM(G9*Daten!$J$54)/G11 -> 
A28: Ø Geschwindigkeit | B28: 15 | C28: € | G28: 0
A29: Transportkosten, Laden, Abladen | B29: =Daten!J54*D19/D11 -> 4.163439019 | C29: €/ha | D29: =+$B$29*D11 -> 39.256 | E29: =+$B$29*E11 -> 49.07 | F29: =+$B$29*F11 -> 53.977 | G29: =+$B$29*G11 -> 0
A30: Lagerung | B30: Feldmiete | C30: €/ha | D30: =IF($B30="","",VLOOKUP($B30,Lagerung!A$11:Q$14,17,FALSE)) -> 10.55616875 | E30: =IF($B30="","",VLOOKUP($B30,Lagerung!A$11:R$14,18,FALSE)) -> 14.86518356 | F30: =IF($B$30="","",VLOOKUP($B$30,Lagerung!$A$11:$S$14,19,FALSE)) -> 17.55831782 | G30: 0
A31: Risikozuschlag (20% der Press-und Transportkosten) | C31: €/ha | D31: =+(D26+D29+D30)*0.2 -> 21.00537853 | E31: =+(E26+E29+E30)*0.2 -> 26.59071769 | F31: =+(F26+F29+F30)*0.2 -> 29.49111264 | G31: =+(G26+G29+G30)*0.2 -> 0
A32: Wert ab Hof | C32: €/ha | D32: =+D22+D26+D29+D30+D31 -> 220.7387678 | E32: =+E22+E26+E29+E30+E31 -> 278.2799268 | F32: =+F22+F26+F29+F30+F31 -> 307.6968586 | G32: =+G22+G26+G29+G30+G31 -> 0
C33: €/Ballen | D33: =+D32/D11 -> 23.41125939 | E33: =+E32/E11 -> 23.6111984 | F33: =+F32/F11 -> 23.73375895 | G33: =+G32/G11 -> 
C34: €/dt | D34: =+D32/D9 -> 9.197448657 | E34: =+E32/E9 -> 9.275997562 | F34: =+F32/F9 -> 9.324147231 | G34: =+G32/G9 -> 
A35: Nährstoffwert | B35: =B37*D37+B38*D38+B39*D39+B40*D40+B41*D41+B42*D42 -> 5.309854023
B36: €/kg: | C36: Entzogener Nährstoff:
A37: Stickstoff | B37: =Stammdatenblatt!J135 -> 4.61 | C37: kg/dt Stroh | D37: 0.5 | E37: =D37 -> 0.5 | F37: 0.5 | G37: 0
A38: Phosphor | B38: =Stammdatenblatt!J136 -> 1.06 | C38: kg/dt Stroh | D38: 0.3 | E38: 0.3 | F38: 0.3 | G38: 0
A39: Kali | B39: =Stammdatenblatt!J137 -> 1.76 | C39: kg/dt Stroh | D39: 1.4 | E39: 1.4 | F39: 1.4 | G39: 0
A40: Kalk | B40: =Stammdatenblatt!J138 -> 0.04555555556 | C40: kg/dt Stroh | D40: 0.45 | E40: 0.45 | F40: 0.45 | G40: 0
A41: Magnesium | B41: =Stammdatenblatt!J139 -> 0.552 | C41: kg/dt Stroh | D41: 0.2 | E41: 0.2 | F41: 0.2 | G41: 0
A42: Schwefel | B42: =Stammdatenblatt!J140 -> 1.149425287 | C42: kg/dt Stroh | D42: 0.08 | E42: 0.08 | F42: 0.08 | G42: 0

Sheet Strohbergung alt (hidden)
B3: Landesbetrieb Landwirtschaft Hessen
A4: =IF(Stammdatenblatt!I6+Stammdatenblatt!D76+Stammdatenblatt!D120+Stammdatenblatt!B134+Stammdatenblatt!D145+Stammdatenblatt!C188+Stammdatenblatt!C226+Stammdatenblatt!C241=0,"Produktionsverfahren wurden netto gerechnet", "Produktionsverfahren wurden brutto gerechnet") -> Produktionsverfahren wurden netto gerechnet
G5: eigene
A6: Strohbergung | G6: Werte
A7: Menge Korn (Ernteprodukt) | C7: dt/ha | D7: 50 | E7: 70 | F7: 90 | G7: 0
A8: Korn-Stroh-Verhältnis 1: | D8: 0.8 | E8: 0.8 | F8: 0.7 | G8: 0
A9: Menge Stroh | C9: dt/ha | D9: =+D7*D8 -> 40 | E9: =+E7*E8 -> 56 | F9: =+F7*F8 -> 63 | G9: =+G7*G8 -> 0
A10: Anzahl Quaderballen | B10: =+Stammdatenblatt!E242*Stammdatenblatt!C242 -> 270 | C10: Stück | D10: =+D9*100/$B$10 -> 14.81481481 | E10: =+E9*100/$B$10 -> 20.74074074 | F10: =+F9*100/$B$10 -> 23.33333333 | G10: =+G9*100/$B$10 -> 0
A11: Preis Stroh | C11: €/dt | D11: =Stammdatenblatt!J188 -> 13.57 | E11: =D11 -> 13.57 | F11: =E11 -> 13.57 | G11: 0
A12: Erlös Stroh | C12: €/ha | D12: =D9*D11 -> 542.8 | E12: =E7*E11 -> 949.9 | F12: =F7*F11 -> 1221.3 | G12: =G7*G11 -> 0
A13: Marktleistung | C13: €/ha | D13: =SUM(D12:D12) -> 542.8 | E13: =SUM(E12:E12) -> 949.9 | F13: =SUM(F12:F12) -> 1221.3 | G13: =SUM(G12:G12) -> 0
A15: Nährstoffkosten
A16: Nährstoffwert | C16: €/ha | D16: =D9*(D32*0*$B$32+D33*$B$33+D34*$B$34+D35*$B$35+D36*$B$36+D37*$B$37) -> 120.1941609 | E16: =E9*(E32*0*$B$32+E33*$B$33+E34*$B$34+E35*$B$35+E36*$B$36+E37*$B$37) -> 168.2718253 | F16: =F9*(F32*0*$B$32+F33*$B$33+F34*$B$34+F35*$B$35+F36*$B$36+F37*$B$37) -> 189.3058034 | G16: =G9*(G32*0*$B$32+G33*$B$33+G34*$B$34+G35*$B$35+G36*$B$36+G37*$B$37) -> 0
A17: Humuswert | B17: 10 | C17: €/ha | D17: =+$B$17*D9/10 -> 40 | E17: =+$B$17*E9/10 -> 56 | F17: =+$B$17*F9/10 -> 63 | G17: =+$B$17*G9/10 -> 0
A18: Mineraldüngerausbringungskosten | C18: €/ha | D18: =3.59*(1+Stammdatenblatt!$B$134) -> 3.59 | E18: =3.59*(1+Stammdatenblatt!$B$134) -> 3.59 | F18: =3.59*(1+Stammdatenblatt!$B$134) -> 3.59 | G18: =0*(1+Stammdatenblatt!$B$134) -> 0
A19: Strohhäcksler | C19: €/ha | D19: -5 | E19: =D19 -> -5 | F19: =E19 -> -5 | G19: 0
A20: Wert ab Feld | C20: €/ha | D20: =SUM(D16:D19) -> 158.7841609 | E20: =SUM(E16:E19) -> 222.8618253 | F20: =SUM(F16:F19) -> 250.8958034 | G20: =SUM(G16:G19) -> 0
C21: €/Ballen | D21: =+D20/D10 -> 10.71793086 | E21: =+E20/E10 -> 10.74512372 | F21: =+F20/F10 -> 10.75267729 | G21: =+G20/G10 -> 
C22: €/dt | D22: =+D20/D9 -> 3.969604023 | E22: =+E20/E9 -> 3.979675452 | F22: =+F20/F9 -> 3.982473071 | G22: =+G20/G9 -> 
A24: Presskosten (Lohnunternehmer) | B24: =Stammdatenblatt!$J$242 -> 6.3 | C24: €/ha | D24: =+$B$24*D10 -> 93.33333333 | E24: =+$B$24*E10 -> 130.6666667 | F24: =+$B$24*F10 -> 147 | G24: =+$B$24*G10 -> 0
A25: Transportkosten | B25: =Stammdatenblatt!$J$243 -> 8 | C25: €/ha | D25: =+$B$25*D10 -> 118.5185185 | E25: =+$B$25*E10 -> 165.9259259 | F25: =+$B$25*F10 -> 186.6666667 | G25: =+$B$25*G10 -> 0
A26: Risikozuschlag (15% der Press-und Transportkosten) | C26: €/ha | D26: =+(D24+D25)*0.15 -> 31.77777778 | E26: =+(E24+E25)*0.15 -> 44.48888889 | F26: =+(F24+F25)*0.15 -> 50.05 | G26: =+(G24+G25)*0.15 -> 0
A27: Wert ab Hof | C27: €/ha | D27: =+D20+D24+D25+D26 -> 402.4137905 | E27: =+E20+E24+E25+E26 -> 563.9433068 | F27: =+F20+F24+F25+F26 -> 634.6124701 | G27: =+G20+G24+G25+G26 -> 0
C28: €/Ballen | D28: =+D27/D10 -> 27.16293086 | E28: =+E27/E10 -> 27.19012372 | F28: =+F27/F10 -> 27.19767729 | G28: =+G27/G10 -> 
C29: €/dt | D29: =+D27/D9 -> 10.06034476 | E29: =+E27/E9 -> 10.07041619 | F29: =+F27/F9 -> 10.07321381 | G29: =+G27/G9 -> 
A30: Nährstoffwert
B31: €/kg: | C31: Entzogener Nährstoff:
A32: Stickstoff | B32: =Stammdatenblatt!J135 -> 4.61 | C32: kg/dt Stroh | D32: 0.5 | E32: =D32 -> 0.5 | F32: 0.5 | G32: 0
A33: Phosphor | B33: =Stammdatenblatt!J136 -> 1.06 | C33: kg/dt Stroh | D33: 0.3 | E33: 0.3 | F33: 0.3 | G33: 0
A34: Kali | B34: =Stammdatenblatt!J137 -> 1.76 | C34: kg/dt Stroh | D34: 1.4 | E34: 1.4 | F34: 1.4 | G34: 0
A35: Kalk | B35: =Stammdatenblatt!J138 -> 0.04555555556 | C35: kg/dt Stroh | D35: 0.45 | E35: 0.45 | F35: 0.45 | G35: 0
A36: Magnesium | B36: =Stammdatenblatt!J139 -> 0.552 | C36: kg/dt Stroh | D36: 0.2 | E36: 0.2 | F36: 0.2 | G36: 0
A37: Schwefel | B37: =Stammdatenblatt!J140 -> 1.149425287 | C37: kg/dt Stroh | D37: 0.08 | E37: 0.08 | F37: 0.08 | G37: 0

Sheet Qualitätsweizen
B3: Landesbetrieb Landwirtschaft Hessen
A4: =IF(Stammdatenblatt!I6+Stammdatenblatt!D76+Stammdatenblatt!D120+Stammdatenblatt!B134+Stammdatenblatt!D145+Stammdatenblatt!C188+Stammdatenblatt!C226+Stammdatenblatt!C241=0,"Produktionsverfahren wurden netto gerechnet", "Produktionsverfahren wurden brutto gerechnet") -> Produktionsverfahren wurden netto gerechnet
J5: eigene
A6: Qualitätsweizen | E6: 2 ha | G6: 5 ha | J6: Werte
A7: Leistung: Menge Hauptprodukt | C7: dt/ha | D7: 25 | E7: 35 | F7: 55 | G7: 25 | H7: 35 | I7: 55 | J7: 0
A8: Preis Hauptprodukt | C8: € | D8: =+Stammdatenblatt!J10 -> 44.99 | E8: =D8 -> 44.99 | F8: =E8 -> 44.99 | G8: =+F8 -> 44.99 | H8: =G8 -> 44.99 | I8: =+H8 -> 44.99 | J8: 0
A9: Erlös Hauptprodukt | C9: €/ha | D9: =D7*D8 -> 1124.75 | E9: 1574.65 | F9: 2474.45 | G9: 1124.75 | H9: 1574.65 | I9: 2474.45 | J9: 0
A10: Erlös Nebenprodukt(e) | C10: €/ha | D10: 0 | E10: =D10 -> 0 | F10: =E10 -> 0 | G10: 0 | H10: =G10 -> 0 | I10: 0 | J10: 0
A11: Leistungen | C11: €/ha | D11: =SUM(D9:D10) -> 1124.75 | E11: 1574.65 | F11: 2474.45 | G11: 1124.75 | H11: 1574.65 | I11: 2474.45 | J11: 0
A12: Saatgutkosten | C12: €/ha | D12: =D43 -> 121.783 | E12: 121.783 | F12: 121.783 | G12: 121.783 | H12: 121.783 | I12: 121.783 | J12: =J43 -> 0
A13: Düngerkosten | C13: €/ha | D13: =D51 -> 308.0826667 | E13: 437.2159195 | F13: 672.4939195 | G13: 308.0826667 | H13: 437.2159195 | I13: 671.9659195 | J13: =J51 -> 0
A14: Pflanzenbehandlungskosten | C14: €/ha | D14: =D56*(1+Stammdatenblatt!D120) -> 34 | E14: =E56*(1+Stammdatenblatt!D120) -> 34 | F14: =F56*(1+Stammdatenblatt!D120) -> 34 | G14: =G56*(1+Stammdatenblatt!D120) -> 34 | H14: =H56*(1+Stammdatenblatt!D120) -> 34 | I14: =I56*(1+Stammdatenblatt!D120) -> 34 | J14: =J56 -> 0
A15: Versicherung | C15: €/ha | D15: =D11/1000*Stammdatenblatt!M195 -> 6.83848 | E15: =E11/1000*Stammdatenblatt!M195 -> 9.573872 | F15: =(F11/1000)*Stammdatenblatt!$M$195 -> 15.044656 | G15: =(G11/1000)*Stammdatenblatt!$M$195 -> 6.83848 | H15: =(H11/1000)*Stammdatenblatt!$M$195 -> 9.573872 | I15: =(I11/1000)*Stammdatenblatt!$M$195 -> 15.044656 | J15: =(J11/1000)*Stammdatenblatt!$M$195 -> 0
A16: Trocknungs- und Konservierungskosten | C16: €/ha | D16: =(D7*Stammdatenblatt!$E$206+D7*Stammdatenblatt!$E$207*4)/3 -> 34 | E16: =(E7*Stammdatenblatt!$E$206+E7*Stammdatenblatt!$E$207*4)/3 -> 47.6 | F16: =(F7*Stammdatenblatt!$E$206+F7*Stammdatenblatt!$E$207*4)/3 -> 74.8 | G16: =(G7*Stammdatenblatt!$E$206+G7*Stammdatenblatt!$E$207*4)/3 -> 34 | H16: =(H7*Stammdatenblatt!$E$206+H7*Stammdatenblatt!$E$207*4)/3 -> 47.6 | I16: =(I7*Stammdatenblatt!$E$206+I7*Stammdatenblatt!$E$207*4)/3 -> 74.8 | J16: =(J7*Stammdatenblatt!$E$206+J7*Stammdatenblatt!$E$207*4)/3 -> 0
A17: Summe Direktkosten | C17: €/ha | D17: =SUM(D12:D16) -> 504.7041467 | E17: =SUM(E12:E16) -> 650.1727915 | F17: 918.1215755 | G17: 504.7041467 | H17: 650.1727915 | I17: 917.5935755 | J17: 0
A18: Direktkostenfreie Leistung | C18: €/ha | D18: =D11-D17 -> 620.0458533 | E18: =E11-E17 -> 924.4772085 | F18: 1556.328424 | G18: 620.0458533 | H18: 924.4772085 | I18: 1556.856424 | J18: 0
A19: Maschinenkosten eigen ** | C19: €/ha | D19: =+'Öko-Arbeitsvorgänge-KTBL'!T52 -> 231.281975 | E19: =+'Öko-Arbeitsvorgänge-KTBL'!T103 -> 274.8233 | F19: =+'Öko-Arbeitsvorgänge-KTBL'!T156 -> 323.7513 | G19: =+'Öko-Arbeitsvorgänge-KTBL'!T209 -> 214.1275 | H19: =+'Öko-Arbeitsvorgänge-KTBL'!T260 -> 257.2104 | I19: =+'Öko-Arbeitsvorgänge-KTBL'!T313 -> 307.184 | J19: 0
A20: Maschinenkosten fremd | C20: €/ha | D20: =+'Öko-Arbeitsvorgänge-KTBL'!U50*(1+Stammdatenblatt!C241) -> 130 | E20: =+'Öko-Arbeitsvorgänge-KTBL'!U101*(1+Stammdatenblatt!C241) -> 130 | F20: =+'Öko-Arbeitsvorgänge-KTBL'!U154*(1+Stammdatenblatt!C241) -> 130 | G20: =+'Öko-Arbeitsvorgänge-KTBL'!U207*(1+Stammdatenblatt!C241) -> 130 | H20: =+'Öko-Arbeitsvorgänge-KTBL'!U258*(1+Stammdatenblatt!C241) -> 130 | I20: =+'Öko-Arbeitsvorgänge-KTBL'!U311*(1+Stammdatenblatt!C241) -> 130 | J20: 0
A21: Lohnkosten | C21: €/ha | D21: 0 | E21: =D21 -> 0 | F21: =E21 -> 0 | G21: 0 | H21: =G21 -> 0 | I21: 0 | J21: 0
A22: xxx | C22: €/ha | D22: 0 | E22: =D22 -> 0 | F22: =E22 -> 0 | G22: 0 | H22: =G22 -> 0 | I22: 0 | J22: 0
A23: variable Kosten | C23: €/ha | D23: =SUM(D17,D19:D22) -> 865.9861217 | E23: =SUM(E17,E19:E22) -> 1054.996092 | F23: 1371.872876 | G23: 848.8316467 | H23: 1037.383192 | I23: 1354.777576 | J23: 0
A24: Deckungsbeitrag (DB) | C24: €/ha | D24: =D11-D23 -> 258.7638783 | E24: 519.6539085 | F24: 1102.577124 | G24: 275.9183533 | H24: 537.2668085 | I24: 1119.672424 | J24: =J11-J23 -> 0
A25: Zeit-Spanne | B25: AK-Bedarf
A26: FEB | C26: Akh/ha | D26: =SUMIF('Öko-Arbeitsvorgänge-KTBL'!$B$9:$B$49,A26,'Öko-Arbeitsvorgänge-KTBL'!$G$9:$G$49) -> 0.13 | E26: =SUMIF('Öko-Arbeitsvorgänge-KTBL'!$B$62:$B$100,A26,'Öko-Arbeitsvorgänge-KTBL'!$G$62:$G$100) -> 0.13 | F26: =SUMIF('Öko-Arbeitsvorgänge-KTBL'!$B$113:$B$153,A26,'Öko-Arbeitsvorgänge-KTBL'!$G$113:$G$153) -> 0.13 | G26: =SUMIF('Öko-Arbeitsvorgänge-KTBL'!$B$166:$B$206,A26,'Öko-Arbeitsvorgänge-KTBL'!$G$166:$G$206) -> 0.11 | H26: =SUMIF('Öko-Arbeitsvorgänge-KTBL'!$B$219:$B$257,A26,'Öko-Arbeitsvorgänge-KTBL'!$G$219:$G$257) -> 0.11 | I26: =SUMIF('Öko-Arbeitsvorgänge-KTBL'!$B$270:$B$310,A26,'Öko-Arbeitsvorgänge-KTBL'!$G$270:$G$310) -> 0.11 | J26: 0
A27: MRZ | C27: Akh/ha | D27: =SUMIF('Öko-Arbeitsvorgänge-KTBL'!$B$9:$B$49,A27,'Öko-Arbeitsvorgänge-KTBL'!$G$9:$G$49) -> 0.35 | E27: =SUMIF('Öko-Arbeitsvorgänge-KTBL'!$B$62:$B$100,A27,'Öko-Arbeitsvorgänge-KTBL'!$G$62:$G$100) -> 0 | F27: =SUMIF('Öko-Arbeitsvorgänge-KTBL'!$B$113:$B$153,A27,'Öko-Arbeitsvorgänge-KTBL'!$G$113:$G$153) -> 0.35 | G27: =SUMIF('Öko-Arbeitsvorgänge-KTBL'!$B$166:$B$206,A27,'Öko-Arbeitsvorgänge-KTBL'!$G$166:$G$206) -> 0.28 | H27: =SUMIF('Öko-Arbeitsvorgänge-KTBL'!$B$219:$B$257,A27,'Öko-Arbeitsvorgänge-KTBL'!$G$219:$G$257) -> 0 | I27: =SUMIF('Öko-Arbeitsvorgänge-KTBL'!$B$270:$B$310,A27,'Öko-Arbeitsvorgänge-KTBL'!$G$270:$G$310) -> 0.28 | J27: 0
A28: APR | C28: Akh/ha | D28: =SUMIF('Öko-Arbeitsvorgänge-KTBL'!$B$9:$B$49,A28,'Öko-Arbeitsvorgänge-KTBL'!$G$9:$G$49) -> 0 | E28: =SUMIF('Öko-Arbeitsvorgänge-KTBL'!$B$62:$B$100,A28,'Öko-Arbeitsvorgänge-KTBL'!$G$62:$G$100) -> 0 | F28: =SUMIF('Öko-Arbeitsvorgänge-KTBL'!$B$113:$B$153,A28,'Öko-Arbeitsvorgänge-KTBL'!$G$113:$G$153) -> 0 | G28: =SUMIF('Öko-Arbeitsvorgänge-KTBL'!$B$166:$B$206,A28,'Öko-Arbeitsvorgänge-KTBL'!$G$166:$G$206) -> 0 | H28: =SUMIF('Öko-Arbeitsvorgänge-KTBL'!$B$219:$B$257,A28,'Öko-Arbeitsvorgänge-KTBL'!$G$219:$G$257) -> 0 | I28: =SUMIF('Öko-Arbeitsvorgänge-KTBL'!$B$270:$B$310,A28,'Öko-Arbeitsvorgänge-KTBL'!$G$270:$G$310) -> 0 | J28: 0
A29: MAI | C29: Akh/ha | D29: =SUMIF('Öko-Arbeitsvorgänge-KTBL'!$B$9:$B$49,A29,'Öko-Arbeitsvorgänge-KTBL'!$G$9:$G$49) -> 0 | E29: =SUMIF('Öko-Arbeitsvorgänge-KTBL'!$B$62:$B$100,A29,'Öko-Arbeitsvorgänge-KTBL'!$G$62:$G$100) -> 0 | F29: =SUMIF('Öko-Arbeitsvorgänge-KTBL'!$B$113:$B$153,A29,'Öko-Arbeitsvorgänge-KTBL'!$G$113:$G$153) -> 0 | G29: =SUMIF('Öko-Arbeitsvorgänge-KTBL'!$B$166:$B$206,A29,'Öko-Arbeitsvorgänge-KTBL'!$G$166:$G$206) -> 0 | H29: =SUMIF('Öko-Arbeitsvorgänge-KTBL'!$B$219:$B$257,A29,'Öko-Arbeitsvorgänge-KTBL'!$G$219:$G$257) -> 0 | I29: =SUMIF('Öko-Arbeitsvorgänge-KTBL'!$B$270:$B$310,A29,'Öko-Arbeitsvorgänge-KTBL'!$G$270:$G$310) -> 0 | J29: 0
A30: JUN | C30: Akh/ha | D30: =SUMIF('Öko-Arbeitsvorgänge-KTBL'!$B$9:$B$49,A30,'Öko-Arbeitsvorgänge-KTBL'!$G$9:$G$49) -> 0 | E30: =SUMIF('Öko-Arbeitsvorgänge-KTBL'!$B$62:$B$100,A30,'Öko-Arbeitsvorgänge-KTBL'!$G$62:$G$100) -> 0 | F30: =SUMIF('Öko-Arbeitsvorgänge-KTBL'!$B$113:$B$153,A30,'Öko-Arbeitsvorgänge-KTBL'!$G$113:$G$153) -> 0 | G30: =SUMIF('Öko-Arbeitsvorgänge-KTBL'!$B$166:$B$206,A30,'Öko-Arbeitsvorgänge-KTBL'!$G$166:$G$206) -> 0 | H30: =SUMIF('Öko-Arbeitsvorgänge-KTBL'!$B$219:$B$257,A30,'Öko-Arbeitsvorgänge-KTBL'!$G$219:$G$257) -> 0 | I30: =SUMIF('Öko-Arbeitsvorgänge-KTBL'!$B$270:$B$310,A30,'Öko-Arbeitsvorgänge-KTBL'!$G$270:$G$310) -> 0 | J30: 0
A31: JUL | C31: Akh/ha | D31: =SUMIF('Öko-Arbeitsvorgänge-KTBL'!$B$9:$B$49,A31,'Öko-Arbeitsvorgänge-KTBL'!$G$9:$G$49) -> 0 | E31: =SUMIF('Öko-Arbeitsvorgänge-KTBL'!$B$62:$B$100,A31,'Öko-Arbeitsvorgänge-KTBL'!$G$62:$G$100) -> 0 | F31: =SUMIF('Öko-Arbeitsvorgänge-KTBL'!$B$113:$B$153,A31,'Öko-Arbeitsvorgänge-KTBL'!$G$113:$G$153) -> 0 | G31: =SUMIF('Öko-Arbeitsvorgänge-KTBL'!$B$166:$B$206,A31,'Öko-Arbeitsvorgänge-KTBL'!$G$166:$G$206) -> 0 | H31: =SUMIF('Öko-Arbeitsvorgänge-KTBL'!$B$219:$B$257,A31,'Öko-Arbeitsvorgänge-KTBL'!$G$219:$G$257) -> 0 | I31: =SUMIF('Öko-Arbeitsvorgänge-KTBL'!$B$270:$B$310,A31,'Öko-Arbeitsvorgänge-KTBL'!$G$270:$G$310) -> 0 | J31: 0
A32: AUG | C32: Akh/ha | D32: =SUMIF('Öko-Arbeitsvorgänge-KTBL'!$B$9:$B$49,A32,'Öko-Arbeitsvorgänge-KTBL'!$G$9:$G$49) -> 3.09 | E32: =SUMIF('Öko-Arbeitsvorgänge-KTBL'!$B$62:$B$100,A32,'Öko-Arbeitsvorgänge-KTBL'!$G$62:$G$100) -> 3.67 | F32: =SUMIF('Öko-Arbeitsvorgänge-KTBL'!$B$113:$B$153,A32,'Öko-Arbeitsvorgänge-KTBL'!$G$113:$G$153) -> 4.72 | G32: =SUMIF('Öko-Arbeitsvorgänge-KTBL'!$B$166:$B$206,A32,'Öko-Arbeitsvorgänge-KTBL'!$G$166:$G$206) -> 2.68 | H32: =SUMIF('Öko-Arbeitsvorgänge-KTBL'!$B$219:$B$257,A32,'Öko-Arbeitsvorgänge-KTBL'!$G$219:$G$257) -> 3.32 | I32: =SUMIF('Öko-Arbeitsvorgänge-KTBL'!$B$270:$B$310,A32,'Öko-Arbeitsvorgänge-KTBL'!$G$270:$G$310) -> 4.49 | J32: 0
A33: SEP | C33: Akh/ha | D33: =SUMIF('Öko-Arbeitsvorgänge-KTBL'!$B$9:$B$49,A33,'Öko-Arbeitsvorgänge-KTBL'!$G$9:$G$49) -> 0.84 | E33: =SUMIF('Öko-Arbeitsvorgänge-KTBL'!$B$62:$B$100,A33,'Öko-Arbeitsvorgänge-KTBL'!$G$62:$G$100) -> 0.85 | F33: =SUMIF('Öko-Arbeitsvorgänge-KTBL'!$B$113:$B$153,A33,'Öko-Arbeitsvorgänge-KTBL'!$G$113:$G$153) -> 0.85 | G33: =SUMIF('Öko-Arbeitsvorgänge-KTBL'!$B$166:$B$206,A33,'Öko-Arbeitsvorgänge-KTBL'!$G$166:$G$206) -> 0.68 | H33: =SUMIF('Öko-Arbeitsvorgänge-KTBL'!$B$219:$B$257,A33,'Öko-Arbeitsvorgänge-KTBL'!$G$219:$G$257) -> 0.68 | I33: =SUMIF('Öko-Arbeitsvorgänge-KTBL'!$B$270:$B$310,A33,'Öko-Arbeitsvorgänge-KTBL'!$G$270:$G$310) -> 0.68 | J33: 0
A34: OKT | C34: Akh/ha | D34: =SUMIF('Öko-Arbeitsvorgänge-KTBL'!$B$9:$B$49,A34,'Öko-Arbeitsvorgänge-KTBL'!$G$9:$G$49) -> 5.09 | E34: =SUMIF('Öko-Arbeitsvorgänge-KTBL'!$B$62:$B$100,A34,'Öko-Arbeitsvorgänge-KTBL'!$G$62:$G$100) -> 5.11 | F34: =SUMIF('Öko-Arbeitsvorgänge-KTBL'!$B$113:$B$153,A34,'Öko-Arbeitsvorgänge-KTBL'!$G$113:$G$153) -> 5.85 | G34: =SUMIF('Öko-Arbeitsvorgänge-KTBL'!$B$166:$B$206,A34,'Öko-Arbeitsvorgänge-KTBL'!$G$166:$G$206) -> 4.29 | H34: =SUMIF('Öko-Arbeitsvorgänge-KTBL'!$B$219:$B$257,A34,'Öko-Arbeitsvorgänge-KTBL'!$G$219:$G$257) -> 4.38 | I34: =SUMIF('Öko-Arbeitsvorgänge-KTBL'!$B$270:$B$310,A34,'Öko-Arbeitsvorgänge-KTBL'!$G$270:$G$310) -> 5.06 | J34: 0
A35: NOV | C35: Akh/ha | D35: =SUMIF('Öko-Arbeitsvorgänge-KTBL'!$B$9:$B$49,A35,'Öko-Arbeitsvorgänge-KTBL'!$G$9:$G$49) -> 0 | E35: =SUMIF('Öko-Arbeitsvorgänge-KTBL'!$B$62:$B$100,A35,'Öko-Arbeitsvorgänge-KTBL'!$G$62:$G$100) -> 0.35 | F35: =SUMIF('Öko-Arbeitsvorgänge-KTBL'!$B$113:$B$153,A35,'Öko-Arbeitsvorgänge-KTBL'!$G$113:$G$153) -> 0 | G35: =SUMIF('Öko-Arbeitsvorgänge-KTBL'!$B$166:$B$206,A35,'Öko-Arbeitsvorgänge-KTBL'!$G$166:$G$206) -> 0 | H35: =SUMIF('Öko-Arbeitsvorgänge-KTBL'!$B$219:$B$257,A35,'Öko-Arbeitsvorgänge-KTBL'!$G$219:$G$257) -> 0.28 | I35: =SUMIF('Öko-Arbeitsvorgänge-KTBL'!$B$270:$B$310,A35,'Öko-Arbeitsvorgänge-KTBL'!$G$270:$G$310) -> 0 | J35: 0
A36: REST | C36: Akh/ha | D36: =SUMIF('Öko-Arbeitsvorgänge-KTBL'!$B$9:$B$49,A36,'Öko-Arbeitsvorgänge-KTBL'!$G$9:$G$49) -> 0 | E36: =SUMIF('Öko-Arbeitsvorgänge-KTBL'!$B$62:$B$100,A36,'Öko-Arbeitsvorgänge-KTBL'!$G$62:$G$100) -> 0 | F36: =SUMIF('Öko-Arbeitsvorgänge-KTBL'!$B$113:$B$153,A36,'Öko-Arbeitsvorgänge-KTBL'!$G$113:$G$153) -> 0 | G36: =SUMIF('Öko-Arbeitsvorgänge-KTBL'!$B$166:$B$206,A36,'Öko-Arbeitsvorgänge-KTBL'!$G$166:$G$206) -> 0 | H36: =SUMIF('Öko-Arbeitsvorgänge-KTBL'!$B$219:$B$257,A36,'Öko-Arbeitsvorgänge-KTBL'!$G$219:$G$257) -> 0 | I36: =SUMIF('Öko-Arbeitsvorgänge-KTBL'!$B$270:$B$310,A36,'Öko-Arbeitsvorgänge-KTBL'!$G$270:$G$310) -> 0 | J36: 0
A37: Arbeitskraftstunden | C37: AKh/ha | D37: =SUM(D26:D36) -> 9.5 | E37: 10.11 | F37: 11.9 | G37: 8.04 | H37: 8.77 | I37: 10.62 | J37: 0
A38: DB (je Akh) | C38: €/AKh | D38: =IF(D24>0,D24/D37,0) -> 27.23830298 | E38: 51.39999095 | F38: 92.65353987 | G38: 34.31820315 | H38: 61.26189378 | I38: 105.4305484 | J38: 0
A39: Aussaatmenge | C39: kg/ha | D39: 200 | E39: =D39 -> 200 | F39: 200 | G39: 200 | H39: =G39 -> 200 | I39: 200 | J39: 0
A40: davon Zukaufsaatgut | C40: % | D40: 15 | E40: 15 | F40: 15 | G40: 15 | H40: 15 | I40: 15 | J40: 0
A41: Saatgutpreis Eigen | C41: €/dt | D41: =D8+Stammdatenblatt!$E$191 -> 53.99 | E41: =E8+Stammdatenblatt!$E$191 -> 53.99 | F41: =F8+Stammdatenblatt!$E$191 -> 53.99 | G41: =G8+Stammdatenblatt!$E$191 -> 53.99 | H41: =H8+Stammdatenblatt!$E$191 -> 53.99 | I41: =I8+Stammdatenblatt!$E$191 -> 53.99 | J41: 0
A42: Zukauf | C42: €/dt | D42: =+Stammdatenblatt!J77 -> 100 | E42: 100 | F42: 100 | G42: =+F42 -> 100 | H42: =G42 -> 100 | I42: =+H42 -> 100 | J42: 0
A43: Saatgutkosten | C43: €/ha | D43: =D40/100*(D39*D42)/100+((100-D40)/100*D39*D41/100) -> 121.783 | E43: 121.783 | F43: 121.783 | G43: 121.783 | H43: 121.783 | I43: 121.783 | J43: 0
A44: Dünger: | B44: €/kg | D44: Nährstoffabfuhr/ ha (in kg Reinnährstoff) LfL
A45: =+Stammdatenblatt!A135 -> Stickstoff | B45: =+Stammdatenblatt!J135 -> 4.61 | C45: Aufw./ha | D45: 52.8 | E45: 73.9 | F45: 116.1 | G45: 52.8 | H45: 73.9 | I45: 116.1 | J45: 0
A46: =+Stammdatenblatt!A136 -> Phosphor | B46: =+Stammdatenblatt!J136 -> 1.06 | C46: Aufw./ha | D46: 20 | E46: 28 | F46: 44 | G46: 20 | H46: 28 | I46: 44 | J46: 0
A47: =+Stammdatenblatt!A137 -> Kali | B47: =+Stammdatenblatt!J137 -> 1.76 | C47: Aufw./ha | D47: 13.8 | E47: 19.3 | F47: 30.3 | G47: 13.8 | H47: 19.3 | I47: 30 | J47: 0
A48: =+Stammdatenblatt!A138 -> Kalk | B48: =+Stammdatenblatt!J138 -> 0.04555555556 | C48: Aufw./ha | D48: 300 | E48: =D48 -> 300 | F48: =E48 -> 300 | G48: 300 | H48: =G48 -> 300 | I48: =H48 -> 300 | J48: 0
A49: =+Stammdatenblatt!A139 -> Magnesium | B49: =+Stammdatenblatt!J139 -> 0.552 | C49: Aufw./ha | D49: =D7*'Entzugswerte Düngung'!F7 -> 10 | E49: =E7*'Entzugswerte Düngung'!F7 -> 14 | F49: =F7*'Entzugswerte Düngung'!F7 -> 22 | G49: =G7*'Entzugswerte Düngung'!F7 -> 10 | H49: =H7*'Entzugswerte Düngung'!F7 -> 14 | I49: =I7*'Entzugswerte Düngung'!F7 -> 22 | J49: 0
A50: =+Stammdatenblatt!A140 -> Schwefel | B50: =+Stammdatenblatt!J140 -> 1.149425287 | C50: Aufw./ha | D50: 0 | E50: 10 | F50: 10 | G50: 0 | H50: 10 | I50: 10 | J50: 0
A51: Düngerkosten | C51: €/ha | D51: =D45*$B$45+D46*$B$46+D47*$B$47+D48*$B$48+D49*$B$49+D50*$B$50 -> 308.0826667 | E51: =E45*$B$45+E46*$B$46+E47*$B$47+E48*$B$48+E49*$B$49+E50*$B$50 -> 437.2159195 | F51: 672.4939195 | G51: 308.0826667 | H51: 437.2159195 | I51: 671.9659195 | J51: 0
A52: Herbizide | C52: €/ha | D52: 0 | E52: 0 | F52: 0 | G52: 0 | H52: 0 | I52: 0 | J52: 0
A53: Fungizide | C53: €/ha | D53: =34*(1+Stammdatenblatt!B134) -> 34 | E53: =D53 -> 34 | F53: =E53 -> 34 | G53: =F53 -> 34 | H53: =G53 -> 34 | I53: =H53 -> 34 | J53: 0
A54: Insektizide | C54: €/ha | D54: 0 | E54: 0 | F54: 0 | G54: 0 | H54: 0 | I54: 0 | J54: 0
A55: Wachstumsregler | C55: €/ha | D55: 0 | E55: 0 | F55: 0 | G55: 0 | H55: 0 | I55: 0 | J55: 0
A56: Pflanzenbehandlungskosten* | C56: €/ha | D56: =SUM(D52:D55) -> 34 | E56: 34 | F56: 34 | G56: 34 | H56: 34 | I56: 34 | J56: 0
A57: *bei stärkeren Ackerfuchsschwanzbesatz ist mit Mehrausgaben zu rechnen (konventionell: 35,-€/ha).
A58: **Verfahren inkl. Zinsanspruch; Verfahren ohne Zinsanspruch sind in den Arbeitsvorgängen abgebildet.

Sheet Futterweizen
B3: Landesbetrieb Landwirtschaft Hessen
A4: =IF(Stammdatenblatt!I6+Stammdatenblatt!D76+Stammdatenblatt!D120+Stammdatenblatt!B134+Stammdatenblatt!D145+Stammdatenblatt!C188+Stammdatenblatt!C226+Stammdatenblatt!C241=0,"Produktionsverfahren wurden netto gerechnet", "Produktionsverfahren wurden brutto gerechnet") -> Produktionsverfahren wurden netto gerechnet
J5: eigene
A6: Futterweizen | E6: 2 ha | G6: 5 ha | I6: 20 ha | J6: Werte
A7: Leistung: Menge Hauptprodukt | C7: dt/ha | D7: 25 | E7: 35 | F7: 55 | G7: 25 | H7: 35 | I7: 55 | J7: 0
A8: Preis Hauptprodukt | C8: €/dt | D8: =+Stammdatenblatt!J12 -> 34.81 | E8: =+D8 -> 34.81 | F8: =E8 -> 34.81 | G8: =+F8 -> 34.81 | H8: =G8 -> 34.81 | I8: =+H8 -> 34.81 | J8: 0
A9: Erlös Hauptprodukt | C9: €/ha | D9: =D7*D8 -> 870.25 | E9: 1218.35 | F9: 1914.55 | G9: 870.25 | H9: 1218.35 | I9: 1914.55 | J9: 0
A10: Erlös Nebenprodukt(e) | C10: €/ha | D10: 0 | E10: =D10 -> 0 | F10: =E10 -> 0 | G10: 0 | H10: =G10 -> 0 | I10: 0 | J10: 0
A11: Leistungen | C11: €/ha | D11: =D9+D10 -> 870.25 | E11: =E10+E9 -> 1218.35 | F11: 1914.55 | G11: 870.25 | H11: 1218.35 | I11: 1914.55 | J11: 0
A12: Saatgutkosten | C12: €/ha | D12: =D43 -> 94.0293 | E12: 94.0293 | F12: 94.0293 | G12: 94.0293 | H12: 94.0293 | I12: 94.0293 | J12: =J43 -> 0
A13: Düngerkosten | C13: €/ha | D13: =D51 -> 308.0826667 | E13: 437.2159195 | F13: 672.4939195 | G13: 308.0826667 | H13: 437.2159195 | I13: 672.4939195 | J13: =J51 -> 0
A14: Pflanzenbehandlungskosten | C14: €/ha | D14: =D56*(1+Stammdatenblatt!D120) -> 34 | E14: =E56*(1+Stammdatenblatt!D120) -> 34 | F14: =F56*(1+Stammdatenblatt!D120) -> 34 | G14: =G56*(1+Stammdatenblatt!D120) -> 34 | H14: =H56*(1+Stammdatenblatt!D120) -> 34 | I14: =I56*(1+Stammdatenblatt!D120) -> 34 | J14: =J56 -> 0
A15: Versicherung | C15: €/ha | D15: =(D11/1000)*Stammdatenblatt!$M$195 -> 5.29112 | E15: =(E11/1000)*Stammdatenblatt!$M$195 -> 7.407568 | F15: =(F11/1000)*Stammdatenblatt!$M$195 -> 11.640464 | G15: =(G11/1000)*Stammdatenblatt!$M$195 -> 5.29112 | H15: =(H11/1000)*Stammdatenblatt!$M$195 -> 7.407568 | I15: =(I11/1000)*Stammdatenblatt!$M$195 -> 11.640464 | J15: =(J11/1000)*Stammdatenblatt!$M$195 -> 0
A16: Trocknungskosten | C16: €/ha | D16: =(D7*Stammdatenblatt!$E$206+D7*Stammdatenblatt!$E$207*4)/3 -> 34 | E16: =(E7*Stammdatenblatt!$E$206+E7*Stammdatenblatt!$E$207*4)/3 -> 47.6 | F16: =(F7*Stammdatenblatt!$E$206+F7*Stammdatenblatt!$E$207*4)/3 -> 74.8 | G16: =(G7*Stammdatenblatt!$E$206+G7*Stammdatenblatt!$E$207*4)/3 -> 34 | H16: =(H7*Stammdatenblatt!$E$206+H7*Stammdatenblatt!$E$207*4)/3 -> 47.6 | I16: =(I7*Stammdatenblatt!$E$206+I7*Stammdatenblatt!$E$207*4)/3 -> 74.8 | J16: =(J7*Stammdatenblatt!$E$206+J7*Stammdatenblatt!$E$207*4)/3 -> 0
A17: Summe Direktkosten | C17: €/ha | D17: =SUM(D12:D16) -> 475.4030867 | E17: =SUM(E12:E16) -> 620.2527875 | F17: 886.9636835 | G17: 475.4030867 | H17: 620.2527875 | I17: 886.9636835 | J17: 0
A18: Direktkostenfreie Leistung | C18: €/ha | D18: =D11-D17 -> 394.8469133 | E18: 598.0972125 | F18: 1027.586316 | G18: 394.8469133 | H18: 598.0972125 | I18: 1027.586316 | J18: 0
A19: Maschinenkosten eigen * | C19: €/ha | D19: =+'Öko-Arbeitsvorgänge-KTBL'!T362 -> 195.942 | E19: =+'Öko-Arbeitsvorgänge-KTBL'!T411 -> 234.2885 | F19: =+'Öko-Arbeitsvorgänge-KTBL'!T460 -> 259.7548 | G19: =+'Öko-Arbeitsvorgänge-KTBL'!T509 -> 178.8701 | H19: =+'Öko-Arbeitsvorgänge-KTBL'!T558 -> 216.5677 | I19: =+'Öko-Arbeitsvorgänge-KTBL'!T607 -> 243.4781 | J19: 0
A20: Maschinenkosten fremd | C20: €/ha | D20: =+'Öko-Arbeitsvorgänge-KTBL'!U360*(1+Stammdatenblatt!C241) -> 130 | E20: =+'Öko-Arbeitsvorgänge-KTBL'!U409*(1+Stammdatenblatt!C241) -> 130 | F20: =+'Öko-Arbeitsvorgänge-KTBL'!U458*(1+Stammdatenblatt!C241) -> 130 | G20: =+'Öko-Arbeitsvorgänge-KTBL'!U507*(1+Stammdatenblatt!C241) -> 130 | H20: =+'Öko-Arbeitsvorgänge-KTBL'!U556*(1+Stammdatenblatt!C241) -> 130 | I20: =+'Öko-Arbeitsvorgänge-KTBL'!U605*(1+Stammdatenblatt!C241) -> 130 | J20: 0
A21: Lohnkosten | C21: €/ha | D21: 0 | E21: =D21 -> 0 | F21: =E21 -> 0 | G21: 0 | H21: =G21 -> 0 | I21: 0 | J21: 0
A22: xxx | C22: €/ha | D22: 0 | E22: =D22 -> 0 | F22: =E22 -> 0 | G22: 0 | H22: =G22 -> 0 | I22: 0 | J22: 0
A23: variable Kosten | C23: €/ha | D23: =SUM(D19:D22,D17) -> 801.3450867 | E23: =SUM(E19:E22,E17) -> 984.5412875 | F23: 1276.718484 | G23: 784.2731867 | H23: 966.8204875 | I23: 1260.441784 | J23: 0
A24: Deckungsbeitrag (DB) | C24: €/ha | D24: =D11-D23 -> 68.90491333 | E24: 233.8087125 | F24: 637.8315165 | G24: 85.97681333 | H24: 251.5295125 | I24: 654.1082165 | J24: 0
A25: Zeit-Spanne | B25: AK-Bedarf
A26: FEB | C26: Akh/ha | D26: =SUMIF('Öko-Arbeitsvorgänge-KTBL'!$B$323:$B$359,A26,'Öko-Arbeitsvorgänge-KTBL'!$G$323:$G$359) -> 0.13 | E26: =SUMIF('Öko-Arbeitsvorgänge-KTBL'!$B$372:$B$408,A26,'Öko-Arbeitsvorgänge-KTBL'!$G$372:$G$408) -> 0.13 | F26: =SUMIF('Öko-Arbeitsvorgänge-KTBL'!$B$421:$B$457,A26,'Öko-Arbeitsvorgänge-KTBL'!$G$421:$G$457) -> 0.13 | G26: =SUMIF('Öko-Arbeitsvorgänge-KTBL'!$B$470:$B$506,A26,'Öko-Arbeitsvorgänge-KTBL'!$G$470:$G$506) -> 0.11 | H26: =SUMIF('Öko-Arbeitsvorgänge-KTBL'!$B$519:$B$555,A26,'Öko-Arbeitsvorgänge-KTBL'!$G$519:$G$555) -> 0.11 | I26: =SUMIF('Öko-Arbeitsvorgänge-KTBL'!$B$568:$B$604,A26,'Öko-Arbeitsvorgänge-KTBL'!$G$568:$G$604) -> 0.11 | J26: 0
A27: MRZ | C27: Akh/ha | D27: =SUMIF('Öko-Arbeitsvorgänge-KTBL'!$B$323:$B$359,A27,'Öko-Arbeitsvorgänge-KTBL'!$G$323:$G$359) -> 0.35 | E27: =SUMIF('Öko-Arbeitsvorgänge-KTBL'!$B$372:$B$408,A27,'Öko-Arbeitsvorgänge-KTBL'!$G$372:$G$408) -> 0.35 | F27: =SUMIF('Öko-Arbeitsvorgänge-KTBL'!$B$421:$B$457,A27,'Öko-Arbeitsvorgänge-KTBL'!$G$421:$G$457) -> 0.35 | G27: =SUMIF('Öko-Arbeitsvorgänge-KTBL'!$B$470:$B$506,A27,'Öko-Arbeitsvorgänge-KTBL'!$G$470:$G$506) -> 0.28 | H27: =SUMIF('Öko-Arbeitsvorgänge-KTBL'!$B$519:$B$555,A27,'Öko-Arbeitsvorgänge-KTBL'!$G$519:$G$555) -> 0.28 | I27: =SUMIF('Öko-Arbeitsvorgänge-KTBL'!$B$568:$B$604,A27,'Öko-Arbeitsvorgänge-KTBL'!$G$568:$G$604) -> 0.28 | J27: 0
A28: APR | C28: Akh/ha | D28: =SUMIF('Öko-Arbeitsvorgänge-KTBL'!$B$323:$B$359,A28,'Öko-Arbeitsvorgänge-KTBL'!$G$323:$G$359) -> 0 | E28: =SUMIF('Öko-Arbeitsvorgänge-KTBL'!$B$372:$B$408,A28,'Öko-Arbeitsvorgänge-KTBL'!$G$372:$G$408) -> 0 | F28: =SUMIF('Öko-Arbeitsvorgänge-KTBL'!$B$421:$B$457,A28,'Öko-Arbeitsvorgänge-KTBL'!$G$421:$G$457) -> 0 | G28: =SUMIF('Öko-Arbeitsvorgänge-KTBL'!$B$470:$B$506,A28,'Öko-Arbeitsvorgänge-KTBL'!$G$470:$G$506) -> 0 | H28: =SUMIF('Öko-Arbeitsvorgänge-KTBL'!$B$519:$B$555,A28,'Öko-Arbeitsvorgänge-KTBL'!$G$519:$G$555) -> 0 | I28: =SUMIF('Öko-Arbeitsvorgänge-KTBL'!$B$568:$B$604,A28,'Öko-Arbeitsvorgänge-KTBL'!$G$568:$G$604) -> 0 | J28: 0
A29: MAI | C29: Akh/ha | D29: =SUMIF('Öko-Arbeitsvorgänge-KTBL'!$B$323:$B$359,A29,'Öko-Arbeitsvorgänge-KTBL'!$G$323:$G$359) -> 0 | E29: =SUMIF('Öko-Arbeitsvorgänge-KTBL'!$B$372:$B$408,A29,'Öko-Arbeitsvorgänge-KTBL'!$G$372:$G$408) -> 0 | F29: =SUMIF('Öko-Arbeitsvorgänge-KTBL'!$B$421:$B$457,A29,'Öko-Arbeitsvorgänge-KTBL'!$G$421:$G$457) -> 0 | G29: =SUMIF('Öko-Arbeitsvorgänge-KTBL'!$B$470:$B$506,A29,'Öko-Arbeitsvorgänge-KTBL'!$G$470:$G$506) -> 0 | H29: =SUMIF('Öko-Arbeitsvorgänge-KTBL'!$B$519:$B$555,A29,'Öko-Arbeitsvorgänge-KTBL'!$G$519:$G$555) -> 0 | I29: =SUMIF('Öko-Arbeitsvorgänge-KTBL'!$B$568:$B$604,A29,'Öko-Arbeitsvorgänge-KTBL'!$G$568:$G$604) -> 0 | J29: 0
A30: JUN | C30: Akh/ha | D30: =SUMIF('Öko-Arbeitsvorgänge-KTBL'!$B$323:$B$359,A30,'Öko-Arbeitsvorgänge-KTBL'!$G$323:$G$359) -> 0 | E30: =SUMIF('Öko-Arbeitsvorgänge-KTBL'!$B$372:$B$408,A30,'Öko-Arbeitsvorgänge-KTBL'!$G$372:$G$408) -> 0 | F30: =SUMIF('Öko-Arbeitsvorgänge-KTBL'!$B$421:$B$457,A30,'Öko-Arbeitsvorgänge-KTBL'!$G$421:$G$457) -> 0 | G30: =SUMIF('Öko-Arbeitsvorgänge-KTBL'!$B$470:$B$506,A30,'Öko-Arbeitsvorgänge-KTBL'!$G$470:$G$506) -> 0 | H30: =SUMIF('Öko-Arbeitsvorgänge-KTBL'!$B$519:$B$555,A30,'Öko-Arbeitsvorgänge-KTBL'!$G$519:$G$555) -> 0 | I30: =SUMIF('Öko-Arbeitsvorgänge-KTBL'!$B$568:$B$604,A30,'Öko-Arbeitsvorgänge-KTBL'!$G$568:$G$604) -> 0 | J30: 0
A31: JUL | C31: Akh/ha | D31: =SUMIF('Öko-Arbeitsvorgänge-KTBL'!$B$323:$B$359,A31,'Öko-Arbeitsvorgänge-KTBL'!$G$323:$G$359) -> 0 | E31: =SUMIF('Öko-Arbeitsvorgänge-KTBL'!$B$372:$B$408,A31,'Öko-Arbeitsvorgänge-KTBL'!$G$372:$G$408) -> 0 | F31: =SUMIF('Öko-Arbeitsvorgänge-KTBL'!$B$421:$B$457,A31,'Öko-Arbeitsvorgänge-KTBL'!$G$421:$G$457) -> 0 | G31: =SUMIF('Öko-Arbeitsvorgänge-KTBL'!$B$470:$B$506,A31,'Öko-Arbeitsvorgänge-KTBL'!$G$470:$G$506) -> 0 | H31: =SUMIF('Öko-Arbeitsvorgänge-KTBL'!$B$519:$B$555,A31,'Öko-Arbeitsvorgänge-KTBL'!$G$519:$G$555) -> 0 | I31: =SUMIF('Öko-Arbeitsvorgänge-KTBL'!$B$568:$B$604,A31,'Öko-Arbeitsvorgänge-KTBL'!$G$568:$G$604) -> 0 | J31: 0
A32: AUG | C32: Akh/ha | D32: =SUMIF('Öko-Arbeitsvorgänge-KTBL'!$B$323:$B$359,A32,'Öko-Arbeitsvorgänge-KTBL'!$G$323:$G$359) -> 1.54 | E32: =SUMIF('Öko-Arbeitsvorgänge-KTBL'!$B$372:$B$408,A32,'Öko-Arbeitsvorgänge-KTBL'!$G$372:$G$408) -> 1.66 | F32: =SUMIF('Öko-Arbeitsvorgänge-KTBL'!$B$421:$B$457,A32,'Öko-Arbeitsvorgänge-KTBL'!$G$421:$G$457) -> 2.09 | G32: =SUMIF('Öko-Arbeitsvorgänge-KTBL'!$B$470:$B$506,A32,'Öko-Arbeitsvorgänge-KTBL'!$G$470:$G$506) -> 1.19 | H32: =SUMIF('Öko-Arbeitsvorgänge-KTBL'!$B$519:$B$555,A32,'Öko-Arbeitsvorgänge-KTBL'!$G$519:$G$555) -> 1.37 | I32: =SUMIF('Öko-Arbeitsvorgänge-KTBL'!$B$568:$B$604,A32,'Öko-Arbeitsvorgänge-KTBL'!$G$568:$G$604) -> 1.9 | J32: 0
A33: SEP | C33: Akh/ha | D33: =SUMIF('Öko-Arbeitsvorgänge-KTBL'!$B$323:$B$359,A33,'Öko-Arbeitsvorgänge-KTBL'!$G$323:$G$359) -> 0.84 | E33: =SUMIF('Öko-Arbeitsvorgänge-KTBL'!$B$372:$B$408,A33,'Öko-Arbeitsvorgänge-KTBL'!$G$372:$G$408) -> 0.85 | F33: =SUMIF('Öko-Arbeitsvorgänge-KTBL'!$B$421:$B$457,A33,'Öko-Arbeitsvorgänge-KTBL'!$G$421:$G$457) -> 0.85 | G33: =SUMIF('Öko-Arbeitsvorgänge-KTBL'!$B$470:$B$506,A33,'Öko-Arbeitsvorgänge-KTBL'!$G$470:$G$506) -> 0.68 | H33: =SUMIF('Öko-Arbeitsvorgänge-KTBL'!$B$519:$B$555,A33,'Öko-Arbeitsvorgänge-KTBL'!$G$519:$G$555) -> 0.68 | I33: =SUMIF('Öko-Arbeitsvorgänge-KTBL'!$B$568:$B$604,A33,'Öko-Arbeitsvorgänge-KTBL'!$G$568:$G$604) -> 0.68 | J33: 0
A34: OKT | C34: Akh/ha | D34: =SUMIF('Öko-Arbeitsvorgänge-KTBL'!$B$323:$B$359,A34,'Öko-Arbeitsvorgänge-KTBL'!$G$323:$G$359) -> 5.09 | E34: =SUMIF('Öko-Arbeitsvorgänge-KTBL'!$B$372:$B$408,A34,'Öko-Arbeitsvorgänge-KTBL'!$G$372:$G$408) -> 5.46 | F34: =SUMIF('Öko-Arbeitsvorgänge-KTBL'!$B$421:$B$457,A34,'Öko-Arbeitsvorgänge-KTBL'!$G$421:$G$457) -> 5.85 | G34: =SUMIF('Öko-Arbeitsvorgänge-KTBL'!$B$470:$B$506,A34,'Öko-Arbeitsvorgänge-KTBL'!$G$470:$G$506) -> 4.29 | H34: =SUMIF('Öko-Arbeitsvorgänge-KTBL'!$B$519:$B$555,A34,'Öko-Arbeitsvorgänge-KTBL'!$G$519:$G$555) -> 4.66 | I34: =SUMIF('Öko-Arbeitsvorgänge-KTBL'!$B$568:$B$604,A34,'Öko-Arbeitsvorgänge-KTBL'!$G$568:$G$604) -> 5.06 | J34: 0
A35: NOV | C35: Akh/ha | D35: =SUMIF('Öko-Arbeitsvorgänge-KTBL'!$B$323:$B$359,A35,'Öko-Arbeitsvorgänge-KTBL'!$G$323:$G$359) -> 0 | E35: =SUMIF('Öko-Arbeitsvorgänge-KTBL'!$B$372:$B$408,A35,'Öko-Arbeitsvorgänge-KTBL'!$G$372:$G$408) -> 0 | F35: =SUMIF('Öko-Arbeitsvorgänge-KTBL'!$B$421:$B$457,A35,'Öko-Arbeitsvorgänge-KTBL'!$G$421:$G$457) -> 0 | G35: =SUMIF('Öko-Arbeitsvorgänge-KTBL'!$B$470:$B$506,A35,'Öko-Arbeitsvorgänge-KTBL'!$G$470:$G$506) -> 0 | H35: =SUMIF('Öko-Arbeitsvorgänge-KTBL'!$B$519:$B$555,A35,'Öko-Arbeitsvorgänge-KTBL'!$G$519:$G$555) -> 0 | I35: =SUMIF('Öko-Arbeitsvorgänge-KTBL'!$B$568:$B$604,A35,'Öko-Arbeitsvorgänge-KTBL'!$G$568:$G$604) -> 0 | J35: 0
A36: Rest | C36: Akh/ha | D36: =SUMIF('Öko-Arbeitsvorgänge-KTBL'!$B$323:$B$359,A36,'Öko-Arbeitsvorgänge-KTBL'!$G$323:$G$359) -> 0 | E36: =SUMIF('Öko-Arbeitsvorgänge-KTBL'!$B$372:$B$408,A36,'Öko-Arbeitsvorgänge-KTBL'!$G$372:$G$408) -> 0 | F36: =SUMIF('Öko-Arbeitsvorgänge-KTBL'!$B$421:$B$457,A36,'Öko-Arbeitsvorgänge-KTBL'!$G$421:$G$457) -> 0 | G36: =SUMIF('Öko-Arbeitsvorgänge-KTBL'!$B$470:$B$506,A36,'Öko-Arbeitsvorgänge-KTBL'!$G$470:$G$506) -> 0 | H36: =SUMIF('Öko-Arbeitsvorgänge-KTBL'!$B$519:$B$555,A36,'Öko-Arbeitsvorgänge-KTBL'!$G$519:$G$555) -> 0 | I36: =SUMIF('Öko-Arbeitsvorgänge-KTBL'!$B$568:$B$604,A36,'Öko-Arbeitsvorgänge-KTBL'!$G$568:$G$604) -> 0 | J36: 0
A37: Arbeitskraftstunden | C37: AKh/ha | D37: =SUM(D26:D36) -> 7.95 | E37: =SUM(E26:E36) -> 8.45 | F37: 9.27 | G37: 6.55 | H37: 7.1 | I37: 8.03 | J37: 0
A38: DB (je Akh) | C38: €/Akh | D38: =IF(D24>0,D24/D37,0) -> 8.667284696 | E38: 27.66967011 | F38: 68.80598883 | G38: 13.12623104 | H38: 35.4266919 | I38: 81.45805933 | J38: 0
A39: Aussaatmenge | C39: kg/ha | D39: 180 | E39: =D39 -> 180 | F39: 180 | G39: 180 | H39: 180 | I39: 180 | J39: 0
A40: davon Zukaufsaatgut | C40: % | D40: 15 | E40: 15 | F40: 15 | G40: 15 | H40: 15 | I40: 15 | J40: 0
A41: Saatgutpreis Eigen | C41: €/dt | D41: =D8+Stammdatenblatt!$E$191 -> 43.81 | E41: =E8+Stammdatenblatt!$E$191 -> 43.81 | F41: =F8+Stammdatenblatt!$E$191 -> 43.81 | G41: =G8+Stammdatenblatt!$E$191 -> 43.81 | H41: =H8+Stammdatenblatt!$E$191 -> 43.81 | I41: =I8+Stammdatenblatt!$E$191 -> 43.81 | J41: 0
A42: Zukauf | C42: €/dt | D42: =+Stammdatenblatt!J77 -> 100 | E42: 100 | F42: 100 | G42: 100 | H42: 100 | I42: 100 | J42: 0
A43: Saatgutkosten | C43: €/ha | D43: =D40/100*(D39*D42)/100+((100-D40)/100*D39*D41/100) -> 94.0293 | E43: 94.0293 | F43: 94.0293 | G43: 94.0293 | H43: 94.0293 | I43: 94.0293 | J43: 0
A44: Dünger: | B44: €/kg | D44: Nährstoffabfuhr/ ha (in kg Reinnährstoff) LfL
A45: =+Stammdatenblatt!A135 -> Stickstoff | B45: =+Stammdatenblatt!J135 -> 4.61 | C45: Aufw./ha | D45: 52.8 | E45: 73.9 | F45: 116.1 | G45: 52.8 | H45: 73.9 | I45: 116.1 | J45: 0
A46: =+Stammdatenblatt!A136 -> Phosphor | B46: =+Stammdatenblatt!J136 -> 1.06 | C46: Aufw./ha | D46: 20 | E46: 28 | F46: 44 | G46: 20 | H46: 28 | I46: 44 | J46: 0
A47: =+Stammdatenblatt!A137 -> Kali | B47: =+Stammdatenblatt!J137 -> 1.76 | C47: Aufw./ha | D47: 13.8 | E47: 19.3 | F47: 30.3 | G47: 13.8 | H47: 19.3 | I47: 30.3 | J47: 0
A48: =+Stammdatenblatt!A138 -> Kalk | B48: =+Stammdatenblatt!J138 -> 0.04555555556 | C48: Aufw./ha | D48: 300 | E48: =D48 -> 300 | F48: 300 | G48: =F48 -> 300 | H48: =G48 -> 300 | I48: =H48 -> 300 | J48: 0
A49: =+Stammdatenblatt!A139 -> Magnesium | B49: =+Stammdatenblatt!J139 -> 0.552 | C49: Aufw./ha | D49: =D7*'Entzugswerte Düngung'!F7 -> 10 | E49: =E7*'Entzugswerte Düngung'!F7 -> 14 | F49: =F7*'Entzugswerte Düngung'!F7 -> 22 | G49: =G7*'Entzugswerte Düngung'!F7 -> 10 | H49: =H7*'Entzugswerte Düngung'!F7 -> 14 | I49: =I7*'Entzugswerte Düngung'!F7 -> 22 | J49: 0
A50: =+Stammdatenblatt!A140 -> Schwefel | B50: =+Stammdatenblatt!J140 -> 1.149425287 | C50: Aufw./ha | D50: 0 | E50: 10 | F50: 10 | G50: 0 | H50: 10 | I50: 10 | J50: 0
A51: Düngerkosten | C51: €/ha | D51: =D45*$B$45+D46*$B$46+D47*$B$47+D48*$B$48+D49*$B$49+D50*$B$50 -> 308.0826667 | E51: =E45*$B$45+E46*$B$46+E47*$B$47+E48*$B$48+E49*$B$49+E50*$B$50 -> 437.2159195 | F51: 672.4939195 | G51: 308.0826667 | H51: 437.2159195 | I51: 672.4939195 | J51: 0
A52: Herbizide | C52: €/ha | D52: 0 | E52: 0 | F52: 0 | G52: 0 | H52: 0 | I52: 0 | J52: 0
A53: Fungizide | C53: €/ha | D53: =34*(1+Stammdatenblatt!B134) -> 34 | E53: =D53 -> 34 | F53: =E53 -> 34 | G53: =F53 -> 34 | H53: =G53 -> 34 | I53: =H53 -> 34 | J53: 0
A54: Insektizide | C54: €/ha | D54: 0 | E54: 0 | F54: 0 | G54: 0 | H54: 0 | I54: 0 | J54: 0
A55: Wachstumsregler | C55: €/ha | D55: 0 | E55: 0 | F55: 0 | G55: 0 | H55: 0 | I55: 0 | J55: 0
A56: Pflanzenbehandlungskosten** | C56: €/ha | D56: =SUM(D52:D55) -> 34 | E56: 34 | F56: 34 | G56: 34 | H56: 34 | I56: 34 | J56: 0
A57: ** bei stärkeren Ackerfuchsschwanzbesatz ist mit Mehrausgaben zu rechnen (konventionell: 35,-€/ha).
A58: *Verfahren inkl. Zinsanspruch; Verfahren ohne Zinsanspruch sind in den Arbeitsvorgängen abgebildet.

Sheet Sommerweizen
B3: Landesbetrieb Landwirtschaft Hessen
A4: =IF(Stammdatenblatt!I6+Stammdatenblatt!D76+Stammdatenblatt!D120+Stammdatenblatt!B134+Stammdatenblatt!D145+Stammdatenblatt!C188+Stammdatenblatt!C226+Stammdatenblatt!C241=0,"Produktionsverfahren wurden netto gerechnet", "Produktionsverfahren wurden brutto gerechnet") -> Produktionsverfahren wurden netto gerechnet
J5: eigene
A6: Sommerweizen | E6: 2 ha | G6: 5 ha | I6: 20 ha | J6: Werte
A7: Leistung: Menge Hauptprodukt | C7: dt/ha | D7: 25 | E7: 35 | F7: 40 | G7: 25 | H7: 35 | I7: 40 | J7: 0
A8: Preis Hauptprodukt | C8: € | D8: =+Stammdatenblatt!J11 -> 38.375 | E8: =D8 -> 38.375 | F8: =E8 -> 38.375 | G8: =+F8 -> 38.375 | H8: =G8 -> 38.375 | I8: =+H8 -> 38.375 | J8: 0
A9: Erlös Hauptprodukt | C9: €/ha | D9: =D7*D8 -> 959.375 | E9: 1343.125 | F9: 1535 | G9: 959.375 | H9: 1343.125 | I9: 1535 | J9: 0
A10: Erlös Nebenprodukt(e) | C10: €/ha | D10: 0 | E10: =D10 -> 0 | F10: =E10 -> 0 | G10: 0 | H10: =G10 -> 0 | I10: 0 | J10: 0
A11: Leistungen | C11: €/ha | D11: =D9+D10 -> 959.375 | E11: =E10+E9 -> 1343.125 | F11: 1535 | G11: 959.375 | H11: 1343.125 | I11: 1535 | J11: 0
A12: Saatgutkosten | C12: €/ha | D12: =D43 -> 99.48375 | E12: 99.48375 | F12: 99.48375 | G12: 99.48375 | H12: 99.48375 | I12: 99.48375 | J12: =J43 -> 0
A13: Düngerkosten | C13: €/ha | D13: =D51 -> 308.0826667 | E13: 437.2159195 | F13: 495.7169195 | G13: 308.0826667 | H13: 437.2159195 | I13: 495.7169195 | J13: =J51 -> 0
A14: Pflanzenbehandlungskosten | C14: €/ha | D14: =D56*(1+Stammdatenblatt!D120) -> 34 | E14: =E56*(1+Stammdatenblatt!D120) -> 34 | F14: =F56*(1+Stammdatenblatt!D120) -> 34 | G14: =G56*(1+Stammdatenblatt!D120) -> 34 | H14: =H56*(1+Stammdatenblatt!D120) -> 34 | I14: =I56*(1+Stammdatenblatt!D120) -> 34 | J14: =J56 -> 0
A15: Versicherung | C15: €/ha | D15: =+D11/1000*Stammdatenblatt!$M$196 -> 5.833 | E15: =+E11/1000*Stammdatenblatt!$M$196 -> 8.1662 | F15: =+F11/1000*Stammdatenblatt!$M$196 -> 9.3328 | G15: =+G11/1000*Stammdatenblatt!$M$196 -> 5.833 | H15: =+H11/1000*Stammdatenblatt!$M$196 -> 8.1662 | I15: =+I11/1000*Stammdatenblatt!$M$196 -> 9.3328 | J15: =+J11/1000*Stammdatenblatt!$M$196 -> 0
A16: Trocknungskosten | C16: €/ha | D16: =(D7*Stammdatenblatt!$E$206+D7*Stammdatenblatt!$E$207*4)/3 -> 34 | E16: =(E7*Stammdatenblatt!$E$206+E7*Stammdatenblatt!$E$207*4)/3 -> 47.6 | F16: =(F7*Stammdatenblatt!$E$206+F7*Stammdatenblatt!$E$207*4)/3 -> 54.4 | G16: =(G7*Stammdatenblatt!$E$206+G7*Stammdatenblatt!$E$207*4)/3 -> 34 | H16: =(H7*Stammdatenblatt!$E$206+H7*Stammdatenblatt!$E$207*4)/3 -> 47.6 | I16: =(I7*Stammdatenblatt!$E$206+I7*Stammdatenblatt!$E$207*4)/3 -> 54.4 | J16: 25
A17: Summe Direktkosten | C17: €/ha | D17: =SUM(D12:D16) -> 481.3994167 | E17: =SUM(E12:E16) -> 626.4658695 | F17: 692.9334695 | G17: 481.3994167 | H17: 626.4658695 | I17: 692.9334695 | J17: 25
A18: Direktkostenfreie Leistung | C18: €/ha | D18: =D11-D17 -> 477.9755833 | E18: =E11-E17 -> 716.6591305 | F18: 842.0665305 | G18: 477.9755833 | H18: 716.6591305 | I18: 842.0665305 | J18: -25
A19: Maschinenkosten eigen ** | C19: €/ha | D19: =+'Öko-Arbeitsvorgänge-KTBL'!T658 -> 208.7775 | E19: =+'Öko-Arbeitsvorgänge-KTBL'!T709 -> 222.7964 | F19: =+'Öko-Arbeitsvorgänge-KTBL'!T760 -> 250.2775 | G19: =+'Öko-Arbeitsvorgänge-KTBL'!T811 -> 190.7336 | H19: =+'Öko-Arbeitsvorgänge-KTBL'!T862 -> 205.5308 | I19: =+'Öko-Arbeitsvorgänge-KTBL'!T913 -> 231.3349 | J19: 0
A20: Maschinenkosten fremd | C20: €/ha | D20: =+'Öko-Arbeitsvorgänge-KTBL'!U656*(1+Stammdatenblatt!C241) -> 130 | E20: =+'Öko-Arbeitsvorgänge-KTBL'!U707*(1+Stammdatenblatt!C241) -> 130 | F20: =+'Öko-Arbeitsvorgänge-KTBL'!U758*(1+Stammdatenblatt!C241) -> 130 | G20: =+'Öko-Arbeitsvorgänge-KTBL'!U809*(1+Stammdatenblatt!C241) -> 130 | H20: =+'Öko-Arbeitsvorgänge-KTBL'!U860*(1+Stammdatenblatt!C241) -> 130 | I20: =+'Öko-Arbeitsvorgänge-KTBL'!U911*(1+Stammdatenblatt!C241) -> 130 | J20: 0
A21: Lohnkosten | C21: €/ha | D21: 0 | E21: =D21 -> 0 | F21: =E21 -> 0 | G21: 0 | H21: =G21 -> 0 | I21: 0 | J21: 0
A22: xxx | C22: €/ha | D22: 0 | E22: =D22 -> 0 | F22: =E22 -> 0 | G22: 0 | H22: =G22 -> 0 | I22: 0 | J22: 0
A23: variable Kosten | C23: €/ha | D23: =SUM(D19:D22,D17) -> 820.1769167 | E23: =SUM(E19:E22,E17) -> 979.2622695 | F23: 1073.21097 | G23: 802.1330167 | H23: 961.9966695 | I23: 1054.26837 | J23: 25
A24: Deckungsbeitrag (DB) | C24: €/ha | D24: =D11-D23 -> 139.1980833 | E24: 363.8627305 | F24: 461.7890305 | G24: 157.2419833 | H24: 381.1283305 | I24: 480.7316305 | J24: -25
A25: Zeit-Spanne | B25: AK-Bedarf
A26: FEB | C26: Akh/ha | D26: =SUMIF('Öko-Arbeitsvorgänge-KTBL'!$B$617:$B$655,A26,'Öko-Arbeitsvorgänge-KTBL'!$G$617:$G$655) -> 0.57 | E26: =SUMIF('Öko-Arbeitsvorgänge-KTBL'!$B$668:$B$706,A26,'Öko-Arbeitsvorgänge-KTBL'!$G$668:$G$706) -> 0.57 | F26: =SUMIF('Öko-Arbeitsvorgänge-KTBL'!$B$719:$B$757,A26,'Öko-Arbeitsvorgänge-KTBL'!$G$719:$G$757) -> 0.58 | G26: =SUMIF('Öko-Arbeitsvorgänge-KTBL'!$B$770:$B$808,A26,'Öko-Arbeitsvorgänge-KTBL'!$G$770:$G$808) -> 0.46 | H26: =SUMIF('Öko-Arbeitsvorgänge-KTBL'!$B$821:$B$859,A26,'Öko-Arbeitsvorgänge-KTBL'!$G$821:$G$859) -> 0.46 | I26: =SUMIF('Öko-Arbeitsvorgänge-KTBL'!$B$872:$B$910,A26,'Öko-Arbeitsvorgänge-KTBL'!$G$872:$G$910) -> 0.46 | J26: 0
A27: MRZ | C27: Akh/ha | D27: =SUMIF('Öko-Arbeitsvorgänge-KTBL'!$B$617:$B$655,A27,'Öko-Arbeitsvorgänge-KTBL'!$G$617:$G$655) -> 1.9 | E27: =SUMIF('Öko-Arbeitsvorgänge-KTBL'!$B$668:$B$706,A27,'Öko-Arbeitsvorgänge-KTBL'!$G$668:$G$706) -> 1.9 | F27: =SUMIF('Öko-Arbeitsvorgänge-KTBL'!$B$719:$B$757,A27,'Öko-Arbeitsvorgänge-KTBL'!$G$719:$G$757) -> 1.91 | G27: =SUMIF('Öko-Arbeitsvorgänge-KTBL'!$B$770:$B$808,A27,'Öko-Arbeitsvorgänge-KTBL'!$G$770:$G$808) -> 1.37 | H27: =SUMIF('Öko-Arbeitsvorgänge-KTBL'!$B$821:$B$859,A27,'Öko-Arbeitsvorgänge-KTBL'!$G$821:$G$859) -> 1.37 | I27: =SUMIF('Öko-Arbeitsvorgänge-KTBL'!$B$872:$B$910,A27,'Öko-Arbeitsvorgänge-KTBL'!$G$872:$G$910) -> 1.37 | J27: 0
A28: APR | C28: Akh/ha | D28: =SUMIF('Öko-Arbeitsvorgänge-KTBL'!$B$617:$B$655,A28,'Öko-Arbeitsvorgänge-KTBL'!$G$617:$G$655) -> 0.48 | E28: =SUMIF('Öko-Arbeitsvorgänge-KTBL'!$B$668:$B$706,A28,'Öko-Arbeitsvorgänge-KTBL'!$G$668:$G$706) -> 0.48 | F28: =SUMIF('Öko-Arbeitsvorgänge-KTBL'!$B$719:$B$757,A28,'Öko-Arbeitsvorgänge-KTBL'!$G$719:$G$757) -> 0.48 | G28: =SUMIF('Öko-Arbeitsvorgänge-KTBL'!$B$770:$B$808,A28,'Öko-Arbeitsvorgänge-KTBL'!$G$770:$G$808) -> 0.39 | H28: =SUMIF('Öko-Arbeitsvorgänge-KTBL'!$B$821:$B$859,A28,'Öko-Arbeitsvorgänge-KTBL'!$G$821:$G$859) -> 0.39 | I28: =SUMIF('Öko-Arbeitsvorgänge-KTBL'!$B$872:$B$910,A28,'Öko-Arbeitsvorgänge-KTBL'!$G$872:$G$910) -> 0.39 | J28: 0
A29: MAI | C29: Akh/ha | D29: =SUMIF('Öko-Arbeitsvorgänge-KTBL'!$B$617:$B$655,A29,'Öko-Arbeitsvorgänge-KTBL'!$G$617:$G$655) -> 0 | E29: =SUMIF('Öko-Arbeitsvorgänge-KTBL'!$B$668:$B$706,A29,'Öko-Arbeitsvorgänge-KTBL'!$G$668:$G$706) -> 0 | F29: =SUMIF('Öko-Arbeitsvorgänge-KTBL'!$B$719:$B$757,A29,'Öko-Arbeitsvorgänge-KTBL'!$G$719:$G$757) -> 0 | G29: =SUMIF('Öko-Arbeitsvorgänge-KTBL'!$B$770:$B$808,A29,'Öko-Arbeitsvorgänge-KTBL'!$G$770:$G$808) -> 0 | H29: =SUMIF('Öko-Arbeitsvorgänge-KTBL'!$B$821:$B$859,A29,'Öko-Arbeitsvorgänge-KTBL'!$G$821:$G$859) -> 0 | I29: =SUMIF('Öko-Arbeitsvorgänge-KTBL'!$B$872:$B$910,A29,'Öko-Arbeitsvorgänge-KTBL'!$G$872:$G$910) -> 0 | J29: 0
A30: JUN | C30: Akh/ha | D30: =SUMIF('Öko-Arbeitsvorgänge-KTBL'!$B$617:$B$655,A30,'Öko-Arbeitsvorgänge-KTBL'!$G$617:$G$655) -> 0 | E30: =SUMIF('Öko-Arbeitsvorgänge-KTBL'!$B$668:$B$706,A30,'Öko-Arbeitsvorgänge-KTBL'!$G$668:$G$706) -> 0 | F30: =SUMIF('Öko-Arbeitsvorgänge-KTBL'!$B$719:$B$757,A30,'Öko-Arbeitsvorgänge-KTBL'!$G$719:$G$757) -> 0 | G30: =SUMIF('Öko-Arbeitsvorgänge-KTBL'!$B$770:$B$808,A30,'Öko-Arbeitsvorgänge-KTBL'!$G$770:$G$808) -> 0 | H30: =SUMIF('Öko-Arbeitsvorgänge-KTBL'!$B$821:$B$859,A30,'Öko-Arbeitsvorgänge-KTBL'!$G$821:$G$859) -> 0 | I30: =SUMIF('Öko-Arbeitsvorgänge-KTBL'!$B$872:$B$910,A30,'Öko-Arbeitsvorgänge-KTBL'!$G$872:$G$910) -> 0 | J30: 0
A31: JUL | C31: Akh/ha | D31: =SUMIF('Öko-Arbeitsvorgänge-KTBL'!$B$617:$B$655,A31,'Öko-Arbeitsvorgänge-KTBL'!$G$617:$G$655) -> 0 | E31: =SUMIF('Öko-Arbeitsvorgänge-KTBL'!$B$668:$B$706,A31,'Öko-Arbeitsvorgänge-KTBL'!$G$668:$G$706) -> 0 | F31: =SUMIF('Öko-Arbeitsvorgänge-KTBL'!$B$719:$B$757,A31,'Öko-Arbeitsvorgänge-KTBL'!$G$719:$G$757) -> 0 | G31: =SUMIF('Öko-Arbeitsvorgänge-KTBL'!$B$770:$B$808,A31,'Öko-Arbeitsvorgänge-KTBL'!$G$770:$G$808) -> 0 | H31: =SUMIF('Öko-Arbeitsvorgänge-KTBL'!$B$821:$B$859,A31,'Öko-Arbeitsvorgänge-KTBL'!$G$821:$G$859) -> 0 | I31: =SUMIF('Öko-Arbeitsvorgänge-KTBL'!$B$872:$B$910,A31,'Öko-Arbeitsvorgänge-KTBL'!$G$872:$G$910) -> 0 | J31: 0
A32: AUG | C32: Akh/ha | D32: =SUMIF('Öko-Arbeitsvorgänge-KTBL'!$B$617:$B$655,A32,'Öko-Arbeitsvorgänge-KTBL'!$G$617:$G$655) -> 1.54 | E32: =SUMIF('Öko-Arbeitsvorgänge-KTBL'!$B$668:$B$706,A32,'Öko-Arbeitsvorgänge-KTBL'!$G$668:$G$706) -> 1.66 | F32: =SUMIF('Öko-Arbeitsvorgänge-KTBL'!$B$719:$B$757,A32,'Öko-Arbeitsvorgänge-KTBL'!$G$719:$G$757) -> 1.66 | G32: =SUMIF('Öko-Arbeitsvorgänge-KTBL'!$B$770:$B$808,A32,'Öko-Arbeitsvorgänge-KTBL'!$G$770:$G$808) -> 1.19 | H32: =SUMIF('Öko-Arbeitsvorgänge-KTBL'!$B$821:$B$859,A32,'Öko-Arbeitsvorgänge-KTBL'!$G$821:$G$859) -> 1.37 | I32: =SUMIF('Öko-Arbeitsvorgänge-KTBL'!$B$872:$B$910,A32,'Öko-Arbeitsvorgänge-KTBL'!$G$872:$G$910) -> 1.37 | J32: 0
A33: SEP | C33: Akh/ha | D33: =SUMIF('Öko-Arbeitsvorgänge-KTBL'!$B$617:$B$655,A33,'Öko-Arbeitsvorgänge-KTBL'!$G$617:$G$655) -> 0.84 | E33: =SUMIF('Öko-Arbeitsvorgänge-KTBL'!$B$668:$B$706,A33,'Öko-Arbeitsvorgänge-KTBL'!$G$668:$G$706) -> 0.84 | F33: =SUMIF('Öko-Arbeitsvorgänge-KTBL'!$B$719:$B$757,A33,'Öko-Arbeitsvorgänge-KTBL'!$G$719:$G$757) -> 0.85 | G33: =SUMIF('Öko-Arbeitsvorgänge-KTBL'!$B$770:$B$808,A33,'Öko-Arbeitsvorgänge-KTBL'!$G$770:$G$808) -> 0.68 | H33: =SUMIF('Öko-Arbeitsvorgänge-KTBL'!$B$821:$B$859,A33,'Öko-Arbeitsvorgänge-KTBL'!$G$821:$G$859) -> 0.68 | I33: =SUMIF('Öko-Arbeitsvorgänge-KTBL'!$B$872:$B$910,A33,'Öko-Arbeitsvorgänge-KTBL'!$G$872:$G$910) -> 0.68 | J33: 0
A34: OKT | C34: Akh/ha | D34: =SUMIF('Öko-Arbeitsvorgänge-KTBL'!$B$617:$B$655,A34,'Öko-Arbeitsvorgänge-KTBL'!$G$617:$G$655) -> 3.19 | E34: =SUMIF('Öko-Arbeitsvorgänge-KTBL'!$B$668:$B$706,A34,'Öko-Arbeitsvorgänge-KTBL'!$G$668:$G$706) -> 3.55 | F34: =SUMIF('Öko-Arbeitsvorgänge-KTBL'!$B$719:$B$757,A34,'Öko-Arbeitsvorgänge-KTBL'!$G$719:$G$757) -> 3.55 | G34: =SUMIF('Öko-Arbeitsvorgänge-KTBL'!$B$770:$B$808,A34,'Öko-Arbeitsvorgänge-KTBL'!$G$770:$G$808) -> 2.92 | H34: =SUMIF('Öko-Arbeitsvorgänge-KTBL'!$B$821:$B$859,A34,'Öko-Arbeitsvorgänge-KTBL'!$G$821:$G$859) -> 3.29 | I34: =SUMIF('Öko-Arbeitsvorgänge-KTBL'!$B$872:$B$910,A34,'Öko-Arbeitsvorgänge-KTBL'!$G$872:$G$910) -> 3.29 | J34: 0
A35: NOV | C35: Akh/ha | D35: =SUMIF('Öko-Arbeitsvorgänge-KTBL'!$B$617:$B$655,A35,'Öko-Arbeitsvorgänge-KTBL'!$G$617:$G$655) -> 0 | E35: =SUMIF('Öko-Arbeitsvorgänge-KTBL'!$B$668:$B$706,A35,'Öko-Arbeitsvorgänge-KTBL'!$G$668:$G$706) -> 0 | F35: =SUMIF('Öko-Arbeitsvorgänge-KTBL'!$B$719:$B$757,A35,'Öko-Arbeitsvorgänge-KTBL'!$G$719:$G$757) -> 0 | G35: =SUMIF('Öko-Arbeitsvorgänge-KTBL'!$B$770:$B$808,A35,'Öko-Arbeitsvorgänge-KTBL'!$G$770:$G$808) -> 0 | H35: =SUMIF('Öko-Arbeitsvorgänge-KTBL'!$B$821:$B$859,A35,'Öko-Arbeitsvorgänge-KTBL'!$G$821:$G$859) -> 0 | I35: =SUMIF('Öko-Arbeitsvorgänge-KTBL'!$B$872:$B$910,A35,'Öko-Arbeitsvorgänge-KTBL'!$G$872:$G$910) -> 0 | J35: 0
A36: Rest | C36: Akh/ha | D36: =SUMIF('Öko-Arbeitsvorgänge-KTBL'!$B$617:$B$655,A36,'Öko-Arbeitsvorgänge-KTBL'!$G$617:$G$655) -> 0 | E36: =SUMIF('Öko-Arbeitsvorgänge-KTBL'!$B$668:$B$706,A36,'Öko-Arbeitsvorgänge-KTBL'!$G$668:$G$706) -> 0 | F36: =SUMIF('Öko-Arbeitsvorgänge-KTBL'!$B$719:$B$757,A36,'Öko-Arbeitsvorgänge-KTBL'!$G$719:$G$757) -> 0 | G36: =SUMIF('Öko-Arbeitsvorgänge-KTBL'!$B$770:$B$808,A36,'Öko-Arbeitsvorgänge-KTBL'!$G$770:$G$808) -> 0 | H36: =SUMIF('Öko-Arbeitsvorgänge-KTBL'!$B$821:$B$859,A36,'Öko-Arbeitsvorgänge-KTBL'!$G$821:$G$859) -> 0 | I36: =SUMIF('Öko-Arbeitsvorgänge-KTBL'!$B$872:$B$910,A36,'Öko-Arbeitsvorgänge-KTBL'!$G$872:$G$910) -> 0 | J36: 0
A37: Arbeitskraftstunden | C37: AKh/ha | D37: =SUM(D26:D36) -> 8.52 | E37: =SUM(E26:E36) -> 9 | F37: 9.03 | G37: 7.01 | H37: 7.56 | I37: 7.56 | J37: 0
A38: DB (je Akh) | C38: €/Akh | D38: =IF(D24>0,D24/D37,0) -> 16.33780321 | E38: 40.42919227 | F38: 51.13942751 | G38: 22.43109605 | H38: 50.41380033 | I38: 63.58884001 | J38: 0
A39: Aussaatmenge | C39: kg/ha | D39: 180 | E39: =D39 -> 180 | F39: 180 | G39: 180 | H39: =G39 -> 180 | I39: 180 | J39: 0
A40: davon Zukaufsaatgut | C40: % | D40: 15 | E40: 15 | F40: 15 | G40: 15 | H40: =G40 -> 15 | I40: 15 | J40: 0
A41: Saatgutpreis Eigen | C41: €/dt | D41: =D8+Stammdatenblatt!$E$191 -> 47.375 | E41: =E8+Stammdatenblatt!$E$191 -> 47.375 | F41: =F8+Stammdatenblatt!$E$191 -> 47.375 | G41: =G8+Stammdatenblatt!$E$191 -> 47.375 | H41: =H8+Stammdatenblatt!$E$191 -> 47.375 | I41: =I8+Stammdatenblatt!$E$191 -> 47.375 | J41: 0
A42: Zukauf | C42: €/dt | D42: =+Stammdatenblatt!J78 -> 100 | E42: 100 | F42: 100 | G42: =+F42 -> 100 | H42: =G42 -> 100 | I42: =+H42 -> 100 | J42: 0
A43: Saatgutkosten | C43: €/ha | D43: =D40/100*(D39*D42)/100+((100-D40)/100*D39*D41/100) -> 99.48375 | E43: 99.48375 | F43: 99.48375 | G43: 99.48375 | H43: 99.48375 | I43: 99.48375 | J43: 0
A44: Dünger: | B44: €/kg | D44: Nährstoffabfuhr/ ha (in kg Reinnährstoff) LfL
A45: =+Stammdatenblatt!A135 -> Stickstoff | B45: =+Stammdatenblatt!J135 -> 4.61 | C45: Aufw./ha | D45: 52.8 | E45: 73.9 | F45: 84.4 | G45: 52.8 | H45: 73.9 | I45: 84.4 | J45: 0
A46: =+Stammdatenblatt!A136 -> Phosphor | B46: =+Stammdatenblatt!J136 -> 1.06 | C46: Aufw./ha | D46: 20 | E46: 28 | F46: 32 | G46: 20 | H46: 28 | I46: 32 | J46: 0
A47: =+Stammdatenblatt!A137 -> Kali | B47: =+Stammdatenblatt!J137 -> 1.76 | C47: Aufw./ha | D47: 13.8 | E47: 19.3 | F47: 22 | G47: 13.8 | H47: 19.3 | I47: 22 | J47: 0
A48: =+Stammdatenblatt!A138 -> Kalk | B48: =+Stammdatenblatt!J138 -> 0.04555555556 | C48: Aufw./ha | D48: 300 | E48: =D48 -> 300 | F48: 300 | G48: =F48 -> 300 | H48: =G48 -> 300 | I48: =H48 -> 300 | J48: 0
A49: =+Stammdatenblatt!A139 -> Magnesium | B49: =+Stammdatenblatt!J139 -> 0.552 | C49: Aufw./ha | D49: =D7*'Entzugswerte Düngung'!F7 -> 10 | E49: =E7*'Entzugswerte Düngung'!F7 -> 14 | F49: =F7*'Entzugswerte Düngung'!F7 -> 16 | G49: =G7*'Entzugswerte Düngung'!F7 -> 10 | H49: =H7*'Entzugswerte Düngung'!F7 -> 14 | I49: =I7*'Entzugswerte Düngung'!F7 -> 16 | J49: 0
A50: =+Stammdatenblatt!A140 -> Schwefel | B50: =+Stammdatenblatt!J140 -> 1.149425287 | C50: Aufw./ha | D50: 0 | E50: 10 | F50: 10 | G50: 0 | H50: 10 | I50: 10 | J50: 0
A51: Düngerkosten | C51: €/ha | D51: =+$B45*D45+$B46*D46+$B47*D47+$B48*D48+$B49*D49+$B50*D50 -> 308.0826667 | E51: 437.2159195 | F51: 495.7169195 | G51: 308.0826667 | H51: =+$B45*H45+$B46*H46+$B47*H47+$B48*H48+$B49*H49+$B50*H50 -> 437.2159195 | I51: 495.7169195 | J51: 0
A52: Herbizide | C52: €/ha | D52: 0 | E52: 0 | F52: 0 | G52: 0 | H52: 0 | I52: 0 | J52: 0
A53: Fungizide | C53: €/ha | D53: =34*(1+Stammdatenblatt!B134) -> 34 | E53: =D53 -> 34 | F53: =E53 -> 34 | G53: =F53 -> 34 | H53: =G53 -> 34 | I53: =H53 -> 34 | J53: 0
A54: Insektizide | C54: €/ha | D54: 0 | E54: 0 | F54: 0 | G54: 0 | H54: 0 | I54: 0 | J54: 0
A55: Wachstumsregler | C55: €/ha | D55: 0 | E55: 0 | F55: 0 | G55: 0 | H55: 0 | I55: 0 | J55: 0
A56: Pflanzenbehandlungskosten* | C56: €/ha | D56: =SUM(D52:D55) -> 34 | E56: 34 | F56: 34 | G56: 34 | H56: 34 | I56: 34 | J56: 0
A57: *bei stärkeren Ackerfuchsschwanzbesatz ist mit Mehrausgaben zu rechnen (konvventionell: 35,-€/ha).
A58: **Verfahren inkl. Zinsanspruch; Verfahren ohne Zinsanspruch sind in den Arbeitsvorgängen abgebildet.

Sheet Roggen
B3: Landesbetrieb Landwirtschaft Hessen
A4: =IF(Stammdatenblatt!I6+Stammdatenblatt!D76+Stammdatenblatt!D120+Stammdatenblatt!B134+Stammdatenblatt!D145+Stammdatenblatt!C188+Stammdatenblatt!C226+Stammdatenblatt!C241=0,"Produktionsverfahren wurden netto gerechnet", "Produktionsverfahren wurden brutto gerechnet") -> Produktionsverfahren wurden netto gerechnet
J5: eigene
A6: Roggen | E6: 2 ha | G6: 5 ha | I6: 20 ha | J6: Werte
A7: Leistung: Menge Hauptprodukt | C7: dt/ha | D7: 30 | E7: 40 | F7: 55 | G7: 30 | H7: 40 | I7: 55 | J7: 0
A8: Preis Hauptprodukt | C8: € | D8: =+Stammdatenblatt!J14 -> 33.4 | E8: =D8 -> 33.4 | F8: =E8 -> 33.4 | G8: =+D8 -> 33.4 | H8: =G8 -> 33.4 | I8: =+H8 -> 33.4 | J8: 0
A9: Erlös Hauptprodukt | C9: €/ha | D9: =D7*D8 -> 1002 | E9: 1336 | F9: 1837 | G9: 1002 | H9: 1336 | I9: 1837 | J9: 0
A10: Erlös Nebenprodukt(e) | C10: €/ha | D10: 0 | E10: =D10 -> 0 | F10: =E10 -> 0 | G10: 0 | H10: =G10 -> 0 | I10: 0 | J10: 0
A11: Leistungen | C11: €/ha | D11: =D9+D10 -> 1002 | E11: =E10+E9 -> 1336 | F11: 1837 | G11: 1002 | H11: 1336 | I11: 1837 | J11: 0
A12: Saatgutkosten | C12: €/ha | D12: =D43 -> 50.268 | E12: 50.268 | F12: 50.268 | G12: 50.268 | H12: 50.268 | I12: 50.268 | J12: =J43 -> 0
A13: Düngerkosten | C13: €/ha | D13: =D51 -> 285.4156667 | E13: 375.9986667 | F13: 512.1036667 | G13: 285.4156667 | H13: 375.9986667 | I13: 512.1036667 | J13: =J51 -> 0
A14: Pflanzenbehandlungsk. | C14: €/ha | D14: =D56 -> 0 | E14: 0 | F14: 0 | G14: 0 | H14: 0 | I14: 0 | J14: =J56 -> 0
A15: Versicherung | C15: €/ha | D15: =(D11/1000)*Stammdatenblatt!$M$195 -> 6.09216 | E15: =(E11/1000)*Stammdatenblatt!$M$195 -> 8.12288 | F15: =(F11/1000)*Stammdatenblatt!$M$195 -> 11.16896 | G15: =(G11/1000)*Stammdatenblatt!$M$195 -> 6.09216 | H15: =(H11/1000)*Stammdatenblatt!$M$195 -> 8.12288 | I15: =(I11/1000)*Stammdatenblatt!$M$195 -> 11.16896 | J15: =(J11/1000)*Stammdatenblatt!$M$195 -> 0
A16: Trocknungskosten | C16: €/ha | D16: =(D7*Stammdatenblatt!$E$206+D7*Stammdatenblatt!$E$207*4)/3 -> 40.8 | E16: =(E7*Stammdatenblatt!$E$206+E7*Stammdatenblatt!$E$207*4)/3 -> 54.4 | F16: =(F7*Stammdatenblatt!$E$206+F7*Stammdatenblatt!$E$207*4)/3 -> 74.8 | G16: =(G7*Stammdatenblatt!$E$206+G7*Stammdatenblatt!$E$207*4)/3 -> 40.8 | H16: =(H7*Stammdatenblatt!$E$206+H7*Stammdatenblatt!$E$207*4)/3 -> 54.4 | I16: =(I7*Stammdatenblatt!$E$206+I7*Stammdatenblatt!$E$207*4)/3 -> 74.8 | J16: =(J7*Stammdatenblatt!$E$206+J7*Stammdatenblatt!$E$207*4)/3 -> 0
A17: Summe Direktkosten | C17: €/ha | D17: =SUM(D12:D16) -> 382.5758267 | E17: =SUM(E12:E16) -> 488.7895467 | F17: 648.3406267 | G17: 382.5758267 | H17: 488.7895467 | I17: 648.3406267 | J17: 0
A18: Direktkostenfreie Leistung | C18: €/ha | D18: =D11-D17 -> 619.4241733 | E18: =E11-E17 -> 847.2104533 | F18: 1188.659373 | G18: 619.4241733 | H18: 847.2104533 | I18: 1188.659373 | J18: 0
A19: Maschinenkosten eigen ** | C19: €/ha | D19: =+'Öko-Arbeitsvorgänge-KTBL'!T960 -> 189.5385 | E19: =+'Öko-Arbeitsvorgänge-KTBL'!T1007 -> 227.6755 | F19: =+'Öko-Arbeitsvorgänge-KTBL'!T1054 -> 245.2918 | G19: =+'Öko-Arbeitsvorgänge-KTBL'!T1101 -> 173.1342 | H19: =+'Öko-Arbeitsvorgänge-KTBL'!T1148 -> 210.637 | I19: =+'Öko-Arbeitsvorgänge-KTBL'!T1195 -> 229.3498 | J19: 0
A20: Maschinenkosten fremd | C20: €/ha | D20: =+'Öko-Arbeitsvorgänge-KTBL'!U958*(1+Stammdatenblatt!C241) -> 130 | E20: =+'Öko-Arbeitsvorgänge-KTBL'!U1005*(1+Stammdatenblatt!C241) -> 130 | F20: =+'Öko-Arbeitsvorgänge-KTBL'!U1052*(1+Stammdatenblatt!C241) -> 130 | G20: =+'Öko-Arbeitsvorgänge-KTBL'!U1099*(1+Stammdatenblatt!C241) -> 130 | H20: =+'Öko-Arbeitsvorgänge-KTBL'!U1146*(1+Stammdatenblatt!C241) -> 130 | I20: =+'Öko-Arbeitsvorgänge-KTBL'!U1193*(1+Stammdatenblatt!C241) -> 130 | J20: 0
A21: Lohnkosten | C21: €/ha | D21: 0 | E21: =D21 -> 0 | F21: =E21 -> 0 | G21: 0 | H21: =G21 -> 0 | I21: 0 | J21: 0
A22: xxx | C22: €/ha | D22: 0 | E22: =D22 -> 0 | F22: =E22 -> 0 | G22: 0 | H22: =G22 -> 0 | I22: 0 | J22: 0
A23: variable Kosten | C23: €/ha | D23: =SUM(D19:D22,D17) -> 702.1143267 | E23: =SUM(E19:E22,E17) -> 846.4650467 | F23: 1023.632427 | G23: 685.7100267 | H23: 829.4265467 | I23: 1007.690427 | J23: 0
A24: Deckungsbeitrag (DB) | C24: €/ha | D24: =D11-D23 -> 299.8856733 | E24: 489.5349533 | F24: 813.3675733 | G24: 316.2899733 | H24: 506.5734533 | I24: 829.3095733 | J24: 0
A25: Zeit-Spanne | B25: AK-Bedarf
A26: FEB | C26: Akh/ha | D26: =SUMIF('Öko-Arbeitsvorgänge-KTBL'!$B$923:$B$957,A26,'Öko-Arbeitsvorgänge-KTBL'!$G$923:$G$957) -> 0.13 | E26: =SUMIF('Öko-Arbeitsvorgänge-KTBL'!$B$970:$B$1004,A26,'Öko-Arbeitsvorgänge-KTBL'!$G$970:$G$1004) -> 0.13 | F26: =SUMIF('Öko-Arbeitsvorgänge-KTBL'!$B$1017:$B$1051,A26,'Öko-Arbeitsvorgänge-KTBL'!$G$1017:$G$1051) -> 0.13 | G26: =SUMIF('Öko-Arbeitsvorgänge-KTBL'!$B$1064:$B$1098,A26,'Öko-Arbeitsvorgänge-KTBL'!$G$1064:$G$1098) -> 0.11 | H26: =SUMIF('Öko-Arbeitsvorgänge-KTBL'!$B$1111:$B$1145,A26,'Öko-Arbeitsvorgänge-KTBL'!$G$1111:$G$1145) -> 0.11 | I26: =SUMIF('Öko-Arbeitsvorgänge-KTBL'!$B$1158:$B$1192,A26,'Öko-Arbeitsvorgänge-KTBL'!$G$1158:$G$1192) -> 0.11 | J26: 0
A27: MRZ | C27: Akh/ha | D27: =SUMIF('Öko-Arbeitsvorgänge-KTBL'!$B$923:$B$957,A27,'Öko-Arbeitsvorgänge-KTBL'!$G$923:$G$957) -> 0 | E27: =SUMIF('Öko-Arbeitsvorgänge-KTBL'!$B$970:$B$1004,A27,'Öko-Arbeitsvorgänge-KTBL'!$G$970:$G$1004) -> 0 | F27: =SUMIF('Öko-Arbeitsvorgänge-KTBL'!$B$1017:$B$1051,A27,'Öko-Arbeitsvorgänge-KTBL'!$G$1017:$G$1051) -> 0 | G27: =SUMIF('Öko-Arbeitsvorgänge-KTBL'!$B$1064:$B$1098,A27,'Öko-Arbeitsvorgänge-KTBL'!$G$1064:$G$1098) -> 0 | H27: =SUMIF('Öko-Arbeitsvorgänge-KTBL'!$B$1111:$B$1145,A27,'Öko-Arbeitsvorgänge-KTBL'!$G$1111:$G$1145) -> 0 | I27: =SUMIF('Öko-Arbeitsvorgänge-KTBL'!$B$1158:$B$1192,A27,'Öko-Arbeitsvorgänge-KTBL'!$G$1158:$G$1192) -> 0 | J27: 0
A28: APR | C28: Akh/ha | D28: =SUMIF('Öko-Arbeitsvorgänge-KTBL'!$B$923:$B$957,A28,'Öko-Arbeitsvorgänge-KTBL'!$G$923:$G$957) -> 0 | E28: =SUMIF('Öko-Arbeitsvorgänge-KTBL'!$B$970:$B$1004,A28,'Öko-Arbeitsvorgänge-KTBL'!$G$970:$G$1004) -> 0 | F28: =SUMIF('Öko-Arbeitsvorgänge-KTBL'!$B$1017:$B$1051,A28,'Öko-Arbeitsvorgänge-KTBL'!$G$1017:$G$1051) -> 0 | G28: =SUMIF('Öko-Arbeitsvorgänge-KTBL'!$B$1064:$B$1098,A28,'Öko-Arbeitsvorgänge-KTBL'!$G$1064:$G$1098) -> 0 | H28: =SUMIF('Öko-Arbeitsvorgänge-KTBL'!$B$1111:$B$1145,A28,'Öko-Arbeitsvorgänge-KTBL'!$G$1111:$G$1145) -> 0 | I28: =SUMIF('Öko-Arbeitsvorgänge-KTBL'!$B$1158:$B$1192,A28,'Öko-Arbeitsvorgänge-KTBL'!$G$1158:$G$1192) -> 0 | J28: 0
A29: MAI | C29: Akh/ha | D29: =SUMIF('Öko-Arbeitsvorgänge-KTBL'!$B$923:$B$957,A29,'Öko-Arbeitsvorgänge-KTBL'!$G$923:$G$957) -> 0 | E29: =SUMIF('Öko-Arbeitsvorgänge-KTBL'!$B$970:$B$1004,A29,'Öko-Arbeitsvorgänge-KTBL'!$G$970:$G$1004) -> 0 | F29: =SUMIF('Öko-Arbeitsvorgänge-KTBL'!$B$1017:$B$1051,A29,'Öko-Arbeitsvorgänge-KTBL'!$G$1017:$G$1051) -> 0 | G29: =SUMIF('Öko-Arbeitsvorgänge-KTBL'!$B$1064:$B$1098,A29,'Öko-Arbeitsvorgänge-KTBL'!$G$1064:$G$1098) -> 0 | H29: =SUMIF('Öko-Arbeitsvorgänge-KTBL'!$B$1111:$B$1145,A29,'Öko-Arbeitsvorgänge-KTBL'!$G$1111:$G$1145) -> 0 | I29: =SUMIF('Öko-Arbeitsvorgänge-KTBL'!$B$1158:$B$1192,A29,'Öko-Arbeitsvorgänge-KTBL'!$G$1158:$G$1192) -> 0 | J29: 0
A30: JUN | C30: Akh/ha | D30: =SUMIF('Öko-Arbeitsvorgänge-KTBL'!$B$923:$B$957,A30,'Öko-Arbeitsvorgänge-KTBL'!$G$923:$G$957) -> 0 | E30: =SUMIF('Öko-Arbeitsvorgänge-KTBL'!$B$970:$B$1004,A30,'Öko-Arbeitsvorgänge-KTBL'!$G$970:$G$1004) -> 0 | F30: =SUMIF('Öko-Arbeitsvorgänge-KTBL'!$B$1017:$B$1051,A30,'Öko-Arbeitsvorgänge-KTBL'!$G$1017:$G$1051) -> 0 | G30: =SUMIF('Öko-Arbeitsvorgänge-KTBL'!$B$1064:$B$1098,A30,'Öko-Arbeitsvorgänge-KTBL'!$G$1064:$G$1098) -> 0 | H30: =SUMIF('Öko-Arbeitsvorgänge-KTBL'!$B$1111:$B$1145,A30,'Öko-Arbeitsvorgänge-KTBL'!$G$1111:$G$1145) -> 0 | I30: =SUMIF('Öko-Arbeitsvorgänge-KTBL'!$B$1158:$B$1192,A30,'Öko-Arbeitsvorgänge-KTBL'!$G$1158:$G$1192) -> 0 | J30: 0
A31: JUL | C31: Akh/ha | D31: =SUMIF('Öko-Arbeitsvorgänge-KTBL'!$B$923:$B$957,A31,'Öko-Arbeitsvorgänge-KTBL'!$G$923:$G$957) -> 0 | E31: =SUMIF('Öko-Arbeitsvorgänge-KTBL'!$B$970:$B$1004,A31,'Öko-Arbeitsvorgänge-KTBL'!$G$970:$G$1004) -> 0 | F31: =SUMIF('Öko-Arbeitsvorgänge-KTBL'!$B$1017:$B$1051,A31,'Öko-Arbeitsvorgänge-KTBL'!$G$1017:$G$1051) -> 0 | G31: =SUMIF('Öko-Arbeitsvorgänge-KTBL'!$B$1064:$B$1098,A31,'Öko-Arbeitsvorgänge-KTBL'!$G$1064:$G$1098) -> 0 | H31: =SUMIF('Öko-Arbeitsvorgänge-KTBL'!$B$1111:$B$1145,A31,'Öko-Arbeitsvorgänge-KTBL'!$G$1111:$G$1145) -> 0 | I31: =SUMIF('Öko-Arbeitsvorgänge-KTBL'!$B$1158:$B$1192,A31,'Öko-Arbeitsvorgänge-KTBL'!$G$1158:$G$1192) -> 0 | J31: 0
A32: AUG | C32: Akh/ha | D32: =SUMIF('Öko-Arbeitsvorgänge-KTBL'!$B$923:$B$957,A32,'Öko-Arbeitsvorgänge-KTBL'!$G$923:$G$957) -> 1.56 | E32: =SUMIF('Öko-Arbeitsvorgänge-KTBL'!$B$970:$B$1004,A32,'Öko-Arbeitsvorgänge-KTBL'!$G$970:$G$1004) -> 1.69 | F32: =SUMIF('Öko-Arbeitsvorgänge-KTBL'!$B$1017:$B$1051,A32,'Öko-Arbeitsvorgänge-KTBL'!$G$1017:$G$1051) -> 1.9 | G32: =SUMIF('Öko-Arbeitsvorgänge-KTBL'!$B$1064:$B$1098,A32,'Öko-Arbeitsvorgänge-KTBL'!$G$1064:$G$1098) -> 1.21 | H32: =SUMIF('Öko-Arbeitsvorgänge-KTBL'!$B$1111:$B$1145,A32,'Öko-Arbeitsvorgänge-KTBL'!$G$1111:$G$1145) -> 1.4 | I32: =SUMIF('Öko-Arbeitsvorgänge-KTBL'!$B$1158:$B$1192,A32,'Öko-Arbeitsvorgänge-KTBL'!$G$1158:$G$1192) -> 1.68 | J32: 0
A33: SEP | C33: Akh/ha | D33: =SUMIF('Öko-Arbeitsvorgänge-KTBL'!$B$923:$B$957,A33,'Öko-Arbeitsvorgänge-KTBL'!$G$923:$G$957) -> 5.57 | E33: =SUMIF('Öko-Arbeitsvorgänge-KTBL'!$B$970:$B$1004,A33,'Öko-Arbeitsvorgänge-KTBL'!$G$970:$G$1004) -> 5.95 | F33: =SUMIF('Öko-Arbeitsvorgänge-KTBL'!$B$1017:$B$1051,A33,'Öko-Arbeitsvorgänge-KTBL'!$G$1017:$G$1051) -> 6.34 | G33: =SUMIF('Öko-Arbeitsvorgänge-KTBL'!$B$1064:$B$1098,A33,'Öko-Arbeitsvorgänge-KTBL'!$G$1064:$G$1098) -> 4.68 | H33: =SUMIF('Öko-Arbeitsvorgänge-KTBL'!$B$1111:$B$1145,A33,'Öko-Arbeitsvorgänge-KTBL'!$G$1111:$G$1145) -> 5.05 | I33: =SUMIF('Öko-Arbeitsvorgänge-KTBL'!$B$1158:$B$1192,A33,'Öko-Arbeitsvorgänge-KTBL'!$G$1158:$G$1192) -> 5.45 | J33: 0
A34: OKT | C34: Akh/ha | D34: =SUMIF('Öko-Arbeitsvorgänge-KTBL'!$B$923:$B$957,A34,'Öko-Arbeitsvorgänge-KTBL'!$G$923:$G$957) -> 0.35 | E34: =SUMIF('Öko-Arbeitsvorgänge-KTBL'!$B$970:$B$1004,A34,'Öko-Arbeitsvorgänge-KTBL'!$G$970:$G$1004) -> 0.35 | F34: =SUMIF('Öko-Arbeitsvorgänge-KTBL'!$B$1017:$B$1051,A34,'Öko-Arbeitsvorgänge-KTBL'!$G$1017:$G$1051) -> 0.35 | G34: =SUMIF('Öko-Arbeitsvorgänge-KTBL'!$B$1064:$B$1098,A34,'Öko-Arbeitsvorgänge-KTBL'!$G$1064:$G$1098) -> 0.28 | H34: =SUMIF('Öko-Arbeitsvorgänge-KTBL'!$B$1111:$B$1145,A34,'Öko-Arbeitsvorgänge-KTBL'!$G$1111:$G$1145) -> 0.28 | I34: =SUMIF('Öko-Arbeitsvorgänge-KTBL'!$B$1158:$B$1192,A34,'Öko-Arbeitsvorgänge-KTBL'!$G$1158:$G$1192) -> 0.28 | J34: 0
A35: NOV | C35: Akh/ha | D35: =SUMIF('Öko-Arbeitsvorgänge-KTBL'!$B$923:$B$957,A35,'Öko-Arbeitsvorgänge-KTBL'!$G$923:$G$957) -> 0 | E35: =SUMIF('Öko-Arbeitsvorgänge-KTBL'!$B$970:$B$1004,A35,'Öko-Arbeitsvorgänge-KTBL'!$G$970:$G$1004) -> 0 | F35: =SUMIF('Öko-Arbeitsvorgänge-KTBL'!$B$1017:$B$1051,A35,'Öko-Arbeitsvorgänge-KTBL'!$G$1017:$G$1051) -> 0 | G35: =SUMIF('Öko-Arbeitsvorgänge-KTBL'!$B$1064:$B$1098,A35,'Öko-Arbeitsvorgänge-KTBL'!$G$1064:$G$1098) -> 0 | H35: =SUMIF('Öko-Arbeitsvorgänge-KTBL'!$B$1111:$B$1145,A35,'Öko-Arbeitsvorgänge-KTBL'!$G$1111:$G$1145) -> 0 | I35: =SUMIF('Öko-Arbeitsvorgänge-KTBL'!$B$1158:$B$1192,A35,'Öko-Arbeitsvorgänge-KTBL'!$G$1158:$G$1192) -> 0 | J35: 0
A36: Rest | C36: Akh/ha | D36: =SUMIF('Öko-Arbeitsvorgänge-KTBL'!$B$923:$B$957,A36,'Öko-Arbeitsvorgänge-KTBL'!$G$923:$G$957) -> 0 | E36: =SUMIF('Öko-Arbeitsvorgänge-KTBL'!$B$970:$B$1004,A36,'Öko-Arbeitsvorgänge-KTBL'!$G$970:$G$1004) -> 0 | F36: =SUMIF('Öko-Arbeitsvorgänge-KTBL'!$B$1017:$B$1051,A36,'Öko-Arbeitsvorgänge-KTBL'!$G$1017:$G$1051) -> 0 | G36: =SUMIF('Öko-Arbeitsvorgänge-KTBL'!$B$1064:$B$1098,A36,'Öko-Arbeitsvorgänge-KTBL'!$G$1064:$G$1098) -> 0 | H36: =SUMIF('Öko-Arbeitsvorgänge-KTBL'!$B$1111:$B$1145,A36,'Öko-Arbeitsvorgänge-KTBL'!$G$1111:$G$1145) -> 0 | I36: =SUMIF('Öko-Arbeitsvorgänge-KTBL'!$B$1158:$B$1192,A36,'Öko-Arbeitsvorgänge-KTBL'!$G$1158:$G$1192) -> 0 | J36: 0
A37: Arbeitskraftstunden | C37: AKh/ha | D37: =SUM(D26:D36) -> 7.61 | E37: 8.12 | F37: 8.72 | G37: 6.28 | H37: 6.84 | I37: 7.52 | J37: 0
A38: DB (je Akh) | C38: €/Akh | D38: =IF(D24>0,D24/D37,0) -> 39.40679019 | E38: 60.28755583 | F38: 93.27609786 | G38: 50.36464544 | H38: 74.06044639 | I38: 110.2805284 | J38: 0
A39: Aussaatmenge | C39: kg/ha | D39: 120 | E39: =D39 -> 120 | F39: =E39 -> 120 | G39: 120 | H39: =G39 -> 120 | I39: 120 | J39: 0
A40: davon Zukaufsaatgut | C40: % | D40: 15 | E40: 15 | F40: 15 | G40: 15 | H40: 15 | I40: 15 | J40: 0
A41: Saatgutpreis Eigen | C41: €/dt | D41: =Stammdatenblatt!J14 -> 33.4 | E41: =D41 -> 33.4 | F41: =E41 -> 33.4 | G41: =D41 -> 33.4 | H41: =G41 -> 33.4 | I41: =H41 -> 33.4 | J41: 0
A42: Zukauf * | C42: €/dt | D42: =Stammdatenblatt!J80 -> 90 | E42: =D42 -> 90 | F42: =E42 -> 90 | G42: =+F42 -> 90 | H42: =G42 -> 90 | I42: =+H42 -> 90 | J42: 0
A43: Saatgutkosten | C43: €/ha | D43: =D40/100*(D39*D42)/100+((100-D40)/100*D39*D41/100) -> 50.268 | E43: 50.268 | F43: 50.268 | G43: 50.268 | H43: 50.268 | I43: 50.268 | J43: 0
A44: Dünger: | B44: €/kg | D44: Nährstoffabfuhr/ ha (in kg Reinnährstoff) LfL
A45: =+Stammdatenblatt!A135 -> Stickstoff | B45: =+Stammdatenblatt!J135 -> 4.61 | C45: Aufw./ha | D45: 45.3 | E45: 60.4 | F45: 83.1 | G45: 45.3 | H45: 60.4 | I45: 83.1 | J45: 0
A46: =+Stammdatenblatt!A136 -> Phosphor | B46: =+Stammdatenblatt!J136 -> 1.06 | C46: Aufw./ha | D46: 24 | E46: 32 | F46: 44 | G46: 24 | H46: 32 | I46: 44 | J46: 0
A47: =+Stammdatenblatt!A137 -> Kali | B47: =+Stammdatenblatt!J137 -> 1.76 | C47: Aufw./ha | D47: 18 | E47: 24 | F47: 33 | G47: 18 | H47: 24 | I47: 33 | J47: 0
A48: =+Stammdatenblatt!A138 -> Kalk | B48: =+Stammdatenblatt!J138 -> 0.04555555556 | C48: Aufw./ha | D48: 300 | E48: =D48 -> 300 | F48: 300 | G48: =F48 -> 300 | H48: =G48 -> 300 | I48: =H48 -> 300 | J48: 0
A49: =+Stammdatenblatt!A139 -> Magnesium | B49: =+Stammdatenblatt!J139 -> 0.552 | C49: Aufw./ha | D49: =D7*'Entzugswerte Düngung'!F5 -> 10.5 | E49: =E7*'Entzugswerte Düngung'!F5 -> 14 | F49: =F7*'Entzugswerte Düngung'!F5 -> 19.25 | G49: =G7*'Entzugswerte Düngung'!F5 -> 10.5 | H49: =H7*'Entzugswerte Düngung'!F5 -> 14 | I49: =I7*'Entzugswerte Düngung'!F5 -> 19.25 | J49: 0
A50: =+Stammdatenblatt!A140 -> Schwefel | B50: =+Stammdatenblatt!J140 -> 1.149425287 | C50: Aufw./ha | D50: 0 | E50: 0 | F50: 0 | G50: 0 | H50: 0 | I50: 0 | J50: 0
A51: Düngerkosten | C51: €/ha | D51: =D45*$B$45+D46*$B$46+D47*$B$47+D48*$B$48+D49*$B$49+D50*$B$50 -> 285.4156667 | E51: 375.9986667 | F51: 512.1036667 | G51: 285.4156667 | H51: 375.9986667 | I51: 512.1036667 | J51: 0
A52: Herbizide | C52: €/ha | D52: 0 | E52: 0 | F52: 0 | G52: 0 | H52: 0 | I52: 0 | J52: 0
A53: Fungizide | C53: €/ha | D53: 0 | E53: 0 | F53: 0 | G53: 0 | H53: 0 | I53: 0 | J53: 0
A54: Insektizide | C54: €/ha | D54: 0 | E54: 0 | F54: 0 | G54: 0 | H54: 0 | I54: 0 | J54: 0
A55: Wachstumsregler | C55: €/ha | D55: 0 | E55: 0 | F55: 0 | G55: 0 | H55: 0 | I55: 0 | J55: 0
A56: Pflanzenbehandlungskosten | C56: €/ha | D56: =SUM(D52:D55) -> 0 | E56: 0 | F56: 0 | G56: 0 | H56: 0 | I56: 0 | J56: 0
A57: * normale Sorten incl. USt: | C57: =+Stammdatenblatt!J79 -> 85 | D57: €/dt
A58: **Verfahren inkl. Zinsanspruch; Verfahren ohne Zinsanspruch sind in den Arbeitsvorgängen abgebildet.

Sheet Brotroggen (hidden)
L2: Erntejahr
B3: Landesbetrieb Landwirtschaft Hessen | H3: 2012 | K3: 2011 | L3: 2010 | M3: 2009 | N3: 2008
A6: Roggen | B6: Brot- / Mahlroggen | D6: 2 ha | G6: 5 ha | H6: 5 ha | I6: 20 ha | K6: 5 ha | L6: 5 ha | M6: 5 ha | N6: 5 ha
A7: Leistung: Menge Hauptprod. | C7: dt/ha | D7: 50 | E7: 70 | F7: 90 | G7: 70 | H7: 90 | I7: 70 | J7: 90 | K7: 90 | L7: 90 | M7: 90 | N7: 90
A8: Preis Hauptprod. | B8: (Angaben inkl. MwSt.) | C8: € | D8: =+Stammdatenblatt!J14 -> 33.4 | E8: =D8 -> 33.4 | F8: =E8 -> 33.4 | G8: =+D8 -> 33.4 | H8: =G8 -> 33.4 | I8: =+H8 -> 33.4 | J8: =I8 -> 33.4 | K8: 22.35 | L8: 17.05 | M8: 9.59 | N8: 12.5
A9: Erlös Hauptprodukt | C9: €/ha | D9: =D7*D8 -> 1670 | E9: 2338 | F9: 3006 | G9: 2338 | H9: 3006 | I9: 2338 | J9: 3006 | K9: 2011.5 | L9: 1534.5 | M9: 863.1 | N9: 1125
A10: Erlös Nebenprodukt(e) | C10: €/ha | D10: 0 | E10: =D10 -> 0 | F10: =E10 -> 0 | G10: 0 | H10: =G10 -> 0 | I10: 0 | J10: =I10 -> 0 | K10: =J10 -> 0 | L10: =K10 -> 0 | M10: =L10 -> 0 | N10: =M10 -> 0
A11: Leistungen | C11: €/ha | D11: =D9+D10 -> 1670 | E11: =E10+E9 -> 2338 | F11: 3006 | G11: 2338 | H11: 3006 | I11: 2338 | J11: 3006 | K11: 2011.5 | L11: 1534.5 | M11: 863.1 | N11: 1125
A12: Saatgutkosten | C12: €/ha | D12: =D41 -> 90 | E12: 90 | F12: 90 | G12: 90 | H12: 90 | I12: 90 | J12: 90 | K12: 64 | L12: 48 | M12: 50 | N12: 61
A13: Mineraldüngerkosten | C13: €/ha | D13: =D49 -> 882.7751724 | E13: 1114.482299 | F13: 1180.085425 | G13: 1114.482299 | H13: 1181.629425 | I13: 1120.229425 | J13: 1180.085425 | K13: 465 | L13: 450 | M13: 350 | N13: 480
A14: Pflanzenbehandlungsk. | C14: €/ha | D14: =D54 -> 65 | E14: 105 | F14: 140 | G14: 105 | H14: 155 | I14: 109 | J14: 133 | K14: 152 | L14: 150 | M14: 133 | N14: 130
A15: Versicherung | C15: €/ha | D15: =(D11/1000)*Stammdatenblatt!$E$195 -> 10.1536 | E15: =(E11/1000)*Stammdatenblatt!$E$195 -> 14.21504 | F15: =(F11/1000)*Stammdatenblatt!$E$195 -> 18.27648 | G15: =(G11/1000)*Stammdatenblatt!$E$195 -> 14.21504 | H15: =(H11/1000)*Stammdatenblatt!$E$195 -> 18.27648 | I15: =(I11/1000)*Stammdatenblatt!$E$195 -> 14.21504 | J15: =(J11/1000)*Stammdatenblatt!$E$195 -> 18.27648 | K15: 13 | L15: 13 | M15: 12 | N15: 11
A16: Trocknungskosten | C16: €/ha | D16: =D7/Stammdatenblatt!$E$209*Stammdatenblatt!$E$206+(Stammdatenblatt!$E$208*Stammdatenblatt!$E$207) -> 24.13333333 | E16: =E7/Stammdatenblatt!$E$209*Stammdatenblatt!$E$206+(Stammdatenblatt!$E$208*Stammdatenblatt!$E$207) -> 32.66666667 | F16: =F7/Stammdatenblatt!$E$209*Stammdatenblatt!$E$206+(Stammdatenblatt!$E$208*Stammdatenblatt!$E$207) -> 41.2 | G16: =G7/Stammdatenblatt!$E$209*Stammdatenblatt!$E$206+(Stammdatenblatt!$E$208*Stammdatenblatt!$E$207) -> 32.66666667 | H16: =H7/Stammdatenblatt!$E$209*Stammdatenblatt!$E$206+(Stammdatenblatt!$E$208*Stammdatenblatt!$E$207) -> 41.2 | I16: =I7/Stammdatenblatt!$E$209*Stammdatenblatt!$E$206+(Stammdatenblatt!$E$208*Stammdatenblatt!$E$207) -> 32.66666667 | J16: =J7/Stammdatenblatt!$E$209*Stammdatenblatt!$E$206+(Stammdatenblatt!$E$208*Stammdatenblatt!$E$207) -> 41.2 | K16: 19 | L16: 18 | M16: 17 | N16: 16
A17: Summe Direktkosten | C17: €/ha | D17: =SUM(D12:D16) -> 1072.062106 | E17: =SUM(E12:E16) -> 1356.364006 | F17: 1469.561905 | G17: 1356.364006 | H17: 1486.105905 | I17: 1366.111132 | J17: 1462.561905 | K17: 713 | L17: 679 | M17: 562 | N17: 698
A18: Direktkostenfreie Leistung | C18: €/ha | D18: =D11-D17 -> 597.9378943 | E18: =E11-E17 -> 981.6359945 | F18: 1536.438095 | G18: 981.6359945 | H18: 1519.894095 | I18: 971.888868 | J18: 1543.438095 | K18: 1298.5 | L18: 855.5 | M18: 301.1 | N18: 427
A19: Maschinenkosten eigen | C19: €/ha | D19: =Arbeitsgänge!J523 -> 112.66 | E19: =Arbeitsgänge!J543 -> 117.48 | F19: =Arbeitsgänge!J564 -> 120.51 | G19: =Arbeitsgänge!J586 -> 110.79 | H19: =Arbeitsgänge!J609 -> 113.77 | I19: =Arbeitsgänge!J640 -> 109.09 | J19: =Arbeitsgänge!J673 -> 111.67 | K19: 114 | L19: 112 | M19: 111 | N19: 110
A20: Maschinenkosten fremd | C20: €/ha | D20: =Arbeitsgänge!K523 -> 125 | E20: =Arbeitsgänge!K543 -> 125 | F20: =Arbeitsgänge!K564 -> 125 | G20: =Arbeitsgänge!K586 -> 110 | H20: =Arbeitsgänge!K609 -> 110 | I20: =Arbeitsgänge!K640 -> 110 | J20: =Arbeitsgänge!K673 -> 110 | K20: 110 | L20: 110 | M20: 110 | N20: 110
A21: Lohnkosten / Lohntrocknung | C21: €/ha | D21: 0 | E21: =D21 -> 0 | F21: =E21 -> 0 | G21: 0 | H21: =G21 -> 0 | I21: 0 | J21: =I21 -> 0 | K21: 0 | L21: 0 | M21: 0 | N21: 0
A22: zusätzl. Kosten (Aufbereitung etc.) | C22: €/ha | D22: 0 | E22: =D22 -> 0 | F22: =E22 -> 0 | G22: 0 | H22: =G22 -> 0 | I22: 0 | J22: 0 | K22: 0 | L22: 0 | M22: 0 | N22: 0
A23: variable Kosten | C23: €/ha | D23: =SUM(D19:D22,D17) -> 1309.722106 | E23: =SUM(E19:E22,E17) -> 1598.844006 | F23: 1715.071905 | G23: 1577.154006 | H23: 1709.875905 | I23: 1585.201132 | J23: 1684.231905 | K23: 937 | L23: 901 | M23: 783 | N23: 918
A24: Deckungsbeitrag (DB) | C24: €/ha | D24: =D11-D23 -> 360.2778943 | E24: 739.1559945 | F24: 1290.928095 | G24: 760.8459945 | H24: 1296.124095 | I24: 752.798868 | J24: 1321.768095 | K24: 1074.5 | L24: 633.5 | M24: 80.1 | N24: 207
A25: Zeit-Spanne | B25: AK-Bedarf
A26: MAE | C26: Akh/ha | D26: =SUMIF(Arbeitsgänge!D$508:D$522,A26,Arbeitsgänge!G$508:G$522) -> 0.24 | E26: =SUMIF(Arbeitsgänge!D$526:D$542,Brotroggen!A26,Arbeitsgänge!G$526:G$542) -> 0.24 | F26: =SUMIF(Arbeitsgänge!D$546:D$563,A26,Arbeitsgänge!G$546:G$563) -> 0.24 | G26: =SUMIF(Arbeitsgänge!D$567:D$585,Brotroggen!A26,Arbeitsgänge!G$567:G$585) -> 0.23 | H26: =SUMIF(Arbeitsgänge!D$589:D$608,Brotroggen!A26,Arbeitsgänge!G$589:G$608) -> 0.23 | I26: =SUMIF(Arbeitsgänge!D$612:D$639,Brotroggen!A26,Arbeitsgänge!G$612:G$639) -> 0.12 | J26: =SUMIF(Arbeitsgänge!D$643:D$672,Brotroggen!A26,Arbeitsgänge!G$643:G$672) -> 0.12 | K26: 0.2 | L26: 0.2 | M26: 0.2 | N26: 0.2
A27: APR | C27: Akh/ha | D27: =SUMIF(Arbeitsgänge!D$508:D$522,A27,Arbeitsgänge!G$508:G$522) -> 0.58 | E27: =SUMIF(Arbeitsgänge!D$526:D$542,Brotroggen!A27,Arbeitsgänge!G$526:G$542) -> 0.58 | F27: =SUMIF(Arbeitsgänge!D$546:D$563,A27,Arbeitsgänge!G$546:G$563) -> 0.58 | G27: =SUMIF(Arbeitsgänge!D$567:D$585,Brotroggen!A27,Arbeitsgänge!G$567:G$585) -> 0.49 | H27: =SUMIF(Arbeitsgänge!D$589:D$608,Brotroggen!A27,Arbeitsgänge!G$589:G$608) -> 0.49 | I27: =SUMIF(Arbeitsgänge!D$612:D$639,Brotroggen!A27,Arbeitsgänge!G$612:G$639) -> 0.29 | J27: =SUMIF(Arbeitsgänge!D$643:D$672,Brotroggen!A27,Arbeitsgänge!G$643:G$672) -> 0.29 | K27: 0.5 | L27: 0.5 | M27: 0.5 | N27: 0.5
A28: MAI | C28: Akh/ha | D28: =SUMIF(Arbeitsgänge!D$508:D$522,A28,Arbeitsgänge!G$508:G$522) -> 0 | E28: =SUMIF(Arbeitsgänge!D$526:D$542,Brotroggen!A28,Arbeitsgänge!G$526:G$542) -> 0.58 | F28: =SUMIF(Arbeitsgänge!D$546:D$563,A28,Arbeitsgänge!G$546:G$563) -> 0.58 | G28: =SUMIF(Arbeitsgänge!D$567:D$585,Brotroggen!A28,Arbeitsgänge!G$567:G$585) -> 0.49 | H28: =SUMIF(Arbeitsgänge!D$589:D$608,Brotroggen!A28,Arbeitsgänge!G$589:G$608) -> 0.49 | I28: =SUMIF(Arbeitsgänge!D$612:D$639,Brotroggen!A28,Arbeitsgänge!G$612:G$639) -> 0.29 | J28: =SUMIF(Arbeitsgänge!D$643:D$672,Brotroggen!A28,Arbeitsgänge!G$643:G$672) -> 0.29 | K28: 0.5 | L28: 0.5 | M28: 0.5 | N28: 0.5
A29: JUN | C29: Akh/ha | D29: =SUMIF(Arbeitsgänge!D$508:D$522,A29,Arbeitsgänge!G$508:G$522) -> 0 | E29: =SUMIF(Arbeitsgänge!D$526:D$542,Brotroggen!A29,Arbeitsgänge!G$526:G$542) -> 0 | F29: =SUMIF(Arbeitsgänge!D$546:D$563,A29,Arbeitsgänge!G$546:G$563) -> 0.34 | G29: =SUMIF(Arbeitsgänge!D$567:D$585,Brotroggen!A29,Arbeitsgänge!G$567:G$585) -> 0 | H29: =SUMIF(Arbeitsgänge!D$589:D$608,Brotroggen!A29,Arbeitsgänge!G$589:G$608) -> 0.26 | I29: =SUMIF(Arbeitsgänge!D$612:D$639,Brotroggen!A29,Arbeitsgänge!G$612:G$639) -> 0 | J29: =SUMIF(Arbeitsgänge!D$643:D$672,Brotroggen!A29,Arbeitsgänge!G$643:G$672) -> 0.17 | K29: 0.3 | L29: 0.3 | M29: 0.3 | N29: 0.3
A30: JUL | C30: Akh/ha | D30: =SUMIF(Arbeitsgänge!D$508:D$522,A30,Arbeitsgänge!G$508:G$522) -> 0 | E30: =SUMIF(Arbeitsgänge!D$526:D$542,Brotroggen!A30,Arbeitsgänge!G$526:G$542) -> 0 | F30: =SUMIF(Arbeitsgänge!D$546:D$563,A30,Arbeitsgänge!G$546:G$563) -> 0 | G30: =SUMIF(Arbeitsgänge!D$567:D$585,Brotroggen!A30,Arbeitsgänge!G$567:G$585) -> 0 | H30: =SUMIF(Arbeitsgänge!D$589:D$608,Brotroggen!A30,Arbeitsgänge!G$589:G$608) -> 0 | I30: =SUMIF(Arbeitsgänge!D$612:D$639,Brotroggen!A30,Arbeitsgänge!G$612:G$639) -> 0 | J30: =SUMIF(Arbeitsgänge!D$643:D$672,Brotroggen!A30,Arbeitsgänge!G$643:G$672) -> 0 | K30: 0 | L30: 0 | M30: 0 | N30: 0
A31: AUG | C31: Akh/ha | D31: =SUMIF(Arbeitsgänge!D$508:D$522,A31,Arbeitsgänge!G$508:G$522) -> 1.34 | E31: =SUMIF(Arbeitsgänge!D$526:D$542,Brotroggen!A31,Arbeitsgänge!G$526:G$542) -> 1.34 | F31: =SUMIF(Arbeitsgänge!D$546:D$563,A31,Arbeitsgänge!G$546:G$563) -> 1.34 | G31: =SUMIF(Arbeitsgänge!D$567:D$585,Brotroggen!A31,Arbeitsgänge!G$567:G$585) -> 1.04 | H31: =SUMIF(Arbeitsgänge!D$589:D$608,Brotroggen!A31,Arbeitsgänge!G$589:G$608) -> 1.04 | I31: =SUMIF(Arbeitsgänge!D$612:D$639,Brotroggen!A31,Arbeitsgänge!G$612:G$639) -> 0.78 | J31: =SUMIF(Arbeitsgänge!D$643:D$672,Brotroggen!A31,Arbeitsgänge!G$643:G$672) -> 0.78 | K31: 1 | L31: 1 | M31: 1 | N31: 1
A32: SEP | C32: Akh/ha | D32: =SUMIF(Arbeitsgänge!D$508:D$522,A32,Arbeitsgänge!G$508:G$522) -> 0.73 | E32: =SUMIF(Arbeitsgänge!D$526:D$542,Brotroggen!A32,Arbeitsgänge!G$526:G$542) -> 0.73 | F32: =SUMIF(Arbeitsgänge!D$546:D$563,A32,Arbeitsgänge!G$546:G$563) -> 0.73 | G32: =SUMIF(Arbeitsgänge!D$567:D$585,Brotroggen!A32,Arbeitsgänge!G$567:G$585) -> 0.55 | H32: =SUMIF(Arbeitsgänge!D$589:D$608,Brotroggen!A32,Arbeitsgänge!G$589:G$608) -> 0.55 | I32: =SUMIF(Arbeitsgänge!D$612:D$639,Brotroggen!A32,Arbeitsgänge!G$612:G$639) -> 0.43 | J32: =SUMIF(Arbeitsgänge!D$643:D$672,Brotroggen!A32,Arbeitsgänge!G$643:G$672) -> 0.43 | K32: 0.6 | L32: 0.6 | M32: 0.6 | N32: 0.6
A33: OKT | C33: Akh/ha | D33: =SUMIF(Arbeitsgänge!D$508:D$522,A33,Arbeitsgänge!G$508:G$522) -> 4.13 | E33: =SUMIF(Arbeitsgänge!D$526:D$542,Brotroggen!A33,Arbeitsgänge!G$526:G$542) -> 4.13 | F33: =SUMIF(Arbeitsgänge!D$546:D$563,A33,Arbeitsgänge!G$546:G$563) -> 4.13 | G33: =SUMIF(Arbeitsgänge!D$567:D$585,Brotroggen!A33,Arbeitsgänge!G$567:G$585) -> 3.14 | H33: =SUMIF(Arbeitsgänge!D$589:D$608,Brotroggen!A33,Arbeitsgänge!G$589:G$608) -> 3.14 | I33: =SUMIF(Arbeitsgänge!D$612:D$639,Brotroggen!A33,Arbeitsgänge!G$612:G$639) -> 2.19 | J33: =SUMIF(Arbeitsgänge!D$643:D$672,Brotroggen!A33,Arbeitsgänge!G$643:G$672) -> 2.19 | K33: 3.1 | L33: 3.1 | M33: 3.1 | N33: 3.1
A34: Rest | C34: Akh/ha | D34: =SUMIF(Arbeitsgänge!D$508:D$522,A34,Arbeitsgänge!G$508:G$522) -> 0 | E34: =SUMIF(Arbeitsgänge!D$526:D$542,Brotroggen!A34,Arbeitsgänge!G$526:G$542) -> 0 | F34: =SUMIF(Arbeitsgänge!D$546:D$563,A34,Arbeitsgänge!G$546:G$563) -> 0 | G34: =SUMIF(Arbeitsgänge!D$567:D$585,Brotroggen!A34,Arbeitsgänge!G$567:G$585) -> 0 | H34: =SUMIF(Arbeitsgänge!D$589:D$608,Brotroggen!A34,Arbeitsgänge!G$589:G$608) -> 0 | I34: =SUMIF(Arbeitsgänge!D$612:D$639,Brotroggen!A34,Arbeitsgänge!G$612:G$639) -> 0 | J34: =SUMIF(Arbeitsgänge!D$643:D$672,Brotroggen!A34,Arbeitsgänge!G$643:G$672) -> 0 | K34: 0 | L34: 0 | M34: 0 | N34: 0
A35: Arbeitskraftstunden | C35: AKh/ha | D35: =SUM(D26:D34) -> 7.02 | E35: 7.6 | F35: 7.94 | G35: 5.94 | H35: 6.2 | I35: 4.1 | J35: 4.27 | K35: 6.2 | L35: 6.2 | M35: 6.2 | N35: 6.2
A36: DB (je Akh) | C36: €/Akh | D36: =IF(D24>0,D24/D35,0) -> 51.32163736 | E36: 97.2573677 | F36: 162.5854024 | G36: 128.0885513 | H36: 209.0522733 | I36: 183.60948 | J36: 309.5475632 | K36: 173.3064516 | L36: 102.1774194 | M36: 12.91935484 | N36: 33.38709677
A37: Aussaatmenge | C37: kg/ha | D37: 100 | E37: =D37 -> 100 | F37: =E37 -> 100 | G37: 100 | H37: =G37 -> 100 | I37: 100 | J37: =I37 -> 100 | K37: 100 | L37: 100 | M37: 100 | N37: 100
A38: davon Zukaufsaatgut | C38: % | D38: 100 | E38: 100 | F38: =E38 -> 100 | G38: 100 | H38: =G38 -> 100 | I38: 100 | J38: 100 | K38: 100 | L38: 100 | M38: 100 | N38: 100
A39: Saatgutpreis Eigen | C39: €/dt | D39: 0 | E39: =D39 -> 0 | F39: =E39 -> 0 | G39: 0 | H39: =G39 -> 0 | I39: 0 | J39: 0 | K39: 0 | L39: 0 | M39: 0 | N39: 0
A40: Zukauf (Hybridroggen)* | C40: €/dt | D40: =Stammdatenblatt!J80 -> 90 | E40: =D40 -> 90 | F40: =E40 -> 90 | G40: =+F40 -> 90 | H40: =G40 -> 90 | I40: =+H40 -> 90 | J40: =I40 -> 90 | K40: 64 | L40: 48 | M40: 50 | N40: 61
A41: Saatgutkosten | C41: €/ha | D41: =D38/100*(D37*D40)/100+((100-D38)/100*D37*D39/100) -> 90 | E41: 90 | F41: 90 | G41: 90 | H41: 90 | I41: 90 | J41: 90 | K41: 64 | L41: 48 | M41: 50 | N41: 61
A42: Dünger: | B42: €/kg | D42: Düngeraufwand/ha (in kg Reinnährst.)
A43: =+Stammdatenblatt!A135 -> Stickstoff | B43: =+Stammdatenblatt!J135 -> 4.61 | C43: Aufw./ha | D43: 130 | E43: 170 | F43: 170 | G43: 170 | H43: 170 | I43: 170 | J43: 170 | K43: 170 | L43: 170 | M43: 170 | N43: 170
A44: =+Stammdatenblatt!A136 -> Phosphor | B44: =+Stammdatenblatt!J136 -> 1.06 | C44: Aufw./ha | D44: 45 | E44: 65 | F44: 95 | G44: 65 | H44: 85 | I44: 65 | J44: 95 | K44: 85 | L44: 85 | M44: 85 | N44: 85
A45: =+Stammdatenblatt!A137 -> Kali | B45: =+Stammdatenblatt!J137 -> 1.76 | C45: Aufw./ha | D45: 110 | E45: 120 | F45: 135 | G45: 120 | H45: 135 | I45: 120 | J45: 135 | K45: 135 | L45: 135 | M45: 135 | N45: 135
A46: =+Stammdatenblatt!A138 -> Kalk | B46: =+Stammdatenblatt!J138 -> 0.04555555556 | C46: Aufw./ha | D46: 300 | E46: =D46 -> 300 | F46: 300 | G46: 300 | H46: 300 | I46: 300 | J46: 300 | K46: 300 | L46: 300 | M46: 300 | N46: 300
A47: =+Stammdatenblatt!A139 -> Magnesium | B47: =+Stammdatenblatt!J139 -> 0.552 | C47: Aufw./ha | D47: 10 | E47: 15 | F47: 18 | G47: 15 | H47: 40 | I47: 15 | J47: 18 | K47: 40 | L47: 40 | M47: 40 | N47: 40
A48: =+Stammdatenblatt!A140 -> Schwefel | B48: =+Stammdatenblatt!J140 -> 1.149425287 | C48: Aufw./ha | D48: 20 | E48: 25 | F48: 30 | G48: 25 | H48: 30 | I48: =H48 -> 30 | J48: 30 | K48: 30 | L48: 30 | M48: 30 | N48: 30
A49: Mineraldüngerkosten | C49: €/ha | D49: =D43*$B$43+D44*$B$44+D45*$B$45+D46*$B$46+D47*$B$47+D48*$B$48 -> 882.7751724 | E49: 1114.482299 | F49: 1180.085425 | G49: 1114.482299 | H49: 1181.629425 | I49: 1120.229425 | J49: 1180.085425 | K49: 465 | L49: 450 | M49: 350 | N49: 480
A50: Herbizide | C50: €/ha | D50: 33 | E50: 45 | F50: 45 | G50: 45 | H50: 59 | I50: 43 | J50: 43 | K50: 58 | L50: 58 | M50: 54 | N50: 55
A51: Fungizide | C51: €/ha | D51: 18 | E51: 35 | F51: 70 | G51: 35 | H51: 54 | I51: 48 | J51: 67 | K51: 53 | L51: 52 | M51: 45 | N51: 46
A52: Insektizide | C52: €/ha | D52: 0 | E52: 0 | F52: 0 | G52: 0 | H52: 10 | I52: 0 | J52: 0 | K52: 11 | L52: 11 | M52: 6 | N52: 2
A53: Wachstumsregler | C53: €/ha | D53: 14 | E53: 25 | F53: 25 | G53: 25 | H53: 32 | I53: 18 | J53: 23 | K53: 30 | L53: 29 | M53: 28 | N53: 27
A54: Pflanzenbehandlungskosten | C54: €/ha | D54: =SUM(D50:D53) -> 65 | E54: 105 | F54: 140 | G54: 105 | H54: 155 | I54: 109 | J54: 133 | K54: 152 | L54: 150 | M54: 133 | N54: 130
B55: * normale Sorten incl. USt: | C55: =+Stammdatenblatt!J79 -> 85 | D55: €/dt
A56: Wichtig: Die Arbeitszeiten beinhalten keine Rüstzeiten!

Sheet Saatgutprod.-Hybridroggen (hidden)
L2: Erntejahr
B3: Landesbetrieb Landwirtschaft Hessen | H3: 2012 | K3: 2011 | L3: 2010 | M3: 2009 | N3: 2008
A6: Roggen | B6: Saatgutvermehrung | D6: 2 ha | G6: 5 ha | H6: 5 ha | I6: 20 ha | K6: 5 ha | L6: 5 ha | M6: 5 ha | N6: 5 ha
A7: Leistung: Menge Hauptprod. | C7: dt/ha | D7: 50 | E7: 70 | F7: 90 | G7: 70 | H7: 90 | I7: 70 | J7: 90 | K7: 90 | L7: 90 | M7: 90 | N7: 90
A8: Preis Hauptprod. | B8: (Angaben inkl. MwSt.) | C8: € | D8: =+Stammdatenblatt!J14 -> 33.4 | E8: =D8 -> 33.4 | F8: =E8 -> 33.4 | G8: =+D8 -> 33.4 | H8: =G8 -> 33.4 | I8: =+H8 -> 33.4 | J8: =I8 -> 33.4 | K8: 22.35 | L8: 17.05 | M8: 9.59 | N8: 12.5
A9: Erlös Hauptprodukt | C9: €/ha | D9: =D7*D8 -> 1670 | E9: 2338 | F9: 3006 | G9: 2338 | H9: 3006 | I9: 2338 | J9: 3006 | K9: 2011.5 | L9: 1534.5 | M9: 863.1 | N9: 1125
A10: Erlös Nebenprodukt(e) | B10: Vermehrer-Zuschlag | C10: €/ha | D10: =SUM(D7*O10) -> 277.5 | E10: =SUM(E7*O10) -> 388.5 | F10: =E10 -> 388.5 | G10: =G7*O10 -> 388.5 | H10: =H7*O10 -> 499.5 | I10: 0 | J10: =I10 -> 0 | K10: =H10 -> 499.5 | L10: =K10 -> 499.5 | M10: =L10 -> 499.5 | N10: =M10 -> 499.5 | O10: 5.55
A11: Leistungen | C11: €/ha | D11: =D9+D10 -> 1947.5 | E11: =E10+E9 -> 2726.5 | F11: 3394.5 | G11: 2726.5 | H11: 3505.5 | I11: 2338 | J11: 3006 | K11: 2511 | L11: 2034 | M11: 1362.6 | N11: 1624.5
A12: Saatgutkosten | C12: €/ha | D12: =D41 -> 90 | E12: 90 | F12: 90 | G12: 90 | H12: 90 | I12: 90 | J12: 90 | K12: 64 | L12: 48 | M12: 50 | N12: 61
A13: Mineraldüngerkosten | C13: €/ha | D13: =D49 -> 882.7751724 | E13: 1114.482299 | F13: 1180.085425 | G13: 1114.482299 | H13: 1181.629425 | I13: 1120.229425 | J13: 1180.085425 | K13: 465 | L13: 450 | M13: 350 | N13: 480
A14: Pflanzenbehandlungsk. | C14: €/ha | D14: =D54 -> 65 | E14: 105 | F14: 140 | G14: 105 | H14: 155 | I14: 109 | J14: 133 | K14: 152 | L14: 150 | M14: 133 | N14: 130
A15: Versicherung | C15: €/ha | D15: =(D11/1000)*Stammdatenblatt!$E$195 -> 11.8408 | E15: =(E11/1000)*Stammdatenblatt!$E$195 -> 16.57712 | F15: =(F11/1000)*Stammdatenblatt!$E$195 -> 20.63856 | G15: =(G11/1000)*Stammdatenblatt!$E$195 -> 16.57712 | H15: =(H11/1000)*Stammdatenblatt!$E$195 -> 21.31344 | I15: =(I11/1000)*Stammdatenblatt!$E$195 -> 14.21504 | J15: =(J11/1000)*Stammdatenblatt!$E$195 -> 18.27648 | K15: 13 | L15: 13 | M15: 12 | N15: 11
A16: Trocknungskosten | C16: €/ha | D16: =D7/Stammdatenblatt!$E$209*Stammdatenblatt!$E$206+(Stammdatenblatt!$E$208*Stammdatenblatt!$E$207) -> 24.13333333 | E16: =E7/Stammdatenblatt!$E$209*Stammdatenblatt!$E$206+(Stammdatenblatt!$E$208*Stammdatenblatt!$E$207) -> 32.66666667 | F16: =F7/Stammdatenblatt!$E$209*Stammdatenblatt!$E$206+(Stammdatenblatt!$E$208*Stammdatenblatt!$E$207) -> 41.2 | G16: =G7/Stammdatenblatt!$E$209*Stammdatenblatt!$E$206+(Stammdatenblatt!$E$208*Stammdatenblatt!$E$207) -> 32.66666667 | H16: =H7/Stammdatenblatt!$E$209*Stammdatenblatt!$E$206+(Stammdatenblatt!$E$208*Stammdatenblatt!$E$207) -> 41.2 | I16: =I7/Stammdatenblatt!$E$209*Stammdatenblatt!$E$206+(Stammdatenblatt!$E$208*Stammdatenblatt!$E$207) -> 32.66666667 | J16: =J7/Stammdatenblatt!$E$209*Stammdatenblatt!$E$206+(Stammdatenblatt!$E$208*Stammdatenblatt!$E$207) -> 41.2 | K16: 19 | L16: 18 | M16: 17 | N16: 16
A17: Summe Direktkosten | C17: €/ha | D17: =SUM(D12:D16) -> 1073.749306 | E17: =SUM(E12:E16) -> 1358.726086 | F17: 1471.923985 | G17: 1358.726086 | H17: 1489.142865 | I17: 1366.111132 | J17: 1462.561905 | K17: 713 | L17: 679 | M17: 562 | N17: 698
A18: Direktkostenfreie Leistung | C18: €/ha | D18: =D11-D17 -> 873.7506943 | E18: =E11-E17 -> 1367.773914 | F18: 1922.576015 | G18: 1367.773914 | H18: 2016.357135 | I18: 971.888868 | J18: 1543.438095 | K18: 1798 | L18: 1355 | M18: 800.6 | N18: 926.5
A19: Maschinenkosten eigen | C19: €/ha | D19: =Arbeitsgänge!J523 -> 112.66 | E19: =Arbeitsgänge!J543 -> 117.48 | F19: =Arbeitsgänge!J564 -> 120.51 | G19: =Arbeitsgänge!J586 -> 110.79 | H19: =Arbeitsgänge!J609 -> 113.77 | I19: =Arbeitsgänge!J640 -> 109.09 | J19: =Arbeitsgänge!J673 -> 111.67 | K19: 114 | L19: 112 | M19: 111 | N19: 110
A20: Maschinenkosten fremd | C20: €/ha | D20: =Arbeitsgänge!K523 -> 125 | E20: =Arbeitsgänge!K543 -> 125 | F20: =Arbeitsgänge!K564 -> 125 | G20: =Arbeitsgänge!K586 -> 110 | H20: =Arbeitsgänge!K609 -> 110 | I20: =Arbeitsgänge!K640 -> 110 | J20: =Arbeitsgänge!K673 -> 110 | K20: 110 | L20: 110 | M20: 110 | N20: 110
A21: Lohnkosten / Lohntrocknung | C21: €/ha | D21: 0 | E21: =D21 -> 0 | F21: =E21 -> 0 | G21: 0 | H21: =G21 -> 0 | I21: 0 | J21: =I21 -> 0 | K21: 0 | L21: 0 | M21: 0 | N21: 0
A22: zusätzl. Kosten (Aufbereitung etc.) | C22: €/ha | D22: 30 | E22: 45 | F22: =E22 -> 45 | G22: 45 | H22: 65 | I22: 0 | J22: 0 | K22: 65 | L22: 65 | M22: 65 | N22: 65
A23: variable Kosten | C23: €/ha | D23: =SUM(D19:D22,D17) -> 1341.409306 | E23: =SUM(E19:E22,E17) -> 1646.206086 | F23: 1762.433985 | G23: 1624.516086 | H23: 1777.912865 | I23: 1585.201132 | J23: 1684.231905 | K23: 1002 | L23: 966 | M23: 848 | N23: 983
A24: Deckungsbeitrag (DB) | C24: €/ha | D24: =D11-D23 -> 606.0906943 | E24: 1080.293914 | F24: 1632.066015 | G24: 1101.983914 | H24: 1727.587135 | I24: 752.798868 | J24: 1321.768095 | K24: 1509 | L24: 1068 | M24: 514.6 | N24: 641.5
A25: Zeit-Spanne | B25: AK-Bedarf
A26: MAE | C26: Akh/ha | D26: =SUMIF(Arbeitsgänge!D$508:D$522,A26,Arbeitsgänge!G$508:G$522) -> 0.24 | E26: =SUMIF(Arbeitsgänge!D$526:D$542,'Saatgutprod.-Hybridroggen'!A26,Arbeitsgänge!G$526:G$542) -> 0.24 | F26: =SUMIF(Arbeitsgänge!D$546:D$563,A26,Arbeitsgänge!G$546:G$563) -> 0.24 | G26: =SUMIF(Arbeitsgänge!D$567:D$585,'Saatgutprod.-Hybridroggen'!A26,Arbeitsgänge!G$567:G$585) -> 0.23 | H26: =SUMIF(Arbeitsgänge!D$589:D$608,'Saatgutprod.-Hybridroggen'!A26,Arbeitsgänge!G$589:G$608) -> 0.23 | I26: =SUMIF(Arbeitsgänge!D$612:D$639,'Saatgutprod.-Hybridroggen'!A26,Arbeitsgänge!G$612:G$639) -> 0.12 | J26: =SUMIF(Arbeitsgänge!D$643:D$672,'Saatgutprod.-Hybridroggen'!A26,Arbeitsgänge!G$643:G$672) -> 0.12 | K26: 0.2 | L26: 0.2 | M26: 0.2 | N26: 0.2
A27: APR | C27: Akh/ha | D27: =SUMIF(Arbeitsgänge!D$508:D$522,A27,Arbeitsgänge!G$508:G$522) -> 0.58 | E27: =SUMIF(Arbeitsgänge!D$526:D$542,'Saatgutprod.-Hybridroggen'!A27,Arbeitsgänge!G$526:G$542) -> 0.58 | F27: =SUMIF(Arbeitsgänge!D$546:D$563,A27,Arbeitsgänge!G$546:G$563) -> 0.58 | G27: =SUMIF(Arbeitsgänge!D$567:D$585,'Saatgutprod.-Hybridroggen'!A27,Arbeitsgänge!G$567:G$585) -> 0.49 | H27: =SUMIF(Arbeitsgänge!D$589:D$608,'Saatgutprod.-Hybridroggen'!A27,Arbeitsgänge!G$589:G$608) -> 0.49 | I27: =SUMIF(Arbeitsgänge!D$612:D$639,'Saatgutprod.-Hybridroggen'!A27,Arbeitsgänge!G$612:G$639) -> 0.29 | J27: =SUMIF(Arbeitsgänge!D$643:D$672,'Saatgutprod.-Hybridroggen'!A27,Arbeitsgänge!G$643:G$672) -> 0.29 | K27: 0.5 | L27: 0.5 | M27: 0.5 | N27: 0.5
A28: MAI | C28: Akh/ha | D28: =SUMIF(Arbeitsgänge!D$508:D$522,A28,Arbeitsgänge!G$508:G$522) -> 0 | E28: =SUMIF(Arbeitsgänge!D$526:D$542,'Saatgutprod.-Hybridroggen'!A28,Arbeitsgänge!G$526:G$542) -> 0.58 | F28: =SUMIF(Arbeitsgänge!D$546:D$563,A28,Arbeitsgänge!G$546:G$563) -> 0.58 | G28: =SUMIF(Arbeitsgänge!D$567:D$585,'Saatgutprod.-Hybridroggen'!A28,Arbeitsgänge!G$567:G$585) -> 0.49 | H28: =SUMIF(Arbeitsgänge!D$589:D$608,'Saatgutprod.-Hybridroggen'!A28,Arbeitsgänge!G$589:G$608) -> 0.49 | I28: =SUMIF(Arbeitsgänge!D$612:D$639,'Saatgutprod.-Hybridroggen'!A28,Arbeitsgänge!G$612:G$639) -> 0.29 | J28: =SUMIF(Arbeitsgänge!D$643:D$672,'Saatgutprod.-Hybridroggen'!A28,Arbeitsgänge!G$643:G$672) -> 0.29 | K28: 0.5 | L28: 0.5 | M28: 0.5 | N28: 0.5
A29: JUN | C29: Akh/ha | D29: =SUMIF(Arbeitsgänge!D$508:D$522,A29,Arbeitsgänge!G$508:G$522) -> 0 | E29: =SUMIF(Arbeitsgänge!D$526:D$542,'Saatgutprod.-Hybridroggen'!A29,Arbeitsgänge!G$526:G$542) -> 0 | F29: =SUMIF(Arbeitsgänge!D$546:D$563,A29,Arbeitsgänge!G$546:G$563) -> 0.34 | G29: =SUMIF(Arbeitsgänge!D$567:D$585,'Saatgutprod.-Hybridroggen'!A29,Arbeitsgänge!G$567:G$585) -> 0 | H29: =SUMIF(Arbeitsgänge!D$589:D$608,'Saatgutprod.-Hybridroggen'!A29,Arbeitsgänge!G$589:G$608) -> 0.26 | I29: =SUMIF(Arbeitsgänge!D$612:D$639,'Saatgutprod.-Hybridroggen'!A29,Arbeitsgänge!G$612:G$639) -> 0 | J29: =SUMIF(Arbeitsgänge!D$643:D$672,'Saatgutprod.-Hybridroggen'!A29,Arbeitsgänge!G$643:G$672) -> 0.17 | K29: 0.3 | L29: 0.3 | M29: 0.3 | N29: 0.3
A30: JUL | C30: Akh/ha | D30: =SUMIF(Arbeitsgänge!D$508:D$522,A30,Arbeitsgänge!G$508:G$522) -> 0 | E30: =SUMIF(Arbeitsgänge!D$526:D$542,'Saatgutprod.-Hybridroggen'!A30,Arbeitsgänge!G$526:G$542) -> 0 | F30: =SUMIF(Arbeitsgänge!D$546:D$563,A30,Arbeitsgänge!G$546:G$563) -> 0 | G30: =SUMIF(Arbeitsgänge!D$567:D$585,'Saatgutprod.-Hybridroggen'!A30,Arbeitsgänge!G$567:G$585) -> 0 | H30: =SUMIF(Arbeitsgänge!D$589:D$608,'Saatgutprod.-Hybridroggen'!A30,Arbeitsgänge!G$589:G$608) -> 0 | I30: =SUMIF(Arbeitsgänge!D$612:D$639,'Saatgutprod.-Hybridroggen'!A30,Arbeitsgänge!G$612:G$639) -> 0 | J30: =SUMIF(Arbeitsgänge!D$643:D$672,'Saatgutprod.-Hybridroggen'!A30,Arbeitsgänge!G$643:G$672) -> 0 | K30: 0 | L30: 0 | M30: 0 | N30: 0
A31: AUG | C31: Akh/ha | D31: =SUMIF(Arbeitsgänge!D$508:D$522,A31,Arbeitsgänge!G$508:G$522) -> 1.34 | E31: =SUMIF(Arbeitsgänge!D$526:D$542,'Saatgutprod.-Hybridroggen'!A31,Arbeitsgänge!G$526:G$542) -> 1.34 | F31: =SUMIF(Arbeitsgänge!D$546:D$563,A31,Arbeitsgänge!G$546:G$563) -> 1.34 | G31: =SUMIF(Arbeitsgänge!D$567:D$585,'Saatgutprod.-Hybridroggen'!A31,Arbeitsgänge!G$567:G$585) -> 1.04 | H31: =SUMIF(Arbeitsgänge!D$589:D$608,'Saatgutprod.-Hybridroggen'!A31,Arbeitsgänge!G$589:G$608) -> 1.04 | I31: =SUMIF(Arbeitsgänge!D$612:D$639,'Saatgutprod.-Hybridroggen'!A31,Arbeitsgänge!G$612:G$639) -> 0.78 | J31: =SUMIF(Arbeitsgänge!D$643:D$672,'Saatgutprod.-Hybridroggen'!A31,Arbeitsgänge!G$643:G$672) -> 0.78 | K31: 1 | L31: 1 | M31: 1 | N31: 1
A32: SEP | C32: Akh/ha | D32: =SUMIF(Arbeitsgänge!D$508:D$522,A32,Arbeitsgänge!G$508:G$522) -> 0.73 | E32: =SUMIF(Arbeitsgänge!D$526:D$542,'Saatgutprod.-Hybridroggen'!A32,Arbeitsgänge!G$526:G$542) -> 0.73 | F32: =SUMIF(Arbeitsgänge!D$546:D$563,A32,Arbeitsgänge!G$546:G$563) -> 0.73 | G32: =SUMIF(Arbeitsgänge!D$567:D$585,'Saatgutprod.-Hybridroggen'!A32,Arbeitsgänge!G$567:G$585) -> 0.55 | H32: =SUMIF(Arbeitsgänge!D$589:D$608,'Saatgutprod.-Hybridroggen'!A32,Arbeitsgänge!G$589:G$608) -> 0.55 | I32: =SUMIF(Arbeitsgänge!D$612:D$639,'Saatgutprod.-Hybridroggen'!A32,Arbeitsgänge!G$612:G$639) -> 0.43 | J32: =SUMIF(Arbeitsgänge!D$643:D$672,'Saatgutprod.-Hybridroggen'!A32,Arbeitsgänge!G$643:G$672) -> 0.43 | K32: 0.6 | L32: 0.6 | M32: 0.6 | N32: 0.6
A33: OKT | C33: Akh/ha | D33: =SUMIF(Arbeitsgänge!D$508:D$522,A33,Arbeitsgänge!G$508:G$522) -> 4.13 | E33: =SUMIF(Arbeitsgänge!D$526:D$542,'Saatgutprod.-Hybridroggen'!A33,Arbeitsgänge!G$526:G$542) -> 4.13 | F33: =SUMIF(Arbeitsgänge!D$546:D$563,A33,Arbeitsgänge!G$546:G$563) -> 4.13 | G33: =SUMIF(Arbeitsgänge!D$567:D$585,'Saatgutprod.-Hybridroggen'!A33,Arbeitsgänge!G$567:G$585) -> 3.14 | H33: =SUMIF(Arbeitsgänge!D$589:D$608,'Saatgutprod.-Hybridroggen'!A33,Arbeitsgänge!G$589:G$608) -> 3.14 | I33: =SUMIF(Arbeitsgänge!D$612:D$639,'Saatgutprod.-Hybridroggen'!A33,Arbeitsgänge!G$612:G$639) -> 2.19 | J33: =SUMIF(Arbeitsgänge!D$643:D$672,'Saatgutprod.-Hybridroggen'!A33,Arbeitsgänge!G$643:G$672) -> 2.19 | K33: 3.1 | L33: 3.1 | M33: 3.1 | N33: 3.1
A34: Rest | C34: Akh/ha | D34: =SUMIF(Arbeitsgänge!D$508:D$522,A34,Arbeitsgänge!G$508:G$522) -> 0 | E34: =SUMIF(Arbeitsgänge!D$526:D$542,'Saatgutprod.-Hybridroggen'!A34,Arbeitsgänge!G$526:G$542) -> 0 | F34: =SUMIF(Arbeitsgänge!D$546:D$563,A34,Arbeitsgänge!G$546:G$563) -> 0 | G34: =SUMIF(Arbeitsgänge!D$567:D$585,'Saatgutprod.-Hybridroggen'!A34,Arbeitsgänge!G$567:G$585) -> 0 | H34: =SUMIF(Arbeitsgänge!D$589:D$608,'Saatgutprod.-Hybridroggen'!A34,Arbeitsgänge!G$589:G$608) -> 0 | I34: =SUMIF(Arbeitsgänge!D$612:D$639,'Saatgutprod.-Hybridroggen'!A34,Arbeitsgänge!G$612:G$639) -> 0 | J34: =SUMIF(Arbeitsgänge!D$643:D$672,'Saatgutprod.-Hybridroggen'!A34,Arbeitsgänge!G$643:G$672) -> 0 | K34: 0 | L34: 0 | M34: 0 | N34: 0 | O34: +
A35: Arbeitskraftstunden | C35: AKh/ha | D35: =SUM(D26:D34)+O35 -> 10.02 | E35: =SUM(E26:E34)+O35 -> 10.6 | F35: =SUM(F26:F34) -> 7.94 | G35: =SUM(G26:G34)+O35 -> 8.94 | H35: =SUM(H26:H34)+O35 -> 9.2 | I35: =SUM(I26:I34) -> 4.1 | J35: =SUM(J26:J34) -> 4.27 | K35: =SUM(K26:K34)+O35 -> 9.2 | L35: =SUM(L26:L34)+O35 -> 9.2 | M35: =SUM(M26:M34)+O35 -> 9.2 | N35: =SUM(N26:N34)+O35 -> 9.2 | O35: 3
A36: DB (je Akh) | C36: €/Akh | D36: =IF(D24>0,D24/D35,0) -> 60.48809324 | E36: 101.9145202 | F36: 205.5498759 | G36: 123.26442 | H36: 187.7812103 | I36: 183.60948 | J36: 309.5475632 | K36: 164.0217391 | L36: 116.0869565 | M36: 55.93478261 | N36: 69.72826087
A37: Aussaatmenge | C37: kg/ha | D37: 100 | E37: =D37 -> 100 | F37: =E37 -> 100 | G37: 100 | H37: =G37 -> 100 | I37: 100 | J37: =I37 -> 100 | K37: 100 | L37: 100 | M37: 100 | N37: 100
A38: davon Zukaufsaatgut | C38: % | D38: 100 | E38: 100 | F38: =E38 -> 100 | G38: 100 | H38: =G38 -> 100 | I38: 100 | J38: 100 | K38: 100 | L38: 100 | M38: 100 | N38: 100
A39: Saatgutpreis Eigen | C39: €/dt | D39: 0 | E39: =D39 -> 0 | F39: =E39 -> 0 | G39: 0 | H39: =G39 -> 0 | I39: 0 | J39: 0 | K39: 0 | L39: 0 | M39: 0 | N39: 0
A40: Zukauf (Hybridroggen)* | C40: €/dt | D40: =Stammdatenblatt!J80 -> 90 | E40: =D40 -> 90 | F40: =E40 -> 90 | G40: =+F40 -> 90 | H40: =G40 -> 90 | I40: =+H40 -> 90 | J40: =I40 -> 90 | K40: 64 | L40: 48 | M40: 50 | N40: 61
A41: Saatgutkosten | C41: €/ha | D41: =D38/100*(D37*D40)/100+((100-D38)/100*D37*D39/100) -> 90 | E41: 90 | F41: 90 | G41: 90 | H41: 90 | I41: 90 | J41: 90 | K41: 64 | L41: 48 | M41: 50 | N41: 61
A42: Dünger: | B42: €/kg | D42: Düngeraufwand/ha (in kg Reinnährst.)
A43: =+Stammdatenblatt!A135 -> Stickstoff | B43: =+Stammdatenblatt!J135 -> 4.61 | C43: Aufw./ha | D43: 130 | E43: 170 | F43: 170 | G43: 170 | H43: 170 | I43: 170 | J43: 170 | K43: 170 | L43: 170 | M43: 170 | N43: 170
A44: =+Stammdatenblatt!A136 -> Phosphor | B44: =+Stammdatenblatt!J136 -> 1.06 | C44: Aufw./ha | D44: 45 | E44: 65 | F44: 95 | G44: 65 | H44: 85 | I44: 65 | J44: 95 | K44: 85 | L44: 85 | M44: 85 | N44: 85
A45: =+Stammdatenblatt!A137 -> Kali | B45: =+Stammdatenblatt!J137 -> 1.76 | C45: Aufw./ha | D45: 110 | E45: 120 | F45: 135 | G45: 120 | H45: 135 | I45: 120 | J45: 135 | K45: 135 | L45: 135 | M45: 135 | N45: 135
A46: =+Stammdatenblatt!A138 -> Kalk | B46: =+Stammdatenblatt!J138 -> 0.04555555556 | C46: Aufw./ha | D46: 300 | E46: =D46 -> 300 | F46: 300 | G46: 300 | H46: 300 | I46: 300 | J46: 300 | K46: 300 | L46: 300 | M46: 300 | N46: 300
A47: =+Stammdatenblatt!A139 -> Magnesium | B47: =+Stammdatenblatt!J139 -> 0.552 | C47: Aufw./ha | D47: 10 | E47: 15 | F47: 18 | G47: 15 | H47: 40 | I47: 15 | J47: 18 | K47: 40 | L47: 40 | M47: 40 | N47: 40
A48: =+Stammdatenblatt!A140 -> Schwefel | B48: =+Stammdatenblatt!J140 -> 1.149425287 | C48: Aufw./ha | D48: 20 | E48: 25 | F48: 30 | G48: 25 | H48: 30 | I48: =H48 -> 30 | J48: 30 | K48: 30 | L48: 30 | M48: 30 | N48: 30
A49: Mineraldüngerkosten | C49: €/ha | D49: =D43*$B$43+D44*$B$44+D45*$B$45+D46*$B$46+D47*$B$47+D48*$B$48 -> 882.7751724 | E49: 1114.482299 | F49: 1180.085425 | G49: 1114.482299 | H49: 1181.629425 | I49: 1120.229425 | J49: 1180.085425 | K49: 465 | L49: 450 | M49: 350 | N49: 480
A50: Herbizide | C50: €/ha | D50: 33 | E50: 45 | F50: 45 | G50: 45 | H50: 59 | I50: 43 | J50: 43 | K50: 58 | L50: 58 | M50: 54 | N50: 55
A51: Fungizide | C51: €/ha | D51: 18 | E51: 35 | F51: 70 | G51: 35 | H51: 54 | I51: 48 | J51: 67 | K51: 53 | L51: 52 | M51: 45 | N51: 46
A52: Insektizide | C52: €/ha | D52: 0 | E52: 0 | F52: 0 | G52: 0 | H52: 10 | I52: 0 | J52: 0 | K52: 11 | L52: 11 | M52: 6 | N52: 2
A53: Wachstumsregler | C53: €/ha | D53: 14 | E53: 25 | F53: 25 | G53: 25 | H53: 32 | I53: 18 | J53: 23 | K53: 30 | L53: 29 | M53: 28 | N53: 27
A54: Pflanzenbehandlungskosten | C54: €/ha | D54: =SUM(D50:D53) -> 65 | E54: 105 | F54: 140 | G54: 105 | H54: 155 | I54: 109 | J54: 133 | K54: 152 | L54: 150 | M54: 133 | N54: 130
B55: * normale Sorten incl. USt: | C55: =+Stammdatenblatt!J79 -> 85 | D55: €/dt
A56: Wichtig: Die Arbeitszeiten beinhalten keine Rüstzeiten!

Sheet Sonstige Kosten (hidden)
C2: Sonstige Kosten
C4: Nachfolgende Spezialinformationen sind mit den Berechnungsgrundlagen nicht
C5: verknüpft und können für individuelle Kalkulationen verwendet werden.
C7: So setzt sich der Saatgutpreis zusammen, Bsp. Winterweizen, (A-Qualität)
E8: Quelle: BW-agrar, Nr.36/2011, S.61 | I8: je dt
C9: Vermehrungsgrundpreis | H9: 20,50 €
C10: Vermehreraufschlag | H10: 6,25 €
C11: (Mehrkosten Basissaatgut, Bereinigung, Aufbereitung
C12: Risikoausgleich)
C13: Beizung Fungizid | H13: 9,30 €
C14: (Mittelkosten, Beizanlage, Beizlohn)
C15: Verpackung | H15: 1,60 €
C16: Züchterlizenz | H16: 7,00 - 10,50 €
C17: Vo-Spanne | H17: 1,00 - 3,00 €
C18: Handelsspanne | H18: 1,00 - 5,00 €
C19: Lagerung u. Transport | H19: 1,00 - 7,00 €
C20: Verkaufspreis an Landwirte | H20: 48 - 63,50 €
C23: Saatgut
C24: Quelle: | D24: BayWa Saatgut Agrar 04/2011 u. eigene Erhebungen
C25: Kulturen | F25: Saat-/Pflanzgutpreis
F26: €/dt bzw. Einh. (o.Mwst.)
C27: Winterweizen | E27: Futterweizen; C | F27: 56
C28: Winterweizen | E28: Backweizen; B | F28: 57
C29: Winterweizen | E29: Qualitätsweizen; A | F29: 58
C30: Winterweizen | E30: Eliteweizen; E | F30: 60
C31: Winterroggen | E31: Populationssorten | F31: 54
C32: Winterroggen | E32: Hybridsorten | F32: 52
C33: Triticale | F33: 52
C34: Wintergerste | E34: Futtergerste | F34: 52
C35: Dinkel | F35: 83 | I35: Züchterlizenzgebühren | L35: €/dt
C36: Sommerweizen | E36: Backweizen; B | F36: 57 | I36: Getreide | L36: ca. 5 - 10
C37: Sommergerste | E37: Futtergerste | F37: 56 | I37: Ackerbohnen | L37: ca. 8 - 9
C38: Braugerste | F38: 61 | I38: Erbsen | L38: ca. 4 - 11
C39: Hafer | F39: 55 | I39: Lupinen | L39: 9.9
C40: Durum | F40: 93 | I40: Kartoffeln | L40: ca. 4 - 10
C41: Körnermais | E41: 50TK/Einheit | F41: 85 | G41: (je TKEh) | I41: Quelle: Saatgut-Treuhandverwaltungs GmbH www.stv-bonn.de/
C42: Winterraps | E42: Hybridsorten | F42: 244 | N42: Stand 11/2011
E43: Liniensorten | F43: 142
C44: Sommerraps | F44: 260 | G44: (je Eh[ha])
C45: Sonnenblumen | F45: 200 | G45: (0,25 ha)
C46: Sojabohnen | F46: 55 | G46: (je Eh[ha])
C47: Öllein | F47: 74 | I47: Berechnungsbeispiel | L47: Winterroggen
C48: Futtererbsen | F48: 85
C49: Ackerbohnen | F49: 85 | I49: Saatmenge: | K49: 130 | L49: kg/ha
C50: Lupinen | E50: bitterstoffarm | F50: 115 | I50: Anteil Zukauf: | K50: 30 | L50: %
C51: Zuckerrüben
C52: Speisekartoffeln | F52: 66 | I52: =K50% -> 0.3 | J52: =K49*K50%/100 -> 0.39 | K52: Zukauf * | L52: =F32 -> 52 | M52: €/dt = | N52: =J52*L52 -> 20.28 | O52: €/ha
C53: Speisefrühkartoffeln | F53: 70 | I53: =1-I52 -> 0.7 | J53: =K49*I53% -> 0.91 | K53: Eigen * | L53: 17.712 | M53: €/dt = | N53: =J53*L53 -> 16.11792 | O53: €/ha
C54: Hanf (Stroh) ohne Lagerung | J54: Reinigen+Beizen | L54: 15 | M54: €/dt = | N54: =J53*L54 -> 13.65 | O54: €/ha
C55: Hanf (Stroh) nach Lagerung | J55: + Nachbaulizenz | L55: 4 | M55: €/dt = | N55: =J53*L55 -> 3.64 | O55: €/ha
C56: Blühmischung (Brachebegrünung) | F56: 400 | I56: Summe | N56: =SUM(N52:N55) -> 53.68792 | O56: €/ha
C63: Kosten der Feuchtgetreidelagerung
C64: Quelle: in Anlehnung an DLZ 7/2001, S72 ff.; aktualisiert über Preisindizes des Stat. Bundesamtes (11/2011)
C65: Getreidefläche | E65: ha | F65: 20 | G65: 30 | H65: 50 | J65: 100
C66: Getreidemenge | E66: t | F66: 120 | G66: 180 | H66: 300 | J66: 600
C69: Lagerraum | D69: 0.75 | E69: m³ | F69: =F66/$D$69 -> 160 | G69: =G66/$D$69 -> 240 | H69: =H66/$D$69 -> 400 | J69: =J66/$D$69 -> 800
C70: Kosten je m³ | E70: € | F70: 170 | G70: 160 | H70: 120 | J70: 100
C71: Investitionssumme | E71: € | F71: =F69*F70 -> 27200 | G71: =G69*G70 -> 38400 | H71: =H69*H70 -> 48000 | J71: =J69*J70 -> 80000
C72: Abschreibung | D72: 0.04 | E72: € | F72: =F71*$D$72 -> 1088 | G72: =G71*$D$72 -> 1536 | H72: =H71*$D$72 -> 1920 | J72: =J71*$D$72 -> 3200
C73: Zinssatz | D73: 0.02 | E73: € | F73: =F71*$D$73 -> 544 | G73: =G71*$D$73 -> 768 | H73: =H71*$D$73 -> 960 | J73: =J71*$D$73 -> 1600
C74: Festkosten/Jahr | E74: € | F74: =SUM(F72:F73) -> 1632 | G74: =SUM(G72:G73) -> 2304 | H74: =SUM(H72:H73) -> 2880 | J74: =SUM(J72:J73) -> 4800
E75: €/t | F75: =F74/F66 -> 13.6 | G75: =G74/G66 -> 12.8 | H75: =H74/H66 -> 9.6 | J75: =J74/J66 -> 8
C77: Variable Kosten
C78: Einlagerungskosten bei 17 t Stundenleistung mit Zellenradgebläse 7,87 kW-E-Motor 1,12 €/h.
E79: €/t | F79: 0.15 | G79: 0.15 | H79: 0.15 | J79: 0.15
C80: Auslagerungskosten mittels Folge- und Transportschnecke
C81: 2,35 kW-E-Motor | E81: €/t | F81: 0.05 | G81: 0.05 | H81: 0.05 | J81: 0.05
C82: Servicekosten der Anlage
C83: pro Jahr | D83: 250 | E83: €/t | F83: =$D$83/F66 -> 2.083333333 | G83: =$D$83/G66 -> 1.388888889 | H83: =$D$83/H66 -> 0.8333333333 | J83: =$D$83/J66 -> 0.4166666667
C84: Reparaturkosten bei
C85: Gesamtsummen | E85: €/Jahr | F85: 500 | G85: 700 | H85: 1000 | J85: 1000
E86: €/t | F86: =F85/F66 -> 4.166666667 | G86: =G85/G66 -> 3.888888889 | H86: =H85/H66 -> 3.333333333 | J86: =J85/J66 -> 1.666666667
C87: S variable Kosten | E87: €/t | F87: =SUM(F79,F81,F83,F86) -> 6.45 | G87: =SUM(G79,G81,G83,G86) -> 5.477777778 | H87: =SUM(H79,H81,H83,H86) -> 4.366666667 | J87: =SUM(J79,J81,J83,J86) -> 2.283333333
C89: Kosten insgesamt | E89: €/t | F89: =F75+F87 -> 20.05 | G89: =G75+G87 -> 18.27777778 | H89: =H75+H87 -> 13.96666667 | J89: =J75+J87 -> 10.28333333
C91: Kosten der Lagerhaltung
C94: Lagergröße | D94: 600 | E94: t | I94: Getreidepreis | L94: €/dt
C95: Lagerdauer | D95: 5 | E95: Monate | I95: vor Einlagerung | K95: 1 | L95: 14
C97: Festkosten | D97: Anschaff- | E97: Nutzungs- | F97: AfA | G97: Zinsansatz | H97: Vers.
D98: ungskosten | E98: dauer | G98: 0.02 | H98: 0.0025 | I98: gesamt | J98: je t | K98: je dt | X98: Datensammlung: Konservierung -und Lagerung von Druschfrüchten, 2010
D99: € | E99: Jahre | F99: € | G99: € | H99: € | I99: € | J99: € | K99: € | AB99: Modell1a | AD99: Modell1b | AF99: Modell1c | AH99: Modell1d
C100: Anlagetechnik | D100: 30000 | E100: 10 | F100: =D100/E100 -> 3000 | G100: =D100*G98 -> 600 | H100: =D100*H98 -> 75 | I100: =SUM(F100:H100) -> 3675 | X100: Ergenisse von KTBL-Modellanlagen: | AB100: Belegung | AD100: Belegung | AF100: Belegung | AH100: Belegung
C101: Gebäude | D101: 70000 | E101: 40 | F101: =D101/E101 -> 1750 | G101: =D101*G98 -> 1400 | H101: =D101*H98 -> 175 | I101: =SUM(F101:H101) -> 3325 | AB101: 100 %Weizen | AD101: 67,5 % Weizen | AF101: 77,5 % Weizen | AH101: 77,5 % Weizen
C102: S Festkosten | D102: =SUM(D100:D101) -> 100000 | F102: =SUM(F100:F101) -> 4750 | G102: =SUM(G100:G101) -> 2000 | H102: =SUM(H100:H101) -> 250 | I102: =SUM(F102:H102) -> 7000 | J102: =IF(D94=0,0,I102/D94) -> 11.66666667 | K102: =J102/10 -> 1.166666667 | AD102: 32,5% Gerste | AF102: 22,5% Körnermais | AH102: 22,5% Winterraps
C104: Variable Kosten | H104: Erntemenge | J104: je t | K104: je dt | X104: Anschaffungspreis | AB104: 202765 | AD104: 202765 | AF104: 202765 | AH104: 202765
C105: Art | F105: €/t | H105: % | J105: € | K105: € | X105: Fixkosten | AB105: 19284 | AD105: 19284 | AF105: 19284 | AH105: 19284
C106: Strom, Reperaturen | F106: 3 | H106: 100 | J106: =F106*H106% -> 3 | Y106: Abschreibungen | AB106: 12143 | AD106: 12143 | AF106: 12143 | AH106: 12143
C107: Sonstiges | J107: =F107*H107% -> 0 | Y107: Zinsansatz | AB107: 6085 | AD107: 6085 | AF107: 6085 | AH107: 6085
C108: S Variable Kosten | J108: =SUM(J106:J107) -> 3 | K108: =J108/10 -> 0.3 | Y108: Wartung | AB108: 1056 | AD108: 1056 | AF108: 1056 | AH108: 1056
C109: Schwund- und Zinskosten | J109: je Monat | X109: Variable Kosten | AB109: 8133 | AD109: 8108 | AF109: 15526 | AH109: 8294
F110: % | J110: €/dt | K110: € | Y110: Betriebsstoffe u- Reparaturen | AB110: 4456 | AD110: 4342 | AF110: 10424 | AH110: 4624
C111: Lagerverlust pro Monat | F111: 0.2 | J111: =L95*F111% -> 0.028 | Y111: AKh-bedarf | AB111: 245.1 | AD111: 251.1 | AF111: 340.1 | AH111: 244.7
C112: Zinsentgang/Monat | F112: 4 | J112: =L95*F112%/12 -> 0.04666666667 | Y112: Lohnansatz | AB112: 3676 | AD112: 3766 | AF112: 5102 | AH112: 3670
C113: S Schwund- und Zinskosten | J113: =SUM(J111:J112) -> 0.07466666667 | K113: =J113*D95 -> 0.3733333333 | X113: Kosten pro Jahr (fix u. variabel) | AB113: 27417 | AD113: 27392 | AF113: 34810 | AH113: 27578
C114: Gesamtkosten für Lagerung | L114: =K102+K108+K113 -> 1.84 | X114: Masse Leergut | AB114: 2000 | AD114: 1865 | AF114: 1988 | AH114: 1980
X115: Kosten pro Tonne und Jahr | AB115: 13.71 | AD115: 14.69 | AF115: 17.51 | AH115: 13.93
C116: Getreidemindestpreis bei Auslagerung (€/dt) | L116: =L95+L114 -> 15.84
C118: Lagerung
C119: Quelle: | D119: BW agrar 25/2001, S. 42 | Y119: Außenhochsilolagerung | AB119: 125 | AC119: 160
C120: Variable Kosten für 6 Monate je dt: | F120: 1 | G120: € | Y120: Hallenflachlagerung | AB120: 180 | AC120: 230
C121: Feste Kosten je dt: | F121: 1 | G121: €
C123: Hagelversicherung
C124: Quelle: Vereinigte Hagelversicherung VVaG (2011); Bezirksdirektion Stuttgart
B125: =ROWS($B$125:$B125) -> 1 | C125: Kultur | E125: Baden | G125: Württemberg | J125: Kultur | L125: Baden | N125: Württemberg
B126: =ROWS($B$125:$B126) -> 2 | E126: je 1000 € Versicherungssumme | L126: je 1000 € Versicherungssumme
B127: =ROWS($B$125:$B127) -> 3 | C127: Wintergetreide | E127: 19.4 | G127: 19.2 | I127: =ROWS($B$125:$B127) -> 3 | J127: Hanf | L127: 32.1 | N127: 32.1
B128: =ROWS($B$125:$B128) -> 4 | C128: Sommergetreide | E128: 19.4 | G128: 19.2 | I128: =ROWS($B$125:$B128) -> 4 | J128: Grünschnittroggen | L128: 12.4 | N128: 14.3
B129: =ROWS($B$125:$B129) -> 5 | C129: Körnermais | E129: 15.6 | G129: 15.9 | I129: =ROWS($B$125:$B129) -> 5 | J129: Wintergetreide für GPS* | L129: 12.4 | N129: 12.4
B130: =ROWS($B$125:$B130) -> 6 | C130: Silomais | E130: 16.7 | G130: 17.1 | I130: =ROWS($B$125:$B130) -> 6 | J130: Sommergetreide für GPS* | L130: 12.4 | N130: 12.4
B131: =ROWS($B$125:$B131) -> 7 | C131: Raps | E131: 52 | G131: 54.1 | I131: =ROWS($B$125:$B131) -> 7 | J131: Zuckerhirse für GPS* | L131: 18.9 | N131: 19.1
B132: =ROWS($B$125:$B132) -> 8 | C132: Sonnenblumen | E132: 43.2 | G132: 41.4 | I132: =ROWS($B$125:$B132) -> 8 | J132: Sudangras für GPS* | L132: 15.2 | N132: 14.9
B133: =ROWS($B$125:$B133) -> 9 | C133: Öllein | E133: 45.6 | G133: 46.05 | I133: =ROWS($B$125:$B133) -> 9 | J133: Sonnenblumen für GPS* | L133: - | N133: -
B134: =ROWS($B$125:$B134) -> 10 | C134: Ackerbohnen | E134: 29.5 | G134: 22.4 | I134: =ROWS($B$125:$B134) -> 10 | J134: Kleegras / Ackergras | L134: 11.9 | N134: 11.2
B135: =ROWS($B$125:$B135) -> 11 | C135: Erbsen | E135: 29.5 | G135: 22.4 | I135: =ROWS($B$125:$B135) -> 11 | J135: Durchwachsene Silphie | L135: - | N135: -
B136: =ROWS($B$125:$B136) -> 12 | C136: Sojabohnen | E136: 27.9 | G136: 26.4 | I136: =ROWS($B$125:$B136) -> 12 | J136: Topinambur | L136: - | N136: -
B137: =ROWS($B$125:$B137) -> 13 | C137: Körnerhirse | E137: 25.1 | G137: 26.2 | I137: =ROWS($B$125:$B137) -> 13 | J137: Miscanthus | L137: 16.2 | N137: 15.1
B138: =ROWS($B$125:$B138) -> 14 | C138: Kartoffeln | E138: 17.6 | G138: 17.5 | I138: =ROWS($B$125:$B138) -> 14 | J138: Sonstige | L138: 1 | N138: 1
B139: =ROWS($B$125:$B139) -> 15 | C139: Zuckerrüben | E139: 12.8 | G139: 12.6 | I139: =ROWS($B$125:$B139) -> 15
J140: * Nutzung als Ganzpflanzensilage
C141: Saatgut: Begrünung, Zwischenfrucht
C142: Quelle: | D142: BayWa Saatgut Agrar; 04/2011
C143: Kultur | I143: Saatmenge | K143: Nutzung | M143: Saatgutkosten
I144: kg/ha | K144: G/F1) | M144: €/ha (o.MwSt.)
C145: Hülsenfrüchte | E145: Ackerbohnen | I145: 180-200 | K145: G | M145: 200
E146: Futtererbse | I146: 140-160 | K146: G+F | M146: 175
E147: Saatwicken | I147: 80-90 | K147: G | M147: 125
E148: Winterwicken | I148: 70 | K148: F | M148: 160
E149: Lupinen | I149: 150-200 | K149: G | M149: 275
E150: Gemenge (Erb/AB/Wi) | I150: 150 | K150: G+F | M150: 250
C151: Gräser | E151: Einj. Weidelgras | I151: 40-50 | K151: G+F | M151: 103
E152: Welsches Weidelgras | I152: 40-50 | K152: F | M152: 95
C153: Kleesaaten | E153: Perserklee | I153: 20 | K153: G+F | M153: 80
E154: Alexandrinerklee | I154: 35 | K154: G+F | M154: 75
E155: Inkarnatklee | I155: 30 | K155: F | M155: 90
C156: Ölsaaten | E156: Winterraps | I156: 15-25 | K156: G+F | M156: 45
E157: Sommerraps | I157: 15-25 | K157: G+F | M157: 45
E158: Winterrübsen | I158: 12-17 | K158: G+(F) | M158: 29
E159: Sommerrübsen | I159: 8-12 | K159: G | M159: 45
E160: Ölrettich | I160: 20-25 | K160: G+F | M160: 60
E161: Ölrettich (nematodenresistent) | I161: 20-25 | K161: G+F | M161: 70
E162: Gelbsenf | I162: 20-25 | K162: G+F | M162: 45
E163: Gelbsenf (nematodenresistent) | I163: 20-25 | K163: G+F | M163: 58
C164: Mischungen | E164: Landsberger Gemenge | I164: 80-90 | K164: F | M164: 245
E165: Alexandrinerklee/einj. Weidelgras | I165: 35 | K165: F+(G) | M165: 85
C166: Sonstige | E166: Sareptasenf | I166: 6-8 | K166: G | M166: 55
E167: Herbstrüben | I167: 0,6-2,5 | K167: G+F | M167: 15
E168: Phacelia | I168: 9-12 | K168: G | M168: 40
E169: Futterhirse | I169: 25 | K169: F | M169: 45
E170: Grünmais | I170: 45 | K170: F | M170: 75
E171: Winterroggen | I171: 120-150 | K171: F+(G) | M171: 140 | N171: (04/2011)
C172: 1) G = Gründüngung; F = Futternutzung
C173: Vorfruchtwert
C174: Quelle: | D174: in Anlehnung an Thüringer Landesanstalt für Landwirtschaft, Leitlinie Ackerbohne, 01/2001
C176: Beispiel: | D176: Ackerbohne
C178: Mehrerlös Nachfrucht | F178: Ertrag | G178: Mehrertrag | I178: Erzeuger-preis | J178: Mehrerlös
D179: Nachfrucht | F179: dt/ha | G179: % | H179: dt/ha | I179: €/dt | J179: €
C180: 1. | D180: W-Weizen | F180: 75 | G180: 15 | H180: =F180*G180% -> 11.25 | I180: 17 | J180: =H180*I180 -> 191.25
C181: 2. | D181: Braugerste | F181: 55 | G181: 6 | H181: =F181*G181% -> 3.3 | I181: 20 | J181: =H181*I181 -> 66
C182: 3. | H182: =F182*G182% -> 0 | J182: =H182*I182 -> 0
H184: kg/ha | I184: €/kg | J184: €
C185: Einsparung N-Dünger zur Folgefrucht | H185: 25 | I185: 1 | J185: =H185*I185 -> 25
C187: Verringerter Aufwand Bodenbearbeitung | G187: (15-25 €/ha)
C189: Einsparung Pflanzenschutz Folgefrucht | G189: (10-20 €/ha)
C190: Vorfruchtwert | J190: =SUM(J180:J189) -> 282.25
C192: Beregnung
C193: Quelle: | D193: DLZ 6/2001, S. 26
C194: Kosten insgesamt je mm: | E194: 2.5 | F194: €/mm
C196: Berufsgenossenschaft, Wasser- und Bodenverband
C197: Quelle:
C198: Berufsgenossenschaft | G198: €/ha bzw. | H198: 1.1 | I198: €/LVZ
C199: Wasser- u. Bodenverband | G199: €/ha

Sheet Triticale
B3: Landesbetrieb Landwirtschaft Hessen
A4: =IF(Stammdatenblatt!I6+Stammdatenblatt!D76+Stammdatenblatt!D120+Stammdatenblatt!B134+Stammdatenblatt!D145+Stammdatenblatt!C188+Stammdatenblatt!C226+Stammdatenblatt!C241=0,"Produktionsverfahren wurden netto gerechnet", "Produktionsverfahren wurden brutto gerechnet") -> Produktionsverfahren wurden netto gerechnet
J5: eigene
A6: Triticale | D6: 2 ha | G6: 5 ha | J6: Werte
A7: Leistung: Menge Hauptprodukt | C7: dt/ha | D7: 25 | E7: 35 | F7: 55 | G7: 25 | H7: 35 | I7: 55 | J7: 0
A8: Preis Hauptprodukt | C8: € | D8: =+Stammdatenblatt!J15 -> 32.18 | E8: =D8 -> 32.18 | F8: =+D8 -> 32.18 | G8: =+F8 -> 32.18 | H8: =G8 -> 32.18 | I8: =H8 -> 32.18 | J8: 0
A9: Erlös Hauptprodukt | C9: €/ha | D9: =D7*D8 -> 804.5 | E9: 1126.3 | F9: 1769.9 | G9: 804.5 | H9: 1126.3 | I9: =I7*I8 -> 1769.9 | J9: 0
A10: Erlös Nebenprodukt(e) | C10: €/ha | D10: 0 | E10: 0 | F10: 0 | G10: =+F10 -> 0 | H10: =G10 -> 0 | I10: 0 | J10: 0
A11: Leistungen | C11: €/ha | D11: =D9+D10 -> 804.5 | E11: =E10+E9 -> 1126.3 | F11: 1769.9 | G11: 804.5 | H11: 1126.3 | I11: 1769.9 | J11: 0
A12: Saatgutkosten | C12: €/ha | D12: =D43 -> 77.1248 | E12: 77.1248 | F12: 77.1248 | G12: 77.1248 | H12: 77.1248 | I12: 77.1248 | J12: 0
A13: Mineraldüngerkosten | C13: €/ha | D13: =D51 -> 257.1796667 | E13: 365.9869195 | F13: 560.6129195 | G13: 257.1796667 | H13: 365.9869195 | I13: 560.6129195 | J13: 0
A14: Pflanzenbehandlungskosten | C14: €/ha | D14: =D56 -> 0 | E14: 0 | F14: 0 | G14: 0 | H14: 0 | I14: 0 | J14: 0
A15: Versicherung | C15: €/ha | D15: =(D11/1000)*Stammdatenblatt!$M$195 -> 4.89136 | E15: =(E11/1000)*Stammdatenblatt!$M$195 -> 6.847904 | F15: =(F11/1000)*Stammdatenblatt!$M$195 -> 10.760992 | G15: =(G11/1000)*Stammdatenblatt!$M$195 -> 4.89136 | H15: =(H11/1000)*Stammdatenblatt!$M$195 -> 6.847904 | I15: =(I11/1000)*Stammdatenblatt!$M$195 -> 10.760992 | J15: =(J11/1000)*Stammdatenblatt!$M$195 -> 0
A16: Trocknungskosten | C16: €/ha | D16: =(D7*Stammdatenblatt!$E$206+D7*Stammdatenblatt!$E$207*4)/3 -> 34 | E16: =(E7*Stammdatenblatt!$E$206+E7*Stammdatenblatt!$E$207*4)/3 -> 47.6 | F16: =(F7*Stammdatenblatt!$E$206+F7*Stammdatenblatt!$E$207*4)/3 -> 74.8 | G16: =(G7*Stammdatenblatt!$E$206+G7*Stammdatenblatt!$E$207*4)/3 -> 34 | H16: 23.66666667 | I16: =(I7*Stammdatenblatt!$E$206+I7*Stammdatenblatt!$E$207*4)/3 -> 74.8 | J16: =(J7*Stammdatenblatt!$E$206+J7*Stammdatenblatt!$E$207*4)/3 -> 0
A17: Summe Direktkosten | D17: =SUM(D12:D16) -> 373.1958267 | E17: 497.5596235 | F17: 723.2987115 | G17: 373.1958267 | H17: 473.6262902 | I17: 723.2987115 | J17: 0
A18: Direktkostenfreie Leistung | D18: =D11-D17 -> 431.3041733 | E18: 628.7403765 | F18: 1046.601288 | G18: 431.3041733 | H18: 652.6737098 | I18: 1046.601288 | J18: 0
A19: Maschinenkosten eigen ** | C19: €/ha | D19: =+'Öko-Arbeitsvorgänge-KTBL'!T1244 -> 196.3056 | E19: =+'Öko-Arbeitsvorgänge-KTBL'!T1293 -> 234.7834 | F19: =+'Öko-Arbeitsvorgänge-KTBL'!T1342 -> 264.9325 | G19: =+'Öko-Arbeitsvorgänge-KTBL'!T1391 -> 179.2314 | H19: =+'Öko-Arbeitsvorgänge-KTBL'!T1440 -> 217.0727 | I19: =+'Öko-Arbeitsvorgänge-KTBL'!T1489 -> 248.7265 | J19: 0
A20: Maschinenkosten fremd | C20: €/ha | D20: =+'Öko-Arbeitsvorgänge-KTBL'!U1242*(1+Stammdatenblatt!C241) -> 130 | E20: =+'Öko-Arbeitsvorgänge-KTBL'!U1291*(1+Stammdatenblatt!C241) -> 130 | F20: =+'Öko-Arbeitsvorgänge-KTBL'!U1340*(1+Stammdatenblatt!C241) -> 130 | G20: =+'Öko-Arbeitsvorgänge-KTBL'!U1389*(1+Stammdatenblatt!C241) -> 130 | H20: =+'Öko-Arbeitsvorgänge-KTBL'!U1438*(1+Stammdatenblatt!C241) -> 130 | I20: =+'Öko-Arbeitsvorgänge-KTBL'!U1487*(1+Stammdatenblatt!C241) -> 130 | J20: 0
A21: Lohnkosten | C21: €/ha | D21: 0 | E21: =D21 -> 0 | F21: 0 | G21: 0 | H21: 0 | I21: 0 | J21: 0
A22: xxx | C22: €/ha | D22: 0 | E22: 0 | F22: 0 | G22: 0 | H22: 0 | I22: 0 | J22: 0
A23: variable Kosten | C23: €/ha | D23: =SUM(D19:D22,D17) -> 699.5014267 | E23: 862.3430235 | F23: 1118.231212 | G23: 682.4272267 | H23: 820.6989902 | I23: 1102.025212 | J23: 0
A24: Deckungsbeitrag | C24: €/ha | D24: =D11-D23 -> 104.9985733 | E24: 263.9569765 | F24: 651.6687885 | G24: 122.0727733 | H24: 305.6010098 | I24: 667.8747885 | J24: 0
A25: Zeit-Spanne | B25: AK-Bedarf
A26: FEB | C26: Akh/ha | D26: =SUMIF('Öko-Arbeitsvorgänge-KTBL'!$B$1205:$B$1241,A26,'Öko-Arbeitsvorgänge-KTBL'!$G$1205:$G$1241) -> 0.13 | E26: =SUMIF('Öko-Arbeitsvorgänge-KTBL'!$B$1254:$B$1290,A26,'Öko-Arbeitsvorgänge-KTBL'!$G$1254:$G$1290) -> 0.13 | F26: =SUMIF('Öko-Arbeitsvorgänge-KTBL'!$B$1303:$B$1339,A26,'Öko-Arbeitsvorgänge-KTBL'!$G$1303:$G$1339) -> 0.13 | G26: =SUMIF('Öko-Arbeitsvorgänge-KTBL'!$B$1352:$B$1388,A26,'Öko-Arbeitsvorgänge-KTBL'!$G$1352:$G$1388) -> 0.11 | H26: =SUMIF('Öko-Arbeitsvorgänge-KTBL'!$B$1401:$B$1437,A26,'Öko-Arbeitsvorgänge-KTBL'!$G$1401:$G$1437) -> 0.11 | I26: =SUMIF('Öko-Arbeitsvorgänge-KTBL'!$B$1450:$B$1486,A26,'Öko-Arbeitsvorgänge-KTBL'!$G$1450:$G$1486) -> 0.11 | J26: 0
A27: MRZ | C27: Akh/ha | D27: =SUMIF('Öko-Arbeitsvorgänge-KTBL'!$B$1205:$B$1241,A27,'Öko-Arbeitsvorgänge-KTBL'!$G$1205:$G$1241) -> 0.35 | E27: =SUMIF('Öko-Arbeitsvorgänge-KTBL'!$B$1254:$B$1290,A27,'Öko-Arbeitsvorgänge-KTBL'!$G$1254:$G$1290) -> 0.35 | F27: =SUMIF('Öko-Arbeitsvorgänge-KTBL'!$B$1303:$B$1339,A27,'Öko-Arbeitsvorgänge-KTBL'!$G$1303:$G$1339) -> 0.35 | G27: =SUMIF('Öko-Arbeitsvorgänge-KTBL'!$B$1352:$B$1388,A27,'Öko-Arbeitsvorgänge-KTBL'!$G$1352:$G$1388) -> 0.28 | H27: =SUMIF('Öko-Arbeitsvorgänge-KTBL'!$B$1401:$B$1437,A27,'Öko-Arbeitsvorgänge-KTBL'!$G$1401:$G$1437) -> 0.28 | I27: =SUMIF('Öko-Arbeitsvorgänge-KTBL'!$B$1450:$B$1486,A27,'Öko-Arbeitsvorgänge-KTBL'!$G$1450:$G$1486) -> 0.28 | J27: 0
A28: APR | C28: Akh/ha | D28: =SUMIF('Öko-Arbeitsvorgänge-KTBL'!$B$1205:$B$1241,A28,'Öko-Arbeitsvorgänge-KTBL'!$G$1205:$G$1241) -> 0 | E28: =SUMIF('Öko-Arbeitsvorgänge-KTBL'!$B$1254:$B$1290,A28,'Öko-Arbeitsvorgänge-KTBL'!$G$1254:$G$1290) -> 0 | F28: =SUMIF('Öko-Arbeitsvorgänge-KTBL'!$B$1303:$B$1339,A28,'Öko-Arbeitsvorgänge-KTBL'!$G$1303:$G$1339) -> 0 | G28: =SUMIF('Öko-Arbeitsvorgänge-KTBL'!$B$1352:$B$1388,A28,'Öko-Arbeitsvorgänge-KTBL'!$G$1352:$G$1388) -> 0 | H28: =SUMIF('Öko-Arbeitsvorgänge-KTBL'!$B$1401:$B$1437,A28,'Öko-Arbeitsvorgänge-KTBL'!$G$1401:$G$1437) -> 0 | I28: =SUMIF('Öko-Arbeitsvorgänge-KTBL'!$B$1450:$B$1486,A28,'Öko-Arbeitsvorgänge-KTBL'!$G$1450:$G$1486) -> 0 | J28: 0
A29: MAI | C29: Akh/ha | D29: =SUMIF('Öko-Arbeitsvorgänge-KTBL'!$B$1205:$B$1241,A29,'Öko-Arbeitsvorgänge-KTBL'!$G$1205:$G$1241) -> 0 | E29: =SUMIF('Öko-Arbeitsvorgänge-KTBL'!$B$1254:$B$1290,A29,'Öko-Arbeitsvorgänge-KTBL'!$G$1254:$G$1290) -> 0 | F29: =SUMIF('Öko-Arbeitsvorgänge-KTBL'!$B$1303:$B$1339,A29,'Öko-Arbeitsvorgänge-KTBL'!$G$1303:$G$1339) -> 0 | G29: =SUMIF('Öko-Arbeitsvorgänge-KTBL'!$B$1352:$B$1388,A29,'Öko-Arbeitsvorgänge-KTBL'!$G$1352:$G$1388) -> 0 | H29: =SUMIF('Öko-Arbeitsvorgänge-KTBL'!$B$1401:$B$1437,A29,'Öko-Arbeitsvorgänge-KTBL'!$G$1401:$G$1437) -> 0 | I29: =SUMIF('Öko-Arbeitsvorgänge-KTBL'!$B$1450:$B$1486,A29,'Öko-Arbeitsvorgänge-KTBL'!$G$1450:$G$1486) -> 0 | J29: 0
A30: JUN | C30: Akh/ha | D30: =SUMIF('Öko-Arbeitsvorgänge-KTBL'!$B$1205:$B$1241,A30,'Öko-Arbeitsvorgänge-KTBL'!$G$1205:$G$1241) -> 0 | E30: =SUMIF('Öko-Arbeitsvorgänge-KTBL'!$B$1254:$B$1290,A30,'Öko-Arbeitsvorgänge-KTBL'!$G$1254:$G$1290) -> 0 | F30: =SUMIF('Öko-Arbeitsvorgänge-KTBL'!$B$1303:$B$1339,A30,'Öko-Arbeitsvorgänge-KTBL'!$G$1303:$G$1339) -> 0 | G30: =SUMIF('Öko-Arbeitsvorgänge-KTBL'!$B$1352:$B$1388,A30,'Öko-Arbeitsvorgänge-KTBL'!$G$1352:$G$1388) -> 0 | H30: =SUMIF('Öko-Arbeitsvorgänge-KTBL'!$B$1401:$B$1437,A30,'Öko-Arbeitsvorgänge-KTBL'!$G$1401:$G$1437) -> 0 | I30: =SUMIF('Öko-Arbeitsvorgänge-KTBL'!$B$1450:$B$1486,A30,'Öko-Arbeitsvorgänge-KTBL'!$G$1450:$G$1486) -> 0 | J30: 0
A31: JUL | C31: Akh/ha | D31: =SUMIF('Öko-Arbeitsvorgänge-KTBL'!$B$1205:$B$1241,A31,'Öko-Arbeitsvorgänge-KTBL'!$G$1205:$G$1241) -> 0 | E31: =SUMIF('Öko-Arbeitsvorgänge-KTBL'!$B$1254:$B$1290,A31,'Öko-Arbeitsvorgänge-KTBL'!$G$1254:$G$1290) -> 0 | F31: =SUMIF('Öko-Arbeitsvorgänge-KTBL'!$B$1303:$B$1339,A31,'Öko-Arbeitsvorgänge-KTBL'!$G$1303:$G$1339) -> 0 | G31: =SUMIF('Öko-Arbeitsvorgänge-KTBL'!$B$1352:$B$1388,A31,'Öko-Arbeitsvorgänge-KTBL'!$G$1352:$G$1388) -> 0 | H31: =SUMIF('Öko-Arbeitsvorgänge-KTBL'!$B$1401:$B$1437,A31,'Öko-Arbeitsvorgänge-KTBL'!$G$1401:$G$1437) -> 0 | I31: =SUMIF('Öko-Arbeitsvorgänge-KTBL'!$B$1450:$B$1486,A31,'Öko-Arbeitsvorgänge-KTBL'!$G$1450:$G$1486) -> 0 | J31: 0
A32: AUG | C32: Akh/ha | D32: =SUMIF('Öko-Arbeitsvorgänge-KTBL'!$B$1205:$B$1241,A32,'Öko-Arbeitsvorgänge-KTBL'!$G$1205:$G$1241) -> 1.55 | E32: =SUMIF('Öko-Arbeitsvorgänge-KTBL'!$B$1254:$B$1290,A32,'Öko-Arbeitsvorgänge-KTBL'!$G$1254:$G$1290) -> 1.68 | F32: =SUMIF('Öko-Arbeitsvorgänge-KTBL'!$B$1303:$B$1339,A32,'Öko-Arbeitsvorgänge-KTBL'!$G$1303:$G$1339) -> 1.94 | G32: =SUMIF('Öko-Arbeitsvorgänge-KTBL'!$B$1352:$B$1388,A32,'Öko-Arbeitsvorgänge-KTBL'!$G$1352:$G$1388) -> 1.2 | H32: =SUMIF('Öko-Arbeitsvorgänge-KTBL'!$B$1401:$B$1437,A32,'Öko-Arbeitsvorgänge-KTBL'!$G$1401:$G$1437) -> 1.39 | I32: =SUMIF('Öko-Arbeitsvorgänge-KTBL'!$B$1450:$B$1486,A32,'Öko-Arbeitsvorgänge-KTBL'!$G$1450:$G$1486) -> 1.75 | J32: 0
A33: SEP | C33: Akh/ha | D33: =SUMIF('Öko-Arbeitsvorgänge-KTBL'!$B$1205:$B$1241,A33,'Öko-Arbeitsvorgänge-KTBL'!$G$1205:$G$1241) -> 0.84 | E33: =SUMIF('Öko-Arbeitsvorgänge-KTBL'!$B$1254:$B$1290,A33,'Öko-Arbeitsvorgänge-KTBL'!$G$1254:$G$1290) -> 0.85 | F33: =SUMIF('Öko-Arbeitsvorgänge-KTBL'!$B$1303:$B$1339,A33,'Öko-Arbeitsvorgänge-KTBL'!$G$1303:$G$1339) -> 0.85 | G33: =SUMIF('Öko-Arbeitsvorgänge-KTBL'!$B$1352:$B$1388,A33,'Öko-Arbeitsvorgänge-KTBL'!$G$1352:$G$1388) -> 0.68 | H33: =SUMIF('Öko-Arbeitsvorgänge-KTBL'!$B$1401:$B$1437,A33,'Öko-Arbeitsvorgänge-KTBL'!$G$1401:$G$1437) -> 0.68 | I33: =SUMIF('Öko-Arbeitsvorgänge-KTBL'!$B$1450:$B$1486,A33,'Öko-Arbeitsvorgänge-KTBL'!$G$1450:$G$1486) -> 0.68 | J33: 0
A34: OKT | C34: Akh/ha | D34: =SUMIF('Öko-Arbeitsvorgänge-KTBL'!$B$1205:$B$1241,A34,'Öko-Arbeitsvorgänge-KTBL'!$G$1205:$G$1241) -> 5.08 | E34: =SUMIF('Öko-Arbeitsvorgänge-KTBL'!$B$1254:$B$1290,A34,'Öko-Arbeitsvorgänge-KTBL'!$G$1254:$G$1290) -> 5.45 | F34: =SUMIF('Öko-Arbeitsvorgänge-KTBL'!$B$1303:$B$1339,A34,'Öko-Arbeitsvorgänge-KTBL'!$G$1303:$G$1339) -> 6.27 | G34: =SUMIF('Öko-Arbeitsvorgänge-KTBL'!$B$1352:$B$1388,A34,'Öko-Arbeitsvorgänge-KTBL'!$G$1352:$G$1388) -> 4.29 | H34: =SUMIF('Öko-Arbeitsvorgänge-KTBL'!$B$1401:$B$1437,A34,'Öko-Arbeitsvorgänge-KTBL'!$G$1401:$G$1437) -> 4.66 | I34: =SUMIF('Öko-Arbeitsvorgänge-KTBL'!$B$1450:$B$1486,A34,'Öko-Arbeitsvorgänge-KTBL'!$G$1450:$G$1486) -> 5.48 | J34: 0
A35: NOV | C35: Akh/ha | D35: =SUMIF('Öko-Arbeitsvorgänge-KTBL'!$B$1205:$B$1241,A35,'Öko-Arbeitsvorgänge-KTBL'!$G$1205:$G$1241) -> 0 | E35: =SUMIF('Öko-Arbeitsvorgänge-KTBL'!$B$1254:$B$1290,A35,'Öko-Arbeitsvorgänge-KTBL'!$G$1254:$G$1290) -> 0 | F35: =SUMIF('Öko-Arbeitsvorgänge-KTBL'!$B$1303:$B$1339,A35,'Öko-Arbeitsvorgänge-KTBL'!$G$1303:$G$1339) -> 0 | G35: =SUMIF('Öko-Arbeitsvorgänge-KTBL'!$B$1352:$B$1388,A35,'Öko-Arbeitsvorgänge-KTBL'!$G$1352:$G$1388) -> 0 | H35: =SUMIF('Öko-Arbeitsvorgänge-KTBL'!$B$1401:$B$1437,A35,'Öko-Arbeitsvorgänge-KTBL'!$G$1401:$G$1437) -> 0 | I35: =SUMIF('Öko-Arbeitsvorgänge-KTBL'!$B$1450:$B$1486,A35,'Öko-Arbeitsvorgänge-KTBL'!$G$1450:$G$1486) -> 0 | J35: 0
A36: Rest | C36: Akh/ha | D36: =SUMIF('Öko-Arbeitsvorgänge-KTBL'!$B$1205:$B$1241,A36,'Öko-Arbeitsvorgänge-KTBL'!$G$1205:$G$1241) -> 0 | E36: =SUMIF('Öko-Arbeitsvorgänge-KTBL'!$B$1254:$B$1290,A36,'Öko-Arbeitsvorgänge-KTBL'!$G$1254:$G$1290) -> 0 | F36: =SUMIF('Öko-Arbeitsvorgänge-KTBL'!$B$1303:$B$1339,A36,'Öko-Arbeitsvorgänge-KTBL'!$G$1303:$G$1339) -> 0 | G36: =SUMIF('Öko-Arbeitsvorgänge-KTBL'!$B$1352:$B$1388,A36,'Öko-Arbeitsvorgänge-KTBL'!$G$1352:$G$1388) -> 0 | H36: =SUMIF('Öko-Arbeitsvorgänge-KTBL'!$B$1401:$B$1437,A36,'Öko-Arbeitsvorgänge-KTBL'!$G$1401:$G$1437) -> 0 | I36: =SUMIF('Öko-Arbeitsvorgänge-KTBL'!$B$1450:$B$1486,A36,'Öko-Arbeitsvorgänge-KTBL'!$G$1450:$G$1486) -> 0 | J36: 0
A37: Arbeitskraftstunden | C37: AKh/ha | D37: =SUM(D26:D36) -> 7.95 | E37: 8.46 | F37: 9.54 | G37: 6.56 | H37: 7.12 | I37: =SUM(I26:I36) -> 8.3 | J37: 0
A38: DB (je Akh) | C38: €/Akh | D38: =IF(D24>0,D24/D37,0) -> 13.20736771 | E38: 31.20058823 | F38: 68.30909732 | G38: 18.60865447 | H38: 42.92149014 | I38: 80.46684198 | J38: 0
A39: Aussaatmenge | C39: kg/ha | D39: 160 | E39: =D39 -> 160 | F39: 160 | G39: =+F39 -> 160 | H39: =G39 -> 160 | I39: =+D39 -> 160 | J39: 0
A40: davon Zukaufsaatgut | C40: % | D40: 15 | E40: 15 | F40: 15 | G40: =+F40 -> 15 | H40: =+G40 -> 15 | I40: =+D40 -> 15 | J40: 0
A41: Saatgutpreis Eigen | C41: €/dt | D41: =D8+Stammdatenblatt!$E$191 -> 41.18 | E41: 41.18 | F41: 41.18 | G41: =+F41 -> 41.18 | H41: =G41 -> 41.18 | I41: =+D41 -> 41.18 | J41: 0
A42: Zukauf | C42: €/dt | D42: =Stammdatenblatt!J81 -> 88 | E42: 88 | F42: 88 | G42: =+F42 -> 88 | H42: =G42 -> 88 | I42: =+D42 -> 88 | J42: 0
A43: Saatgutkosten | C43: €/ha | D43: =D40/100*(D39*D42)/100+((100-D40)/100*D39*D41/100) -> 77.1248 | E43: 77.1248 | F43: 77.1248 | G43: 77.1248 | H43: 77.1248 | I43: 77.1248 | J43: 0
A44: Dünger: | B44: €/kg | D44: Nährstoffabfuhr/ ha (in kg Reinnährstoff) LfL
A45: =Stammdatenblatt!A135 -> Stickstoff | B45: =Stammdatenblatt!J135 -> 4.61 | C45: Aufw./ha | D45: 41.3 | E45: 57.8 | F45: 90.8 | G45: 41.3 | H45: 57.8 | I45: 90.8 | J45: 0
A46: =Stammdatenblatt!A136 -> Phosphor | B46: =Stammdatenblatt!J136 -> 1.06 | C46: Aufw./ha | D46: 20 | E46: 28 | F46: 44 | G46: 20 | H46: 28 | I46: 44 | J46: 0
A47: =Stammdatenblatt!A137 -> Kali | B47: =Stammdatenblatt!J137 -> 1.76 | C47: Aufw./ha | D47: 15 | E47: 21 | F47: 33 | G47: 15 | H47: 21 | I47: 33 | J47: 0
A48: =Stammdatenblatt!A138 -> Kalk | B48: =Stammdatenblatt!J138 -> 0.04555555556 | C48: Aufw./ha | D48: 300 | E48: =D48 -> 300 | F48: =E48 -> 300 | G48: =+F48 -> 300 | H48: =G48 -> 300 | I48: =+G48 -> 300 | J48: 0
A49: =Stammdatenblatt!A139 -> Magnesium | B49: =Stammdatenblatt!J139 -> 0.552 | C49: Aufw./ha | D49: =D7*'Entzugswerte Düngung'!F6 -> 10 | E49: =E7*'Entzugswerte Düngung'!F6 -> 14 | F49: =F7*'Entzugswerte Düngung'!F6 -> 22 | G49: =G7*'Entzugswerte Düngung'!F6 -> 10 | H49: =H7*'Entzugswerte Düngung'!F6 -> 14 | I49: =I7*'Entzugswerte Düngung'!F6 -> 22 | J49: 0
A50: =Stammdatenblatt!A140 -> Schwefel | B50: =Stammdatenblatt!J140 -> 1.149425287 | C50: Aufw./ha | D50: 0 | E50: 10 | F50: 10 | G50: 0 | H50: 10 | I50: 10 | J50: 0
A51: Mineraldüngerkosten | C51: €/ha | D51: =D45*$B$45+D46*$B$46+D47*$B$47+D48*$B$48+D49*$B$49+D50*$B$50 -> 257.1796667 | E51: 365.9869195 | F51: 560.6129195 | G51: 257.1796667 | H51: 365.9869195 | I51: 560.6129195 | J51: 0
A52: Herbizide | C52: €/ha | D52: 0 | E52: 0 | F52: 0 | G52: 0 | H52: 0 | I52: 0 | J52: 0
A53: Fungizide | C53: €/ha | D53: 0 | E53: 0 | F53: 0 | G53: 0 | H53: 0 | I53: 0 | J53: 0
A54: Insektizide | C54: €/ha | D54: 0 | E54: 0 | F54: 0 | G54: 0 | H54: 0 | I54: 0 | J54: 0
A55: Wachstumsregler | C55: €/ha | D55: 0 | E55: 0 | F55: 0 | G55: 0 | H55: 0 | I55: 0 | J55: 0
A56: Pflanzenbehandlungskosten* | C56: €/ha | D56: =SUM(D52:D55) -> 0 | E56: 0 | F56: 0 | G56: 0 | H56: 0 | I56: 0 | J56: 0
A57: * ohne Beizung, bei stärkeren Ackerfuchsschwanzbesatz ist mit Mehrausgaben zu rechnen (konventionell: 35,-€/ha)
A58: **Verfahren inkl. Zinsanspruch; Verfahren ohne Zinsanspruch sind in den Arbeitsvorgängen abgebildet.

Sheet Dinkel
B3: Landesbetrieb Landwirtschaft Hessen
A4: =IF(Stammdatenblatt!I6+Stammdatenblatt!D76+Stammdatenblatt!D120+Stammdatenblatt!B134+Stammdatenblatt!D145+Stammdatenblatt!C188+Stammdatenblatt!C226+Stammdatenblatt!C241=0,"Produktionsverfahren wurden netto gerechnet", "Produktionsverfahren wurden brutto gerechnet") -> Produktionsverfahren wurden netto gerechnet
D5: bespelzt | F5: entspelzt | G5: bespelzt | I5: entspelzt | J5: eigene
A6: Dinkel | D6: 2 ha | E6: 2 ha | F6: 2 ha | G6: 5 ha | H6: 5 ha | I6: 5 ha | J6: Werte
A7: Leistung: Menge Hauptprodukt | C7: dt/ha | D7: 25 | E7: 35 | F7: 26 | G7: 25 | H7: 35 | I7: 26 | J7: 0
A8: Preis Hauptprodukt | C8: € | D8: =+Stammdatenblatt!J16 -> 48.36 | E8: =+Stammdatenblatt!J16 -> 48.36 | F8: =+Stammdatenblatt!J17 -> 75 | G8: =+Stammdatenblatt!J16 -> 48.36 | H8: =+Stammdatenblatt!J16 -> 48.36 | I8: =+Stammdatenblatt!J17 -> 75 | J8: 0
A9: Erlös Hauptprodukt | C9: €/ha | D9: =D7*D8 -> 1209 | E9: 1692.6 | F9: =F7*F8 -> 1950 | G9: 1209 | H9: 1692.6 | I9: =I7*I8 -> 1950 | J9: 0
A10: Erlös Nebenprodukt(e) | C10: €/ha | D10: 0 | E10: =D10 -> 0 | F10: =E10 -> 0 | G10: =E10 -> 0 | H10: =G10 -> 0 | I10: =G10 -> 0 | J10: 0
A11: Leistungen | C11: €/ha | D11: =D10+D9 -> 1209 | E11: 1692.6 | F11: 1950 | G11: 1209 | H11: 1692.6 | I11: 1950 | J11: 0
A12: Saatgutkosten | C12: €/ha | D12: =D43 -> 136.512 | E12: 136.512 | F12: 136.512 | G12: 136.512 | H12: 136.512 | I12: 136.512 | J12: 0
A13: Mineraldüngerkosten | C13: €/ha | D13: =D51 -> 265.9796667 | E13: 366.8126667 | F13: 366.8126667 | G13: 265.9796667 | H13: 366.8126667 | I13: 366.8126667 | J13: 0
A14: Pflanzenbehandlungskosten | C14: €/ha | D14: =D56 -> 0 | E14: 0 | F14: 0 | G14: 0 | H14: 0 | I14: 0 | J14: 0
A15: Versicherung | C15: €/ha | D15: =+D9/1000*Stammdatenblatt!$E$195 -> 7.35072 | E15: =+E9/1000*Stammdatenblatt!$E$195 -> 10.291008 | F15: =+F9/1000*Stammdatenblatt!$M$195 -> 11.856 | G15: =+G9/1000*Stammdatenblatt!$M$195 -> 7.35072 | H15: =+H9/1000*Stammdatenblatt!$M$195 -> 10.291008 | I15: =+I9/1000*Stammdatenblatt!$M$195 -> 11.856 | J15: =+J9/1000*Stammdatenblatt!$M$195 -> 0
A16: Trocknungskosten | C16: €/ha | D16: =(D7*Stammdatenblatt!$E$206+D7*Stammdatenblatt!$E$207*4)/3 -> 34 | E16: =(E7*Stammdatenblatt!$E$206+E7*Stammdatenblatt!$E$207*4)/3 -> 47.6 | F16: =(E7*Stammdatenblatt!$E$206+E7*Stammdatenblatt!$E$207*4)/3 -> 47.6 | G16: =(G7*Stammdatenblatt!$E$206+G7*Stammdatenblatt!$E$207*4)/3 -> 34 | H16: =(H7*Stammdatenblatt!$E$206+H7*Stammdatenblatt!$E$207*4)/3 -> 47.6 | I16: =(H7*Stammdatenblatt!$E$206+H7*Stammdatenblatt!$E$207*4)/3 -> 47.6 | J16: =(J7*Stammdatenblatt!$E$206+J7*Stammdatenblatt!$E$207*4)/3 -> 0
A17: Summe Direktkosten | C17: €/ha | D17: =SUM(D12:D16) -> 443.8423867 | E17: 561.2156747 | F17: 562.7806667 | G17: 443.8423867 | H17: 561.2156747 | I17: 562.7806667 | J17: 0
A18: Direktkostenfreie Leistung | C18: €/ha | D18: =D11-D17 -> 765.1576133 | E18: 1131.384325 | F18: 1387.219333 | G18: 765.1576133 | H18: 1131.384325 | I18: 1387.219333 | J18: 0
A19: Maschinenkosten eigen * | C19: €/ha | D19: =+'Öko-Arbeitsvorgänge-KTBL'!T1893 -> 210.4582 | E19: =+'Öko-Arbeitsvorgänge-KTBL'!T1942 -> 234.7959 | F19: =+'Öko-Arbeitsvorgänge-KTBL'!T1942 -> 234.7959 | G19: =+'Öko-Arbeitsvorgänge-KTBL'!$T$2040 -> 193.5089 | H19: =+'Öko-Arbeitsvorgänge-KTBL'!T2089 -> 216.4116 | I19: =+'Öko-Arbeitsvorgänge-KTBL'!$T$2089 -> 216.4116 | J19: 0
A20: Maschinenkosten fremd | C20: €/ha | D20: =+'Öko-Arbeitsvorgänge-KTBL'!U1891*(1+Stammdatenblatt!B134) -> 130 | E20: =+'Öko-Arbeitsvorgänge-KTBL'!U1891*(1+Stammdatenblatt!B134) -> 130 | F20: =+'Öko-Arbeitsvorgänge-KTBL'!U1893*(1+Stammdatenblatt!B134) -> 130 | G20: =+'Öko-Arbeitsvorgänge-KTBL'!$U$2038*(1+Stammdatenblatt!C241) -> 130 | H20: =+'Öko-Arbeitsvorgänge-KTBL'!U2087*(1+Stammdatenblatt!C241) -> 130 | I20: =+'Öko-Arbeitsvorgänge-KTBL'!$U$2038*(1+Stammdatenblatt!C241) -> 130 | J20: 0
A21: Reinigung/Entspelzung | C21: €/ha | D21: 0 | E21: =D21 -> 0 | F21: =Stammdatenblatt!J224*E7 -> 525 | G21: 0 | H21: 0 | I21: =Stammdatenblatt!J224*H7 -> 525 | J21: 0
A22: xxx | C22: €/ha | D22: 0 | E22: =D22 -> 0 | F22: =E22 -> 0 | G22: =E22 -> 0 | H22: =G22 -> 0 | I22: =G22 -> 0 | J22: 0
A23: variable Kosten | C23: €/ha | D23: =SUM(D19:D22,D17) -> 784.3005867 | E23: 926.0115747 | F23: =F17+F19+F20+F21+F22 -> 1452.576567 | G23: 767.3512867 | H23: 907.6272747 | I23: =I17+I19+I20+I21+I22 -> 1434.192267 | J23: 0
A24: Deckungsbeitrag (DB) | C24: €/ha | D24: =D11-D23 -> 424.6994133 | E24: 766.5884253 | F24: 497.4234333 | G24: 441.6487133 | H24: 784.9727253 | I24: 515.8077333 | J24: 0
A25: Zeit-Spanne | B25: AK-Bedarf
A26: FEB | C26: Akh/ha | D26: =SUMIF('Öko-Arbeitsvorgänge-KTBL'!$B$1903:$B$1939,A26,'Öko-Arbeitsvorgänge-KTBL'!$G$1903:$G$1939) -> 0.13 | E26: =SUMIF('Öko-Arbeitsvorgänge-KTBL'!$B$1854:$B$1890,$A26,'Öko-Arbeitsvorgänge-KTBL'!$G$1854:$G$1890) -> 0.13 | F26: =SUMIF('Öko-Arbeitsvorgänge-KTBL'!$B$1854:$B$1890,$A26,'Öko-Arbeitsvorgänge-KTBL'!$G$1854:$G$1890) -> 0.13 | G26: =SUMIF('Öko-Arbeitsvorgänge-KTBL'!$B$2001:$B$2037,$A26,'Öko-Arbeitsvorgänge-KTBL'!$G$2001:$G$2037) -> 0.11 | H26: =SUMIF('Öko-Arbeitsvorgänge-KTBL'!$B$2050:$B$2086,A26,'Öko-Arbeitsvorgänge-KTBL'!$G$2050:$G$2086) -> 0.11 | I26: =SUMIF('Öko-Arbeitsvorgänge-KTBL'!$B$2001:$B$2037,$A26,'Öko-Arbeitsvorgänge-KTBL'!$G$2001:$G$2037) -> 0.11 | J26: 0
A27: MRZ | C27: Akh/ha | D27: =SUMIF('Öko-Arbeitsvorgänge-KTBL'!$B$1903:$B$1939,A27,'Öko-Arbeitsvorgänge-KTBL'!$G$1903:$G$1939) -> 0.35 | E27: =SUMIF('Öko-Arbeitsvorgänge-KTBL'!$B$1854:$B$1890,$A27,'Öko-Arbeitsvorgänge-KTBL'!$G$1854:$G$1890) -> 0.35 | F27: =SUMIF('Öko-Arbeitsvorgänge-KTBL'!$B$1854:$B$1890,$A27,'Öko-Arbeitsvorgänge-KTBL'!$G$1854:$G$1890) -> 0.35 | G27: =SUMIF('Öko-Arbeitsvorgänge-KTBL'!$B$2001:$B$2037,$A27,'Öko-Arbeitsvorgänge-KTBL'!$G$2001:$G$2037) -> 0.28 | H27: =SUMIF('Öko-Arbeitsvorgänge-KTBL'!$B$2050:$B$2086,A27,'Öko-Arbeitsvorgänge-KTBL'!$G$2050:$G$2086) -> 0.28 | I27: =SUMIF('Öko-Arbeitsvorgänge-KTBL'!$B$2001:$B$2037,$A27,'Öko-Arbeitsvorgänge-KTBL'!$G$2001:$G$2037) -> 0.28 | J27: 0
A28: APR | C28: Akh/ha | D28: =SUMIF('Öko-Arbeitsvorgänge-KTBL'!$B$1903:$B$1939,A28,'Öko-Arbeitsvorgänge-KTBL'!$G$1903:$G$1939) -> 0 | E28: =SUMIF('Öko-Arbeitsvorgänge-KTBL'!$B$1854:$B$1890,$A28,'Öko-Arbeitsvorgänge-KTBL'!$G$1854:$G$1890) -> 0 | F28: =SUMIF('Öko-Arbeitsvorgänge-KTBL'!$B$1854:$B$1890,$A28,'Öko-Arbeitsvorgänge-KTBL'!$G$1854:$G$1890) -> 0 | G28: =SUMIF('Öko-Arbeitsvorgänge-KTBL'!$B$2001:$B$2037,$A28,'Öko-Arbeitsvorgänge-KTBL'!$G$2001:$G$2037) -> 0 | H28: =SUMIF('Öko-Arbeitsvorgänge-KTBL'!$B$2050:$B$2086,A28,'Öko-Arbeitsvorgänge-KTBL'!$G$2050:$G$2086) -> 0 | I28: =SUMIF('Öko-Arbeitsvorgänge-KTBL'!$B$2001:$B$2037,$A28,'Öko-Arbeitsvorgänge-KTBL'!$G$2001:$G$2037) -> 0 | J28: 0
A29: MAI | C29: Akh/ha | D29: =SUMIF('Öko-Arbeitsvorgänge-KTBL'!$B$1903:$B$1939,A29,'Öko-Arbeitsvorgänge-KTBL'!$G$1903:$G$1939) -> 0 | E29: =SUMIF('Öko-Arbeitsvorgänge-KTBL'!$B$1854:$B$1890,$A29,'Öko-Arbeitsvorgänge-KTBL'!$G$1854:$G$1890) -> 0 | F29: =SUMIF('Öko-Arbeitsvorgänge-KTBL'!$B$1854:$B$1890,$A29,'Öko-Arbeitsvorgänge-KTBL'!$G$1854:$G$1890) -> 0 | G29: =SUMIF('Öko-Arbeitsvorgänge-KTBL'!$B$2001:$B$2037,$A29,'Öko-Arbeitsvorgänge-KTBL'!$G$2001:$G$2037) -> 0 | H29: =SUMIF('Öko-Arbeitsvorgänge-KTBL'!$B$2050:$B$2086,A29,'Öko-Arbeitsvorgänge-KTBL'!$G$2050:$G$2086) -> 0 | I29: =SUMIF('Öko-Arbeitsvorgänge-KTBL'!$B$2001:$B$2037,$A29,'Öko-Arbeitsvorgänge-KTBL'!$G$2001:$G$2037) -> 0 | J29: 0
A30: JUN | C30: Akh/ha | D30: =SUMIF('Öko-Arbeitsvorgänge-KTBL'!$B$1903:$B$1939,A30,'Öko-Arbeitsvorgänge-KTBL'!$G$1903:$G$1939) -> 0 | E30: =SUMIF('Öko-Arbeitsvorgänge-KTBL'!$B$1854:$B$1890,$A30,'Öko-Arbeitsvorgänge-KTBL'!$G$1854:$G$1890) -> 0 | F30: =SUMIF('Öko-Arbeitsvorgänge-KTBL'!$B$1854:$B$1890,$A30,'Öko-Arbeitsvorgänge-KTBL'!$G$1854:$G$1890) -> 0 | G30: =SUMIF('Öko-Arbeitsvorgänge-KTBL'!$B$2001:$B$2037,$A30,'Öko-Arbeitsvorgänge-KTBL'!$G$2001:$G$2037) -> 0 | H30: =SUMIF('Öko-Arbeitsvorgänge-KTBL'!$B$2050:$B$2086,A30,'Öko-Arbeitsvorgänge-KTBL'!$G$2050:$G$2086) -> 0 | I30: =SUMIF('Öko-Arbeitsvorgänge-KTBL'!$B$2001:$B$2037,$A30,'Öko-Arbeitsvorgänge-KTBL'!$G$2001:$G$2037) -> 0 | J30: 0
A31: JUL | C31: Akh/ha | D31: =SUMIF('Öko-Arbeitsvorgänge-KTBL'!$B$1903:$B$1939,A31,'Öko-Arbeitsvorgänge-KTBL'!$G$1903:$G$1939) -> 0 | E31: =SUMIF('Öko-Arbeitsvorgänge-KTBL'!$B$1854:$B$1890,$A31,'Öko-Arbeitsvorgänge-KTBL'!$G$1854:$G$1890) -> 0 | F31: =SUMIF('Öko-Arbeitsvorgänge-KTBL'!$B$1854:$B$1890,$A31,'Öko-Arbeitsvorgänge-KTBL'!$G$1854:$G$1890) -> 0 | G31: =SUMIF('Öko-Arbeitsvorgänge-KTBL'!$B$2001:$B$2037,$A31,'Öko-Arbeitsvorgänge-KTBL'!$G$2001:$G$2037) -> 0 | H31: =SUMIF('Öko-Arbeitsvorgänge-KTBL'!$B$2050:$B$2086,A31,'Öko-Arbeitsvorgänge-KTBL'!$G$2050:$G$2086) -> 0 | I31: =SUMIF('Öko-Arbeitsvorgänge-KTBL'!$B$2001:$B$2037,$A31,'Öko-Arbeitsvorgänge-KTBL'!$G$2001:$G$2037) -> 0 | J31: 0
A32: AUG | C32: Akh/ha | D32: =SUMIF('Öko-Arbeitsvorgänge-KTBL'!$B$1903:$B$1939,A32,'Öko-Arbeitsvorgänge-KTBL'!$G$1903:$G$1939) -> 1.77 | E32: =SUMIF('Öko-Arbeitsvorgänge-KTBL'!$B$1854:$B$1890,$A32,'Öko-Arbeitsvorgänge-KTBL'!$G$1854:$G$1890) -> 1.77 | F32: =SUMIF('Öko-Arbeitsvorgänge-KTBL'!$B$1854:$B$1890,$A32,'Öko-Arbeitsvorgänge-KTBL'!$G$1854:$G$1890) -> 1.77 | G32: =SUMIF('Öko-Arbeitsvorgänge-KTBL'!$B$2001:$B$2037,$A32,'Öko-Arbeitsvorgänge-KTBL'!$G$2001:$G$2037) -> 1.42 | H32: =SUMIF('Öko-Arbeitsvorgänge-KTBL'!$B$2050:$B$2086,A32,'Öko-Arbeitsvorgänge-KTBL'!$G$2050:$G$2086) -> 1.42 | I32: =SUMIF('Öko-Arbeitsvorgänge-KTBL'!$B$2001:$B$2037,$A32,'Öko-Arbeitsvorgänge-KTBL'!$G$2001:$G$2037) -> 1.42 | J32: 0
A33: SEP | C33: Akh/ha | D33: =SUMIF('Öko-Arbeitsvorgänge-KTBL'!$B$1903:$B$1939,A33,'Öko-Arbeitsvorgänge-KTBL'!$G$1903:$G$1939) -> 0.85 | E33: =SUMIF('Öko-Arbeitsvorgänge-KTBL'!$B$1854:$B$1890,$A33,'Öko-Arbeitsvorgänge-KTBL'!$G$1854:$G$1890) -> 0.84 | F33: =SUMIF('Öko-Arbeitsvorgänge-KTBL'!$B$1854:$B$1890,$A33,'Öko-Arbeitsvorgänge-KTBL'!$G$1854:$G$1890) -> 0.84 | G33: =SUMIF('Öko-Arbeitsvorgänge-KTBL'!$B$2001:$B$2037,$A33,'Öko-Arbeitsvorgänge-KTBL'!$G$2001:$G$2037) -> 0.68 | H33: =SUMIF('Öko-Arbeitsvorgänge-KTBL'!$B$2050:$B$2086,A33,'Öko-Arbeitsvorgänge-KTBL'!$G$2050:$G$2086) -> 0.68 | I33: =SUMIF('Öko-Arbeitsvorgänge-KTBL'!$B$2001:$B$2037,$A33,'Öko-Arbeitsvorgänge-KTBL'!$G$2001:$G$2037) -> 0.68 | J33: 0
A34: OKT | C34: Akh/ha | D34: =SUMIF('Öko-Arbeitsvorgänge-KTBL'!$B$1903:$B$1939,A34,'Öko-Arbeitsvorgänge-KTBL'!$G$1903:$G$1939) -> 5.48 | E34: =SUMIF('Öko-Arbeitsvorgänge-KTBL'!$B$1854:$B$1890,$A34,'Öko-Arbeitsvorgänge-KTBL'!$G$1854:$G$1890) -> 5.47 | F34: =SUMIF('Öko-Arbeitsvorgänge-KTBL'!$B$1854:$B$1890,$A34,'Öko-Arbeitsvorgänge-KTBL'!$G$1854:$G$1890) -> 5.47 | G34: =SUMIF('Öko-Arbeitsvorgänge-KTBL'!$B$2001:$B$2037,$A34,'Öko-Arbeitsvorgänge-KTBL'!$G$2001:$G$2037) -> 4.68 | H34: =SUMIF('Öko-Arbeitsvorgänge-KTBL'!$B$2050:$B$2086,A34,'Öko-Arbeitsvorgänge-KTBL'!$G$2050:$G$2086) -> 4.68 | I34: =SUMIF('Öko-Arbeitsvorgänge-KTBL'!$B$2001:$B$2037,$A34,'Öko-Arbeitsvorgänge-KTBL'!$G$2001:$G$2037) -> 4.68 | J34: 0
A35: NOV | C35: Akh/ha | D35: =SUMIF('Öko-Arbeitsvorgänge-KTBL'!$B$1903:$B$1939,A35,'Öko-Arbeitsvorgänge-KTBL'!$G$1903:$G$1939) -> 0 | E35: =SUMIF('Öko-Arbeitsvorgänge-KTBL'!$B$1854:$B$1890,$A35,'Öko-Arbeitsvorgänge-KTBL'!$G$1854:$G$1890) -> 0 | F35: =SUMIF('Öko-Arbeitsvorgänge-KTBL'!$B$1854:$B$1890,$A35,'Öko-Arbeitsvorgänge-KTBL'!$G$1854:$G$1890) -> 0 | G35: =SUMIF('Öko-Arbeitsvorgänge-KTBL'!$B$2001:$B$2037,$A35,'Öko-Arbeitsvorgänge-KTBL'!$G$2001:$G$2037) -> 0 | H35: =SUMIF('Öko-Arbeitsvorgänge-KTBL'!$B$2050:$B$2086,A35,'Öko-Arbeitsvorgänge-KTBL'!$G$2050:$G$2086) -> 0 | I35: =SUMIF('Öko-Arbeitsvorgänge-KTBL'!$B$2001:$B$2037,$A35,'Öko-Arbeitsvorgänge-KTBL'!$G$2001:$G$2037) -> 0 | J35: 0
A36: Rest | C36: Akh/ha | D36: =SUMIF('Öko-Arbeitsvorgänge-KTBL'!$B$1903:$B$1939,A36,'Öko-Arbeitsvorgänge-KTBL'!$G$1903:$G$1939) -> 0 | E36: =SUMIF('Öko-Arbeitsvorgänge-KTBL'!$B$1854:$B$1890,$A36,'Öko-Arbeitsvorgänge-KTBL'!$G$1854:$G$1890) -> 0 | F36: =SUMIF('Öko-Arbeitsvorgänge-KTBL'!$B$1854:$B$1890,$A36,'Öko-Arbeitsvorgänge-KTBL'!$G$1854:$G$1890) -> 0 | G36: =SUMIF('Öko-Arbeitsvorgänge-KTBL'!$B$2001:$B$2037,$A36,'Öko-Arbeitsvorgänge-KTBL'!$G$2001:$G$2037) -> 0 | H36: =SUMIF('Öko-Arbeitsvorgänge-KTBL'!$B$2050:$B$2086,A36,'Öko-Arbeitsvorgänge-KTBL'!$G$2050:$G$2086) -> 0 | I36: =SUMIF('Öko-Arbeitsvorgänge-KTBL'!$B$2001:$B$2037,$A36,'Öko-Arbeitsvorgänge-KTBL'!$G$2001:$G$2037) -> 0 | J36: 0
A37: Arbeitskraftstunden | C37: AKh/ha | D37: =SUM(D26:D36) -> 8.58 | E37: =SUM(E26:E36) -> 8.56 | F37: =SUM(F26:F36) -> 8.56 | G37: =SUM(G26:G36) -> 7.17 | H37: 7.17 | I37: =SUM(I26:I36) -> 7.17 | J37: 0
A38: DB ( je Akh) | C38: €/Akh | D38: =ROUND(IF(D24>0,D24/D37,0),0) -> 49 | E38: 90 | F38: 58 | G38: 62 | H38: 109 | I38: 72 | J38: 0
A39: Aussaatmenge | C39: kg/ha | D39: 200 | E39: =D39 -> 200 | F39: =E39 -> 200 | G39: 200 | H39: =G39 -> 200 | I39: 200 | J39: 0
A40: davon Zukaufsaatgut | C40: % | D40: 15 | E40: 15 | F40: 15 | G40: 15 | H40: 15 | I40: 15 | J40: 0
A41: Saatgutpreis Eigen | C41: €/dt | D41: =D8+Stammdatenblatt!$E$191 -> 57.36 | E41: =E8+Stammdatenblatt!$E$191 -> 57.36 | F41: =E41 -> 57.36 | G41: =G8+Stammdatenblatt!$E$191 -> 57.36 | H41: =H8+Stammdatenblatt!$E$191 -> 57.36 | I41: =H41 -> 57.36 | J41: 0
A42: Zukauf | C42: €/dt | D42: =+Stammdatenblatt!$J$82 -> 130 | E42: =+Stammdatenblatt!$J$82 -> 130 | F42: =+Stammdatenblatt!$J$82 -> 130 | G42: =+Stammdatenblatt!$J$82 -> 130 | H42: =+Stammdatenblatt!$J$82 -> 130 | I42: =+Stammdatenblatt!$J$82 -> 130 | J42: 0
A43: Saatgutkosten | C43: €/ha | D43: =D40/100*(D39*D42)/100+((100-D40)/100*D39*D41/100) -> 136.512 | E43: 136.512 | F43: 136.512 | G43: 136.512 | H43: 136.512 | I43: 136.512 | J43: 0
A44: Dünger: | B44: €/kg | D44: Nährstoffabfuhr/ ha (in kg Reinnährstoff) LfL
A45: =+Stammdatenblatt!A135 -> Stickstoff | B45: =+Stammdatenblatt!J135 -> 4.61 | C45: Aufw./ha | D45: 41.3 | E45: 57.8 | F45: 57.8 | G45: 41.3 | H45: 57.8 | I45: 57.8 | J45: 0
A46: =+Stammdatenblatt!A136 -> Phosphor | B46: =+Stammdatenblatt!J136 -> 1.06 | C46: Aufw./ha | D46: 20 | E46: 28 | F46: 28 | G46: 20 | H46: 28 | I46: =F46 -> 28 | J46: 0
A47: =+Stammdatenblatt!A137 -> Kali | B47: =+Stammdatenblatt!J137 -> 1.76 | C47: Aufw./ha | D47: 20 | E47: 28 | F47: 28 | G47: 20 | H47: 28 | I47: 28 | J47: 0
A48: =+Stammdatenblatt!A138 -> Kalk | B48: =+Stammdatenblatt!J138 -> 0.04555555556 | C48: Aufw./ha | D48: 300 | E48: =D48 -> 300 | F48: =H48 -> 300 | G48: =E48 -> 300 | H48: =G48 -> 300 | I48: 300 | J48: 0
A49: =+Stammdatenblatt!A139 -> Magnesium | B49: =+Stammdatenblatt!J139 -> 0.552 | C49: Aufw./ha | D49: =D7*'Entzugswerte Düngung'!F10 -> 10 | E49: =E7*'Entzugswerte Düngung'!F10 -> 14 | F49: 14 | G49: =G7*'Entzugswerte Düngung'!F10 -> 10 | H49: =H7*'Entzugswerte Düngung'!F10 -> 14 | I49: 14 | J49: 0
A50: =+Stammdatenblatt!A140 -> Schwefel | B50: =+Stammdatenblatt!J140 -> 1.149425287 | C50: Aufw./ha | D50: 0 | E50: =D50 -> 0 | F50: 0 | G50: =E50 -> 0 | H50: =G50 -> 0 | I50: 0 | J50: 0
A51: Mineraldüngerkosten | C51: €/ha | D51: =+$B45*D45+D46*$B46+$B47*D47+$B48*D48+$B49*D49+$B50*D50 -> 265.9796667 | E51: 366.8126667 | F51: 366.8126667 | G51: 265.9796667 | H51: 366.8126667 | I51: 366.8126667 | J51: 0
A52: Herbizide | C52: €/ha | D52: 0 | E52: 0 | F52: 0 | G52: 0 | H52: 0 | I52: 0 | J52: 0
A53: Fungizide | C53: €/ha | D53: 0 | E53: 0 | F53: 0 | G53: 0 | H53: 0 | I53: 0 | J53: 0
A54: Insektizide | C54: €/ha | D54: 0 | E54: 0 | F54: 0 | G54: 0 | H54: 0 | I54: 0 | J54: 0
A55: Wachstumsregler | C55: €/ha | D55: 0 | E55: 0 | F55: 0 | G55: 0 | H55: 0 | I55: 0 | J55: 0
A56: Pflanzenbehandlungskosten | C56: €/ha | D56: =SUM(D52:D55) -> 0 | E56: 0 | F56: 0 | G56: 0 | H56: 0 | I56: 0 | J56: 0
A57: *Verfahren inkl. Zinsanspruch; Verfahren ohne Zinsanspruch sind in den Arbeitsvorgängen abgebildet.

Sheet Wintergerste
B3: Landesbetrieb Landwirtschaft Hessen
A4: =IF(Stammdatenblatt!I6+Stammdatenblatt!D76+Stammdatenblatt!D120+Stammdatenblatt!B134+Stammdatenblatt!D145+Stammdatenblatt!C188+Stammdatenblatt!C226+Stammdatenblatt!C241=0,"Produktionsverfahren wurden netto gerechnet", "Produktionsverfahren wurden brutto gerechnet") -> Produktionsverfahren wurden netto gerechnet
J5: eigene
A6: Wintergerste | D6: 2 ha | G6: 5 ha | I6: 20 ha | J6: Werte
A7: Leistung: Menge Hauptprodukt | C7: dt/ha | D7: 25 | E7: 35 | F7: 40 | G7: 25 | H7: 35 | I7: 40 | J7: 0
A8: Preis Hauptprodukt | C8: € | D8: =+Stammdatenblatt!J18 -> 33.62 | E8: =D8 -> 33.62 | F8: =E8 -> 33.62 | G8: =+F8 -> 33.62 | H8: =G8 -> 33.62 | I8: =+H8 -> 33.62 | J8: 0
A9: Erlös Hauptprodukt | C9: €/ha | D9: =D7*D8 -> 840.5 | E9: 1176.7 | F9: 1344.8 | G9: 840.5 | H9: 1176.7 | I9: 1344.8 | J9: 0
A10: Erlös Nebenprodukt(e) | C10: €/ha | D10: 0 | E10: =D10 -> 0 | F10: =E10 -> 0 | G10: 0 | H10: =G10 -> 0 | I10: 0 | J10: 0
A11: Leistungen | C11: €/ha | D11: =D9+D10 -> 840.5 | E11: =E10+E9 -> 1176.7 | F11: 1344.8 | G11: 840.5 | H11: 1176.7 | I11: 1344.8 | J11: 0
A12: Saatgutkosten | C12: €/ha | D12: =D43 -> 78.3632 | E12: 78.3632 | F12: 78.3632 | G12: 78.3632 | H12: 78.3632 | I12: 78.3632 | J12: =J43 -> 0
A13: Mineraldüngerkosten | C13: €/ha | D13: =D51 -> 257.1796667 | E13: 360.2397931 | F13: 414.4129195 | G13: 257.1796667 | H13: 360.2397931 | I13: 414.4129195 | J13: =J51 -> 0
A14: Pflanzenbehandlungsk. | C14: €/ha | D14: =D56 -> 0 | E14: 0 | F14: 0 | G14: 0 | H14: 0 | I14: 0 | J14: =J56 -> 0
A15: Versicherung | C15: €/ha | D15: =(D11/1000)*Stammdatenblatt!$M$195 -> 5.11024 | E15: =(E11/1000)*Stammdatenblatt!$M$195 -> 7.154336 | F15: =(F11/1000)*Stammdatenblatt!$M$195 -> 8.176384 | G15: =(G11/1000)*Stammdatenblatt!$M$195 -> 5.11024 | H15: =(H11/1000)*Stammdatenblatt!$M$195 -> 7.154336 | I15: =(I11/1000)*Stammdatenblatt!$M$195 -> 8.176384 | J15: =(J11/1000)*Stammdatenblatt!$M$195 -> 0
A16: Trocknungskosten | C16: €/ha | D16: =(D7*Stammdatenblatt!$E$206+D7*Stammdatenblatt!$E$207*4)/3 -> 34 | E16: =(E7*Stammdatenblatt!$E$206+E7*Stammdatenblatt!$E$207*4)/3 -> 47.6 | F16: =(F7*Stammdatenblatt!$E$206+F7*Stammdatenblatt!$E$207*4)/3 -> 54.4 | G16: =(G7*Stammdatenblatt!$E$206+G7*Stammdatenblatt!$E$207*4)/3 -> 34 | H16: =(H7*Stammdatenblatt!$E$206+H7*Stammdatenblatt!$E$207*4)/3 -> 47.6 | I16: =(I7*Stammdatenblatt!$E$206+I7*Stammdatenblatt!$E$207*4)/3 -> 54.4 | J16: =(J7*Stammdatenblatt!$E$206+J7*Stammdatenblatt!$E$207*4)/3 -> 0
A17: Summe Direktkosten | C17: €/ha | D17: =SUM(D12:D16) -> 374.6531067 | E17: =SUM(E12:E16) -> 493.3573291 | F17: 555.3525035 | G17: 374.6531067 | H17: 493.3573291 | I17: 555.3525035 | J17: 0
A18: Direktkostenfreie Leistung | C18: €/ha | D18: =D11-D17 -> 465.8468933 | E18: =E11-E17 -> 683.3426709 | F18: 789.4474965 | G18: 465.8468933 | H18: 683.3426709 | I18: 789.4474965 | J18: 0
A19: Maschinenkosten eigen * | C19: €/ha | D19: =+'Öko-Arbeitsvorgänge-KTBL'!T2136 -> 177.6791 | E19: =+'Öko-Arbeitsvorgänge-KTBL'!T2183 -> 204.0984 | F19: =+'Öko-Arbeitsvorgänge-KTBL'!T2230 -> 228.0067 | G19: =+'Öko-Arbeitsvorgänge-KTBL'!T2277 -> 160.9162 | H19: =+'Öko-Arbeitsvorgänge-KTBL'!T2324 -> 188.5321 | I19: =+'Öko-Arbeitsvorgänge-KTBL'!T2371 -> 211.0155 | J19: 0
A20: Maschinenkosten fremd | C20: €/ha | D20: =+'Öko-Arbeitsvorgänge-KTBL'!U2134*(1+Stammdatenblatt!C241) -> 130 | E20: =+'Öko-Arbeitsvorgänge-KTBL'!U2181*(1+Stammdatenblatt!C241) -> 130 | F20: =+'Öko-Arbeitsvorgänge-KTBL'!U2228*(1+Stammdatenblatt!C241) -> 130 | G20: =+'Öko-Arbeitsvorgänge-KTBL'!U2275*(1+Stammdatenblatt!C241) -> 130 | H20: =+'Öko-Arbeitsvorgänge-KTBL'!U2322*(1+Stammdatenblatt!C241) -> 130 | I20: =+'Öko-Arbeitsvorgänge-KTBL'!U2369*(1+Stammdatenblatt!C241) -> 130 | J20: 0
A21: Lohnkosten | C21: €/ha | D21: 0 | E21: =D21 -> 0 | F21: =E21 -> 0 | G21: 0 | H21: =G21 -> 0 | I21: 0 | J21: 0
A22: xxx | C22: €/ha | D22: 0 | E22: =D22 -> 0 | F22: =E22 -> 0 | G22: 0 | H22: =G22 -> 0 | I22: 0 | J22: 0
A23: variable Kosten | C23: €/ha | D23: =SUM(D19:D22,D17) -> 682.3322067 | E23: =SUM(E19:E22,E17) -> 827.4557291 | F23: 913.3592035 | G23: 665.5693067 | H23: 811.8894291 | I23: 896.3680035 | J23: 0
A24: Deckungsbeitrag (DB) | C24: €/ha | D24: =D11-D23 -> 158.1677933 | E24: 349.2442709 | F24: 431.4407965 | G24: 174.9306933 | H24: 364.8105709 | I24: 448.4319965 | J24: 0
A25: Zeit-Spanne | B25: AK-Bedarf
A26: FEB | C26: Akh/ha | D26: =SUMIF('Öko-Arbeitsvorgänge-KTBL'!$B$2099:$B$2133,A26,'Öko-Arbeitsvorgänge-KTBL'!$G$2099:$G$2133) -> 0.13 | E26: =SUMIF('Öko-Arbeitsvorgänge-KTBL'!$B$2146:$B$2180,A26,'Öko-Arbeitsvorgänge-KTBL'!$G$2146:$G$2180) -> 0.13 | F26: =SUMIF('Öko-Arbeitsvorgänge-KTBL'!$B$2193:$B$2227,A26,'Öko-Arbeitsvorgänge-KTBL'!$G$2193:$G$2227) -> 0.13 | G26: =SUMIF('Öko-Arbeitsvorgänge-KTBL'!$B$2240:$B$2274,A26,'Öko-Arbeitsvorgänge-KTBL'!$G$2240:$G$2274) -> 0.11 | H26: =SUMIF('Öko-Arbeitsvorgänge-KTBL'!$B$2287:$B$2321,A26,'Öko-Arbeitsvorgänge-KTBL'!$G$2287:$G$2321) -> 0.11 | I26: =SUMIF('Öko-Arbeitsvorgänge-KTBL'!$B$2334:$B$2368,A26,'Öko-Arbeitsvorgänge-KTBL'!$G$2334:$G$2368) -> 0.11 | J26: 0
A27: MRZ | C27: Akh/ha | D27: =SUMIF('Öko-Arbeitsvorgänge-KTBL'!$B$2099:$B$2133,A27,'Öko-Arbeitsvorgänge-KTBL'!$G$2099:$G$2133) -> 0.35 | E27: =SUMIF('Öko-Arbeitsvorgänge-KTBL'!$B$2146:$B$2180,A27,'Öko-Arbeitsvorgänge-KTBL'!$G$2146:$G$2180) -> 0.35 | F27: =SUMIF('Öko-Arbeitsvorgänge-KTBL'!$B$2193:$B$2227,A27,'Öko-Arbeitsvorgänge-KTBL'!$G$2193:$G$2227) -> 0.35 | G27: =SUMIF('Öko-Arbeitsvorgänge-KTBL'!$B$2240:$B$2274,A27,'Öko-Arbeitsvorgänge-KTBL'!$G$2240:$G$2274) -> 0.28 | H27: =SUMIF('Öko-Arbeitsvorgänge-KTBL'!$B$2287:$B$2321,A27,'Öko-Arbeitsvorgänge-KTBL'!$G$2287:$G$2321) -> 0.28 | I27: =SUMIF('Öko-Arbeitsvorgänge-KTBL'!$B$2334:$B$2368,A27,'Öko-Arbeitsvorgänge-KTBL'!$G$2334:$G$2368) -> 0.28 | J27: 0
A28: APR | C28: Akh/ha | D28: =SUMIF('Öko-Arbeitsvorgänge-KTBL'!$B$2099:$B$2133,A28,'Öko-Arbeitsvorgänge-KTBL'!$G$2099:$G$2133) -> 0 | E28: =SUMIF('Öko-Arbeitsvorgänge-KTBL'!$B$2146:$B$2180,A28,'Öko-Arbeitsvorgänge-KTBL'!$G$2146:$G$2180) -> 0 | F28: =SUMIF('Öko-Arbeitsvorgänge-KTBL'!$B$2193:$B$2227,A28,'Öko-Arbeitsvorgänge-KTBL'!$G$2193:$G$2227) -> 0 | G28: =SUMIF('Öko-Arbeitsvorgänge-KTBL'!$B$2240:$B$2274,A28,'Öko-Arbeitsvorgänge-KTBL'!$G$2240:$G$2274) -> 0 | H28: =SUMIF('Öko-Arbeitsvorgänge-KTBL'!$B$2287:$B$2321,A28,'Öko-Arbeitsvorgänge-KTBL'!$G$2287:$G$2321) -> 0 | I28: =SUMIF('Öko-Arbeitsvorgänge-KTBL'!$B$2334:$B$2368,A28,'Öko-Arbeitsvorgänge-KTBL'!$G$2334:$G$2368) -> 0 | J28: 0
A29: MAI | C29: Akh/ha | D29: =SUMIF('Öko-Arbeitsvorgänge-KTBL'!$B$2099:$B$2133,A29,'Öko-Arbeitsvorgänge-KTBL'!$G$2099:$G$2133) -> 0 | E29: =SUMIF('Öko-Arbeitsvorgänge-KTBL'!$B$2146:$B$2180,A29,'Öko-Arbeitsvorgänge-KTBL'!$G$2146:$G$2180) -> 0 | F29: =SUMIF('Öko-Arbeitsvorgänge-KTBL'!$B$2193:$B$2227,A29,'Öko-Arbeitsvorgänge-KTBL'!$G$2193:$G$2227) -> 0 | G29: =SUMIF('Öko-Arbeitsvorgänge-KTBL'!$B$2240:$B$2274,A29,'Öko-Arbeitsvorgänge-KTBL'!$G$2240:$G$2274) -> 0 | H29: =SUMIF('Öko-Arbeitsvorgänge-KTBL'!$B$2287:$B$2321,A29,'Öko-Arbeitsvorgänge-KTBL'!$G$2287:$G$2321) -> 0 | I29: =SUMIF('Öko-Arbeitsvorgänge-KTBL'!$B$2334:$B$2368,A29,'Öko-Arbeitsvorgänge-KTBL'!$G$2334:$G$2368) -> 0 | J29: 0
A30: JUN | C30: Akh/ha | D30: =SUMIF('Öko-Arbeitsvorgänge-KTBL'!$B$2099:$B$2133,A30,'Öko-Arbeitsvorgänge-KTBL'!$G$2099:$G$2133) -> 0 | E30: =SUMIF('Öko-Arbeitsvorgänge-KTBL'!$B$2146:$B$2180,A30,'Öko-Arbeitsvorgänge-KTBL'!$G$2146:$G$2180) -> 0 | F30: =SUMIF('Öko-Arbeitsvorgänge-KTBL'!$B$2193:$B$2227,A30,'Öko-Arbeitsvorgänge-KTBL'!$G$2193:$G$2227) -> 0 | G30: =SUMIF('Öko-Arbeitsvorgänge-KTBL'!$B$2240:$B$2274,A30,'Öko-Arbeitsvorgänge-KTBL'!$G$2240:$G$2274) -> 0 | H30: =SUMIF('Öko-Arbeitsvorgänge-KTBL'!$B$2287:$B$2321,A30,'Öko-Arbeitsvorgänge-KTBL'!$G$2287:$G$2321) -> 0 | I30: =SUMIF('Öko-Arbeitsvorgänge-KTBL'!$B$2334:$B$2368,A30,'Öko-Arbeitsvorgänge-KTBL'!$G$2334:$G$2368) -> 0 | J30: 0
A31: JUL | C31: Akh/ha | D31: =SUMIF('Öko-Arbeitsvorgänge-KTBL'!$B$2099:$B$2133,A31,'Öko-Arbeitsvorgänge-KTBL'!$G$2099:$G$2133) -> 1.45 | E31: =SUMIF('Öko-Arbeitsvorgänge-KTBL'!$B$2146:$B$2180,A31,'Öko-Arbeitsvorgänge-KTBL'!$G$2146:$G$2180) -> 1.68 | F31: =SUMIF('Öko-Arbeitsvorgänge-KTBL'!$B$2193:$B$2227,A31,'Öko-Arbeitsvorgänge-KTBL'!$G$2193:$G$2227) -> 1.68 | G31: =SUMIF('Öko-Arbeitsvorgänge-KTBL'!$B$2240:$B$2274,A31,'Öko-Arbeitsvorgänge-KTBL'!$G$2240:$G$2274) -> 1.12 | H31: =SUMIF('Öko-Arbeitsvorgänge-KTBL'!$B$2287:$B$2321,A31,'Öko-Arbeitsvorgänge-KTBL'!$G$2287:$G$2321) -> 1.43 | I31: =SUMIF('Öko-Arbeitsvorgänge-KTBL'!$B$2334:$B$2368,A31,'Öko-Arbeitsvorgänge-KTBL'!$G$2334:$G$2368) -> 1.43 | J31: 0
A32: AUG | C32: Akh/ha | D32: =SUMIF('Öko-Arbeitsvorgänge-KTBL'!$B$2099:$B$2133,A32,'Öko-Arbeitsvorgänge-KTBL'!$G$2099:$G$2133) -> 0.91 | E32: =SUMIF('Öko-Arbeitsvorgänge-KTBL'!$B$2146:$B$2180,A32,'Öko-Arbeitsvorgänge-KTBL'!$G$2146:$G$2180) -> 0.91 | F32: =SUMIF('Öko-Arbeitsvorgänge-KTBL'!$B$2193:$B$2227,A32,'Öko-Arbeitsvorgänge-KTBL'!$G$2193:$G$2227) -> 0.92 | G32: =SUMIF('Öko-Arbeitsvorgänge-KTBL'!$B$2240:$B$2274,A32,'Öko-Arbeitsvorgänge-KTBL'!$G$2240:$G$2274) -> 0.72 | H32: =SUMIF('Öko-Arbeitsvorgänge-KTBL'!$B$2287:$B$2321,A32,'Öko-Arbeitsvorgänge-KTBL'!$G$2287:$G$2321) -> 0.72 | I32: =SUMIF('Öko-Arbeitsvorgänge-KTBL'!$B$2334:$B$2368,A32,'Öko-Arbeitsvorgänge-KTBL'!$G$2334:$G$2368) -> 0.72 | J32: 0
A33: SEP | C33: Akh/ha | D33: =SUMIF('Öko-Arbeitsvorgänge-KTBL'!$B$2099:$B$2133,A33,'Öko-Arbeitsvorgänge-KTBL'!$G$2099:$G$2133) -> 4.42 | E33: =SUMIF('Öko-Arbeitsvorgänge-KTBL'!$B$2146:$B$2180,A33,'Öko-Arbeitsvorgänge-KTBL'!$G$2146:$G$2180) -> 5.14 | F33: =SUMIF('Öko-Arbeitsvorgänge-KTBL'!$B$2193:$B$2227,A33,'Öko-Arbeitsvorgänge-KTBL'!$G$2193:$G$2227) -> 5.15 | G33: =SUMIF('Öko-Arbeitsvorgänge-KTBL'!$B$2240:$B$2274,A33,'Öko-Arbeitsvorgänge-KTBL'!$G$2240:$G$2274) -> 3.67 | H33: =SUMIF('Öko-Arbeitsvorgänge-KTBL'!$B$2287:$B$2321,A33,'Öko-Arbeitsvorgänge-KTBL'!$G$2287:$G$2321) -> 4.41 | I33: =SUMIF('Öko-Arbeitsvorgänge-KTBL'!$B$2334:$B$2368,A33,'Öko-Arbeitsvorgänge-KTBL'!$G$2334:$G$2368) -> 4.41 | J33: 0
A34: OKT | C34: Akh/ha | D34: =SUMIF('Öko-Arbeitsvorgänge-KTBL'!$B$2099:$B$2133,A34,'Öko-Arbeitsvorgänge-KTBL'!$G$2099:$G$2133) -> 0 | E34: =SUMIF('Öko-Arbeitsvorgänge-KTBL'!$B$2146:$B$2180,A34,'Öko-Arbeitsvorgänge-KTBL'!$G$2146:$G$2180) -> 0 | F34: =SUMIF('Öko-Arbeitsvorgänge-KTBL'!$B$2193:$B$2227,A34,'Öko-Arbeitsvorgänge-KTBL'!$G$2193:$G$2227) -> 0 | G34: =SUMIF('Öko-Arbeitsvorgänge-KTBL'!$B$2240:$B$2274,A34,'Öko-Arbeitsvorgänge-KTBL'!$G$2240:$G$2274) -> 0 | H34: =SUMIF('Öko-Arbeitsvorgänge-KTBL'!$B$2287:$B$2321,A34,'Öko-Arbeitsvorgänge-KTBL'!$G$2287:$G$2321) -> 0 | I34: =SUMIF('Öko-Arbeitsvorgänge-KTBL'!$B$2334:$B$2368,A34,'Öko-Arbeitsvorgänge-KTBL'!$G$2334:$G$2368) -> 0 | J34: 0
A35: NOV | C35: Akh/ha | D35: =SUMIF('Öko-Arbeitsvorgänge-KTBL'!$B$2099:$B$2133,A35,'Öko-Arbeitsvorgänge-KTBL'!$G$2099:$G$2133) -> 0 | E35: =SUMIF('Öko-Arbeitsvorgänge-KTBL'!$B$2146:$B$2180,A35,'Öko-Arbeitsvorgänge-KTBL'!$G$2146:$G$2180) -> 0 | F35: =SUMIF('Öko-Arbeitsvorgänge-KTBL'!$B$2193:$B$2227,A35,'Öko-Arbeitsvorgänge-KTBL'!$G$2193:$G$2227) -> 0 | G35: =SUMIF('Öko-Arbeitsvorgänge-KTBL'!$B$2240:$B$2274,A35,'Öko-Arbeitsvorgänge-KTBL'!$G$2240:$G$2274) -> 0 | H35: =SUMIF('Öko-Arbeitsvorgänge-KTBL'!$B$2287:$B$2321,A35,'Öko-Arbeitsvorgänge-KTBL'!$G$2287:$G$2321) -> 0 | I35: =SUMIF('Öko-Arbeitsvorgänge-KTBL'!$B$2334:$B$2368,A35,'Öko-Arbeitsvorgänge-KTBL'!$G$2334:$G$2368) -> 0 | J35: 0
A36: Rest | C36: Akh/ha | D36: =SUMIF('Öko-Arbeitsvorgänge-KTBL'!$B$2099:$B$2133,A36,'Öko-Arbeitsvorgänge-KTBL'!$G$2099:$G$2133) -> 0 | E36: =SUMIF('Öko-Arbeitsvorgänge-KTBL'!$B$2146:$B$2180,A36,'Öko-Arbeitsvorgänge-KTBL'!$G$2146:$G$2180) -> 0 | F36: =SUMIF('Öko-Arbeitsvorgänge-KTBL'!$B$2193:$B$2227,A36,'Öko-Arbeitsvorgänge-KTBL'!$G$2193:$G$2227) -> 0 | G36: =SUMIF('Öko-Arbeitsvorgänge-KTBL'!$B$2240:$B$2274,A36,'Öko-Arbeitsvorgänge-KTBL'!$G$2240:$G$2274) -> 0 | H36: =SUMIF('Öko-Arbeitsvorgänge-KTBL'!$B$2287:$B$2321,A36,'Öko-Arbeitsvorgänge-KTBL'!$G$2287:$G$2321) -> 0 | I36: =SUMIF('Öko-Arbeitsvorgänge-KTBL'!$B$2334:$B$2368,A36,'Öko-Arbeitsvorgänge-KTBL'!$G$2334:$G$2368) -> 0 | J36: 0
A37: Arbeitskraftstunden | C37: AKh/ha | D37: =SUM(D26:D36) -> 7.26 | E37: =SUM(E26:E36) -> 8.21 | F37: 8.23 | G37: 5.9 | H37: 6.95 | I37: 6.95 | J37: 0
A38: DB ( je Akh) | C38: €/Akh | D38: =IF(D24>0,D24/D37,0) -> 21.78619743 | E38: 42.53888805 | F38: 52.42294003 | G38: 29.64927006 | H38: 52.49072963 | I38: 64.52258942 | J38: 0
A39: Aussaatmenge | C39: kg/ha | D39: 160 | E39: =D39 -> 160 | F39: 160 | G39: 160 | H39: =G39 -> 160 | I39: 160 | J39: 0
A40: davon Zukaufsaatgut | C40: % | D40: 15 | E40: 15 | F40: 15 | G40: 15 | H40: =G40 -> 15 | I40: 15 | J40: 0
A41: Saatgutpreis Eigen | C41: €/dt | D41: =D8+Stammdatenblatt!$E$191 -> 42.62 | E41: =E8+Stammdatenblatt!$E$191 -> 42.62 | F41: =F8+Stammdatenblatt!$E$191 -> 42.62 | G41: =G8+Stammdatenblatt!$E$191 -> 42.62 | H41: =H8+Stammdatenblatt!$E$191 -> 42.62 | I41: =I8+Stammdatenblatt!$E$191 -> 42.62 | J41: 0
A42: Zukauf | C42: €/dt | D42: =+Stammdatenblatt!J83 -> 85 | E42: 85 | F42: 85 | G42: =+F42 -> 85 | H42: =G42 -> 85 | I42: =+H42 -> 85 | J42: 0
A43: Saatgutkosten | C43: €/ha | D43: =D40/100*(D39*D42)/100+((100-D40)/100*D39*D41/100) -> 78.3632 | E43: 78.3632 | F43: 78.3632 | G43: 78.3632 | H43: 78.3632 | I43: 78.3632 | J43: 0
A44: Dünger: | B44: €/kg | D44: Nährstoffabfuhr/ ha (in kg Reinnährstoff) LfL
A45: =+Stammdatenblatt!A135 -> Stickstoff | B45: =+Stammdatenblatt!J135 -> 4.61 | C45: Aufw./ha | D45: 41.3 | E45: 57.8 | F45: 66 | G45: 41.3 | H45: 57.8 | I45: 66 | J45: 0
A46: =+Stammdatenblatt!A136 -> Phosphor | B46: =+Stammdatenblatt!J136 -> 1.06 | C46: Aufw./ha | D46: 20 | E46: 28 | F46: 32 | G46: 20 | H46: 28 | I46: 32 | J46: 0
A47: =+Stammdatenblatt!A137 -> Kali | B47: =+Stammdatenblatt!J137 -> 1.76 | C47: Aufw./ha | D47: 15 | E47: 21 | F47: 24 | G47: 15 | H47: 21 | I47: 24 | J47: 0
A48: =+Stammdatenblatt!A138 -> Kalk | B48: =+Stammdatenblatt!J138 -> 0.04555555556 | C48: Aufw./ha | D48: 300 | E48: =D48 -> 300 | F48: =E48 -> 300 | G48: =F48 -> 300 | H48: =G48 -> 300 | I48: =H48 -> 300 | J48: 0
A49: =+Stammdatenblatt!A139 -> Magnesium | B49: =+Stammdatenblatt!J139 -> 0.552 | C49: Aufw./ha | D49: =D7*'Entzugswerte Düngung'!F4 -> 10 | E49: =E7*'Entzugswerte Düngung'!F4 -> 14 | F49: =F7*'Entzugswerte Düngung'!F4 -> 16 | G49: =G7*'Entzugswerte Düngung'!F4 -> 10 | H49: =H7*'Entzugswerte Düngung'!F4 -> 14 | I49: =I7*'Entzugswerte Düngung'!F4 -> 16 | J49: 0
A50: =+Stammdatenblatt!A140 -> Schwefel | B50: =+Stammdatenblatt!J140 -> 1.149425287 | C50: Aufw./ha | D50: 0 | E50: 5 | F50: 10 | G50: 0 | H50: 5 | I50: 10 | J50: 0
A51: Mineraldüngerkosten | C51: €/ha | D51: =D45*$B$45+D46*$B$46+D47*$B$47+D48*$B$48+D49*$B$49+D50*$B$50 -> 257.1796667 | E51: 360.2397931 | F51: 414.4129195 | G51: 257.1796667 | H51: 360.2397931 | I51: 414.4129195 | J51: 0
A52: Herbizide | C52: €/ha | D52: 0 | E52: 0 | F52: 0 | G52: 0 | H52: 0 | I52: 0 | J52: 0
A53: Fungizide | C53: €/ha | D53: 0 | E53: 0 | F53: 0 | G53: 0 | H53: 0 | I53: 0 | J53: 0
A54: Insektizide | C54: €/ha | D54: 0 | E54: 0 | F54: 0 | G54: 0 | H54: 0 | I54: 0 | J54: 0
A55: Wachstumsregler | C55: €/ha | D55: 0 | E55: 0 | F55: 0 | G55: 0 | H55: 0 | I55: 0 | J55: 0
A56: Pflanzenbehandlungskosten | C56: €/ha | D56: =SUM(D52:D55) -> 0 | E56: 0 | F56: 0 | G56: 0 | H56: 0 | I56: 0 | J56: 0
A57: *Verfahren inkl. Zinsanspruch; Verfahren ohne Zinsanspruch sind in den Arbeitsvorgängen abgebildet.

Sheet Braugerste
B3: Landesbetrieb Landwirtschaft Hessen
A4: =IF(Stammdatenblatt!I6+Stammdatenblatt!D76+Stammdatenblatt!D120+Stammdatenblatt!B134+Stammdatenblatt!D145+Stammdatenblatt!C188+Stammdatenblatt!C226+Stammdatenblatt!C241=0,"Produktionsverfahren wurden netto gerechnet", "Produktionsverfahren wurden brutto gerechnet") -> Produktionsverfahren wurden netto gerechnet
J5: eigene
A6: Braugerste | D6: 2 ha | G6: 5 ha | J6: Werte
A7: Leistung: Menge Hauptprodukt | C7: dt/ha | D7: 25 | E7: 30 | F7: 40 | G7: 25 | H7: 30 | I7: 40 | J7: 0
A8: Preis Hauptprodukt | C8: € | D8: =+Stammdatenblatt!J19 -> 46.88 | E8: =+D8 -> 46.88 | F8: =E8 -> 46.88 | G8: =F8 -> 46.88 | H8: =G8 -> 46.88 | I8: =H8 -> 46.88 | J8: 0
A9: Erlös Hauptprodukt | C9: €/ha | D9: =D7*D8 -> 1172 | E9: 1406.4 | F9: 1875.2 | G9: 1172 | H9: 1406.4 | I9: 1875.2 | J9: 0
A10: Erlös Nebenprodukt(e) | C10: €/ha | D10: 0 | E10: =D10 -> 0 | F10: =E10 -> 0 | G10: =F10 -> 0 | H10: =G10 -> 0 | I10: =H10 -> 0 | J10: 0
A11: Leistungen | C11: €/ha | D11: =D9+D10 -> 1172 | E11: =E10+E9 -> 1406.4 | F11: 1875.2 | G11: 1172 | H11: 1406.4 | I11: 1875.2 | J11: 0
A12: Saatgutkosten | C12: €/ha | D12: =D43 -> 75.7372 | E12: 75.7372 | F12: 75.7372 | G12: 75.7372 | H12: 75.7372 | I12: 75.7372 | J12: =J43 -> 0
A13: Mineraldüngerkosten | C13: €/ha | D13: =D51 -> 225.8316667 | E13: 268.2646667 | F13: 353.1306667 | G13: 225.8316667 | H13: 268.2646667 | I13: 353.1306667 | J13: =J51 -> 0
A14: Pflanzenbehandlungskosten | C14: €/ha | D14: =D56 -> 0 | E14: 0 | F14: 0 | G14: 0 | H14: 0 | I14: 0 | J14: =J56 -> 0
A15: Versicherung | C15: €/ha | D15: =(D11/1000)*Stammdatenblatt!$M$196 -> 7.12576 | E15: =(E11/1000)*Stammdatenblatt!$M$196 -> 8.550912 | F15: =(F11/1000)*Stammdatenblatt!$M$196 -> 11.401216 | G15: =(G11/1000)*Stammdatenblatt!$M$196 -> 7.12576 | H15: =(H11/1000)*Stammdatenblatt!$M$196 -> 8.550912 | I15: =(I11/1000)*Stammdatenblatt!$M$196 -> 11.401216 | J15: =(J11/1000)*Stammdatenblatt!$M$196 -> 0
A16: Trocknungskosten | C16: €/ha | D16: =(D7*Stammdatenblatt!$E$206+D7*Stammdatenblatt!$E$207*4)/3 -> 34 | E16: =(E7*Stammdatenblatt!$E$206+E7*Stammdatenblatt!$E$207*4)/3 -> 40.8 | F16: =(F7*Stammdatenblatt!$E$206+F7*Stammdatenblatt!$E$207*4)/3 -> 54.4 | G16: =(G7*Stammdatenblatt!$E$206+G7*Stammdatenblatt!$E$207*4)/3 -> 34 | H16: =(H7*Stammdatenblatt!$E$206+H7*Stammdatenblatt!$E$207*4)/3 -> 40.8 | I16: =(I7*Stammdatenblatt!$E$206+I7*Stammdatenblatt!$E$207*4)/3 -> 54.4 | J16: =(J7*Stammdatenblatt!$E$206+J7*Stammdatenblatt!$E$207*4)/3 -> 0
A17: Summe Direktkosten | C17: €/ha | D17: =SUM(D12:D16) -> 342.6946267 | E17: =SUM(E12:E16) -> 393.3527787 | F17: 494.6690827 | G17: 342.6946267 | H17: 393.3527787 | I17: 494.6690827 | J17: 0
A18: Direktkostenfreie Leistung | C18: €/ha | D18: =D11-D17 -> 829.3053733 | E18: =E11-E17 -> 1013.047221 | F18: 1380.530917 | G18: 829.3053733 | H18: 1013.047221 | I18: 1380.530917 | J18: 0
A19: Maschinenkosten eigen * | C19: €/ha | D19: =+'Öko-Arbeitsvorgänge-KTBL'!T2730 -> 211.8261 | E19: =+'Öko-Arbeitsvorgänge-KTBL'!T2833 -> 247.338 | F19: =+'Öko-Arbeitsvorgänge-KTBL'!T2781 -> 281.7186 | G19: =+'Öko-Arbeitsvorgänge-KTBL'!T2886 -> 191.1586 | H19: =+'Öko-Arbeitsvorgänge-KTBL'!T2989 -> 226.1442 | I19: =+'Öko-Arbeitsvorgänge-KTBL'!T2937 -> 257.8143 | J19: 0
A20: Maschinenkosten fremd | C20: €/ha | D20: =+'Öko-Arbeitsvorgänge-KTBL'!U2728*(1+Stammdatenblatt!C241) -> 130 | E20: =+'Öko-Arbeitsvorgänge-KTBL'!U2779*(1+Stammdatenblatt!C241) -> 130 | F20: =+'Öko-Arbeitsvorgänge-KTBL'!U2831*(1+Stammdatenblatt!C241) -> 130 | G20: =+'Öko-Arbeitsvorgänge-KTBL'!U2884*(1+Stammdatenblatt!C241) -> 130 | H20: =+'Öko-Arbeitsvorgänge-KTBL'!U2935*(1+Stammdatenblatt!C241) -> 130 | I20: =+'Öko-Arbeitsvorgänge-KTBL'!U2987*(1+Stammdatenblatt!C241) -> 130 | J20: 0
A21: Lohnkosten | C21: €/ha | D21: 0 | E21: =D21 -> 0 | F21: 0 | G21: 0 | H21: 0 | I21: 0 | J21: 0
A22: xxx | C22: €/ha | D22: 0 | E22: 0 | F22: 0 | G22: 0 | H22: 0 | I22: 0 | J22: 0
A23: variable Kosten | C23: €/ha | D23: =SUM(D19:D22,D17) -> 684.5207267 | E23: =SUM(E19:E22,E17) -> 770.6907787 | F23: 906.3876827 | G23: 663.8532267 | H23: 749.4969787 | I23: 882.4833827 | J23: 0
A24: Deckungsbeitrag (DB) | C24: €/ha | D24: =D11-D23 -> 487.4792733 | E24: 635.7092213 | F24: 968.8123173 | G24: 508.1467733 | H24: 656.9030213 | I24: 992.7166173 | J24: 0
A25: Zeit-Spanne | B25: AK-Bedarf
A26: FEB | C26: Akh/ha | D26: =SUMIF('Öko-Arbeitsvorgänge-KTBL'!$B$2687:$B$2727,A26,'Öko-Arbeitsvorgänge-KTBL'!$G$2687:$G$2727) -> 2.97 | E26: =SUMIF('Öko-Arbeitsvorgänge-KTBL'!$B$2740:$B$2778,A26,'Öko-Arbeitsvorgänge-KTBL'!$G$2740:$G$2778) -> 1.23 | F26: =SUMIF('Öko-Arbeitsvorgänge-KTBL'!$B$2791:$B$2830,A26,'Öko-Arbeitsvorgänge-KTBL'!$G$2791:$G$2830) -> 1.23 | G26: =SUMIF('Öko-Arbeitsvorgänge-KTBL'!$B$2843:$B$2883,A26,'Öko-Arbeitsvorgänge-KTBL'!$G$2843:$G$2883) -> 2.61 | H26: =SUMIF('Öko-Arbeitsvorgänge-KTBL'!$B$2896:$B$2934,A26,'Öko-Arbeitsvorgänge-KTBL'!$G$2896:$G$2934) -> 1.12 | I26: =SUMIF('Öko-Arbeitsvorgänge-KTBL'!$B$2947:$B$2986,A26,'Öko-Arbeitsvorgänge-KTBL'!$G$2947:$G$2986) -> 1.12 | J26: 0
A27: MRZ | C27: Akh/ha | D27: =SUMIF('Öko-Arbeitsvorgänge-KTBL'!$B$2687:$B$2727,A27,'Öko-Arbeitsvorgänge-KTBL'!$G$2687:$G$2727) -> 2.07 | E27: =SUMIF('Öko-Arbeitsvorgänge-KTBL'!$B$2740:$B$2778,A27,'Öko-Arbeitsvorgänge-KTBL'!$G$2740:$G$2778) -> 3.19 | F27: =SUMIF('Öko-Arbeitsvorgänge-KTBL'!$B$2791:$B$2830,A27,'Öko-Arbeitsvorgänge-KTBL'!$G$2791:$G$2830) -> 3.82 | G27: =SUMIF('Öko-Arbeitsvorgänge-KTBL'!$B$2843:$B$2883,A27,'Öko-Arbeitsvorgänge-KTBL'!$G$2843:$G$2883) -> 1.49 | H27: =SUMIF('Öko-Arbeitsvorgänge-KTBL'!$B$2896:$B$2934,A27,'Öko-Arbeitsvorgänge-KTBL'!$G$2896:$G$2934) -> 2.45 | I27: =SUMIF('Öko-Arbeitsvorgänge-KTBL'!$B$2947:$B$2986,A27,'Öko-Arbeitsvorgänge-KTBL'!$G$2947:$G$2986) -> 2.98 | J27: 0
A28: APR | C28: Akh/ha | D28: =SUMIF('Öko-Arbeitsvorgänge-KTBL'!$B$2687:$B$2727,A28,'Öko-Arbeitsvorgänge-KTBL'!$G$2687:$G$2727) -> 0.35 | E28: =SUMIF('Öko-Arbeitsvorgänge-KTBL'!$B$2740:$B$2778,A28,'Öko-Arbeitsvorgänge-KTBL'!$G$2740:$G$2778) -> 0.35 | F28: =SUMIF('Öko-Arbeitsvorgänge-KTBL'!$B$2791:$B$2830,A28,'Öko-Arbeitsvorgänge-KTBL'!$G$2791:$G$2830) -> 0.35 | G28: =SUMIF('Öko-Arbeitsvorgänge-KTBL'!$B$2843:$B$2883,A28,'Öko-Arbeitsvorgänge-KTBL'!$G$2843:$G$2883) -> 0.28 | H28: =SUMIF('Öko-Arbeitsvorgänge-KTBL'!$B$2896:$B$2934,A28,'Öko-Arbeitsvorgänge-KTBL'!$G$2896:$G$2934) -> 0.28 | I28: =SUMIF('Öko-Arbeitsvorgänge-KTBL'!$B$2947:$B$2986,A28,'Öko-Arbeitsvorgänge-KTBL'!$G$2947:$G$2986) -> 0.28 | J28: 0
A29: MAI | C29: Akh/ha | D29: =SUMIF('Öko-Arbeitsvorgänge-KTBL'!$B$2687:$B$2727,A29,'Öko-Arbeitsvorgänge-KTBL'!$G$2687:$G$2727) -> 0 | E29: =SUMIF('Öko-Arbeitsvorgänge-KTBL'!$B$2740:$B$2778,A29,'Öko-Arbeitsvorgänge-KTBL'!$G$2740:$G$2778) -> 0 | F29: =SUMIF('Öko-Arbeitsvorgänge-KTBL'!$B$2791:$B$2830,A29,'Öko-Arbeitsvorgänge-KTBL'!$G$2791:$G$2830) -> 0 | G29: =SUMIF('Öko-Arbeitsvorgänge-KTBL'!$B$2843:$B$2883,A29,'Öko-Arbeitsvorgänge-KTBL'!$G$2843:$G$2883) -> 0 | H29: =SUMIF('Öko-Arbeitsvorgänge-KTBL'!$B$2896:$B$2934,A29,'Öko-Arbeitsvorgänge-KTBL'!$G$2896:$G$2934) -> 0 | I29: =SUMIF('Öko-Arbeitsvorgänge-KTBL'!$B$2947:$B$2986,A29,'Öko-Arbeitsvorgänge-KTBL'!$G$2947:$G$2986) -> 0 | J29: 0
A30: JUN | C30: Akh/ha | D30: =SUMIF('Öko-Arbeitsvorgänge-KTBL'!$B$2687:$B$2727,A30,'Öko-Arbeitsvorgänge-KTBL'!$G$2687:$G$2727) -> 0 | E30: =SUMIF('Öko-Arbeitsvorgänge-KTBL'!$B$2740:$B$2778,A30,'Öko-Arbeitsvorgänge-KTBL'!$G$2740:$G$2778) -> 0 | F30: =SUMIF('Öko-Arbeitsvorgänge-KTBL'!$B$2791:$B$2830,A30,'Öko-Arbeitsvorgänge-KTBL'!$G$2791:$G$2830) -> 0 | G30: =SUMIF('Öko-Arbeitsvorgänge-KTBL'!$B$2843:$B$2883,A30,'Öko-Arbeitsvorgänge-KTBL'!$G$2843:$G$2883) -> 0 | H30: =SUMIF('Öko-Arbeitsvorgänge-KTBL'!$B$2896:$B$2934,A30,'Öko-Arbeitsvorgänge-KTBL'!$G$2896:$G$2934) -> 0 | I30: =SUMIF('Öko-Arbeitsvorgänge-KTBL'!$B$2947:$B$2986,A30,'Öko-Arbeitsvorgänge-KTBL'!$G$2947:$G$2986) -> 0 | J30: 0
A31: JUL | C31: Akh/ha | D31: =SUMIF('Öko-Arbeitsvorgänge-KTBL'!$B$2687:$B$2727,A31,'Öko-Arbeitsvorgänge-KTBL'!$G$2687:$G$2727) -> 0.71 | E31: =SUMIF('Öko-Arbeitsvorgänge-KTBL'!$B$2740:$B$2778,A31,'Öko-Arbeitsvorgänge-KTBL'!$G$2740:$G$2778) -> 0.78 | F31: =SUMIF('Öko-Arbeitsvorgänge-KTBL'!$B$2791:$B$2830,A31,'Öko-Arbeitsvorgänge-KTBL'!$G$2791:$G$2830) -> 0.94 | G31: =SUMIF('Öko-Arbeitsvorgänge-KTBL'!$B$2843:$B$2883,A31,'Öko-Arbeitsvorgänge-KTBL'!$G$2843:$G$2883) -> 0.53 | H31: =SUMIF('Öko-Arbeitsvorgänge-KTBL'!$B$2896:$B$2934,A31,'Öko-Arbeitsvorgänge-KTBL'!$G$2896:$G$2934) -> 0.62 | I31: =SUMIF('Öko-Arbeitsvorgänge-KTBL'!$B$2947:$B$2986,A31,'Öko-Arbeitsvorgänge-KTBL'!$G$2947:$G$2986) -> 0.84 | J31: 0
A32: AUG | C32: Akh/ha | D32: =SUMIF('Öko-Arbeitsvorgänge-KTBL'!$B$2687:$B$2727,A32,'Öko-Arbeitsvorgänge-KTBL'!$G$2687:$G$2727) -> 0.85 | E32: =SUMIF('Öko-Arbeitsvorgänge-KTBL'!$B$2740:$B$2778,A32,'Öko-Arbeitsvorgänge-KTBL'!$G$2740:$G$2778) -> 3.98 | F32: =SUMIF('Öko-Arbeitsvorgänge-KTBL'!$B$2791:$B$2830,A32,'Öko-Arbeitsvorgänge-KTBL'!$G$2791:$G$2830) -> 0.85 | G32: =SUMIF('Öko-Arbeitsvorgänge-KTBL'!$B$2843:$B$2883,A32,'Öko-Arbeitsvorgänge-KTBL'!$G$2843:$G$2883) -> 0.66 | H32: =SUMIF('Öko-Arbeitsvorgänge-KTBL'!$B$2896:$B$2934,A32,'Öko-Arbeitsvorgänge-KTBL'!$G$2896:$G$2934) -> 3.29 | I32: =SUMIF('Öko-Arbeitsvorgänge-KTBL'!$B$2947:$B$2986,A32,'Öko-Arbeitsvorgänge-KTBL'!$G$2947:$G$2986) -> 0.66 | J32: 0
A33: SEP | C33: Akh/ha | D33: =SUMIF('Öko-Arbeitsvorgänge-KTBL'!$B$2687:$B$2727,A33,'Öko-Arbeitsvorgänge-KTBL'!$G$2687:$G$2727) -> 1.99 | E33: =SUMIF('Öko-Arbeitsvorgänge-KTBL'!$B$2740:$B$2778,A33,'Öko-Arbeitsvorgänge-KTBL'!$G$2740:$G$2778) -> 0.81 | F33: =SUMIF('Öko-Arbeitsvorgänge-KTBL'!$B$2791:$B$2830,A33,'Öko-Arbeitsvorgänge-KTBL'!$G$2791:$G$2830) -> 2.01 | G33: =SUMIF('Öko-Arbeitsvorgänge-KTBL'!$B$2843:$B$2883,A33,'Öko-Arbeitsvorgänge-KTBL'!$G$2843:$G$2883) -> 1.6 | H33: =SUMIF('Öko-Arbeitsvorgänge-KTBL'!$B$2896:$B$2934,A33,'Öko-Arbeitsvorgänge-KTBL'!$G$2896:$G$2934) -> 0.65 | I33: =SUMIF('Öko-Arbeitsvorgänge-KTBL'!$B$2947:$B$2986,A33,'Öko-Arbeitsvorgänge-KTBL'!$G$2947:$G$2986) -> 1.6 | J33: 0
A34: OKT | C34: Akh/ha | D34: =SUMIF('Öko-Arbeitsvorgänge-KTBL'!$B$2687:$B$2727,A34,'Öko-Arbeitsvorgänge-KTBL'!$G$2687:$G$2727) -> 0 | E34: =SUMIF('Öko-Arbeitsvorgänge-KTBL'!$B$2740:$B$2778,A34,'Öko-Arbeitsvorgänge-KTBL'!$G$2740:$G$2778) -> 0 | F34: =SUMIF('Öko-Arbeitsvorgänge-KTBL'!$B$2791:$B$2830,A34,'Öko-Arbeitsvorgänge-KTBL'!$G$2791:$G$2830) -> 0 | G34: =SUMIF('Öko-Arbeitsvorgänge-KTBL'!$B$2843:$B$2883,A34,'Öko-Arbeitsvorgänge-KTBL'!$G$2843:$G$2883) -> 0 | H34: =SUMIF('Öko-Arbeitsvorgänge-KTBL'!$B$2896:$B$2934,A34,'Öko-Arbeitsvorgänge-KTBL'!$G$2896:$G$2934) -> 0 | I34: =SUMIF('Öko-Arbeitsvorgänge-KTBL'!$B$2947:$B$2986,A34,'Öko-Arbeitsvorgänge-KTBL'!$G$2947:$G$2986) -> 0 | J34: 0
A35: NOV | C35: Akh/ha | D35: =SUMIF('Öko-Arbeitsvorgänge-KTBL'!$B$2687:$B$2727,A35,'Öko-Arbeitsvorgänge-KTBL'!$G$2687:$G$2727) -> 0 | E35: =SUMIF('Öko-Arbeitsvorgänge-KTBL'!$B$2740:$B$2778,A35,'Öko-Arbeitsvorgänge-KTBL'!$G$2740:$G$2778) -> 0 | F35: =SUMIF('Öko-Arbeitsvorgänge-KTBL'!$B$2791:$B$2830,A35,'Öko-Arbeitsvorgänge-KTBL'!$G$2791:$G$2830) -> 0 | G35: =SUMIF('Öko-Arbeitsvorgänge-KTBL'!$B$2843:$B$2883,A35,'Öko-Arbeitsvorgänge-KTBL'!$G$2843:$G$2883) -> 0 | H35: =SUMIF('Öko-Arbeitsvorgänge-KTBL'!$B$2896:$B$2934,A35,'Öko-Arbeitsvorgänge-KTBL'!$G$2896:$G$2934) -> 0 | I35: =SUMIF('Öko-Arbeitsvorgänge-KTBL'!$B$2947:$B$2986,A35,'Öko-Arbeitsvorgänge-KTBL'!$G$2947:$G$2986) -> 0 | J35: 0
A36: Rest | C36: Akh/ha | D36: =SUMIF('Öko-Arbeitsvorgänge-KTBL'!$B$2687:$B$2727,A36,'Öko-Arbeitsvorgänge-KTBL'!$G$2687:$G$2727) -> 0 | E36: =SUMIF('Öko-Arbeitsvorgänge-KTBL'!$B$2740:$B$2778,A36,'Öko-Arbeitsvorgänge-KTBL'!$G$2740:$G$2778) -> 0 | F36: =SUMIF('Öko-Arbeitsvorgänge-KTBL'!$B$2791:$B$2830,A36,'Öko-Arbeitsvorgänge-KTBL'!$G$2791:$G$2830) -> 0 | G36: =SUMIF('Öko-Arbeitsvorgänge-KTBL'!$B$2843:$B$2883,A36,'Öko-Arbeitsvorgänge-KTBL'!$G$2843:$G$2883) -> 0 | H36: =SUMIF('Öko-Arbeitsvorgänge-KTBL'!$B$2896:$B$2934,A36,'Öko-Arbeitsvorgänge-KTBL'!$G$2896:$G$2934) -> 0 | I36: =SUMIF('Öko-Arbeitsvorgänge-KTBL'!$B$2947:$B$2986,A36,'Öko-Arbeitsvorgänge-KTBL'!$G$2947:$G$2986) -> 0 | J36: 0
A37: Arbeitskraftstunden | C37: AKh/ha | D37: =SUM(D26:D36) -> 8.94 | E37: =SUM(E26:E36) -> 10.34 | F37: 9.2 | G37: 7.17 | H37: 8.41 | I37: 7.48 | J37: 0
A38: DB (je Akh) | C38: €/Akh | D38: =IF(D24>0,D24/D37,0) -> 54.52788292 | E38: 61.48058233 | F38: 105.3056867 | G38: 70.87123756 | H38: 78.10975283 | I38: 132.7161253 | J38: 0
A39: Aussaatmenge | C39: kg/ha | D39: 140 | E39: =D39 -> 140 | F39: =E39 -> 140 | G39: =F39 -> 140 | H39: =G39 -> 140 | I39: =H39 -> 140 | J39: 0
A40: davon Zukaufsaatgut | C40: % | D40: 15 | E40: =D40 -> 15 | F40: 15 | G40: 15 | H40: =G40 -> 15 | I40: =H40 -> 15 | J40: 0
A41: Saatgutpreis Eigen | C41: €/dt | D41: =+Stammdatenblatt!J19 -> 46.88 | E41: 46.88 | F41: 46.88 | G41: 46.88 | H41: =G41 -> 46.88 | I41: =H41 -> 46.88 | J41: 0
A42: Zukauf | C42: €/dt | D42: =+Stammdatenblatt!J84 -> 95 | E42: =D42 -> 95 | F42: =+E42 -> 95 | G42: =F42 -> 95 | H42: =+G42 -> 95 | I42: =H42 -> 95 | J42: 0
A43: Saatgutkosten | C43: €/ha | D43: =D40/100*(D39*D42)/100+((100-D40)/100*D39*D41/100) -> 75.7372 | E43: 75.7372 | F43: 75.7372 | G43: 75.7372 | H43: 75.7372 | I43: 75.7372 | J43: 0
A44: Dünger: | B44: €/kg | D44: Nährstoffabfuhr/ ha (in kg Reinnährstoff) LfL
A45: =+Stammdatenblatt!A135 -> Stickstoff | B45: =+Stammdatenblatt!J135 -> 4.61 | C45: Aufw./ha | D45: 34.5 | E45: 41.4 | F45: 55.2 | G45: 34.5 | H45: 41.4 | I45: 55.2 | J45: 0
A46: =+Stammdatenblatt!A136 -> Phosphor | B46: =+Stammdatenblatt!J136 -> 1.06 | C46: Aufw./ha | D46: 20 | E46: 24 | F46: 32 | G46: 20 | H46: 24 | I46: 32 | J46: 0
A47: =+Stammdatenblatt!A137 -> Kali | B47: =+Stammdatenblatt!J137 -> 1.76 | C47: Aufw./ha | D47: 15 | E47: 18 | F47: 24 | G47: 15 | H47: 18 | I47: 24 | J47: 0
A48: =+Stammdatenblatt!A138 -> Kalk | B48: =+Stammdatenblatt!J138 -> 0.04555555556 | C48: Aufw./ha | D48: 300 | E48: =+D48 -> 300 | F48: 300 | G48: =+F48 -> 300 | H48: 300 | I48: =+H48 -> 300 | J48: 0
A49: =+Stammdatenblatt!A139 -> Magnesium | B49: =+Stammdatenblatt!J139 -> 0.552 | C49: Aufw./ha | D49: =D7*'Entzugswerte Düngung'!F9 -> 10 | E49: =E7*'Entzugswerte Düngung'!F9 -> 12 | F49: =F7*'Entzugswerte Düngung'!F9 -> 16 | G49: ='Entzugswerte Düngung'!F9*G7 -> 10 | H49: =H7*'Entzugswerte Düngung'!F9 -> 12 | I49: =I7*'Entzugswerte Düngung'!F9 -> 16 | J49: 0
A50: =+Stammdatenblatt!A140 -> Schwefel | B50: =+Stammdatenblatt!J140 -> 1.149425287 | C50: Aufw./ha | D50: 0 | E50: =D50 -> 0 | F50: 0 | G50: =F50 -> 0 | H50: 0 | I50: =H50 -> 0 | J50: 0
A51: Mineraldüngerkosten | C51: €/ha | D51: =D45*$B$45+D46*$B$46+D47*$B$47+D48*$B$48+D49*$B$49+D50*$B$50 -> 225.8316667 | E51: 268.2646667 | F51: 353.1306667 | G51: 225.8316667 | H51: 268.2646667 | I51: 353.1306667 | J51: 0
A52: Herbizide | C52: €/ha | D52: 0 | E52: 0 | F52: 0 | G52: 0 | H52: 0 | I52: 0 | J52: 0
A53: Fungizide | C53: €/ha | D53: 0 | E53: 0 | F53: 0 | G53: 0 | H53: 0 | I53: 0 | J53: 0
A54: Insektizide | C54: €/ha | D54: 0 | E54: 0 | F54: 0 | G54: 0 | H54: 0 | I54: 0 | J54: 0
A55: Wachstumsregler | C55: €/ha | D55: 0 | E55: 0 | F55: 0 | G55: 0 | H55: 0 | I55: 0 | J55: 0
A56: Pflanzenbehandlungskosten | C56: €/ha | D56: =SUM(D52:D55) -> 0 | E56: 0 | F56: 0 | G56: 0 | H56: 0 | I56: 0 | J56: 0
A57: *Verfahren inkl. Zinsanspruch; Verfahren ohne Zinsanspruch sind in den Arbeitsvorgängen abgebildet.

Sheet Hafer
B3: Landesbetrieb Landwirtschaft Hessen
A4: =IF(Stammdatenblatt!I6+Stammdatenblatt!D76+Stammdatenblatt!D120+Stammdatenblatt!B134+Stammdatenblatt!D145+Stammdatenblatt!C188+Stammdatenblatt!C226+Stammdatenblatt!C241=0,"Produktionsverfahren wurden netto gerechnet", "Produktionsverfahren wurden brutto gerechnet") -> Produktionsverfahren wurden netto gerechnet
J5: eigene
A6: Hafer | D6: 2 ha | G6: 5 ha | H6: 20 ha | J6: Werte
A7: Leistung: Menge Hauptprodukt | C7: dt/ha | D7: 25 | E7: 30 | F7: 35 | G7: 25 | H7: 30 | I7: 35 | J7: 0
A8: Preis Hauptprodukt | C8: € | D8: =+Stammdatenblatt!J13 -> 29.05 | E8: =+D8 -> 29.05 | F8: =+E8 -> 29.05 | G8: =F8 -> 29.05 | H8: =+G8 -> 29.05 | I8: =H8 -> 29.05 | J8: 0
A9: Erlös Hauptprodukt | C9: €/ha | D9: =D7*D8 -> 726.25 | E9: 871.5 | F9: 1016.75 | G9: 726.25 | H9: 871.5 | I9: 1016.75 | J9: 0
A10: Erlös Nebenprodukt(e) | C10: €/ha | D10: 0 | E10: =D10 -> 0 | F10: =E10 -> 0 | G10: =F10 -> 0 | H10: =G10 -> 0 | I10: =H10 -> 0 | J10: 0
A11: Leistungen | C11: €/ha | D11: =D9+D10 -> 726.25 | E11: =E10+E9 -> 871.5 | F11: 1016.75 | G11: 726.25 | H11: 871.5 | I11: 1016.75 | J11: 0
A12: Saatgutkosten | C12: €/ha | D12: =D43 -> 61.54525 | E12: 61.54525 | F12: 61.54525 | G12: 61.54525 | H12: 61.54525 | I12: 61.54525 | J12: =J43 -> 0
A13: Mineraldüngerkosten | C13: €/ha | D13: =D51 -> 241.0446667 | E13: 286.2436667 | F13: 331.9036667 | G13: 241.0446667 | H13: 286.2436667 | I13: 331.9036667 | J13: =J51 -> 0
A14: Pflanzenbehandlungskosten | C14: €/ha | D14: =D56 -> 0 | E14: 0 | F14: 0 | G14: 0 | H14: 0 | I14: 0 | J14: =J56 -> 0
A15: Versicherung | C15: €/ha | D15: =(D11/1000)*Stammdatenblatt!$M$196 -> 4.4156 | E15: =(E11/1000)*Stammdatenblatt!$M$196 -> 5.29872 | F15: =(F11/1000)*Stammdatenblatt!$M$196 -> 6.18184 | G15: =(G11/1000)*Stammdatenblatt!$M$196 -> 4.4156 | H15: =(H11/1000)*Stammdatenblatt!$M$196 -> 5.29872 | I15: =(I11/1000)*Stammdatenblatt!$M$196 -> 6.18184 | J15: =(J11/1000)*Stammdatenblatt!$M$196 -> 0
A16: Trocknungskosten | C16: €/ha | D16: =(D7*Stammdatenblatt!$E$206+D7*Stammdatenblatt!$E$207*4)/3 -> 34 | E16: =(E7*Stammdatenblatt!$E$206+E7*Stammdatenblatt!$E$207*4)/3 -> 40.8 | F16: =(F7*Stammdatenblatt!$E$206+F7*Stammdatenblatt!$E$207*4)/3 -> 47.6 | G16: =(G7*Stammdatenblatt!$E$206+G7*Stammdatenblatt!$E$207*4)/3 -> 34 | H16: =(H7*Stammdatenblatt!$E$206+H7*Stammdatenblatt!$E$207*4)/3 -> 40.8 | I16: =(I7*Stammdatenblatt!$E$206+I7*Stammdatenblatt!$E$207*4)/3 -> 47.6 | J16: =(J7*Stammdatenblatt!$E$206+J7*Stammdatenblatt!$E$207*4)/3 -> 0
A17: Summe Direktkosten | C17: €/ha | D17: =SUM(D12:D16) -> 341.0055167 | E17: 393.8876367 | F17: 447.2307567 | G17: 341.0055167 | H17: 393.8876367 | I17: 447.2307567 | J17: 0
A18: Direktkostenfreie Leistung | C18: €/ha | D18: =D11-D17 -> 385.2444833 | E18: =E11-E17 -> 477.6123633 | F18: 569.5192433 | G18: 385.2444833 | H18: 477.6123633 | I18: 569.5192433 | J18: 0
A19: Maschinenkosten eigen * | C19: €/ha | D19: =+'Öko-Arbeitsvorgänge-KTBL'!T3040 -> 221.2421 | E19: =+'Öko-Arbeitsvorgänge-KTBL'!T3091 -> 263.944 | F19: =+'Öko-Arbeitsvorgänge-KTBL'!T3142 -> 287.0732 | G19: =+'Öko-Arbeitsvorgänge-KTBL'!T3193 -> 204.0412 | H19: =+'Öko-Arbeitsvorgänge-KTBL'!T3244 -> 245.618 | I19: =+'Öko-Arbeitsvorgänge-KTBL'!T3295 -> 269.9916 | J19: 0
A20: Maschinenkosten fremd | C20: €/ha | D20: =+'Öko-Arbeitsvorgänge-KTBL'!U3038*(1+Stammdatenblatt!C241) -> 130 | E20: =+'Öko-Arbeitsvorgänge-KTBL'!U3089*(1+Stammdatenblatt!C241) -> 130 | F20: =+'Öko-Arbeitsvorgänge-KTBL'!U3140*(1+Stammdatenblatt!C241) -> 130 | G20: =+'Öko-Arbeitsvorgänge-KTBL'!U3191*(1+Stammdatenblatt!C241) -> 130 | H20: =+'Öko-Arbeitsvorgänge-KTBL'!U3242*(1+Stammdatenblatt!C241) -> 130 | I20: =+'Öko-Arbeitsvorgänge-KTBL'!U3293*(1+Stammdatenblatt!C241) -> 130 | J20: 0
A21: Lohnkosten | C21: €/ha | D21: 0 | E21: =D21 -> 0 | F21: 0 | G21: 0 | H21: 0 | I21: 0 | J21: 0
A22: xxx | C22: €/ha | D22: 0 | E22: 0 | F22: 0 | G22: 0 | H22: 0 | I22: 0 | J22: 0
A23: variable Kosten | C23: €/ha | D23: =SUM(D19:D22,D17) -> 692.2476167 | E23: =SUM(E19:E22,E17) -> 787.8316367 | F23: 864.3039567 | G23: 675.0467167 | H23: 769.5056367 | I23: 847.2223567 | J23: 0
A24: Deckungsbeitrag (DB) | C24: €/ha | D24: =D11-D23 -> 34.00238333 | E24: =E11-E23 -> 83.66836333 | F24: 152.4460433 | G24: 51.20328333 | H24: 101.9943633 | I24: 169.5276433 | J24: 0
A25: Zeit-Spanne | B25: AK-Bedarf
A26: FEB | C26: Akh/ha | D26: =SUMIF('Öko-Arbeitsvorgänge-KTBL'!$B$2999:$B$3037,A26,'Öko-Arbeitsvorgänge-KTBL'!$G$2999:$G$3037) -> 0.53 | E26: =SUMIF('Öko-Arbeitsvorgänge-KTBL'!$B$3050:$B$3088,A26,'Öko-Arbeitsvorgänge-KTBL'!$G$3050:$G$3088) -> 0.54 | F26: =SUMIF('Öko-Arbeitsvorgänge-KTBL'!$B$3101:$B$3139,A26,'Öko-Arbeitsvorgänge-KTBL'!$G$3101:$G$3139) -> 0.54 | G26: =SUMIF('Öko-Arbeitsvorgänge-KTBL'!$B$3152:$B$3190,A26,'Öko-Arbeitsvorgänge-KTBL'!$G$3152:$G$3190) -> 0.4 | H26: =SUMIF('Öko-Arbeitsvorgänge-KTBL'!$B$3203:$B$3241,A26,'Öko-Arbeitsvorgänge-KTBL'!$G$3203:$G$3241) -> 0.4 | I26: =SUMIF('Öko-Arbeitsvorgänge-KTBL'!$B$3254:$B$3292,A26,'Öko-Arbeitsvorgänge-KTBL'!$G$3254:$G$3292) -> 0.4 | J26: 0
A27: MRZ | C27: Akh/ha | D27: =SUMIF('Öko-Arbeitsvorgänge-KTBL'!$B$2999:$B$3037,A27,'Öko-Arbeitsvorgänge-KTBL'!$G$2999:$G$3037) -> 1.02 | E27: =SUMIF('Öko-Arbeitsvorgänge-KTBL'!$B$3050:$B$3088,A27,'Öko-Arbeitsvorgänge-KTBL'!$G$3050:$G$3088) -> 1.02 | F27: =SUMIF('Öko-Arbeitsvorgänge-KTBL'!$B$3101:$B$3139,A27,'Öko-Arbeitsvorgänge-KTBL'!$G$3101:$G$3139) -> 1.02 | G27: =SUMIF('Öko-Arbeitsvorgänge-KTBL'!$B$3152:$B$3190,A27,'Öko-Arbeitsvorgänge-KTBL'!$G$3152:$G$3190) -> 0.7 | H27: =SUMIF('Öko-Arbeitsvorgänge-KTBL'!$B$3203:$B$3241,A27,'Öko-Arbeitsvorgänge-KTBL'!$G$3203:$G$3241) -> 0.7 | I27: =SUMIF('Öko-Arbeitsvorgänge-KTBL'!$B$3254:$B$3292,A27,'Öko-Arbeitsvorgänge-KTBL'!$G$3254:$G$3292) -> 0.7 | J27: 0
A28: APR | C28: Akh/ha | D28: =SUMIF('Öko-Arbeitsvorgänge-KTBL'!$B$2999:$B$3037,A28,'Öko-Arbeitsvorgänge-KTBL'!$G$2999:$G$3037) -> 0.48 | E28: =SUMIF('Öko-Arbeitsvorgänge-KTBL'!$B$3050:$B$3088,A28,'Öko-Arbeitsvorgänge-KTBL'!$G$3050:$G$3088) -> 0.48 | F28: =SUMIF('Öko-Arbeitsvorgänge-KTBL'!$B$3101:$B$3139,A28,'Öko-Arbeitsvorgänge-KTBL'!$G$3101:$G$3139) -> 0.48 | G28: =SUMIF('Öko-Arbeitsvorgänge-KTBL'!$B$3152:$B$3190,A28,'Öko-Arbeitsvorgänge-KTBL'!$G$3152:$G$3190) -> 0.39 | H28: =SUMIF('Öko-Arbeitsvorgänge-KTBL'!$B$3203:$B$3241,A28,'Öko-Arbeitsvorgänge-KTBL'!$G$3203:$G$3241) -> 0.39 | I28: =SUMIF('Öko-Arbeitsvorgänge-KTBL'!$B$3254:$B$3292,A28,'Öko-Arbeitsvorgänge-KTBL'!$G$3254:$G$3292) -> 0.39 | J28: 0
A29: MAI | C29: Akh/ha | D29: =SUMIF('Öko-Arbeitsvorgänge-KTBL'!$B$2999:$B$3037,A29,'Öko-Arbeitsvorgänge-KTBL'!$G$2999:$G$3037) -> 0 | E29: =SUMIF('Öko-Arbeitsvorgänge-KTBL'!$B$3050:$B$3088,A29,'Öko-Arbeitsvorgänge-KTBL'!$G$3050:$G$3088) -> 0 | F29: =SUMIF('Öko-Arbeitsvorgänge-KTBL'!$B$3101:$B$3139,A29,'Öko-Arbeitsvorgänge-KTBL'!$G$3101:$G$3139) -> 0 | G29: =SUMIF('Öko-Arbeitsvorgänge-KTBL'!$B$3152:$B$3190,A29,'Öko-Arbeitsvorgänge-KTBL'!$G$3152:$G$3190) -> 0 | H29: =SUMIF('Öko-Arbeitsvorgänge-KTBL'!$B$3203:$B$3241,A29,'Öko-Arbeitsvorgänge-KTBL'!$G$3203:$G$3241) -> 0 | I29: =SUMIF('Öko-Arbeitsvorgänge-KTBL'!$B$3254:$B$3292,A29,'Öko-Arbeitsvorgänge-KTBL'!$G$3254:$G$3292) -> 0 | J29: 0
A30: JUN | C30: Akh/ha | D30: =SUMIF('Öko-Arbeitsvorgänge-KTBL'!$B$2999:$B$3037,A30,'Öko-Arbeitsvorgänge-KTBL'!$G$2999:$G$3037) -> 0 | E30: =SUMIF('Öko-Arbeitsvorgänge-KTBL'!$B$3050:$B$3088,A30,'Öko-Arbeitsvorgänge-KTBL'!$G$3050:$G$3088) -> 0 | F30: =SUMIF('Öko-Arbeitsvorgänge-KTBL'!$B$3101:$B$3139,A30,'Öko-Arbeitsvorgänge-KTBL'!$G$3101:$G$3139) -> 0 | G30: =SUMIF('Öko-Arbeitsvorgänge-KTBL'!$B$3152:$B$3190,A30,'Öko-Arbeitsvorgänge-KTBL'!$G$3152:$G$3190) -> 0 | H30: =SUMIF('Öko-Arbeitsvorgänge-KTBL'!$B$3203:$B$3241,A30,'Öko-Arbeitsvorgänge-KTBL'!$G$3203:$G$3241) -> 0 | I30: =SUMIF('Öko-Arbeitsvorgänge-KTBL'!$B$3254:$B$3292,A30,'Öko-Arbeitsvorgänge-KTBL'!$G$3254:$G$3292) -> 0 | J30: 0
A31: JUL | C31: Akh/ha | D31: =SUMIF('Öko-Arbeitsvorgänge-KTBL'!$B$2999:$B$3037,A31,'Öko-Arbeitsvorgänge-KTBL'!$G$2999:$G$3037) -> 0 | E31: =SUMIF('Öko-Arbeitsvorgänge-KTBL'!$B$3050:$B$3088,A31,'Öko-Arbeitsvorgänge-KTBL'!$G$3050:$G$3088) -> 0 | F31: =SUMIF('Öko-Arbeitsvorgänge-KTBL'!$B$3101:$B$3139,A31,'Öko-Arbeitsvorgänge-KTBL'!$G$3101:$G$3139) -> 0 | G31: =SUMIF('Öko-Arbeitsvorgänge-KTBL'!$B$3152:$B$3190,A31,'Öko-Arbeitsvorgänge-KTBL'!$G$3152:$G$3190) -> 0 | H31: =SUMIF('Öko-Arbeitsvorgänge-KTBL'!$B$3203:$B$3241,A31,'Öko-Arbeitsvorgänge-KTBL'!$G$3203:$G$3241) -> 0 | I31: =SUMIF('Öko-Arbeitsvorgänge-KTBL'!$B$3254:$B$3292,A31,'Öko-Arbeitsvorgänge-KTBL'!$G$3254:$G$3292) -> 0 | J31: 0
A32: AUG | C32: Akh/ha | D32: =SUMIF('Öko-Arbeitsvorgänge-KTBL'!$B$2999:$B$3037,A32,'Öko-Arbeitsvorgänge-KTBL'!$G$2999:$G$3037) -> 3.01 | E32: =SUMIF('Öko-Arbeitsvorgänge-KTBL'!$B$3050:$B$3088,A32,'Öko-Arbeitsvorgänge-KTBL'!$G$3050:$G$3088) -> 3.35 | F32: =SUMIF('Öko-Arbeitsvorgänge-KTBL'!$B$3101:$B$3139,A32,'Öko-Arbeitsvorgänge-KTBL'!$G$3101:$G$3139) -> 4.12 | G32: =SUMIF('Öko-Arbeitsvorgänge-KTBL'!$B$3152:$B$3190,A32,'Öko-Arbeitsvorgänge-KTBL'!$G$3152:$G$3190) -> 2.58 | H32: =SUMIF('Öko-Arbeitsvorgänge-KTBL'!$B$3203:$B$3241,A32,'Öko-Arbeitsvorgänge-KTBL'!$G$3203:$G$3241) -> 2.94 | I32: =SUMIF('Öko-Arbeitsvorgänge-KTBL'!$B$3254:$B$3292,A32,'Öko-Arbeitsvorgänge-KTBL'!$G$3254:$G$3292) -> 3.8 | J32: 0
A33: SEP | C33: Akh/ha | D33: =SUMIF('Öko-Arbeitsvorgänge-KTBL'!$B$2999:$B$3037,A33,'Öko-Arbeitsvorgänge-KTBL'!$G$2999:$G$3037) -> 0.84 | E33: =SUMIF('Öko-Arbeitsvorgänge-KTBL'!$B$3050:$B$3088,A33,'Öko-Arbeitsvorgänge-KTBL'!$G$3050:$G$3088) -> 0.85 | F33: =SUMIF('Öko-Arbeitsvorgänge-KTBL'!$B$3101:$B$3139,A33,'Öko-Arbeitsvorgänge-KTBL'!$G$3101:$G$3139) -> 0.85 | G33: =SUMIF('Öko-Arbeitsvorgänge-KTBL'!$B$3152:$B$3190,A33,'Öko-Arbeitsvorgänge-KTBL'!$G$3152:$G$3190) -> 0.68 | H33: =SUMIF('Öko-Arbeitsvorgänge-KTBL'!$B$3203:$B$3241,A33,'Öko-Arbeitsvorgänge-KTBL'!$G$3203:$G$3241) -> 0.68 | I33: =SUMIF('Öko-Arbeitsvorgänge-KTBL'!$B$3254:$B$3292,A33,'Öko-Arbeitsvorgänge-KTBL'!$G$3254:$G$3292) -> 0.68 | J33: 0
A34: OKT | C34: Akh/ha | D34: =SUMIF('Öko-Arbeitsvorgänge-KTBL'!$B$2999:$B$3037,A34,'Öko-Arbeitsvorgänge-KTBL'!$G$2999:$G$3037) -> 3.19 | E34: =SUMIF('Öko-Arbeitsvorgänge-KTBL'!$B$3050:$B$3088,A34,'Öko-Arbeitsvorgänge-KTBL'!$G$3050:$G$3088) -> 3.55 | F34: =SUMIF('Öko-Arbeitsvorgänge-KTBL'!$B$3101:$B$3139,A34,'Öko-Arbeitsvorgänge-KTBL'!$G$3101:$G$3139) -> 3.55 | G34: =SUMIF('Öko-Arbeitsvorgänge-KTBL'!$B$3152:$B$3190,A34,'Öko-Arbeitsvorgänge-KTBL'!$G$3152:$G$3190) -> 2.92 | H34: =SUMIF('Öko-Arbeitsvorgänge-KTBL'!$B$3203:$B$3241,A34,'Öko-Arbeitsvorgänge-KTBL'!$G$3203:$G$3241) -> 3.29 | I34: =SUMIF('Öko-Arbeitsvorgänge-KTBL'!$B$3254:$B$3292,A34,'Öko-Arbeitsvorgänge-KTBL'!$G$3254:$G$3292) -> 3.29 | J34: 0
A35: NOV | C35: Akh/ha | D35: =SUMIF('Öko-Arbeitsvorgänge-KTBL'!$B$2999:$B$3037,A35,'Öko-Arbeitsvorgänge-KTBL'!$G$2999:$G$3037) -> 0 | E35: =SUMIF('Öko-Arbeitsvorgänge-KTBL'!$B$3050:$B$3088,A35,'Öko-Arbeitsvorgänge-KTBL'!$G$3050:$G$3088) -> 0 | F35: =SUMIF('Öko-Arbeitsvorgänge-KTBL'!$B$3101:$B$3139,A35,'Öko-Arbeitsvorgänge-KTBL'!$G$3101:$G$3139) -> 0 | G35: =SUMIF('Öko-Arbeitsvorgänge-KTBL'!$B$3152:$B$3190,A35,'Öko-Arbeitsvorgänge-KTBL'!$G$3152:$G$3190) -> 0 | H35: =SUMIF('Öko-Arbeitsvorgänge-KTBL'!$B$3203:$B$3241,A35,'Öko-Arbeitsvorgänge-KTBL'!$G$3203:$G$3241) -> 0 | I35: =SUMIF('Öko-Arbeitsvorgänge-KTBL'!$B$3254:$B$3292,A35,'Öko-Arbeitsvorgänge-KTBL'!$G$3254:$G$3292) -> 0 | J35: 0
A36: Rest | C36: Akh/ha | D36: =SUMIF('Öko-Arbeitsvorgänge-KTBL'!$B$2999:$B$3037,A36,'Öko-Arbeitsvorgänge-KTBL'!$G$2999:$G$3037) -> 0 | E36: =SUMIF('Öko-Arbeitsvorgänge-KTBL'!$B$3050:$B$3088,A36,'Öko-Arbeitsvorgänge-KTBL'!$G$3050:$G$3088) -> 0 | F36: =SUMIF('Öko-Arbeitsvorgänge-KTBL'!$B$3101:$B$3139,A36,'Öko-Arbeitsvorgänge-KTBL'!$G$3101:$G$3139) -> 0 | G36: =SUMIF('Öko-Arbeitsvorgänge-KTBL'!$B$3152:$B$3190,A36,'Öko-Arbeitsvorgänge-KTBL'!$G$3152:$G$3190) -> 0 | H36: =SUMIF('Öko-Arbeitsvorgänge-KTBL'!$B$3203:$B$3241,A36,'Öko-Arbeitsvorgänge-KTBL'!$G$3203:$G$3241) -> 0 | I36: =SUMIF('Öko-Arbeitsvorgänge-KTBL'!$B$3254:$B$3292,A36,'Öko-Arbeitsvorgänge-KTBL'!$G$3254:$G$3292) -> 0 | J36: 0
A37: Arbeitskraftstunden | C37: AKh/ha | D37: =SUM(D26:D36) -> 9.07 | E37: =SUM(E27:E36) -> 9.25 | F37: 10.02 | G37: 7.27 | H37: 8 | I37: 8.86 | J37: =SUM(J26:J36) -> 0
A38: DB (je Akh) | C38: €/Akh | D38: =IF(D24>0,D24/D37,0) -> 3.748884601 | E38: 9.045228468 | F38: 15.21417598 | G38: 7.043092618 | H38: 12.74929542 | I38: 19.13404552 | J38: 0
A39: Aussaatmenge | C39: kg/ha | D39: 130 | E39: =D39 -> 130 | F39: 130 | G39: 130 | H39: 130 | I39: 130 | J39: 0
A40: davon Zukaufsaatgut | C40: % | D40: 15 | E40: 15 | F40: 15 | G40: 15 | H40: 15 | I40: 15 | J40: 0
A41: Saatgutpreis Eigen | C41: €/dt | D41: =D8+Stammdatenblatt!$E$191 -> 38.05 | E41: =E8+Stammdatenblatt!$E$191 -> 38.05 | F41: =F8+Stammdatenblatt!$E$191 -> 38.05 | G41: =G8+Stammdatenblatt!$E$191 -> 38.05 | H41: =H8+Stammdatenblatt!$E$191 -> 38.05 | I41: =I8+Stammdatenblatt!$E$191 -> 38.05 | J41: 0
A42: Zukauf | C42: €/dt | D42: =+Stammdatenblatt!J85 -> 100 | E42: =D42 -> 100 | F42: =+E42 -> 100 | G42: =F42 -> 100 | H42: =+G42 -> 100 | I42: =H42 -> 100 | J42: 0
A43: Saatgutkosten | C43: €/ha | D43: =D40/100*(D39*D42)/100+((100-D40)/100*D39*D41/100) -> 61.54525 | E43: 61.54525 | F43: 61.54525 | G43: 61.54525 | H43: 61.54525 | I43: 61.54525 | J43: 0
A44: Dünger: | B44: €/kg | D44: Nährstoffabfuhr/ ha (in kg Reinnährstoff) LfL
A45: =+Stammdatenblatt!A135 -> Stickstoff | B45: =+Stammdatenblatt!J135 -> 4.61 | C45: Aufw./ha | D45: 37.8 | E45: 45.3 | F45: 52.9 | G45: 37.8 | H45: 45.3 | I45: 52.9 | J45: 0
A46: =+Stammdatenblatt!A136 -> Phosphor | B46: =+Stammdatenblatt!J136 -> 1.06 | C46: Aufw./ha | D46: 20 | E46: 24 | F46: 28 | G46: 20 | H46: 24 | I46: 28 | J46: 0
A47: =+Stammdatenblatt!A137 -> Kali | B47: =+Stammdatenblatt!J137 -> 1.76 | C47: Aufw./ha | D47: 15 | E47: 18 | F47: 21 | G47: 15 | H47: 18 | I47: 21 | J47: 0
A48: =+Stammdatenblatt!A138 -> Kalk | B48: =+Stammdatenblatt!J138 -> 0.04555555556 | C48: Aufw./ha | D48: 300 | E48: =D48 -> 300 | F48: 300 | G48: =F48 -> 300 | H48: 300 | I48: =H48 -> 300 | J48: 0
A49: =+Stammdatenblatt!A139 -> Magnesium | B49: =+Stammdatenblatt!J139 -> 0.552 | C49: Aufw./ha | D49: =D7*'Entzugswerte Düngung'!F8 -> 10 | E49: =E7*'Entzugswerte Düngung'!F8 -> 12 | F49: =F7*'Entzugswerte Düngung'!F8 -> 14 | G49: =G7*'Entzugswerte Düngung'!F8 -> 10 | H49: =H7*'Entzugswerte Düngung'!F8 -> 12 | I49: =I7*'Entzugswerte Düngung'!F8 -> 14 | J49: 0
A50: =+Stammdatenblatt!A140 -> Schwefel | B50: =+Stammdatenblatt!J140 -> 1.149425287 | C50: Aufw./ha | D50: 0 | E50: 0 | F50: 0 | G50: 0 | H50: 0 | I50: 0 | J50: 0
A51: Mineraldüngerkosten | C51: €/ha | D51: =D45*$B$45+D46*$B$46+D47*$B$47+D48*$B$48+D49*$B$49+D50*$B$50 -> 241.0446667 | E51: 286.2436667 | F51: 331.9036667 | G51: 241.0446667 | H51: 286.2436667 | I51: 331.9036667 | J51: 0
A52: Herbizide | C52: €/ha | D52: 0 | E52: 0 | F52: 0 | G52: 0 | H52: 0 | I52: 0 | J52: 0
A53: Fungizide | C53: €/ha | D53: 0 | E53: 0 | F53: 0 | G53: 0 | H53: 0 | I53: 0 | J53: 0
A54: Insektizide | C54: €/ha | D54: 0 | E54: 0 | F54: 0 | G54: 0 | H54: 0 | I54: 0 | J54: 0
A55: Wachstumsregler | C55: €/ha | D55: 0 | E55: 0 | F55: 0 | G55: 0 | H55: 0 | I55: 0 | J55: 0
A56: Pflanzenbehandlungskosten | C56: €/ha | D56: =SUM(D52:D55) -> 0 | E56: 0 | F56: 0 | G56: 0 | H56: 0 | I56: 0 | J56: 0
A57: *Verfahren inkl. Zinsanspruch; Verfahren ohne Zinsanspruch sind in den Arbeitsvorgängen abgebildet.

Sheet Raps
B3: Landesbetrieb Landwirtschaft Hessen
A4: =IF(Stammdatenblatt!I6+Stammdatenblatt!D76+Stammdatenblatt!D120+Stammdatenblatt!B134+Stammdatenblatt!D145+Stammdatenblatt!C188+Stammdatenblatt!C226+Stammdatenblatt!C241=0,"Produktionsverfahren wurden netto gerechnet", "Produktionsverfahren wurden brutto gerechnet") -> Produktionsverfahren wurden netto gerechnet
D5: Winterraps | J5: eigene
A6: Raps | D6: 2 ha | G6: 5 ha | H6: 20 ha | J6: Werte
A7: Leistung: Menge Hauptprodukt | C7: dt/ha | D7: 10 | E7: 20 | F7: 25 | G7: 10 | H7: 20 | I7: 25 | J7: 0
A8: Preis Hauptprodukt | C8: € | D8: =+Stammdatenblatt!J24 -> 78 | E8: =+D8 -> 78 | F8: =+E8 -> 78 | G8: =+F8 -> 78 | H8: =+G8 -> 78 | I8: =+H8 -> 78 | J8: 0
A9: Erlös Hauptprodukt | C9: €/ha | D9: =D7*D8 -> 780 | E9: 1560 | F9: 1950 | G9: 780 | H9: 1560 | I9: 1950 | J9: 0
A10: Erlös Nebenprodukt(e) | C10: €/ha | D10: 0 | E10: 0 | F10: 0 | G10: 0 | H10: 0 | I10: 0 | J10: 0
A11: Leistungen | C11: €/ha | D11: =D9+D10 -> 780 | E11: =E10+E9 -> 1560 | F11: 1950 | G11: 780 | H11: 1560 | I11: 1950 | J11: 0
A12: Saatgutkosten ** | C12: €/ha | D12: =D43 -> 110 | E12: 110 | F12: 110 | G12: 110 | H12: 110 | I12: 110 | J12: =J43 -> 0
A13: Mineraldüngerkosten | C13: €/ha | D13: =D51 -> 242.0244253 | E13: 435.8994253 | F13: 532.8369253 | G13: 242.0244253 | H13: 435.8994253 | I13: 532.8369253 | J13: =J51 -> 0
A14: Pflanzenbehandlungsk. | C14: €/ha | D14: =D56 -> 0 | E14: 0 | F14: 0 | G14: 0 | H14: 0 | I14: 0 | J14: =J56 -> 0
A15: Versicherung | C15: €/ha | D15: =(D11/1000)*Stammdatenblatt!$M$197 -> 14.2272 | E15: =(E11/1000)*Stammdatenblatt!$M$197 -> 28.4544 | F15: =(F11/1000)*Stammdatenblatt!$M$197 -> 35.568 | G15: =(G11/1000)*Stammdatenblatt!$M$197 -> 14.2272 | H15: =(H11/1000)*Stammdatenblatt!$M$197 -> 28.4544 | I15: =(I11/1000)*Stammdatenblatt!$M$197 -> 35.568 | J15: =(J11/1000)*Stammdatenblatt!$M$197 -> 0
A16: Trocknungskosten | C16: €/ha | D16: =(D7*Stammdatenblatt!$E$211+D7*Stammdatenblatt!$E$212*3)/3 -> 11.96666667 | E16: =(E7*Stammdatenblatt!$E$211+E7*Stammdatenblatt!$E$212*3)/3 -> 23.93333333 | F16: =(F7*Stammdatenblatt!$E$211+F7*Stammdatenblatt!$E$212*3)/3 -> 29.91666667 | G16: =(G7*Stammdatenblatt!$E$211+G7*Stammdatenblatt!$E$212*3)/3 -> 11.96666667 | H16: =(H7*Stammdatenblatt!$E$211+H7*Stammdatenblatt!$E$212*3)/3 -> 23.93333333 | I16: =(I7*Stammdatenblatt!$E$211+I7*Stammdatenblatt!$E$212*3)/3 -> 29.91666667 | J16: =(J7*Stammdatenblatt!$E$211+J7*Stammdatenblatt!$E$212*3)/3 -> 0
A17: Summe Direktkosten | C17: €/ha | D17: =SUM(D12:D16) -> 378.218292 | E17: =SUM(E12:E16) -> 598.2871586 | F17: 708.321592 | G17: 378.218292 | H17: 598.2871586 | I17: 708.321592 | J17: 0
A18: Direktkostenfreie Leistung | C18: €/ha | D18: =D11-D17 -> 401.781708 | E18: =E11-E17 -> 961.7128414 | F18: 1241.678408 | G18: 401.781708 | H18: 961.7128414 | I18: 1241.678408 | J18: 0
A19: Maschinenkosten eigen * | C19: €/ha | D19: =+'Öko-Arbeitsvorgänge-KTBL'!T3341 -> 196.1313 | E19: =+'Öko-Arbeitsvorgänge-KTBL'!T3387 -> 264.2822 | F19: =+'Öko-Arbeitsvorgänge-KTBL'!T3433 -> 292.6396 | G19: =+'Öko-Arbeitsvorgänge-KTBL'!T3479 -> 180.5383 | H19: =+'Öko-Arbeitsvorgänge-KTBL'!T3525 -> 247.1559 | I19: =+'Öko-Arbeitsvorgänge-KTBL'!T3571 -> 276.2824 | J19: 0
A20: Maschinenkosten fremd | C20: €/ha | D20: =+'Öko-Arbeitsvorgänge-KTBL'!U3339*(1+Stammdatenblatt!C241) -> 161 | E20: =+'Öko-Arbeitsvorgänge-KTBL'!U3385*(1+Stammdatenblatt!C241) -> 161 | F20: =+'Öko-Arbeitsvorgänge-KTBL'!U3431*(1+Stammdatenblatt!C241) -> 161 | G20: =+'Öko-Arbeitsvorgänge-KTBL'!U3477*(1+Stammdatenblatt!C241) -> 161 | H20: =+'Öko-Arbeitsvorgänge-KTBL'!U3523*(1+Stammdatenblatt!C241) -> 161 | I20: =+'Öko-Arbeitsvorgänge-KTBL'!U3569*(1+Stammdatenblatt!C241) -> 161 | J20: 0
A21: Lohnkosten | C21: €/ha | D21: 0 | E21: =D21 -> 0 | F21: 0 | G21: 0 | H21: 0 | I21: 0 | J21: 0
A22: xxx | C22: €/ha | D22: 0 | E22: 0 | F22: 0 | G22: 0 | H22: 0 | I22: 0 | J22: 0
A23: variable Kosten | C23: €/ha | D23: =SUM(D19:D22,D17) -> 735.349592 | E23: =SUM(E19:E22,E17) -> 1023.569359 | F23: 1161.961192 | G23: 719.756592 | H23: 1006.443059 | I23: 1145.603992 | J23: 0
A24: Deckungsbeitrag (DB) | C24: €/ha | D24: =D11-D23 -> 44.65040805 | E24: 536.4306414 | F24: 788.038808 | G24: 60.24340805 | H24: 553.5569414 | I24: 804.396008 | J24: 0
A25: Zeit-Spanne | B25: AK-Bedarf
A26: FEB | C26: Akh/ha | D26: =SUMIF('Öko-Arbeitsvorgänge-KTBL'!$B$3305:$B$3338,A26,'Öko-Arbeitsvorgänge-KTBL'!$G$3305:$G$3338) -> 0.13 | E26: =SUMIF('Öko-Arbeitsvorgänge-KTBL'!$B$3351:$B$3384,A26,'Öko-Arbeitsvorgänge-KTBL'!$G$3351:$G$3384) -> 0.13 | F26: =SUMIF('Öko-Arbeitsvorgänge-KTBL'!$B$3397:$B$3430,A26,'Öko-Arbeitsvorgänge-KTBL'!$G$3397:$G$3430) -> 0.13 | G26: =SUMIF('Öko-Arbeitsvorgänge-KTBL'!$B$3443:$B$3476,A26,'Öko-Arbeitsvorgänge-KTBL'!$G$3443:$G$3476) -> 0.11 | H26: =SUMIF('Öko-Arbeitsvorgänge-KTBL'!$B$3489:$B$3522,A26,'Öko-Arbeitsvorgänge-KTBL'!$G$3489:$G$3522) -> 0.11 | I26: =SUMIF('Öko-Arbeitsvorgänge-KTBL'!$B$3535:$B$3568,A26,'Öko-Arbeitsvorgänge-KTBL'!$G$3535:$G$3568) -> 0.11 | J26: 0
A27: MRZ | C27: Akh/ha | D27: =SUMIF('Öko-Arbeitsvorgänge-KTBL'!$B$3305:$B$3338,A27,'Öko-Arbeitsvorgänge-KTBL'!$G$3305:$G$3338) -> 0 | E27: =SUMIF('Öko-Arbeitsvorgänge-KTBL'!$B$3351:$B$3384,A27,'Öko-Arbeitsvorgänge-KTBL'!$G$3351:$G$3384) -> 0 | F27: =SUMIF('Öko-Arbeitsvorgänge-KTBL'!$B$3397:$B$3430,A27,'Öko-Arbeitsvorgänge-KTBL'!$G$3397:$G$3430) -> 0 | G27: =SUMIF('Öko-Arbeitsvorgänge-KTBL'!$B$3443:$B$3476,A27,'Öko-Arbeitsvorgänge-KTBL'!$G$3443:$G$3476) -> 0 | H27: =SUMIF('Öko-Arbeitsvorgänge-KTBL'!$B$3489:$B$3522,A27,'Öko-Arbeitsvorgänge-KTBL'!$G$3489:$G$3522) -> 0 | I27: =SUMIF('Öko-Arbeitsvorgänge-KTBL'!$B$3535:$B$3568,A27,'Öko-Arbeitsvorgänge-KTBL'!$G$3535:$G$3568) -> 0 | J27: 0
A28: APR | C28: Akh/ha | D28: =SUMIF('Öko-Arbeitsvorgänge-KTBL'!$B$3305:$B$3338,A28,'Öko-Arbeitsvorgänge-KTBL'!$G$3305:$G$3338) -> 0 | E28: =SUMIF('Öko-Arbeitsvorgänge-KTBL'!$B$3351:$B$3384,A28,'Öko-Arbeitsvorgänge-KTBL'!$G$3351:$G$3384) -> 0 | F28: =SUMIF('Öko-Arbeitsvorgänge-KTBL'!$B$3397:$B$3430,A28,'Öko-Arbeitsvorgänge-KTBL'!$G$3397:$G$3430) -> 0 | G28: =SUMIF('Öko-Arbeitsvorgänge-KTBL'!$B$3443:$B$3476,A28,'Öko-Arbeitsvorgänge-KTBL'!$G$3443:$G$3476) -> 0 | H28: =SUMIF('Öko-Arbeitsvorgänge-KTBL'!$B$3489:$B$3522,A28,'Öko-Arbeitsvorgänge-KTBL'!$G$3489:$G$3522) -> 0 | I28: =SUMIF('Öko-Arbeitsvorgänge-KTBL'!$B$3535:$B$3568,A28,'Öko-Arbeitsvorgänge-KTBL'!$G$3535:$G$3568) -> 0 | J28: 0
A29: MAI | C29: Akh/ha | D29: =SUMIF('Öko-Arbeitsvorgänge-KTBL'!$B$3305:$B$3338,A29,'Öko-Arbeitsvorgänge-KTBL'!$G$3305:$G$3338) -> 0 | E29: =SUMIF('Öko-Arbeitsvorgänge-KTBL'!$B$3351:$B$3384,A29,'Öko-Arbeitsvorgänge-KTBL'!$G$3351:$G$3384) -> 0 | F29: =SUMIF('Öko-Arbeitsvorgänge-KTBL'!$B$3397:$B$3430,A29,'Öko-Arbeitsvorgänge-KTBL'!$G$3397:$G$3430) -> 0 | G29: =SUMIF('Öko-Arbeitsvorgänge-KTBL'!$B$3443:$B$3476,A29,'Öko-Arbeitsvorgänge-KTBL'!$G$3443:$G$3476) -> 0 | H29: =SUMIF('Öko-Arbeitsvorgänge-KTBL'!$B$3489:$B$3522,A29,'Öko-Arbeitsvorgänge-KTBL'!$G$3489:$G$3522) -> 0 | I29: =SUMIF('Öko-Arbeitsvorgänge-KTBL'!$B$3535:$B$3568,A29,'Öko-Arbeitsvorgänge-KTBL'!$G$3535:$G$3568) -> 0 | J29: 0
A30: JUN | C30: Akh/ha | D30: =SUMIF('Öko-Arbeitsvorgänge-KTBL'!$B$3305:$B$3338,A30,'Öko-Arbeitsvorgänge-KTBL'!$G$3305:$G$3338) -> 0 | E30: =SUMIF('Öko-Arbeitsvorgänge-KTBL'!$B$3351:$B$3384,A30,'Öko-Arbeitsvorgänge-KTBL'!$G$3351:$G$3384) -> 0 | F30: =SUMIF('Öko-Arbeitsvorgänge-KTBL'!$B$3397:$B$3430,A30,'Öko-Arbeitsvorgänge-KTBL'!$G$3397:$G$3430) -> 0 | G30: =SUMIF('Öko-Arbeitsvorgänge-KTBL'!$B$3443:$B$3476,A30,'Öko-Arbeitsvorgänge-KTBL'!$G$3443:$G$3476) -> 0 | H30: =SUMIF('Öko-Arbeitsvorgänge-KTBL'!$B$3489:$B$3522,A30,'Öko-Arbeitsvorgänge-KTBL'!$G$3489:$G$3522) -> 0 | I30: =SUMIF('Öko-Arbeitsvorgänge-KTBL'!$B$3535:$B$3568,A30,'Öko-Arbeitsvorgänge-KTBL'!$G$3535:$G$3568) -> 0 | J30: 0
A31: JUL | C31: Akh/ha | D31: =SUMIF('Öko-Arbeitsvorgänge-KTBL'!$B$3305:$B$3338,A31,'Öko-Arbeitsvorgänge-KTBL'!$G$3305:$G$3338) -> 1.33 | E31: =SUMIF('Öko-Arbeitsvorgänge-KTBL'!$B$3351:$B$3384,A31,'Öko-Arbeitsvorgänge-KTBL'!$G$3351:$G$3384) -> 1.47 | F31: =SUMIF('Öko-Arbeitsvorgänge-KTBL'!$B$3397:$B$3430,A31,'Öko-Arbeitsvorgänge-KTBL'!$G$3397:$G$3430) -> 1.66 | G31: =SUMIF('Öko-Arbeitsvorgänge-KTBL'!$B$3443:$B$3476,A31,'Öko-Arbeitsvorgänge-KTBL'!$G$3443:$G$3476) -> 0.95 | H31: =SUMIF('Öko-Arbeitsvorgänge-KTBL'!$B$3489:$B$3522,A31,'Öko-Arbeitsvorgänge-KTBL'!$G$3489:$G$3522) -> 1.08 | I31: =SUMIF('Öko-Arbeitsvorgänge-KTBL'!$B$3535:$B$3568,A31,'Öko-Arbeitsvorgänge-KTBL'!$G$3535:$G$3568) -> 1.33 | J31: 0
A32: AUG | C32: Akh/ha | D32: =SUMIF('Öko-Arbeitsvorgänge-KTBL'!$B$3305:$B$3338,A32,'Öko-Arbeitsvorgänge-KTBL'!$G$3305:$G$3338) -> 4.97 | E32: =SUMIF('Öko-Arbeitsvorgänge-KTBL'!$B$3351:$B$3384,A32,'Öko-Arbeitsvorgänge-KTBL'!$G$3351:$G$3384) -> 6.1 | F32: =SUMIF('Öko-Arbeitsvorgänge-KTBL'!$B$3397:$B$3430,A32,'Öko-Arbeitsvorgänge-KTBL'!$G$3397:$G$3430) -> 6.53 | G32: =SUMIF('Öko-Arbeitsvorgänge-KTBL'!$B$3443:$B$3476,A32,'Öko-Arbeitsvorgänge-KTBL'!$G$3443:$G$3476) -> 4.34 | H32: =SUMIF('Öko-Arbeitsvorgänge-KTBL'!$B$3489:$B$3522,A32,'Öko-Arbeitsvorgänge-KTBL'!$G$3489:$G$3522) -> 5.48 | I32: =SUMIF('Öko-Arbeitsvorgänge-KTBL'!$B$3535:$B$3568,A32,'Öko-Arbeitsvorgänge-KTBL'!$G$3535:$G$3568) -> 5.9 | J32: 0
A33: SEP | C33: Akh/ha | D33: =SUMIF('Öko-Arbeitsvorgänge-KTBL'!$B$3305:$B$3338,A33,'Öko-Arbeitsvorgänge-KTBL'!$G$3305:$G$3338) -> 0.56 | E33: =SUMIF('Öko-Arbeitsvorgänge-KTBL'!$B$3351:$B$3384,A33,'Öko-Arbeitsvorgänge-KTBL'!$G$3351:$G$3384) -> 0.56 | F33: =SUMIF('Öko-Arbeitsvorgänge-KTBL'!$B$3397:$B$3430,A33,'Öko-Arbeitsvorgänge-KTBL'!$G$3397:$G$3430) -> 0.56 | G33: =SUMIF('Öko-Arbeitsvorgänge-KTBL'!$B$3443:$B$3476,A33,'Öko-Arbeitsvorgänge-KTBL'!$G$3443:$G$3476) -> 0.45 | H33: =SUMIF('Öko-Arbeitsvorgänge-KTBL'!$B$3489:$B$3522,A33,'Öko-Arbeitsvorgänge-KTBL'!$G$3489:$G$3522) -> 0.45 | I33: =SUMIF('Öko-Arbeitsvorgänge-KTBL'!$B$3535:$B$3568,A33,'Öko-Arbeitsvorgänge-KTBL'!$G$3535:$G$3568) -> 0.45 | J33: 0
A34: OKT | C34: Akh/ha | D34: =SUMIF('Öko-Arbeitsvorgänge-KTBL'!$B$3305:$B$3338,A34,'Öko-Arbeitsvorgänge-KTBL'!$G$3305:$G$3338) -> 0.56 | E34: =SUMIF('Öko-Arbeitsvorgänge-KTBL'!$B$3351:$B$3384,A34,'Öko-Arbeitsvorgänge-KTBL'!$G$3351:$G$3384) -> 0.56 | F34: =SUMIF('Öko-Arbeitsvorgänge-KTBL'!$B$3397:$B$3430,A34,'Öko-Arbeitsvorgänge-KTBL'!$G$3397:$G$3430) -> 0.56 | G34: =SUMIF('Öko-Arbeitsvorgänge-KTBL'!$B$3443:$B$3476,A34,'Öko-Arbeitsvorgänge-KTBL'!$G$3443:$G$3476) -> 0.45 | H34: =SUMIF('Öko-Arbeitsvorgänge-KTBL'!$B$3489:$B$3522,A34,'Öko-Arbeitsvorgänge-KTBL'!$G$3489:$G$3522) -> 0.45 | I34: =SUMIF('Öko-Arbeitsvorgänge-KTBL'!$B$3535:$B$3568,A34,'Öko-Arbeitsvorgänge-KTBL'!$G$3535:$G$3568) -> 0.45 | J34: 0
A35: NOV | C35: Akh/ha | D35: =SUMIF('Öko-Arbeitsvorgänge-KTBL'!$B$3305:$B$3338,A35,'Öko-Arbeitsvorgänge-KTBL'!$G$3305:$G$3338) -> 0 | E35: =SUMIF('Öko-Arbeitsvorgänge-KTBL'!$B$3351:$B$3384,A35,'Öko-Arbeitsvorgänge-KTBL'!$G$3351:$G$3384) -> 0 | F35: =SUMIF('Öko-Arbeitsvorgänge-KTBL'!$B$3397:$B$3430,A35,'Öko-Arbeitsvorgänge-KTBL'!$G$3397:$G$3430) -> 0 | G35: =SUMIF('Öko-Arbeitsvorgänge-KTBL'!$B$3443:$B$3476,A35,'Öko-Arbeitsvorgänge-KTBL'!$G$3443:$G$3476) -> 0 | H35: =SUMIF('Öko-Arbeitsvorgänge-KTBL'!$B$3489:$B$3522,A35,'Öko-Arbeitsvorgänge-KTBL'!$G$3489:$G$3522) -> 0 | I35: =SUMIF('Öko-Arbeitsvorgänge-KTBL'!$B$3535:$B$3568,A35,'Öko-Arbeitsvorgänge-KTBL'!$G$3535:$G$3568) -> 0 | J35: 0
A36: Rest | C36: Akh/ha | D36: =SUMIF('Öko-Arbeitsvorgänge-KTBL'!$B$3305:$B$3338,A36,'Öko-Arbeitsvorgänge-KTBL'!$G$3305:$G$3338) -> 0 | E36: =SUMIF('Öko-Arbeitsvorgänge-KTBL'!$B$3351:$B$3384,A36,'Öko-Arbeitsvorgänge-KTBL'!$G$3351:$G$3384) -> 0 | F36: =SUMIF('Öko-Arbeitsvorgänge-KTBL'!$B$3397:$B$3430,A36,'Öko-Arbeitsvorgänge-KTBL'!$G$3397:$G$3430) -> 0 | G36: =SUMIF('Öko-Arbeitsvorgänge-KTBL'!$B$3443:$B$3476,A36,'Öko-Arbeitsvorgänge-KTBL'!$G$3443:$G$3476) -> 0 | H36: =SUMIF('Öko-Arbeitsvorgänge-KTBL'!$B$3489:$B$3522,A36,'Öko-Arbeitsvorgänge-KTBL'!$G$3489:$G$3522) -> 0 | I36: =SUMIF('Öko-Arbeitsvorgänge-KTBL'!$B$3535:$B$3568,A36,'Öko-Arbeitsvorgänge-KTBL'!$G$3535:$G$3568) -> 0 | J36: 0
A37: Arbeitskraftstunden | C37: AKh/ha | D37: =SUM(D26:D36) -> 7.55 | E37: =SUM(E26:E36) -> 8.82 | F37: 9.44 | G37: 6.3 | H37: 7.57 | I37: 8.24 | J37: 0
A38: DB (je Akh) | C38: €/Akh | D38: =IF(D24>0,D24/D37,0) -> 5.913961331 | E38: 60.81980061 | F38: 83.47868729 | G38: 9.562445722 | H38: 73.12509133 | I38: 97.62087476 | J38: 0
A39: Aussaatmenge | C39: kg/ha | D39: 4 | E39: =D39 -> 4 | F39: =E39 -> 4 | G39: =F39 -> 4 | H39: =G39 -> 4 | I39: =H39 -> 4 | J39: 0
A40: davon Zukaufsaatgut | C40: % | D40: 100 | E40: =D40 -> 100 | F40: 100 | G40: 100 | H40: 100 | I40: 100 | J40: 0
A41: Saatgutpreis Eigen | C41: €/dt | D41: 0 | E41: 0 | F41: 0 | G41: 0 | H41: =G41 -> 0 | I41: =H41 -> 0 | J41: 0
A42: Zukauf | C42: €/kg | D42: =+Stammdatenblatt!$J$86/3/4 -> 27.5 | E42: =D42 -> 27.5 | F42: =+E42 -> 27.5 | G42: =F42 -> 27.5 | H42: =+G42 -> 27.5 | I42: =+Stammdatenblatt!$J$86/3/4 -> 27.5 | J42: 0
A43: Saatgutkosten | C43: €/ha | D43: =+(D39*D40)/100*D42+(D39*(100-D40)/100)*D42 -> 110 | E43: 110 | F43: 110 | G43: 110 | H43: 110 | I43: 110 | J43: 0
A44: Dünger: | B44: €/kg | D44: Düngeraufwand/ha (in kg Reinnährstoff Entzug)
A45: =+Stammdatenblatt!A135 -> Stickstoff | B45: =+Stammdatenblatt!J135 -> 4.61 | C45: Aufw./ha | D45: =D7*'Entzugswerte Düngung'!C16 -> 33.5 | E45: =E7*'Entzugswerte Düngung'!C16 -> 67 | F45: =F7*'Entzugswerte Düngung'!C16 -> 83.75 | G45: =G7*'Entzugswerte Düngung'!C16 -> 33.5 | H45: =H7*'Entzugswerte Düngung'!C16 -> 67 | I45: =I7*'Entzugswerte Düngung'!C16 -> 83.75 | J45: 0
A46: =+Stammdatenblatt!A136 -> Phosphor | B46: =+Stammdatenblatt!J136 -> 1.06 | C46: Aufw./ha | D46: =D7*'Entzugswerte Düngung'!D16 -> 18 | E46: =E7*'Entzugswerte Düngung'!D16 -> 36 | F46: =F7*'Entzugswerte Düngung'!D16 -> 45 | G46: =G7*'Entzugswerte Düngung'!D16 -> 18 | H46: =H7*'Entzugswerte Düngung'!D16 -> 36 | I46: =I7*'Entzugswerte Düngung'!D16 -> 45 | J46: 0
A47: =+Stammdatenblatt!A137 -> Kali | B47: =+Stammdatenblatt!J137 -> 1.76 | C47: Aufw./ha | D47: =D7*'Entzugswerte Düngung'!E16 -> 10 | E47: =E7*'Entzugswerte Düngung'!E16 -> 20 | F47: =F7*'Entzugswerte Düngung'!E16 -> 25 | G47: =G7*'Entzugswerte Düngung'!E16 -> 10 | H47: =H7*'Entzugswerte Düngung'!E16 -> 20 | I47: =I7*'Entzugswerte Düngung'!E16 -> 25 | J47: 0
A48: =+Stammdatenblatt!A138 -> Kalk | B48: =+Stammdatenblatt!J138 -> 0.04555555556 | C48: Aufw./ha | D48: 300 | E48: =D48 -> 300 | F48: 300 | G48: =F48 -> 300 | H48: 300 | I48: 300 | J48: 0
A49: =+Stammdatenblatt!A139 -> Magnesium | B49: =+Stammdatenblatt!J139 -> 0.552 | C49: Aufw./ha | D49: =D7*'Entzugswerte Düngung'!F16 -> 5 | E49: =E7*'Entzugswerte Düngung'!F16 -> 10 | F49: =F7*'Entzugswerte Düngung'!F16 -> 12.5 | G49: =G7*'Entzugswerte Düngung'!F16 -> 5 | H49: =H7*'Entzugswerte Düngung'!F16 -> 10 | I49: =I7*'Entzugswerte Düngung'!F16 -> 12.5 | J49: 0
A50: =+Stammdatenblatt!A140 -> Schwefel | B50: =+Stammdatenblatt!J140 -> 1.149425287 | C50: Aufw./ha | D50: 30 | E50: 30 | F50: 30 | G50: =F50 -> 30 | H50: 30 | I50: 30 | J50: 0
A51: Mineraldüngerkosten | C51: €/ha | D51: =D45*$B$45+D46*$B$46+D47*$B$47+D48*$B$48+D49*$B$49+D50*$B$50 -> 242.0244253 | E51: 435.8994253 | F51: 532.8369253 | G51: 242.0244253 | H51: 435.8994253 | I51: 532.8369253 | J51: 0
A52: Herbizide | C52: €/ha | D52: 0 | E52: 0 | F52: 0 | G52: 0 | H52: 0 | I52: 0 | J52: 0
A53: Fungizide | C53: €/ha | D53: 0 | E53: 0 | F53: 0 | G53: 0 | H53: 0 | I53: 0 | J53: 0
A54: Insektizide | C54: €/ha | D54: 0 | E54: 0 | F54: 0 | G54: 0 | H54: 0 | I54: 0 | J54: 0
A55: Molluskizide | C55: €/ha | D55: 0 | E55: 0 | F55: 0 | G55: 0 | H55: 0 | I55: 0 | J55: 0
A56: Pflanzenbehandlungsk. | C56: €/ha | D56: =SUM(D52:D55) -> 0 | E56: 0 | F56: 0 | G56: 0 | H56: 0 | I56: 0 | J56: 0
A57: *Verfahren inkl. Zinsanspruch; Verfahren ohne Zinsanspruch sind in den Arbeitsvorgängen abgebildet.
A58: **Saatgut ab WJ 2013/2014 in sog. Units (Einheiten), siehe Hinweis mit Vergleichsberechnung rechts!

Sheet Erbsen
B3: Landesbetrieb Landwirtschaft Hessen
A4: =IF(Stammdatenblatt!I6+Stammdatenblatt!D76+Stammdatenblatt!D120+Stammdatenblatt!B134+Stammdatenblatt!D145+Stammdatenblatt!C188+Stammdatenblatt!C226+Stammdatenblatt!C241=0,"Produktionsverfahren wurden netto gerechnet", "Produktionsverfahren wurden brutto gerechnet") -> Produktionsverfahren wurden netto gerechnet
J5: eigene
A6: Erbsen | D6: 2 ha | G6: 5 ha | J6: Werte
A7: Leistung: Menge Hauptprodukt | C7: dt/ha | D7: 25 | E7: 35 | F7: 40 | G7: 25 | H7: 35 | I7: 40 | J7: 0
A8: Preis Hauptprodukt | C8: € | D8: =+Stammdatenblatt!J25 -> 52.26 | E8: =D8 -> 52.26 | F8: =+E8 -> 52.26 | G8: =D8 -> 52.26 | H8: =D8 -> 52.26 | I8: =D8 -> 52.26 | J8: 0
A9: Erlös Hauptprodukt | C9: €/ha | D9: =D7*D8 -> 1306.5 | E9: 1829.1 | F9: 2090.4 | G9: 1306.5 | H9: 1829.1 | I9: 2090.4 | J9: 0
A10: Erlös Nebenprodukt(e) | C10: €/ha | D10: 0 | E10: =D10 -> 0 | F10: =E10 -> 0 | G10: 0 | J10: 0
A11: Leistungen | C11: €/ha | D11: =D9+D10 -> 1306.5 | E11: =E10+E9 -> 1829.1 | F11: 2090.4 | G11: 1306.5 | H11: 1829.1 | I11: 2090.4 | J11: 0
A12: Saatgutkosten | C12: €/ha | D12: =D43 -> 120.0249 | E12: 120.0249 | F12: 120.0249 | G12: 120.0249 | H12: 120.0249 | I12: 120.0249 | J12: 0
A13: Mineraldüngerkosten | C13: €/ha | D13: =D51 -> 108.5566667 | E13: 146.5126667 | F13: 165.4906667 | G13: 108.5566667 | H13: 146.5126667 | I13: 165.4906667 | J13: 0
A14: Pflanzenbehandlungsk. | C14: €/ha | D14: =D56 -> 0 | E14: 0 | F14: 0 | G14: 0 | H14: 0 | I14: 0 | J14: 0
A15: Versicherung | C15: €/ha | D15: =(D11/1000)*Stammdatenblatt!$M$198 -> 17.87292 | E15: =(E11/1000)*Stammdatenblatt!$M$198 -> 25.022088 | F15: =(F11/1000)*Stammdatenblatt!$M$198 -> 28.596672 | G15: =(G11/1000)*Stammdatenblatt!$M$198 -> 17.87292 | H15: =(H11/1000)*Stammdatenblatt!$M$198 -> 25.022088 | I15: =(I11/1000)*Stammdatenblatt!$M$198 -> 28.596672 | J15: =(J11/1000)*Stammdatenblatt!$M$198 -> 0
A16: Trocknungskosten | C16: €/ha | D16: =(D7*Stammdatenblatt!$E$218+D7*Stammdatenblatt!$E$216*6)/2.5 -> 53 | E16: =(E7*Stammdatenblatt!$E$218+E7*Stammdatenblatt!E216*6)/2.5 -> 74.2 | F16: =(F7*Stammdatenblatt!$E$218+F7*Stammdatenblatt!E216*6)/2.5 -> 84.8 | G16: =(G7*Stammdatenblatt!$E$218+G7*Stammdatenblatt!E216*6)/2.5 -> 53 | H16: =(H7*Stammdatenblatt!$E$218+H7*Stammdatenblatt!E216*6)/2.5 -> 74.2 | I16: =(I7*Stammdatenblatt!$E$218+I7*Stammdatenblatt!E216*6)/2.5 -> 84.8 | J16: =(J7*Stammdatenblatt!$E$218+J7*Stammdatenblatt!E216*6)/2 -> 0
A17: Summe Direktkosten | C17: €/ha | D17: =SUM(D12:D16) -> 299.4544867 | E17: 365.7596547 | F17: 398.9122387 | G17: 299.4544867 | H17: 365.7596547 | I17: 398.9122387 | J17: 0
A18: Direktkostenfreie Leistung | C18: €/ha | D18: =D11-D17 -> 1007.045513 | E18: 1463.340345 | F18: 1691.487761 | G18: 1007.045513 | H18: 1463.340345 | I18: 1691.487761 | J18: 0
A19: Maschinenkosten eigen * | C19: €/ha | D19: =+'Öko-Arbeitsvorgänge-KTBL'!T3614 -> 165.4345 | E19: =+'Öko-Arbeitsvorgänge-KTBL'!T3657 -> 195.8699 | F19: =+'Öko-Arbeitsvorgänge-KTBL'!T3700 -> 198.9982 | G19: =+'Öko-Arbeitsvorgänge-KTBL'!T3743 -> 149.4913 | H19: =+'Öko-Arbeitsvorgänge-KTBL'!T3786 -> 179.2397 | I19: =+'Öko-Arbeitsvorgänge-KTBL'!T3829 -> 182.7505 | J19: 0
A20: Maschinenkosten fremd | C20: €/ha | D20: =+'Öko-Arbeitsvorgänge-KTBL'!U3612*(1+Stammdatenblatt!C241) -> 130 | E20: =+'Öko-Arbeitsvorgänge-KTBL'!U3655*(1+Stammdatenblatt!C241) -> 130 | F20: =+'Öko-Arbeitsvorgänge-KTBL'!U3698*(1+Stammdatenblatt!C241) -> 130 | G20: =+'Öko-Arbeitsvorgänge-KTBL'!U3741*(1+Stammdatenblatt!C241) -> 130 | H20: =+'Öko-Arbeitsvorgänge-KTBL'!U3784*(1+Stammdatenblatt!C241) -> 130 | I20: =+'Öko-Arbeitsvorgänge-KTBL'!U3827*(1+Stammdatenblatt!C241) -> 130 | J20: 0
A21: Lohnkosten | C21: €/ha | D21: 0 | E21: =D21 -> 0 | F21: =E21 -> 0 | G21: 0 | J21: 0
A22: xxx | C22: €/ha | D22: 0 | E22: =D22 -> 0 | F22: =E22 -> 0 | G22: 0 | J22: 0
A23: variable Kosten | C23: €/ha | D23: =SUM(D19:D22,D17) -> 594.8889867 | E23: 691.6295547 | F23: 727.9104387 | G23: 578.9457867 | H23: 674.9993547 | I23: 711.6627387 | J23: 0
A24: Deckungsbeitrag (DB) | C24: €/ha | D24: =D11-D23 -> 711.6110133 | E24: 1137.470445 | F24: 1362.489561 | G24: 727.5542133 | H24: 1154.100645 | I24: 1378.737261 | J24: 0
A25: Zeit-Spanne | B25: AK-Bedarf
A26: FEB | C26: Akh/ha | D26: =SUMIF('Öko-Arbeitsvorgänge-KTBL'!$B$3581:$B$3611,A26,'Öko-Arbeitsvorgänge-KTBL'!$G$3581:$G$3611) -> 0 | E26: =SUMIF('Öko-Arbeitsvorgänge-KTBL'!$B$3624:$B$3654,A26,'Öko-Arbeitsvorgänge-KTBL'!$G$3624:$G$3654) -> 0 | F26: =SUMIF('Öko-Arbeitsvorgänge-KTBL'!$B$3667:$B$3697,A26,'Öko-Arbeitsvorgänge-KTBL'!$G$3667:$G$3697) -> 0 | G26: =SUMIF('Öko-Arbeitsvorgänge-KTBL'!$B$3710:$B$3740,A26,'Öko-Arbeitsvorgänge-KTBL'!$G$3710:$G$3740) -> 0 | H26: =SUMIF('Öko-Arbeitsvorgänge-KTBL'!$B$3753:$B$3783,A26,'Öko-Arbeitsvorgänge-KTBL'!$G$3753:$G$3783) -> 0 | I26: =SUMIF('Öko-Arbeitsvorgänge-KTBL'!$B$3796:$B$3826,A26,'Öko-Arbeitsvorgänge-KTBL'!$G$3796:$G$3826) -> 0 | J26: 0
A27: MRZ | C27: Akh/ha | D27: =SUMIF('Öko-Arbeitsvorgänge-KTBL'!$B$3581:$B$3611,A27,'Öko-Arbeitsvorgänge-KTBL'!$G$3581:$G$3611) -> 0.13 | E27: =SUMIF('Öko-Arbeitsvorgänge-KTBL'!$B$3624:$B$3654,A27,'Öko-Arbeitsvorgänge-KTBL'!$G$3624:$G$3654) -> 0.13 | F27: =SUMIF('Öko-Arbeitsvorgänge-KTBL'!$B$3667:$B$3697,A27,'Öko-Arbeitsvorgänge-KTBL'!$G$3667:$G$3697) -> 0.13 | G27: =SUMIF('Öko-Arbeitsvorgänge-KTBL'!$B$3710:$B$3740,A27,'Öko-Arbeitsvorgänge-KTBL'!$G$3710:$G$3740) -> 0.11 | H27: =SUMIF('Öko-Arbeitsvorgänge-KTBL'!$B$3753:$B$3783,A27,'Öko-Arbeitsvorgänge-KTBL'!$G$3753:$G$3783) -> 0.11 | I27: =SUMIF('Öko-Arbeitsvorgänge-KTBL'!$B$3796:$B$3826,A27,'Öko-Arbeitsvorgänge-KTBL'!$G$3796:$G$3826) -> 0.11 | J27: 0
A28: APR | C28: Akh/ha | D28: =SUMIF('Öko-Arbeitsvorgänge-KTBL'!$B$3581:$B$3611,A28,'Öko-Arbeitsvorgänge-KTBL'!$G$3581:$G$3611) -> 0 | E28: =SUMIF('Öko-Arbeitsvorgänge-KTBL'!$B$3624:$B$3654,A28,'Öko-Arbeitsvorgänge-KTBL'!$G$3624:$G$3654) -> 0 | F28: =SUMIF('Öko-Arbeitsvorgänge-KTBL'!$B$3667:$B$3697,A28,'Öko-Arbeitsvorgänge-KTBL'!$G$3667:$G$3697) -> 0 | G28: =SUMIF('Öko-Arbeitsvorgänge-KTBL'!$B$3710:$B$3740,A28,'Öko-Arbeitsvorgänge-KTBL'!$G$3710:$G$3740) -> 0 | H28: =SUMIF('Öko-Arbeitsvorgänge-KTBL'!$B$3753:$B$3783,A28,'Öko-Arbeitsvorgänge-KTBL'!$G$3753:$G$3783) -> 0 | I28: =SUMIF('Öko-Arbeitsvorgänge-KTBL'!$B$3796:$B$3826,A28,'Öko-Arbeitsvorgänge-KTBL'!$G$3796:$G$3826) -> 0 | J28: 0
A29: MAI | C29: Akh/ha | D29: =SUMIF('Öko-Arbeitsvorgänge-KTBL'!$B$3581:$B$3611,A29,'Öko-Arbeitsvorgänge-KTBL'!$G$3581:$G$3611) -> 0 | E29: =SUMIF('Öko-Arbeitsvorgänge-KTBL'!$B$3624:$B$3654,A29,'Öko-Arbeitsvorgänge-KTBL'!$G$3624:$G$3654) -> 0 | F29: =SUMIF('Öko-Arbeitsvorgänge-KTBL'!$B$3667:$B$3697,A29,'Öko-Arbeitsvorgänge-KTBL'!$G$3667:$G$3697) -> 0 | G29: =SUMIF('Öko-Arbeitsvorgänge-KTBL'!$B$3710:$B$3740,A29,'Öko-Arbeitsvorgänge-KTBL'!$G$3710:$G$3740) -> 0 | H29: =SUMIF('Öko-Arbeitsvorgänge-KTBL'!$B$3753:$B$3783,A29,'Öko-Arbeitsvorgänge-KTBL'!$G$3753:$G$3783) -> 0 | I29: =SUMIF('Öko-Arbeitsvorgänge-KTBL'!$B$3796:$B$3826,A29,'Öko-Arbeitsvorgänge-KTBL'!$G$3796:$G$3826) -> 0 | J29: 0
A30: JUN | C30: Akh/ha | D30: =SUMIF('Öko-Arbeitsvorgänge-KTBL'!$B$3581:$B$3611,A30,'Öko-Arbeitsvorgänge-KTBL'!$G$3581:$G$3611) -> 0 | E30: =SUMIF('Öko-Arbeitsvorgänge-KTBL'!$B$3624:$B$3654,A30,'Öko-Arbeitsvorgänge-KTBL'!$G$3624:$G$3654) -> 0 | F30: =SUMIF('Öko-Arbeitsvorgänge-KTBL'!$B$3667:$B$3697,A30,'Öko-Arbeitsvorgänge-KTBL'!$G$3667:$G$3697) -> 0 | G30: =SUMIF('Öko-Arbeitsvorgänge-KTBL'!$B$3710:$B$3740,A30,'Öko-Arbeitsvorgänge-KTBL'!$G$3710:$G$3740) -> 0 | H30: =SUMIF('Öko-Arbeitsvorgänge-KTBL'!$B$3753:$B$3783,A30,'Öko-Arbeitsvorgänge-KTBL'!$G$3753:$G$3783) -> 0 | I30: =SUMIF('Öko-Arbeitsvorgänge-KTBL'!$B$3796:$B$3826,A30,'Öko-Arbeitsvorgänge-KTBL'!$G$3796:$G$3826) -> 0 | J30: 0
A31: JUL | C31: Akh/ha | D31: =SUMIF('Öko-Arbeitsvorgänge-KTBL'!$B$3581:$B$3611,A31,'Öko-Arbeitsvorgänge-KTBL'!$G$3581:$G$3611) -> 1.46 | E31: =SUMIF('Öko-Arbeitsvorgänge-KTBL'!$B$3624:$B$3654,A31,'Öko-Arbeitsvorgänge-KTBL'!$G$3624:$G$3654) -> 1.58 | F31: =SUMIF('Öko-Arbeitsvorgänge-KTBL'!$B$3667:$B$3697,A31,'Öko-Arbeitsvorgänge-KTBL'!$G$3667:$G$3697) -> 1.64 | G31: =SUMIF('Öko-Arbeitsvorgänge-KTBL'!$B$3710:$B$3740,A31,'Öko-Arbeitsvorgänge-KTBL'!$G$3710:$G$3740) -> 1.09 | H31: =SUMIF('Öko-Arbeitsvorgänge-KTBL'!$B$3753:$B$3783,A31,'Öko-Arbeitsvorgänge-KTBL'!$G$3753:$G$3783) -> 1.26 | I31: =SUMIF('Öko-Arbeitsvorgänge-KTBL'!$B$3796:$B$3826,A31,'Öko-Arbeitsvorgänge-KTBL'!$G$3796:$G$3826) -> 1.35 | J31: 0
A32: AUG | C32: Akh/ha | D32: =SUMIF('Öko-Arbeitsvorgänge-KTBL'!$B$3581:$B$3611,A32,'Öko-Arbeitsvorgänge-KTBL'!$G$3581:$G$3611) -> 0.84 | E32: =SUMIF('Öko-Arbeitsvorgänge-KTBL'!$B$3624:$B$3654,A32,'Öko-Arbeitsvorgänge-KTBL'!$G$3624:$G$3654) -> 0.85 | F32: =SUMIF('Öko-Arbeitsvorgänge-KTBL'!$B$3667:$B$3697,A32,'Öko-Arbeitsvorgänge-KTBL'!$G$3667:$G$3697) -> 0.85 | G32: =SUMIF('Öko-Arbeitsvorgänge-KTBL'!$B$3710:$B$3740,A32,'Öko-Arbeitsvorgänge-KTBL'!$G$3710:$G$3740) -> 0.68 | H32: =SUMIF('Öko-Arbeitsvorgänge-KTBL'!$B$3753:$B$3783,A32,'Öko-Arbeitsvorgänge-KTBL'!$G$3753:$G$3783) -> 0.68 | I32: =SUMIF('Öko-Arbeitsvorgänge-KTBL'!$B$3796:$B$3826,A32,'Öko-Arbeitsvorgänge-KTBL'!$G$3796:$G$3826) -> 0.68 | J32: 0
A33: SEP | C33: Akh/ha | D33: =SUMIF('Öko-Arbeitsvorgänge-KTBL'!$B$3581:$B$3611,A33,'Öko-Arbeitsvorgänge-KTBL'!$G$3581:$G$3611) -> 3.65 | E33: =SUMIF('Öko-Arbeitsvorgänge-KTBL'!$B$3624:$B$3654,A33,'Öko-Arbeitsvorgänge-KTBL'!$G$3624:$G$3654) -> 3.66 | F33: =SUMIF('Öko-Arbeitsvorgänge-KTBL'!$B$3667:$B$3697,A33,'Öko-Arbeitsvorgänge-KTBL'!$G$3667:$G$3697) -> 3.66 | G33: =SUMIF('Öko-Arbeitsvorgänge-KTBL'!$B$3710:$B$3740,A33,'Öko-Arbeitsvorgänge-KTBL'!$G$3710:$G$3740) -> 2.87 | H33: =SUMIF('Öko-Arbeitsvorgänge-KTBL'!$B$3753:$B$3783,A33,'Öko-Arbeitsvorgänge-KTBL'!$G$3753:$G$3783) -> 2.87 | I33: =SUMIF('Öko-Arbeitsvorgänge-KTBL'!$B$3796:$B$3826,A33,'Öko-Arbeitsvorgänge-KTBL'!$G$3796:$G$3826) -> 2.87 | J33: 0
A34: OKT | C34: Akh/ha | D34: =SUMIF('Öko-Arbeitsvorgänge-KTBL'!$B$3581:$B$3611,A34,'Öko-Arbeitsvorgänge-KTBL'!$G$3581:$G$3611) -> 0 | E34: =SUMIF('Öko-Arbeitsvorgänge-KTBL'!$B$3624:$B$3654,A34,'Öko-Arbeitsvorgänge-KTBL'!$G$3624:$G$3654) -> 0 | F34: =SUMIF('Öko-Arbeitsvorgänge-KTBL'!$B$3667:$B$3697,A34,'Öko-Arbeitsvorgänge-KTBL'!$G$3667:$G$3697) -> 0 | G34: =SUMIF('Öko-Arbeitsvorgänge-KTBL'!$B$3710:$B$3740,A34,'Öko-Arbeitsvorgänge-KTBL'!$G$3710:$G$3740) -> 0 | H34: =SUMIF('Öko-Arbeitsvorgänge-KTBL'!$B$3753:$B$3783,A34,'Öko-Arbeitsvorgänge-KTBL'!$G$3753:$G$3783) -> 0 | I34: =SUMIF('Öko-Arbeitsvorgänge-KTBL'!$B$3796:$B$3826,A34,'Öko-Arbeitsvorgänge-KTBL'!$G$3796:$G$3826) -> 0 | J34: 0
A35: NOV | C35: Akh/ha | D35: =SUMIF('Öko-Arbeitsvorgänge-KTBL'!$B$3581:$B$3611,A35,'Öko-Arbeitsvorgänge-KTBL'!$G$3581:$G$3611) -> 0 | E35: =SUMIF('Öko-Arbeitsvorgänge-KTBL'!$B$3624:$B$3654,A35,'Öko-Arbeitsvorgänge-KTBL'!$G$3624:$G$3654) -> 0 | F35: =SUMIF('Öko-Arbeitsvorgänge-KTBL'!$B$3667:$B$3697,A35,'Öko-Arbeitsvorgänge-KTBL'!$G$3667:$G$3697) -> 0 | G35: =SUMIF('Öko-Arbeitsvorgänge-KTBL'!$B$3710:$B$3740,A35,'Öko-Arbeitsvorgänge-KTBL'!$G$3710:$G$3740) -> 0 | H35: =SUMIF('Öko-Arbeitsvorgänge-KTBL'!$B$3753:$B$3783,A35,'Öko-Arbeitsvorgänge-KTBL'!$G$3753:$G$3783) -> 0 | I35: =SUMIF('Öko-Arbeitsvorgänge-KTBL'!$B$3796:$B$3826,A35,'Öko-Arbeitsvorgänge-KTBL'!$G$3796:$G$3826) -> 0 | J35: 0
A36: Rest | C36: Akh/ha | D36: =SUMIF('Öko-Arbeitsvorgänge-KTBL'!$B$3581:$B$3611,A36,'Öko-Arbeitsvorgänge-KTBL'!$G$3581:$G$3611) -> 0 | E36: =SUMIF('Öko-Arbeitsvorgänge-KTBL'!$B$3624:$B$3654,A36,'Öko-Arbeitsvorgänge-KTBL'!$G$3624:$G$3654) -> 0 | F36: =SUMIF('Öko-Arbeitsvorgänge-KTBL'!$B$3667:$B$3697,A36,'Öko-Arbeitsvorgänge-KTBL'!$G$3667:$G$3697) -> 0 | G36: =SUMIF('Öko-Arbeitsvorgänge-KTBL'!$B$3710:$B$3740,A36,'Öko-Arbeitsvorgänge-KTBL'!$G$3710:$G$3740) -> 0 | H36: =SUMIF('Öko-Arbeitsvorgänge-KTBL'!$B$3753:$B$3783,A36,'Öko-Arbeitsvorgänge-KTBL'!$G$3753:$G$3783) -> 0 | I36: =SUMIF('Öko-Arbeitsvorgänge-KTBL'!$B$3796:$B$3826,A36,'Öko-Arbeitsvorgänge-KTBL'!$G$3796:$G$3826) -> 0 | J36: 0
A37: Arbeitskraftstunden | C37: AKh/ha | D37: =SUM(D26:D36) -> 6.08 | E37: 6.22 | F37: 6.28 | G37: 4.75 | H37: 4.92 | I37: 5.01 | J37: 0
A38: DB ( je Akh) | C38: €/Akh | D38: =IF(D24>0,D24/D37,0) -> 117.0412851 | E38: 182.873062 | F38: 216.9569365 | G38: 153.1693081 | H38: 234.5733019 | I38: 275.1970582 | J38: 0
A39: Aussaatmenge | C39: kg/ha | D39: 190 | E39: =D39 -> 190 | F39: 190 | G39: 190 | H39: 190 | I39: 190 | J39: 0
A40: davon Zukaufsaatgut | C40: % | D40: 15 | E40: 15 | F40: 15 | G40: =F40 -> 15 | H40: =G40 -> 15 | I40: =H40 -> 15 | J40: 0
A41: Saatgutpreis Eigen | C41: €/dt | D41: =Stammdatenblatt!J25 -> 52.26 | E41: 52.26 | F41: 52.26 | G41: =D41 -> 52.26 | H41: =D41 -> 52.26 | I41: =D41 -> 52.26 | J41: 0
A42: Zukauf | C42: €/dt | D42: =+Stammdatenblatt!J87 -> 125 | E42: =+D42 -> 125 | F42: =+E42 -> 125 | G42: =D42 -> 125 | H42: =D42 -> 125 | I42: =D42 -> 125 | J42: 0
A43: Saatgutkosten | C43: €/ha | D43: =D40/100*(D39*D42)/100+((100-D40)/100*D39*D41/100) -> 120.0249 | E43: 120.0249 | F43: 120.0249 | G43: 120.0249 | H43: 120.0249 | I43: 120.0249 | J43: 0
A44: Dünger: | B44: €/kg | D44: Düngeraufwand/ha (in kg Reinnährstoff Entzug)
A45: =+Stammdatenblatt!A135 -> Stickstoff | B45: =+Stammdatenblatt!J135 -> 4.61 | C45: Aufw./ha | D45: 0 | E45: 0 | F45: 0 | G45: 0 | H45: 0 | I45: 0 | J45: 0
A46: =+Stammdatenblatt!A136 -> Phosphor | B46: =+Stammdatenblatt!J136 -> 1.06 | C46: Aufw./ha | D46: =D7*'Entzugswerte Düngung'!D15 -> 27.5 | E46: =E7*'Entzugswerte Düngung'!D15 -> 38.5 | F46: =F7*'Entzugswerte Düngung'!D15 -> 44 | G46: =G7*'Entzugswerte Düngung'!D15 -> 27.5 | H46: =H7*'Entzugswerte Düngung'!D15 -> 38.5 | I46: =I7*'Entzugswerte Düngung'!D15 -> 44 | J46: 0
A47: =+Stammdatenblatt!A137 -> Kali | B47: =+Stammdatenblatt!J137 -> 1.76 | C47: Aufw./ha | D47: =D7*'Entzugswerte Düngung'!E15 -> 35 | E47: =E7*'Entzugswerte Düngung'!E15 -> 49 | F47: =F7*'Entzugswerte Düngung'!E15 -> 56 | G47: =G7*'Entzugswerte Düngung'!E15 -> 35 | H47: =H7*'Entzugswerte Düngung'!E15 -> 49 | I47: =I7*'Entzugswerte Düngung'!E15 -> 56 | J47: 0
A48: =+Stammdatenblatt!A138 -> Kalk | B48: =+Stammdatenblatt!J138 -> 0.04555555556 | C48: Aufw./ha | D48: 300 | E48: =D48 -> 300 | F48: 300 | G48: 300 | H48: 300 | I48: 300 | J48: 0
A49: =+Stammdatenblatt!A139 -> Magnesium | B49: =+Stammdatenblatt!J139 -> 0.552 | C49: Aufw./ha | D49: =D7*'Entzugswerte Düngung'!F15 -> 7.5 | E49: =E7*'Entzugswerte Düngung'!F15 -> 10.5 | F49: =F7*'Entzugswerte Düngung'!F15 -> 12 | G49: =G7*'Entzugswerte Düngung'!F15 -> 7.5 | H49: =H7*'Entzugswerte Düngung'!F15 -> 10.5 | I49: =I7*'Entzugswerte Düngung'!F15 -> 12 | J49: 0
A50: =+Stammdatenblatt!A140 -> Schwefel | B50: =+Stammdatenblatt!J140 -> 1.149425287 | C50: Aufw./ha | D50: 0 | E50: =D50 -> 0 | F50: =E50 -> 0 | G50: 0 | H50: 0 | I50: 0 | J50: 0
A51: Mineraldüngerkosten | C51: €/ha | D51: =D45*$B$45+D46*$B$46+D47*$B$47+D48*$B$48+D49*$B$49+D50*$B$50 -> 108.5566667 | E51: 146.5126667 | F51: 165.4906667 | G51: 108.5566667 | H51: 146.5126667 | I51: 165.4906667 | J51: 0
A52: Herbizide | C52: €/ha | D52: 0 | E52: 0 | F52: 0 | G52: 0 | H52: 0 | I52: 0 | J52: 0
A53: Fungizide | C53: €/ha | D53: 0 | E53: 0 | F53: 0 | G53: 0 | H53: 0 | I53: 0 | J53: 0
A54: Insektizide | C54: €/ha | D54: 0 | E54: 0 | F54: 0 | G54: 0 | H54: 0 | I54: 0 | J54: 0
A55: Wachstumsregler | C55: €/ha | D55: 0 | E55: 0 | F55: 0 | G55: 0 | H55: 0 | I55: 0 | J55: 0
A56: Pflanzenbehandlungsk. | C56: €/ha | D56: =SUM(D52:D55) -> 0 | E56: 0 | F56: 0 | G56: 0 | H56: 0 | I56: 0 | J56: 0
A57: *Verfahren inkl. Zinsanspruch; Verfahren ohne Zinsanspruch sind in den Arbeitsvorgängen abgebildet.

Sheet Ackerbohnen
B3: Landesbetrieb Landwirtschaft Hessen
A4: =IF(Stammdatenblatt!I6+Stammdatenblatt!D76+Stammdatenblatt!D120+Stammdatenblatt!B134+Stammdatenblatt!D145+Stammdatenblatt!C188+Stammdatenblatt!C226+Stammdatenblatt!C241=0,"Produktionsverfahren wurden netto gerechnet", "Produktionsverfahren wurden brutto gerechnet") -> Produktionsverfahren wurden netto gerechnet
J5: eigene
A6: Ackerbohnen | D6: 2 ha | G6: 5 ha | J6: Werte
A7: Leistung: Menge Hauptprodukt | C7: dt/ha | D7: 30 | E7: 35 | F7: 50 | G7: 30 | H7: 35 | I7: 50 | J7: 0
A8: Preis Hauptprodukt | C8: € | D8: =+Stammdatenblatt!J26 -> 56.04 | E8: =D8 -> 56.04 | F8: =+E8 -> 56.04 | G8: =F8 -> 56.04 | H8: =G8 -> 56.04 | I8: =H8 -> 56.04 | J8: 0
A9: Erlös Hauptprodukt | C9: €/ha | D9: =D7*D8 -> 1681.2 | E9: 1961.4 | F9: 2802 | G9: 1681.2 | H9: 1961.4 | I9: 2802 | J9: 0
A10: Erlös Nebenprodukt(e) | C10: €/ha | D10: 0 | E10: =D10 -> 0 | F10: =E10 -> 0 | G10: 0 | H10: 0 | I10: 0 | J10: 0
A11: Leistungen | C11: €/ha | D11: =D10+D9 -> 1681.2 | E11: 1961.4 | F11: 2802 | G11: 1681.2 | H11: 1961.4 | I11: 2802 | J11: 0
A12: Saatgutkosten | C12: €/ha | D12: =D43 -> 141.4 | E12: 141.4 | F12: 141.4 | G12: 141.4 | H12: 141.4 | I12: 141.4 | J12: 0
A13: Mineraldüngerkosten | C13: €/ha | D13: =D51 -> 130.7146667 | E13: 150.2226667 | F13: 208.7466667 | G13: 130.7146667 | H13: 150.2226667 | I13: 208.7466667 | J13: 0
A14: Pflanzenbehandlungsk. | C14: €/ha | D14: =D56 -> 0 | E14: =E56 -> 0 | F14: =F56 -> 0 | G14: =G56 -> 0 | H14: 0 | I14: 0 | J14: 0
A15: Versicherung | C15: €/ha | D15: =(D11/1000)*Stammdatenblatt!$E$199 -> 22.998816 | E15: =(E11/1000)*Stammdatenblatt!$M$199 -> 26.831952 | F15: =(F11/1000)*Stammdatenblatt!$M$199 -> 38.33136 | G15: =(G11/1000)*Stammdatenblatt!$M$199 -> 22.998816 | H15: =(H11/1000)*Stammdatenblatt!$M$199 -> 26.831952 | I15: =(I11/1000)*Stammdatenblatt!$M$199 -> 38.33136 | J15: =(J11/1000)*Stammdatenblatt!$M$199 -> 0
A16: Trocknungskosten | C16: €/ha | D16: =(D7*Stammdatenblatt!$E$218+D7*Stammdatenblatt!$E$216*6)/2.5 -> 63.6 | E16: =(E7*Stammdatenblatt!$E$218+E7*Stammdatenblatt!$E$216*6)/2.5 -> 74.2 | F16: =(F7*Stammdatenblatt!$E$218+F7*Stammdatenblatt!$E$216*6)/2.5 -> 106 | G16: =(G7*Stammdatenblatt!$E$218+G7*Stammdatenblatt!$E$216*6)/2.5 -> 63.6 | H16: =(H7*Stammdatenblatt!$E$218+H7*Stammdatenblatt!$E$216*6)/2.5 -> 74.2 | I16: =(I7*Stammdatenblatt!$E$218+I7*Stammdatenblatt!$E$216*6)/2.5 -> 106 | J16: =J7/Stammdatenblatt!$E$219*(Stammdatenblatt!$E$218*Stammdatenblatt!$E$228) -> 0
A17: Summe Direktkosten | C17: €/ha | D17: =SUM(D12:D16) -> 358.7134827 | E17: 392.6546187 | F17: 494.4780267 | G17: 358.7134827 | H17: 392.6546187 | I17: 494.4780267 | J17: 0
A18: Direktkostenfreie Leistung | C18: €/ha | D18: =D11-D17 -> 1322.486517 | E18: 1568.745381 | F18: 2307.521973 | G18: 1322.486517 | H18: 1568.745381 | I18: 2307.521973 | J18: 0
A19: Maschinenkosten eigen * | C19: €/ha | D19: =+'Öko-Arbeitsvorgänge-KTBL'!T4428*(1+Stammdatenblatt!B134) -> 189.5297 | E19: =+'Öko-Arbeitsvorgänge-KTBL'!T4475 -> 220.6328 | F19: =+'Öko-Arbeitsvorgänge-KTBL'!T4522 -> 230.2657 | G19: =+'Öko-Arbeitsvorgänge-KTBL'!T4569 -> 170.9008 | H19: =+'Öko-Arbeitsvorgänge-KTBL'!T4616 -> 200.6722 | I19: =+'Öko-Arbeitsvorgänge-KTBL'!T4663 -> 211.3038 | J19: 0
A20: Maschinenkosten fremd | C20: €/ha | D20: =+'Öko-Arbeitsvorgänge-KTBL'!U4426*(1+Stammdatenblatt!B134) -> 130 | E20: =+'Öko-Arbeitsvorgänge-KTBL'!U4473*(1+Stammdatenblatt!C241) -> 130 | F20: =+'Öko-Arbeitsvorgänge-KTBL'!U4520*(1+Stammdatenblatt!C241) -> 130 | G20: =+'Öko-Arbeitsvorgänge-KTBL'!U4567*(1+Stammdatenblatt!C241) -> 130 | H20: =+'Öko-Arbeitsvorgänge-KTBL'!U4614*(1+Stammdatenblatt!C241) -> 130 | I20: =+'Öko-Arbeitsvorgänge-KTBL'!U4661*(1+Stammdatenblatt!C241) -> 130 | J20: 0
A21: Lohnkosten | C21: €/ha | D21: 0 | E21: =D21 -> 0 | F21: =E21 -> 0 | G21: 0 | H21: 0 | I21: 0 | J21: 0
A22: xxx | C22: €/ha | D22: 0 | E22: =D22 -> 0 | F22: =E22 -> 0 | G22: 0 | H22: 0 | I22: 0 | J22: 0
A23: variable Kosten | C23: €/ha | D23: =SUM(D19:D22,D17) -> 678.2431827 | E23: 743.2874187 | F23: 854.7437267 | G23: 659.6142827 | H23: 723.3268187 | I23: 835.7818267 | J23: 0
A24: Deckungsbeitrag (DB) | C24: €/ha | D24: =D11-D23 -> 1002.956817 | E24: 1218.112581 | F24: 1947.256273 | G24: 1021.585717 | H24: 1238.073181 | I24: 1966.218173 | J24: 0
A25: Zeit-Spanne | B25: AK-Bedarf
A26: FEB | C26: Akh/ha | D26: =SUMIF('Öko-Arbeitsvorgänge-KTBL'!$B$4391:$B$4425,A26,'Öko-Arbeitsvorgänge-KTBL'!$G$4391:$G$4425) -> 0 | E26: =SUMIF('Öko-Arbeitsvorgänge-KTBL'!$B$4438:$B$4472,A26,'Öko-Arbeitsvorgänge-KTBL'!$G$4438:$G$4472) -> 0 | F26: =SUMIF('Öko-Arbeitsvorgänge-KTBL'!$B$4485:$B$4519,A26,'Öko-Arbeitsvorgänge-KTBL'!$G$4485:$G$4519) -> 0 | G26: =SUMIF('Öko-Arbeitsvorgänge-KTBL'!$B$4532:$B$4566,A26,'Öko-Arbeitsvorgänge-KTBL'!$G$4532:$G$4566) -> 0 | H26: =SUMIF('Öko-Arbeitsvorgänge-KTBL'!$B$4579:$B$4613,A26,'Öko-Arbeitsvorgänge-KTBL'!$G$4579:$G$4613) -> 0 | I26: =SUMIF('Öko-Arbeitsvorgänge-KTBL'!$B$4626:$B$4660,A26,'Öko-Arbeitsvorgänge-KTBL'!$G$4626:$G$4660) -> 0 | J26: 0
A27: MRZ | C27: Akh/ha | D27: =SUMIF('Öko-Arbeitsvorgänge-KTBL'!$B$4391:$B$4425,A27,'Öko-Arbeitsvorgänge-KTBL'!$G$4391:$G$4425) -> 2.47 | E27: =SUMIF('Öko-Arbeitsvorgänge-KTBL'!$B$4438:$B$4472,A27,'Öko-Arbeitsvorgänge-KTBL'!$G$4438:$G$4472) -> 2.49 | F27: =SUMIF('Öko-Arbeitsvorgänge-KTBL'!$B$4485:$B$4519,A27,'Öko-Arbeitsvorgänge-KTBL'!$G$4485:$G$4519) -> 2.49 | G27: =SUMIF('Öko-Arbeitsvorgänge-KTBL'!$B$4532:$B$4566,A27,'Öko-Arbeitsvorgänge-KTBL'!$G$4532:$G$4566) -> 1.83 | H27: =SUMIF('Öko-Arbeitsvorgänge-KTBL'!$B$4579:$B$4613,A27,'Öko-Arbeitsvorgänge-KTBL'!$G$4579:$G$4613) -> 1.83 | I27: =SUMIF('Öko-Arbeitsvorgänge-KTBL'!$B$4626:$B$4660,A27,'Öko-Arbeitsvorgänge-KTBL'!$G$4626:$G$4660) -> 1.83 | J27: 0
A28: APR | C28: Akh/ha | D28: =SUMIF('Öko-Arbeitsvorgänge-KTBL'!$B$4391:$B$4425,A28,'Öko-Arbeitsvorgänge-KTBL'!$G$4391:$G$4425) -> 0.79 | E28: =SUMIF('Öko-Arbeitsvorgänge-KTBL'!$B$4438:$B$4472,A28,'Öko-Arbeitsvorgänge-KTBL'!$G$4438:$G$4472) -> 0.79 | F28: =SUMIF('Öko-Arbeitsvorgänge-KTBL'!$B$4485:$B$4519,A28,'Öko-Arbeitsvorgänge-KTBL'!$G$4485:$G$4519) -> 0.79 | G28: =SUMIF('Öko-Arbeitsvorgänge-KTBL'!$B$4532:$B$4566,A28,'Öko-Arbeitsvorgänge-KTBL'!$G$4532:$G$4566) -> 0.63 | H28: =SUMIF('Öko-Arbeitsvorgänge-KTBL'!$B$4579:$B$4613,A28,'Öko-Arbeitsvorgänge-KTBL'!$G$4579:$G$4613) -> 0.63 | I28: =SUMIF('Öko-Arbeitsvorgänge-KTBL'!$B$4626:$B$4660,A28,'Öko-Arbeitsvorgänge-KTBL'!$G$4626:$G$4660) -> 0.63 | J28: 0
A29: MAI | C29: Akh/ha | D29: =SUMIF('Öko-Arbeitsvorgänge-KTBL'!$B$4391:$B$4425,A29,'Öko-Arbeitsvorgänge-KTBL'!$G$4391:$G$4425) -> 0 | E29: =SUMIF('Öko-Arbeitsvorgänge-KTBL'!$B$4438:$B$4472,A29,'Öko-Arbeitsvorgänge-KTBL'!$G$4438:$G$4472) -> 0 | F29: =SUMIF('Öko-Arbeitsvorgänge-KTBL'!$B$4485:$B$4519,A29,'Öko-Arbeitsvorgänge-KTBL'!$G$4485:$G$4519) -> 0 | G29: =SUMIF('Öko-Arbeitsvorgänge-KTBL'!$B$4532:$B$4566,A29,'Öko-Arbeitsvorgänge-KTBL'!$G$4532:$G$4566) -> 0 | H29: =SUMIF('Öko-Arbeitsvorgänge-KTBL'!$B$4579:$B$4613,A29,'Öko-Arbeitsvorgänge-KTBL'!$G$4579:$G$4613) -> 0 | I29: =SUMIF('Öko-Arbeitsvorgänge-KTBL'!$B$4626:$B$4660,A29,'Öko-Arbeitsvorgänge-KTBL'!$G$4626:$G$4660) -> 0 | J29: 0
A30: JUN | C30: Akh/ha | D30: =SUMIF('Öko-Arbeitsvorgänge-KTBL'!$B$4391:$B$4425,A30,'Öko-Arbeitsvorgänge-KTBL'!$G$4391:$G$4425) -> 0 | E30: =SUMIF('Öko-Arbeitsvorgänge-KTBL'!$B$4438:$B$4472,A30,'Öko-Arbeitsvorgänge-KTBL'!$G$4438:$G$4472) -> 0 | F30: =SUMIF('Öko-Arbeitsvorgänge-KTBL'!$B$4485:$B$4519,A30,'Öko-Arbeitsvorgänge-KTBL'!$G$4485:$G$4519) -> 0 | G30: =SUMIF('Öko-Arbeitsvorgänge-KTBL'!$B$4532:$B$4566,A30,'Öko-Arbeitsvorgänge-KTBL'!$G$4532:$G$4566) -> 0 | H30: =SUMIF('Öko-Arbeitsvorgänge-KTBL'!$B$4579:$B$4613,A30,'Öko-Arbeitsvorgänge-KTBL'!$G$4579:$G$4613) -> 0 | I30: =SUMIF('Öko-Arbeitsvorgänge-KTBL'!$B$4626:$B$4660,A30,'Öko-Arbeitsvorgänge-KTBL'!$G$4626:$G$4660) -> 0 | J30: 0
A31: JUL | C31: Akh/ha | D31: =SUMIF('Öko-Arbeitsvorgänge-KTBL'!$B$4391:$B$4425,A31,'Öko-Arbeitsvorgänge-KTBL'!$G$4391:$G$4425) -> 0 | E31: =SUMIF('Öko-Arbeitsvorgänge-KTBL'!$B$4438:$B$4472,A31,'Öko-Arbeitsvorgänge-KTBL'!$G$4438:$G$4472) -> 0 | F31: =SUMIF('Öko-Arbeitsvorgänge-KTBL'!$B$4485:$B$4519,A31,'Öko-Arbeitsvorgänge-KTBL'!$G$4485:$G$4519) -> 0 | G31: =SUMIF('Öko-Arbeitsvorgänge-KTBL'!$B$4532:$B$4566,A31,'Öko-Arbeitsvorgänge-KTBL'!$G$4532:$G$4566) -> 0 | H31: =SUMIF('Öko-Arbeitsvorgänge-KTBL'!$B$4579:$B$4613,A31,'Öko-Arbeitsvorgänge-KTBL'!$G$4579:$G$4613) -> 0 | I31: =SUMIF('Öko-Arbeitsvorgänge-KTBL'!$B$4626:$B$4660,A31,'Öko-Arbeitsvorgänge-KTBL'!$G$4626:$G$4660) -> 0 | J31: 0
A32: AUG | C32: Akh/ha | D32: =SUMIF('Öko-Arbeitsvorgänge-KTBL'!$B$4391:$B$4425,A32,'Öko-Arbeitsvorgänge-KTBL'!$G$4391:$G$4425) -> 0.67 | E32: =SUMIF('Öko-Arbeitsvorgänge-KTBL'!$B$4438:$B$4472,A32,'Öko-Arbeitsvorgänge-KTBL'!$G$4438:$G$4472) -> 0.73 | F32: =SUMIF('Öko-Arbeitsvorgänge-KTBL'!$B$4485:$B$4519,A32,'Öko-Arbeitsvorgänge-KTBL'!$G$4485:$G$4519) -> 0.92 | G32: =SUMIF('Öko-Arbeitsvorgänge-KTBL'!$B$4532:$B$4566,A32,'Öko-Arbeitsvorgänge-KTBL'!$G$4532:$G$4566) -> 0.51 | H32: =SUMIF('Öko-Arbeitsvorgänge-KTBL'!$B$4579:$B$4613,A32,'Öko-Arbeitsvorgänge-KTBL'!$G$4579:$G$4613) -> 0.6 | I32: =SUMIF('Öko-Arbeitsvorgänge-KTBL'!$B$4626:$B$4660,A32,'Öko-Arbeitsvorgänge-KTBL'!$G$4626:$G$4660) -> 0.86 | J32: 0
A33: SEP | C33: Akh/ha | D33: =SUMIF('Öko-Arbeitsvorgänge-KTBL'!$B$4391:$B$4425,A33,'Öko-Arbeitsvorgänge-KTBL'!$G$4391:$G$4425) -> 0.89 | E33: =SUMIF('Öko-Arbeitsvorgänge-KTBL'!$B$4438:$B$4472,A33,'Öko-Arbeitsvorgänge-KTBL'!$G$4438:$G$4472) -> 0.89 | F33: =SUMIF('Öko-Arbeitsvorgänge-KTBL'!$B$4485:$B$4519,A33,'Öko-Arbeitsvorgänge-KTBL'!$G$4485:$G$4519) -> 0.89 | G33: =SUMIF('Öko-Arbeitsvorgänge-KTBL'!$B$4532:$B$4566,A33,'Öko-Arbeitsvorgänge-KTBL'!$G$4532:$G$4566) -> 0.69 | H33: =SUMIF('Öko-Arbeitsvorgänge-KTBL'!$B$4579:$B$4613,A33,'Öko-Arbeitsvorgänge-KTBL'!$G$4579:$G$4613) -> 0.69 | I33: =SUMIF('Öko-Arbeitsvorgänge-KTBL'!$B$4626:$B$4660,A33,'Öko-Arbeitsvorgänge-KTBL'!$G$4626:$G$4660) -> 0.69 | J33: 0
A34: OKT | C34: Akh/ha | D34: =SUMIF('Öko-Arbeitsvorgänge-KTBL'!$B$4391:$B$4425,A34,'Öko-Arbeitsvorgänge-KTBL'!$G$4391:$G$4425) -> 2.54 | E34: =SUMIF('Öko-Arbeitsvorgänge-KTBL'!$B$4438:$B$4472,A34,'Öko-Arbeitsvorgänge-KTBL'!$G$4438:$G$4472) -> 2.55 | F34: =SUMIF('Öko-Arbeitsvorgänge-KTBL'!$B$4485:$B$4519,A34,'Öko-Arbeitsvorgänge-KTBL'!$G$4485:$G$4519) -> 2.55 | G34: =SUMIF('Öko-Arbeitsvorgänge-KTBL'!$B$4532:$B$4566,A34,'Öko-Arbeitsvorgänge-KTBL'!$G$4532:$G$4566) -> 2.14 | H34: =SUMIF('Öko-Arbeitsvorgänge-KTBL'!$B$4579:$B$4613,A34,'Öko-Arbeitsvorgänge-KTBL'!$G$4579:$G$4613) -> 2.14 | I34: =SUMIF('Öko-Arbeitsvorgänge-KTBL'!$B$4626:$B$4660,A34,'Öko-Arbeitsvorgänge-KTBL'!$G$4626:$G$4660) -> 2.14 | J34: 0
A35: NOV | C35: Akh/ha | D35: =SUMIF('Öko-Arbeitsvorgänge-KTBL'!$B$4391:$B$4425,A35,'Öko-Arbeitsvorgänge-KTBL'!$G$4391:$G$4425) -> 0 | E35: =SUMIF('Öko-Arbeitsvorgänge-KTBL'!$B$4438:$B$4472,A35,'Öko-Arbeitsvorgänge-KTBL'!$G$4438:$G$4472) -> 0 | F35: =SUMIF('Öko-Arbeitsvorgänge-KTBL'!$B$4485:$B$4519,A35,'Öko-Arbeitsvorgänge-KTBL'!$G$4485:$G$4519) -> 0 | G35: =SUMIF('Öko-Arbeitsvorgänge-KTBL'!$B$4532:$B$4566,A35,'Öko-Arbeitsvorgänge-KTBL'!$G$4532:$G$4566) -> 0 | H35: =SUMIF('Öko-Arbeitsvorgänge-KTBL'!$B$4579:$B$4613,A35,'Öko-Arbeitsvorgänge-KTBL'!$G$4579:$G$4613) -> 0 | I35: =SUMIF('Öko-Arbeitsvorgänge-KTBL'!$B$4626:$B$4660,A35,'Öko-Arbeitsvorgänge-KTBL'!$G$4626:$G$4660) -> 0 | J35: 0
A36: Rest | C36: Akh/ha | D36: =SUMIF('Öko-Arbeitsvorgänge-KTBL'!$B$4391:$B$4425,A36,'Öko-Arbeitsvorgänge-KTBL'!$G$4391:$G$4425) -> 0 | E36: =SUMIF('Öko-Arbeitsvorgänge-KTBL'!$B$4438:$B$4472,A36,'Öko-Arbeitsvorgänge-KTBL'!$G$4438:$G$4472) -> 0 | F36: =SUMIF('Öko-Arbeitsvorgänge-KTBL'!$B$4485:$B$4519,A36,'Öko-Arbeitsvorgänge-KTBL'!$G$4485:$G$4519) -> 0 | G36: =SUMIF('Öko-Arbeitsvorgänge-KTBL'!$B$4532:$B$4566,A36,'Öko-Arbeitsvorgänge-KTBL'!$G$4532:$G$4566) -> 0 | H36: =SUMIF('Öko-Arbeitsvorgänge-KTBL'!$B$4579:$B$4613,A36,'Öko-Arbeitsvorgänge-KTBL'!$G$4579:$G$4613) -> 0 | I36: =SUMIF('Öko-Arbeitsvorgänge-KTBL'!$B$4626:$B$4660,A36,'Öko-Arbeitsvorgänge-KTBL'!$G$4626:$G$4660) -> 0 | J36: 0
A37: Arbeitskraftstunden | C37: AKh/ha | D37: =SUM(D26:D36) -> 7.36 | E37: 7.45 | F37: 7.64 | G37: 5.8 | H37: 5.89 | I37: 6.15 | J37: 0
A38: DB (je Akh) | C38: €/Akh | D38: =IF(D24>0,D24/D37,0) -> 136.2713067 | E38: 163.5050445 | F38: 254.8764756 | G38: 176.1354685 | H38: 210.1991819 | I38: 319.7102721 | J38: 0
A39: Aussaatmenge | C39: kg/ha | D39: 200 | E39: =D39 -> 200 | F39: =E39 -> 200 | G39: 200 | H39: 200 | I39: 200 | J39: 0
A40: davon Zukaufsaatgut | C40: % | D40: 15 | E40: =D40 -> 15 | F40: =E40 -> 15 | G40: =F40 -> 15 | H40: =G40 -> 15 | I40: =H40 -> 15 | J40: 0
A41: Saatgutpreis Eigen | C41: €/dt | D41: 62 | E41: 62 | F41: 62 | G41: 62 | H41: 62 | I41: 62 | J41: 0
A42: Zukauf | C42: €/dt | D42: =+Stammdatenblatt!J88 -> 120 | E42: =+D42 -> 120 | F42: =+E42 -> 120 | G42: =F42 -> 120 | H42: =G42 -> 120 | I42: =H42 -> 120 | J42: 0
A43: Saatgutkosten | C43: €/ha | D43: =D40/100*(D39*D42)/100+((100-D40)/100*D39*D41/100) -> 141.4 | E43: 141.4 | F43: 141.4 | G43: 141.4 | H43: 141.4 | I43: 141.4 | J43: 0
A44: Dünger: | B44: €/kg | D44: Düngeraufwand/ha (in kg Reinnährstoff Entzug)
A45: =+Stammdatenblatt!A135 -> Stickstoff | B45: =+Stammdatenblatt!J135 -> 4.61 | C45: Aufw./ha | D45: 0 | E45: 0 | F45: 0 | G45: 0 | H45: 0 | I45: 0 | J45: 0
A46: =+Stammdatenblatt!A136 -> Phosphor | B46: =+Stammdatenblatt!J136 -> 1.06 | C46: Aufw./ha | D46: =D7*'Entzugswerte Düngung'!D14 -> 36 | E46: =E7*'Entzugswerte Düngung'!D14 -> 42 | F46: =F7*'Entzugswerte Düngung'!D14 -> 60 | G46: =G7*'Entzugswerte Düngung'!D14 -> 36 | H46: =H7*'Entzugswerte Düngung'!D14 -> 42 | I46: =I7*'Entzugswerte Düngung'!D14 -> 60 | J46: 0
A47: =+Stammdatenblatt!A137 -> Kali | B47: =+Stammdatenblatt!J137 -> 1.76 | C47: Aufw./ha | D47: =D7*'Entzugswerte Düngung'!E14 -> 42 | E47: =E7*'Entzugswerte Düngung'!E14 -> 49 | F47: =F7*'Entzugswerte Düngung'!E14 -> 70 | G47: =G7*'Entzugswerte Düngung'!E14 -> 42 | H47: =H7*'Entzugswerte Düngung'!E14 -> 49 | I47: =I7*'Entzugswerte Düngung'!E14 -> 70 | J47: 0
A48: =+Stammdatenblatt!A138 -> Kalk | B48: =+Stammdatenblatt!J138 -> 0.04555555556 | C48: Aufw./ha | D48: 300 | E48: =D48 -> 300 | F48: 300 | G48: 300 | H48: 300 | I48: 300 | J48: 0
A49: =+Stammdatenblatt!A139 -> Magnesium | B49: =+Stammdatenblatt!J139 -> 0.552 | C49: Aufw./ha | D49: =D7*'Entzugswerte Düngung'!F14 -> 9 | E49: =E7*'Entzugswerte Düngung'!F14 -> 10.5 | F49: =F7*'Entzugswerte Düngung'!F14 -> 15 | G49: =G7*'Entzugswerte Düngung'!F14 -> 9 | H49: =H7*'Entzugswerte Düngung'!F14 -> 10.5 | I49: =I7*'Entzugswerte Düngung'!F15 -> 15 | J49: 0
A50: =+Stammdatenblatt!A140 -> Schwefel | B50: =+Stammdatenblatt!J140 -> 1.149425287 | C50: Aufw./ha | D50: 0 | E50: 0 | F50: 0 | G50: 0 | H50: 0 | I50: 0 | J50: 0
A51: Mineraldüngerkosten | C51: €/ha | D51: =+$B45*D45+$B46*D46+$B47*D47+$B48*D48+$B49*D49+$B50*D50 -> 130.7146667 | E51: 150.2226667 | F51: 208.7466667 | G51: 130.7146667 | H51: 150.2226667 | I51: 208.7466667 | J51: 0
A52: Herbizide | C52: €/ha | D52: 0 | E52: 0 | F52: 0 | G52: 0 | H52: 0 | I52: 0 | J52: 0
A53: Fungizide | C53: €/ha | D53: 0 | E53: 0 | F53: 0 | G53: 0 | H53: 0 | I53: 0 | J53: 0
A54: Insektizide | C54: €/ha | D54: 0 | E54: 0 | F54: 0 | G54: 0 | H54: 0 | I54: 0 | J54: 0
A55: Wachstumsregler | C55: €/ha | D55: 0 | E55: 0 | F55: 0 | G55: 0 | H55: 0 | I55: 0 | J55: 0
A56: Pflanzenbehandlungsk. | C56: €/ha | D56: =SUM(D52:D55) -> 0 | E56: 0 | F56: 0 | G56: 0 | H56: 0 | I56: 0 | J56: 0
A57: *Verfahren inkl. Zinsanspruch; Verfahren ohne Zinsanspruch sind in den Arbeitsvorgängen abgebildet.

Sheet Zuckerrüben
B3: Landesbetrieb Landwirtschaft Hessen
A4: =IF(Stammdatenblatt!I6+Stammdatenblatt!D76+Stammdatenblatt!D120+Stammdatenblatt!B134+Stammdatenblatt!D145+Stammdatenblatt!C188+Stammdatenblatt!C226+Stammdatenblatt!C241=0,"Produktionsverfahren wurden netto gerechnet", "Produktionsverfahren wurden brutto gerechnet") -> Produktionsverfahren wurden netto gerechnet
A5: Zuckerrüben | D5: 2 ha | G5: 5 ha | J5: eigene
J6: Werte
A7: Menge Hauptprodukt | C7: dt/ha | D7: 350 | E7: 450 | F7: 550 | G7: 350 | H7: 450 | I7: 550 | J7: 0
A8: Preis Quotenrüben | C8: €/dt | D8: =+Stammdatenblatt!J27 -> 9.8 | E8: =+D8 -> 9.8 | F8: 9.8 | G8: 9.8 | H8: 9.8 | I8: 9.8 | J8: 0
A9: Preis Industrie-/Ethanol-/Vertragsrüben | C9: €/dt | D9: =+Stammdatenblatt!J28 -> 0 | E9: 0 | F9: 0 | G9: 0 | H9: 0 | I9: 0 | J9: 0
A10: Rübenmarkvergütung | C10: €/dt | D10: =+Stammdatenblatt!J29 -> 0 | E10: 0 | F10: 0 | G10: 0 | H10: 0 | I10: 0 | J10: 0
A11: Erlös Hauptprodukt | C11: €/ha | D11: =+(D8*0.85+D9*0.15)*D7+D10*D7 -> 2915.5 | E11: =+(E8*0.85+E9*0.15)*E7+E7*E10 -> 3748.5 | F11: =+(F8*0.85+F9*0.15)*F7+F10*F7 -> 4581.5 | G11: =+(G8*0.85+G9*0.15)*G7+G7*G10 -> 2915.5 | H11: =+(H8*0.85+H9*0.15)*H7+H10*H7 -> 3748.5 | I11: =+(I8*0.85+I9*0.15)*I7+I7*I10 -> 4581.5 | J11: =+(J8*0.85+J9*0.15)*J7+J7*J10 -> 0
A12: Leistungen | C12: €/ha | D12: =+D11 -> 2915.5 | E12: =+E11 -> 3748.5 | F12: 4581.5 | G12: 2915.5 | H12: 3748.5 | I12: 4581.5 | J12: 0
A13: Saatgutkosten | C13: €/ha | D13: =D43 -> 320 | E13: =E43 -> 320 | F13: 320 | G13: 320 | H13: 320 | I13: 320 | J13: =J43 -> 0
A14: Mineraldüngerk. | C14: €/ha | D14: =D51 -> 506.7886667 | E14: =E51 -> 647.6806667 | F14: 788.5726667 | G14: 506.7886667 | H14: 647.6806667 | I14: 788.5726667 | J14: =J51 -> 0
A15: Pfl.behandlungsk. | C15: €/ha | D15: =D56 -> 0 | E15: =E56 -> 0 | F15: 0 | G15: 0 | H15: 0 | I15: 0 | J15: =J56 -> 0
A16: Versicherung | C16: €/ha | D16: =(D12/1000)*Stammdatenblatt!$M$200 -> 17.72624 | E16: =(E12/1000)*Stammdatenblatt!$M$200 -> 22.79088 | F16: =(F12/1000)*Stammdatenblatt!$M$200 -> 27.85552 | G16: =(G12/1000)*Stammdatenblatt!$M$200 -> 17.72624 | H16: =(H12/1000)*Stammdatenblatt!$M$200 -> 22.79088 | I16: =(I12/1000)*Stammdatenblatt!$M$200 -> 27.85552 | J16: =(J12/1000)*Stammdatenblatt!$M$200 -> 0
A17: Konservierungsk. | C17: €/ha | D17: 0 | E17: 0 | F17: 0 | G17: 0 | H17: 0 | I17: 0 | J17: 0
A18: Summe Direktkosten | C18: €/ha | D18: =SUM(D13:D17) -> 844.5149067 | E18: =SUM(E13:E17) -> 990.4715467 | F18: 1136.428187 | G18: 844.5149067 | H18: 990.4715467 | I18: 1136.428187 | J18: 0
A19: Direktkostenfreie Leistung | C19: €/ha | D19: =D12-D18 -> 2070.985093 | E19: =E12-E18 -> 2758.028453 | F19: 3445.071813 | G19: 2070.985093 | H19: 2758.028453 | I19: 3445.071813 | J19: 0
A20: Masch.kosten eigen ** | C20: €/ha | D20: =+'Öko-Arbeitsvorgänge-KTBL'!T4708 -> 220.161 | E20: =+'Öko-Arbeitsvorgänge-KTBL'!T4755 -> 251.7309 | F20: =+'Öko-Arbeitsvorgänge-KTBL'!T4802 -> 251.7309 | G20: =+'Öko-Arbeitsvorgänge-KTBL'!T4847 -> 207.9001 | H20: =+'Öko-Arbeitsvorgänge-KTBL'!T4894 -> 238.5484 | I20: =+'Öko-Arbeitsvorgänge-KTBL'!T4941 -> 238.5484 | J20: 0
A21: Masch.kosten fremd* | C21: €/ha | D21: =+'Öko-Arbeitsvorgänge-KTBL'!U4706*(1+Stammdatenblatt!C241) -> 250 | E21: =+'Öko-Arbeitsvorgänge-KTBL'!U4753*(1+Stammdatenblatt!C241) -> 250 | F21: =+'Öko-Arbeitsvorgänge-KTBL'!U4800*(1+Stammdatenblatt!C241) -> 250 | G21: =+'Öko-Arbeitsvorgänge-KTBL'!U4845*(1+Stammdatenblatt!C241) -> 250 | H21: =+'Öko-Arbeitsvorgänge-KTBL'!U4892*(1+Stammdatenblatt!C241) -> 250 | I21: =+'Öko-Arbeitsvorgänge-KTBL'!U4939*(1+Stammdatenblatt!C241) -> 250 | J21: 0
A22: Lohnkosten | C22: €/ha | D22: 0 | E22: 0 | F22: 0 | G22: 0 | H22: 0 | I22: 0 | J22: 0
A23: xxx | C23: €/ha | D23: 0 | E23: 0 | F23: 0 | G23: 0 | H23: 0 | I23: 0 | J23: 0
A24: variable Kosten | C24: €/ha | D24: =SUM(D20:D23,D18) -> 1314.675907 | E24: =SUM(E20:E23,E18) -> 1492.202447 | F24: 1638.159087 | G24: 1302.415007 | H24: 1479.019947 | I24: 1624.976587 | J24: 0
A25: Deckungsbeitrag (DB) | C25: €/ha | D25: =D12-D24 -> 1600.824093 | E25: 2256.297553 | F25: 2943.340913 | G25: 1613.084993 | H25: 2269.480053 | I25: 2956.523413 | J25: 0
A26: Zeit-Spanne Arbeitszeitbedarf
A27: FEB | C27: Akh/ha | D27: =SUMIF('Öko-Arbeitsvorgänge-KTBL'!$B$4673:$B$4705,A27,'Öko-Arbeitsvorgänge-KTBL'!$G$4673:$G$4705) -> 0 | E27: =SUMIF('Öko-Arbeitsvorgänge-KTBL'!$B$4718:$B$4752,A27,'Öko-Arbeitsvorgänge-KTBL'!$G$4718:$G$4752) -> 0 | F27: =SUMIF('Öko-Arbeitsvorgänge-KTBL'!$B$4765:$B$4799,A27,'Öko-Arbeitsvorgänge-KTBL'!$G$4765:$G$4799) -> 0 | G27: =SUMIF('Öko-Arbeitsvorgänge-KTBL'!$B$4812:$B$4844,A27,'Öko-Arbeitsvorgänge-KTBL'!$G$4812:$G$4844) -> 0 | H27: =SUMIF('Öko-Arbeitsvorgänge-KTBL'!$B$4857:$B$4891,A27,'Öko-Arbeitsvorgänge-KTBL'!$G$4857:$G$4891) -> 0 | I27: =SUMIF('Öko-Arbeitsvorgänge-KTBL'!$B$4904:$B$4938,A27,'Öko-Arbeitsvorgänge-KTBL'!$G$4904:$G$4938) -> 0 | J27: 0
A28: MRZ | C28: Akh/ha | D28: =SUMIF('Öko-Arbeitsvorgänge-KTBL'!$B$4673:$B$4705,A28,'Öko-Arbeitsvorgänge-KTBL'!$G$4673:$G$4705) -> 2.71 | E28: =SUMIF('Öko-Arbeitsvorgänge-KTBL'!$B$4718:$B$4752,A28,'Öko-Arbeitsvorgänge-KTBL'!$G$4718:$G$4752) -> 3.18 | F28: =SUMIF('Öko-Arbeitsvorgänge-KTBL'!$B$4765:$B$4799,A28,'Öko-Arbeitsvorgänge-KTBL'!$G$4765:$G$4799) -> 3.18 | G28: =SUMIF('Öko-Arbeitsvorgänge-KTBL'!$B$4812:$B$4844,A28,'Öko-Arbeitsvorgänge-KTBL'!$G$4812:$G$4844) -> 2.51 | H28: =SUMIF('Öko-Arbeitsvorgänge-KTBL'!$B$4857:$B$4891,A28,'Öko-Arbeitsvorgänge-KTBL'!$G$4857:$G$4891) -> 2.97 | I28: =SUMIF('Öko-Arbeitsvorgänge-KTBL'!$B$4904:$B$4938,A28,'Öko-Arbeitsvorgänge-KTBL'!$G$4904:$G$4938) -> 2.97 | J28: 0
A29: APR | C29: Akh/ha | D29: =SUMIF('Öko-Arbeitsvorgänge-KTBL'!$B$4673:$B$4705,A29,'Öko-Arbeitsvorgänge-KTBL'!$G$4673:$G$4705) -> 0.89 | E29: =SUMIF('Öko-Arbeitsvorgänge-KTBL'!$B$4718:$B$4752,A29,'Öko-Arbeitsvorgänge-KTBL'!$G$4718:$G$4752) -> 0.85 | F29: =SUMIF('Öko-Arbeitsvorgänge-KTBL'!$B$4765:$B$4799,A29,'Öko-Arbeitsvorgänge-KTBL'!$G$4765:$G$4799) -> 0.85 | G29: =SUMIF('Öko-Arbeitsvorgänge-KTBL'!$B$4812:$B$4844,A29,'Öko-Arbeitsvorgänge-KTBL'!$G$4812:$G$4844) -> 0.7 | H29: =SUMIF('Öko-Arbeitsvorgänge-KTBL'!$B$4857:$B$4891,A29,'Öko-Arbeitsvorgänge-KTBL'!$G$4857:$G$4891) -> 0.69 | I29: =SUMIF('Öko-Arbeitsvorgänge-KTBL'!$B$4904:$B$4938,A29,'Öko-Arbeitsvorgänge-KTBL'!$G$4904:$G$4938) -> 0.69 | J29: 0
A30: MAI | C30: Akh/ha | D30: 86.68 | E30: =SUMIF('Öko-Arbeitsvorgänge-KTBL'!$B$4718:$B$4752,A30,'Öko-Arbeitsvorgänge-KTBL'!$G$4718:$G$4752) -> 86.68 | F30: =SUMIF('Öko-Arbeitsvorgänge-KTBL'!$B$4765:$B$4799,A30,'Öko-Arbeitsvorgänge-KTBL'!$G$4765:$G$4799) -> 86.68 | G30: 86.68 | H30: =SUMIF('Öko-Arbeitsvorgänge-KTBL'!$B$4857:$B$4891,A30,'Öko-Arbeitsvorgänge-KTBL'!$G$4857:$G$4891) -> 86.38 | I30: =SUMIF('Öko-Arbeitsvorgänge-KTBL'!$B$4904:$B$4938,A30,'Öko-Arbeitsvorgänge-KTBL'!$G$4904:$G$4938) -> 86.38 | J30: 0
A31: JUN | C31: Akh/ha | D31: =SUMIF('Öko-Arbeitsvorgänge-KTBL'!$B$4673:$B$4705,A31,'Öko-Arbeitsvorgänge-KTBL'!$G$4673:$G$4705) -> 60.25 | E31: =SUMIF('Öko-Arbeitsvorgänge-KTBL'!$B$4718:$B$4752,A31,'Öko-Arbeitsvorgänge-KTBL'!$G$4718:$G$4752) -> 60.25 | F31: =SUMIF('Öko-Arbeitsvorgänge-KTBL'!$B$4765:$B$4799,A31,'Öko-Arbeitsvorgänge-KTBL'!$G$4765:$G$4799) -> 60.25 | G31: =SUMIF('Öko-Arbeitsvorgänge-KTBL'!$B$4812:$B$4844,A31,'Öko-Arbeitsvorgänge-KTBL'!$G$4812:$G$4844) -> 60.25 | H31: =SUMIF('Öko-Arbeitsvorgänge-KTBL'!$B$4857:$B$4891,A31,'Öko-Arbeitsvorgänge-KTBL'!$G$4857:$G$4891) -> 60.25 | I31: =SUMIF('Öko-Arbeitsvorgänge-KTBL'!$B$4904:$B$4938,A31,'Öko-Arbeitsvorgänge-KTBL'!$G$4904:$G$4938) -> 60.25 | J31: 0
A32: JUL | C32: Akh/ha | D32: =SUMIF('Öko-Arbeitsvorgänge-KTBL'!$B$4673:$B$4705,A32,'Öko-Arbeitsvorgänge-KTBL'!$G$4673:$G$4705) -> 0 | E32: =SUMIF('Öko-Arbeitsvorgänge-KTBL'!$B$4718:$B$4752,A32,'Öko-Arbeitsvorgänge-KTBL'!$G$4718:$G$4752) -> 0 | F32: =SUMIF('Öko-Arbeitsvorgänge-KTBL'!$B$4765:$B$4799,A32,'Öko-Arbeitsvorgänge-KTBL'!$G$4765:$G$4799) -> 0 | G32: =SUMIF('Öko-Arbeitsvorgänge-KTBL'!$B$4812:$B$4844,A32,'Öko-Arbeitsvorgänge-KTBL'!$G$4812:$G$4844) -> 0 | H32: =SUMIF('Öko-Arbeitsvorgänge-KTBL'!$B$4857:$B$4891,A32,'Öko-Arbeitsvorgänge-KTBL'!$G$4857:$G$4891) -> 0 | I32: =SUMIF('Öko-Arbeitsvorgänge-KTBL'!$B$4904:$B$4938,A32,'Öko-Arbeitsvorgänge-KTBL'!$G$4904:$G$4938) -> 0 | J32: 0
A33: AUG | C33: Akh/ha | D33: =SUMIF('Öko-Arbeitsvorgänge-KTBL'!$B$4673:$B$4705,A33,'Öko-Arbeitsvorgänge-KTBL'!$G$4673:$G$4705) -> 0 | E33: =SUMIF('Öko-Arbeitsvorgänge-KTBL'!$B$4718:$B$4752,A33,'Öko-Arbeitsvorgänge-KTBL'!$G$4718:$G$4752) -> 0 | F33: =SUMIF('Öko-Arbeitsvorgänge-KTBL'!$B$4765:$B$4799,A33,'Öko-Arbeitsvorgänge-KTBL'!$G$4765:$G$4799) -> 0 | G33: =SUMIF('Öko-Arbeitsvorgänge-KTBL'!$B$4812:$B$4844,A33,'Öko-Arbeitsvorgänge-KTBL'!$G$4812:$G$4844) -> 0 | H33: =SUMIF('Öko-Arbeitsvorgänge-KTBL'!$B$4857:$B$4891,A33,'Öko-Arbeitsvorgänge-KTBL'!$G$4857:$G$4891) -> 0 | I33: =SUMIF('Öko-Arbeitsvorgänge-KTBL'!$B$4904:$B$4938,A33,'Öko-Arbeitsvorgänge-KTBL'!$G$4904:$G$4938) -> 0 | J33: 0
A34: SEP | C34: Akh/ha | D34: =SUMIF('Öko-Arbeitsvorgänge-KTBL'!$B$4673:$B$4705,A34,'Öko-Arbeitsvorgänge-KTBL'!$G$4673:$G$4705) -> 0.04 | E34: =SUMIF('Öko-Arbeitsvorgänge-KTBL'!$B$4718:$B$4752,A34,'Öko-Arbeitsvorgänge-KTBL'!$G$4718:$G$4752) -> 0.04 | F34: =SUMIF('Öko-Arbeitsvorgänge-KTBL'!$B$4765:$B$4799,A34,'Öko-Arbeitsvorgänge-KTBL'!$G$4765:$G$4799) -> 0.04 | G34: =SUMIF('Öko-Arbeitsvorgänge-KTBL'!$B$4812:$B$4844,A34,'Öko-Arbeitsvorgänge-KTBL'!$G$4812:$G$4844) -> 0.03 | H34: =SUMIF('Öko-Arbeitsvorgänge-KTBL'!$B$4857:$B$4891,A34,'Öko-Arbeitsvorgänge-KTBL'!$G$4857:$G$4891) -> 0.03 | I34: =SUMIF('Öko-Arbeitsvorgänge-KTBL'!$B$4904:$B$4938,A34,'Öko-Arbeitsvorgänge-KTBL'!$G$4904:$G$4938) -> 0.03 | J34: 0
A35: OKT | C35: Akh/ha | D35: =SUMIF('Öko-Arbeitsvorgänge-KTBL'!$B$4673:$B$4705,A35,'Öko-Arbeitsvorgänge-KTBL'!$G$4673:$G$4705) -> 2.59 | E35: =SUMIF('Öko-Arbeitsvorgänge-KTBL'!$B$4718:$B$4752,A35,'Öko-Arbeitsvorgänge-KTBL'!$G$4718:$G$4752) -> 2.59 | F35: =SUMIF('Öko-Arbeitsvorgänge-KTBL'!$B$4765:$B$4799,A35,'Öko-Arbeitsvorgänge-KTBL'!$G$4765:$G$4799) -> 2.59 | G35: =SUMIF('Öko-Arbeitsvorgänge-KTBL'!$B$4812:$B$4844,A35,'Öko-Arbeitsvorgänge-KTBL'!$G$4812:$G$4844) -> 2.15 | H35: =SUMIF('Öko-Arbeitsvorgänge-KTBL'!$B$4857:$B$4891,A35,'Öko-Arbeitsvorgänge-KTBL'!$G$4857:$G$4891) -> 2.15 | I35: =SUMIF('Öko-Arbeitsvorgänge-KTBL'!$B$4904:$B$4938,A35,'Öko-Arbeitsvorgänge-KTBL'!$G$4904:$G$4938) -> 2.15 | J35: 0
A36: NOV | C36: Akh/ha | D36: =SUMIF('Öko-Arbeitsvorgänge-KTBL'!$B$4673:$B$4705,A36,'Öko-Arbeitsvorgänge-KTBL'!$G$4673:$G$4705) -> 0 | E36: =SUMIF('Öko-Arbeitsvorgänge-KTBL'!$B$4718:$B$4752,A36,'Öko-Arbeitsvorgänge-KTBL'!$G$4718:$G$4752) -> 0 | F36: =SUMIF('Öko-Arbeitsvorgänge-KTBL'!$B$4765:$B$4799,A36,'Öko-Arbeitsvorgänge-KTBL'!$G$4765:$G$4799) -> 0 | G36: =SUMIF('Öko-Arbeitsvorgänge-KTBL'!$B$4812:$B$4844,A36,'Öko-Arbeitsvorgänge-KTBL'!$G$4812:$G$4844) -> 0 | H36: =SUMIF('Öko-Arbeitsvorgänge-KTBL'!$B$4857:$B$4891,A36,'Öko-Arbeitsvorgänge-KTBL'!$G$4857:$G$4891) -> 0 | I36: =SUMIF('Öko-Arbeitsvorgänge-KTBL'!$B$4904:$B$4938,A36,'Öko-Arbeitsvorgänge-KTBL'!$G$4904:$G$4938) -> 0 | J36: 0
A37: Rest | C37: Akh/ha | D37: =SUMIF('Öko-Arbeitsvorgänge-KTBL'!$B$4673:$B$4705,A37,'Öko-Arbeitsvorgänge-KTBL'!$G$4673:$G$4705) -> 0 | E37: =SUMIF('Öko-Arbeitsvorgänge-KTBL'!$B$4718:$B$4752,A37,'Öko-Arbeitsvorgänge-KTBL'!$G$4718:$G$4752) -> 0 | F37: =SUMIF('Öko-Arbeitsvorgänge-KTBL'!$B$4765:$B$4799,A37,'Öko-Arbeitsvorgänge-KTBL'!$G$4765:$G$4799) -> 0 | G37: =SUMIF('Öko-Arbeitsvorgänge-KTBL'!$B$4812:$B$4844,A37,'Öko-Arbeitsvorgänge-KTBL'!$G$4812:$G$4844) -> 0 | H37: =SUMIF('Öko-Arbeitsvorgänge-KTBL'!$B$4857:$B$4891,A37,'Öko-Arbeitsvorgänge-KTBL'!$G$4857:$G$4891) -> 0 | I37: =SUMIF('Öko-Arbeitsvorgänge-KTBL'!$B$4904:$B$4938,A37,'Öko-Arbeitsvorgänge-KTBL'!$G$4904:$G$4938) -> 0 | J37: 0
A38: Arbeitskraftstunden | C38: AKh/ha | D38: =SUM(D27:D37) -> 153.16 | E38: =SUM(E28:E37) -> 153.59 | F38: 153.59 | G38: 152.32 | H38: 152.47 | I38: 152.47 | J38: =SUM(J27:J37) -> 0
A39: DB (je Akh) | C39: €/Akh | D39: =IF(D25>0,D25/D38,0) -> 10.4519724 | E39: =IF(E25>0,E25/E38,0) -> 14.6903936 | F39: 19.16362337 | G39: 10.59010631 | H39: 14.88476457 | I39: 19.39085337 | J39: 0
A40: Aussaatmenge | C40: Einheit | D40: 1 | E40: 1 | F40: 1 | G40: 1 | H40: 1 | I40: 1 | J40: 0
A41: dav. Zukaufsaatgut | C41: % | D41: 100 | E41: 100 | F41: 100 | G41: 100 | H41: 100 | I41: 100 | J41: 0
A42: Zukauf incl. Beizung | C42: €/E. | D42: =+Stammdatenblatt!J92 -> 320 | E42: =+D42 -> 320 | F42: =+E42 -> 320 | G42: =+F42 -> 320 | H42: =+G42 -> 320 | I42: =+H42 -> 320 | J42: 0
A43: Saatgutkosten | C43: €/ha | D43: =+D42*D40 -> 320 | E43: 320 | F43: 320 | G43: 320 | H43: 320 | I43: 320 | J43: 0
A44: Dünger: | B44: €/kg | D44: Nährstoffabfuhr/ ha (in kg Reinnährstoff) LfL
A45: =+Stammdatenblatt!A135 -> Stickstoff | B45: =+Stammdatenblatt!J135 -> 4.61 | C45: Aufw./ha | D45: =D7*'Entzugswerte Düngung'!C17 -> 63 | E45: =E7*'Entzugswerte Düngung'!C17 -> 81 | F45: =F7*'Entzugswerte Düngung'!C17 -> 99 | G45: =G7*'Entzugswerte Düngung'!C17 -> 63 | H45: =H7*'Entzugswerte Düngung'!C17 -> 81 | I45: =I7*'Entzugswerte Düngung'!C17 -> 99 | J45: 0
A46: =+Stammdatenblatt!A136 -> Phosphor | B46: =+Stammdatenblatt!J136 -> 1.06 | C46: Aufw./ha | D46: =D7*'Entzugswerte Düngung'!D17 -> 35 | E46: =E7*'Entzugswerte Düngung'!D17 -> 45 | F46: =F7*'Entzugswerte Düngung'!D17 -> 55 | G46: =G7*'Entzugswerte Düngung'!D17 -> 35 | H46: =H7*'Entzugswerte Düngung'!D17 -> 45 | I46: =I7*'Entzugswerte Düngung'!D17 -> 55 | J46: 0
A47: =+Stammdatenblatt!A137 -> Kali | B47: =+Stammdatenblatt!J137 -> 1.76 | C47: Aufw./ha | D47: =D7*'Entzugswerte Düngung'!E17 -> 87.5 | E47: =E7*'Entzugswerte Düngung'!E17 -> 112.5 | F47: =F7*'Entzugswerte Düngung'!E17 -> 137.5 | G47: =G7*'Entzugswerte Düngung'!E17 -> 87.5 | H47: =H7*'Entzugswerte Düngung'!E17 -> 112.5 | I47: =I7*'Entzugswerte Düngung'!E17 -> 137.5 | J47: 0
A48: =+Stammdatenblatt!A138 -> Kalk | B48: =+Stammdatenblatt!J138 -> 0.04555555556 | C48: Aufw./ha | D48: 300 | E48: 300 | F48: =+D48 -> 300 | G48: =+E48 -> 300 | H48: =+F48 -> 300 | I48: =+G48 -> 300 | J48: 0
A49: =+Stammdatenblatt!A139 -> Magnesium | B49: =+Stammdatenblatt!J139 -> 0.552 | C49: Aufw./ha | D49: =D7*'Entzugswerte Düngung'!F17 -> 21 | E49: =E7*'Entzugswerte Düngung'!F17 -> 27 | F49: =F7*'Entzugswerte Düngung'!F17 -> 33 | G49: =G7*'Entzugswerte Düngung'!F17 -> 21 | H49: =H7*'Entzugswerte Düngung'!F17 -> 27 | I49: =I7*'Entzugswerte Düngung'!F17 -> 33 | J49: 0
A50: =+Stammdatenblatt!A140 -> Schwefel | B50: =+Stammdatenblatt!J140 -> 1.149425287 | C50: Aufw./ha | D50: 0 | E50: 0 | F50: =+D50 -> 0 | G50: =+E50 -> 0 | H50: =+F50 -> 0 | I50: =+G50 -> 0 | J50: 0
A51: Mineraldüngerkosten | C51: €/ha | D51: =D45*$B$45+D46*$B$46+D47*$B$47+D48*$B$48+D49*$B$49+D50*$B$50 -> 506.7886667 | E51: 647.6806667 | F51: 788.5726667 | G51: 506.7886667 | H51: 647.6806667 | I51: 788.5726667 | J51: 0
A52: Herbizide | C52: €/ha | D52: 0 | E52: 0 | F52: 0 | G52: 0 | H52: 0 | I52: 0 | J52: 0
A53: Fungizide | C53: €/ha | D53: 0 | E53: 0 | F53: 0 | G53: 0 | H53: 0 | I53: 0 | J53: 0
A54: Insektizide | C54: €/ha | D54: 0 | E54: 0 | F54: 0 | G54: 0 | H54: 0 | I54: 0 | J54: 0
A55: Wachstumsregler | C55: €/ha | D55: 0 | E55: 0 | F55: 0 | G55: 0 | H55: 0 | I55: 0 | J55: 0
A56: Pfl.behandlungskosten | C56: €/ha | D56: =SUM(D52:D55) -> 0 | E56: 0 | F56: 0 | G56: 0 | H56: 0 | I56: 0 | J56: 0
A57: *Aussaat, Ernte, Verladen und Abfuhr im Lohn; Transportkosten für die Rüben wurden nicht berücksichtigt !
A58: **Verfahren inkl. Zinsanspruch; Verfahren ohne Zinsanspruch sind in den Arbeitsvorgängen abgebildet.

Sheet Entzugswerte Düngung (hidden)
A3: Korn und Stroh | C3: N | D3: P | E3: K | F3: MgO | G3: CaO | H3: S
A4: Gerste | C4: 2.15 | D4: 1.1 | E4: 2.3 | F4: 0.4 | G4: 0.55
A5: Roggen | C5: 2.01 | D5: 1.1 | E5: 2.6 | F5: 0.35 | G5: 0.55
A6: Triticale | C6: 2.15 | D6: 1.1 | E6: 2.3 | F6: 0.4 | G6: 0.55
A7: Weizen | C7: 2.46 | D7: 1.1 | E7: 2 | F7: 0.4 | G7: 0.55
A8: Hafer | C8: 2.06 | D8: 1.1 | E8: 3.2 | F8: 0.4 | G8: 0.55
A9: Braugerste | C9: 1.88 | D9: 1.1 | E9: 2.3 | F9: 0.4 | G9: 0.55
A10: Dinkel | C10: 2.15 | D10: 1.1 | E10: 2.2 | F10: 0.4 | G10: 0.55
A12: Nur Korn
A13: Körnermais | C13: 1.51 | D13: 0.8 | E13: 0.5 | F13: 0.25 | G13: 0.25
A14: Ackerbohne | C14: 4.13 | D14: 1.2 | E14: 1.4 | F14: 0.3 | G14: 0.15
A15: Erbse | C15: 3.58 | D15: 1.1 | E15: 1.4 | F15: 0.3 | G15: 0.15
A16: Raps | C16: 3.35 | D16: 1.8 | E16: 1 | F16: 0.5 | G16: 0.63
A17: Zuckerrübe | C17: 0.18 | D17: 0.1 | E17: 0.25 | F17: 0.06 | G17: 0.068
A18: Kartoffel | C18: 0.32 | D18: 0.14 | E18: 0.6 | F18: 0.07 | G18: 0.03
